Workbook

Sheet Change log
B1: Changes made to model
A3: Item | B3: Sheet | C3: Location | D3: Comment
A5: 1 | B5: RFM input; RAB roll forward; Total RAB roll forward;TAB roll forward; PTRM input summary | D5: Label update
A7: 2 | B7: All Sheets | C7: Various | D7: Asset classes increased from 30 to 50
A9: 3 | B9: RFM input | C9: RFM input'!E394:H397 | D9: Added option for forecast or actual real SL depreciation
C10: RFM input'!A399:Q451 | D10: Added section for forecast SL depreciation data inputs
A12: 4 | B12: RAB roll forward | C12: RAB roll forward'!H128:Q128 | D12: Formula update to accommodate choice of forecast or actual real SL depreciation
C13: RAB roll forward'!H141:Q141 | D13: Formula update to accommodate choice of forecast or actual real SL depreciation
C14: etc to ...'RAB roll forward'!H765:Q765 | D14: Formula update to accommodate choice of forecast or actual real SL depreciation
C15: RAB roll forward'!N292:Q292 | D15: Corrected anomalous formula
A17: 5 | B17: RAB roll forward | C17: RAB roll forward'!C115 | D17: Formula update in the label to reflect choice of forecast or actual depreciation
C18: RAB roll forward'!C873 | D18: Formula update in the label to reflect choice of forecast or actual depreciation
C19: RAB roll forward'!C1083 | D19: Formula update in the label to reflect choice of forecast or actual depreciation
C20: RAB roll forward'!C1293 | D20: Formula update in the label to reflect choice of forecast or actual depreciation
C21: RAB roll forward'!C1503 | D21: Formula update in the label to reflect choice of forecast or actual depreciation
A23: 6 | B23: Total RAB roll forward | C23: Total RAB roll forward'!C111 | D23: Formula update in the label to reflect choice of forecast or actual depreciation
C24: Total RAB roll forward'!C687 | D24: Formula update in the label to reflect choice of forecast or actual depreciation
A26: 7 | B26: RFM input | C26: RFM input'!H390:Q390 | D26: Formula update to enable different WACC each year
C27: RFM input'!I391:Q391 | D27: Formula update to enable different WACC each year
A29: 8 | B29: RFM input | C29: RFM input'F384:F385 | D29: Moved CPI input for t-2 of previous period to RFM input sheet from Adjustment for previous period sheet
B30: Adjustment for previous period | C30: Adjustment for previous period'F6 | D30: Formula update to reflect input moved to RFM input sheet
A32: 9 | B32: RFM input | C32: RFM input'K7:K56 and X7:X56 | D32: Formula update for data validation so that a value greater than zero may be entered
A34: 10 | B34: RFM input | C34: RFM input'W57 | D34: Formula to sum values for opening TAB
A36: 11 | B36: RFM input | C36: RFM input'E5; G60; I60:G60 | D36: Formula update to allow for correct display of chosen base year (start of period)
B37: Adjustment for previous period | C37: Adjustment for previous period'F4 | D37: Formula update to allow for correct display of regulatory year
B38: RAB roll forward | C38: RAB roll forward'R4 | D38: Formula update to allow for correct display of regulatory year
B39: TAB roll forward | C39: TAB roll forward'R4 | D39: Formula update to allow for correct display of regulatory year
A41: 12 | B41: RFM input | C41: RFM input'J6:J57 | D41: Added input column for as commissioned RAB from final year of previous period
C42: RFM input'N6:N57 | D42: Added input column for as commissioned RAB from final year of previous period
C43: RFM input'P6:P57 | D43: Added input column for as commissioned RAB from final year of previous period
C44: RFM input'R6:R57 | D44: Added input column for as commissioned RAB from final year of previous period
C45: RFM input'T6:T57 | D45: Added input column for as commissioned RAB from final year of previous period
A47: 13 | B47: RFM input | C47: RFM input'M6 | D47: Label update for as incurred RAB inputs from final year of previous period
C48: RFM input'Q6 | D48: Label update for as incurred RAB inputs from final year of previous period
C49: RFM input'S6 | D49: Label update for as incurred RAB inputs from final year of previous period
C50: RFM input'U6 | D50: Label update for as incurred RAB inputs from final year of previous period
C51: RFM input'V6 | D51: Label update for as commissioned RAB inputs from final year of previous period
C52: RFM input'Z6 | D52: Label update
A54: 14 | B54: Adjustment for previous period | C54: Adjustment for previous period'B7:Q7 | D54: Added actual inflation index from RFM input
C55: Adjustment for previous period'B9:Q9 | D55: Added real vanilla WACC from RFM input
A57: 15 | B57: Adjustment for previous period | C57: Adjustment for previous period'B11; B272; | D57: Label update to reflect changes to RFM input at 12
C58: B274; B326; B378; B430; B432 and B434 | D58: Label update to reflect changes to RFM input at 12
C59: etc to…B530 and B531 | D59: Label update to reflect changes to RFM input at 12
A61: 16 | B61: Adjustment for previous period | C61: Adjustment for previous period'G275:G324; | D61: Formula update/addition to reflect changes to RFM input at 12
C62: G327:G376; G326:G376; G379:G428; | D62: Formula update/addition to reflect changes to RFM input at 12
C63: H378:Q328; and H431:Q531 | D63: Formula update/addition to reflect changes to RFM input at 12
A65: 17 | B65: RAB roll forward | C65: RAB roll forward'!H116:Q116 | D65: Formula update to to reflect changes to RFM input at 12
C66: RAB roll forward'!H129:Q129 | D66: Formula update to to reflect changes to RFM input at 13
C67: etc to ...'RAB roll forward'!H765:Q765 | D67: Formula update to to reflect changes to RFM input at 14
A69: 18 | B69: RAB roll forward | C69: RAB roll forward'C925; C977; C1029; | D69: Label update to reflect changes to RFM input at 12
C70: C1345 and C1397 | D70: Label update to reflect changes to RFM input at 12
A72: 19 | B72: RAB roll forward | C72: RAB roll forward'G822:G871; G874:G923 | D72: Formula update/addition to reflect changes to RFM input at 12
C73: G926:G975; G978:G1027; G1030:G1079; | D73: Formula update/addition to reflect changes to RFM input at 12
C74: G1190:G1239; G1242:G1291; G1294:G1343; | D74: Formula update/addition to reflect changes to RFM input at 12
C75: G1346:G1395; G1398:G1447; C1449; | D75: Formula update/addition to reflect changes to RFM input at 12
C76: D1450:D1499 and G1449:G1499 | D76: Formula update/addition to reflect changes to RFM input at 12
A78: 20 | B78: Total RAB roll forward | C78: Total RAB roll forward'C163; C215; C267; | D78: Label update to reflect changes to RFM input at 12
C79: C739 and C791 | D79: Label update to reflect changes to RFM input at 12
A81: 21 | B81: Total RAB roll forward | C81: Total RAB roll forward'C843; D844:D893 and | D81: Formula update/addition to reflect changes to RFM input at 12
C82: G843:G893 | D82: Formula update/addition to reflect changes to RFM input at 12
A84: 22 | B84: Total RAB roll forward | C84: Total RAB roll forward'H584:H633; G898:G947 | D84: Formula update/addition to reflect changes to Total RAB roll forward at 21
A86: 23 | B86: Total RAB roll forward | C86: Total RAB roll forward'J950:Q999 and | D86: Formula update/addition to reflect changes to Adjustment for previous period at 16
C87: J1002:Q1051
A89: 24 | B89: Total RAB roll forward | C89: Total RAB roll forward'C491:G553 | D89: Removed sections for assets under construction true-up from final year of previous period (no longer required)
C90: of version 2 RFM
A92: 25 | B92: RFM input | C92: RFM input'!W7:W56 | D92: Removed defined names for opening tax values
B93: TAB roll forward | C93: TAB roll forward'!H8:H57 | D93: Added defined names to ensure correct tax depreciation calculation on opening tax values
B94: TAB roll forward | C94: TAB roll forward'H8:H57 | D94: Formula update to reflect changes to RFM input at 12, and changes to remove half WACC from forecast capex
A96: 26 | B96: Adjustment for previous period | C96: Adjustment for previous period'B533:R725 | D96: Removed section that takes the opening inputs from final year of previous period and rolls forward for one year (replicated in other sheets)
D97: (Adjustment for previous period B331:R523 of version 2 RFM)
A99: 27 | B99: RAB roll forward | C99: RAB roll forward'H1190:H1239 | D99: Added defined names to replace removal in Adjustment for previous period at 26
A101: 28 | B101: RAB roll forward | C101: RAB roll forward'K770:M819; J1136:L1185; | D101: Formula update to allow display for regulatory control period of 2-10 years
C102: K1190:M1239; J1556:L1605 | D102: Formula update to allow display for regulatory control period of 2-10 years
B103: Total RAB roll forward | C103: Total RAB roll forward'J8:L57; J322:L371; | D103: Formula update to allow display for regulatory control period of 2-10 years
C104: J373:L423; J425:L475; J529:L529; J584:L633; | D104: Formula update to allow display for regulatory control period of 2-10 years
C105: J898:L947 J949:L949; J1001:L1001 and | D105: Formula update to allow display for regulatory control period of 2-10 years
C106: J1105:L1105 | D106: Formula update to allow display for regulatory control period of 2-10 years
B107: RFM input | C107: RFM input'!M392:Q392 | D107: Formula update to allow display for regulatory control period of 2-10 years
B108: Adjustment for previous period | C108: Adjustment for previous period'I171:I270 | D108: Formula update to allow display for regulatory control period of 2-10 years
C109: J170:J270, H430:Q531 | D109: Formula update to allow display for regulatory control period of 2-10 years
A111: 29 | B111: RFM input | C111: RFM input'A453:H505 | D111: Added section for forecast final year asset adjustments
B112: Total RAB roll forward | C112: Total RAB roll forward'C477:Q527 | D112: Added section to reflect this change to RFM input
C113: Total RAB roll forward'J530:Q579 | D113: Formula update to reflect this change to Total RAB roll forward
C114: Total RAB roll forward'C1053:Q1103 | D114: Added section to reflect this change to RFM input
C115: Total RAB roll forward'J1106:Q1155 | D115: Formula update to reflect this change to Total RAB roll forward
C116: TAB roll forward'K8:R57 | D116: Formula update to reflect this change to RFM input and allow display for regulatory control period of 3 years or more
A118: 30 | B118: Adjustment for previous period | C118: Adjustment for previous period'!G118:G167 | D118: Formula update to remove CPI adjustment
A120: 31 | B120: TAB roll forward | C120: TAB roll forward'D112; D125 etc to…D749 | D120: Label update
A122: 32 | B122: RAB remaining lives | C122: RAB remaining lives | D122: Added sheet for calculating remaining asset lives based on individually tracking capex over 20 years
A124: 33 | B124: TAB remaining lives | C124: TAB remaining lives | D124: Added sheet for calculating remaining tax asset lives based on individually tracking capex over 20 years
A126: 34 | B126: PTRM input summary | C126: PTRM input summary'J7:K56 and N7:N56 | D126: Formula update to record outputs
C127: PTRM input summary'L7:L56 and O6:O56 | D127: Formula update to use new RAB/TAB remaining life calculations, and filter anomalous remaining lives
A129: 35 | B129: DMIS input | C129: DMS input | D129: Added sheet for business information
C130: Total RAB roll forward | D130: Added defined names for selected ranges
C131: TAB roll forward | D131: Added defined names for selected ranges
C132: PTRM input summary | D132: Added defined names for selected ranges
A134: 36 | B134: RFM input | C134: RFM input'E2 | D134: Label update
B135: Adjustment for previous period | C135: Adjustment for previous period'B2 | D135: Label update
B136: RAB roll forward | C136: RAB roll forward'C2 | D136: Label update
B137: Total RAB roll forward | C137: Total RAB roll forward'C2 | D137: Label update
B138: TAB roll forward | C138: TAB roll forward'B2 | D138: Label update
B139: PTRM input summary | C139: PTRM input summary'E2 | D139: Label update
C140: PTRM input summary'N6 | D140: Label update
C141: PTRM input summary'Q6 | D141: Label update

Sheet Intro
G2: Electricity Transmission Network Service Provider
I3: Roll Forward Model
L4: Version: | M4: 3
L5: Date: | M5: July 2015
B8: Introduction | J8: Electricity Transmission Module
C14: This model is used by the AER to determine the opening regulatory and tax asset bases for a transmission network service provider. It also calculates the weighted average remaining asset lives for regulatory and tax purposes using the asset values as weights.
C15: The roll forward of the asset base is undertaken in nominal terms.
C17: INSTRUCTIONS FOR USE
C18: The RFM handbook is available on the AER website at http://www.aer.gov.au
C20: a. Fill out input cells on the 'DMS Input' sheet. These input cells are highlighted blue.
C21: This provides information on the service provider submitting the RFM and the context for the RFM preparation.
C22: This information also controls the automatic import of the RFM into the AER's Data Management System (DMS).
C24: b. Fill out input cells on the 'RFM Input' sheet. These input cells are highlighted blue.
C25: This provides the data for the RFM calculations.
C26: In general, input expenditure data should be valued in nominal dollar terms of the year indicated, as at the end of that year.
C27: Units and basis for entry are specified where required for each data table.
C29: c. The values in the 'PTRM input summary' sheet
C30: This sheet summarises the key outputs of the RFM. These include the opening regulatory and tax asset values, and remaining asset lives. They become the inputs to the PTRM.
C33: VERSION RECORD
C35: Version | D35: Date | F35: Description
C36: 1 | D36: September 2007 | F36: Initial model
C38: 2 | D38: December 2010 | F38: Modified calculations to allow for establising a closing RAB based on as commissioned capex
F39: Adjusted depreciation calculation formula in the RAB roll forward
F40: Added the weighted average approach to roll forward the remaining asset lives at the end of the regulatory control period and summary tables
C42: 3 | D42: July 2015 | F42: Added new input sections for as commissioned RAB and end of period adjustments, and removed redundant inputs
F43: Built-in option to select actual or forecast depreciation approach for the RAB roll forward
F44: Updated inputs to handle different annual WACCs due to time-varying return on debt
F45: Modified calculations of weighted average remaining lives for RAB and TAB to individually track capex over multiple periods
F46: Enabled automatic import into AER DMS

Sheet AER only (hidden)
A1: HIDE THIS COLUMN | C1: =(LOOKUP(dms_Model,dms_Model_List,dms_Worksheet_List)) -> ROLL FORWARD MODEL | L1: Data in these columns used for data validation and database purposes.
C2: =dms_TradingName -> Australian Transmission Co. | L2: Date last modified:
C3: =CONCATENATE(FRCP_y1," to ",FRCP_y5) -> 2017-18 to 2021-22 | L3: 14 April 2015 | M3: merged cell C46/47
C4: BUSINESS & OTHER DETAILS | L4: 17 April 2015 | M4: adjusted dms_RYE to automate based on dms_Model (NB: EB & CA refer to CRCP_y5)
L5: 14 May 2015 | M5: adapted this cover for use in CA & EB RINs
C7: Instructions
C8: Complete the following business details regulatory template before entering data or values in any other regulatory template. This regulatory template is linked to other cells within the spreadsheet and automatically generates column headings.
C9: THIS WORKBOOK TO BE LOCKED, PROTECTED AND HIDDEN FROM VIEW
C10: SUBMISSION PARTICULARS INPUT SHEETS
C12: Entity details
C14: Trading name | D14: Australian Transmission Co.
C15: ACN / ABN | D15: =INDEX(dms_ABN_List,MATCH(dms_TradingName,dms_TradingName_List)) -> 11222333444
L17: dms_Model_List | M17: dms_Worksheet_List | O17: dms_RYE_List1 | P17: dms_RYE_List2
C18: Business address | D18: Address 1 | F18: ='DMS input'!E18:E18 -> 123 Straight Street | L18: CA | M18: CATEGORY ANALYSIS | O18: dms_RYE | P18: =CONCATENATE(LEFT(CRY, 2) &IF(CRY>"2009-10",,"") &RIGHT(CRY,2)) -> 2013
E19: Address 2 | F19: =IF(ISBLANK('DMS input'!E19),"",'DMS input'!E19) ->  | L19: CAM/Service change Backcast | M19: REGULATORY REPORTING STATEMENT | O19: dms_RYE | P19: =CONCATENATE(LEFT(CRCP_y5, 2) &IF(CRCP_y5>"2009-10",,"") &RIGHT(CRCP_y5,2)) -> 2017
D20: Suburb | F20: ='DMS input'!E20 -> Sydney | L20: CPI | M20: CPI | O20: dms_RYE | P20: =CONCATENATE(LEFT(CRCP_y5, 2) &IF(CRCP_y5>"2009-10",,"") &RIGHT(CRCP_y5,2)) -> 2017
E21: State | F21: =INDEX(dms_State_List,MATCH(dms_TradingName,dms_TradingName_List)) -> - | G21: p/code | H21: ='DMS input'!G21 -> 2000 | L21: EB | M21: ECONOMIC BENCHMARKING | O21: dms_RYE | P21: =CONCATENATE(LEFT(CRY, 2) &IF(CRY>"2009-10",,"") &RIGHT(CRY,2)) -> 2013
L22: PTRM | M22: POST TAX REVENUE MODEL | O22: FRCP | P22: =CONCATENATE(LEFT(FRCP_y5, 2) &IF(FRCP_y1>"2009-10",,"") &RIGHT(FRCP_y5,2)) -> 2022
C23: Postal address | D23: Address 1 | F23: ='DMS input'!E23 -> PO Box 123 | L23: Reset | M23: REGULATORY REPORTING STATEMENT | O23: FRCP | P23: =CONCATENATE(LEFT(FRCP_y5, 2) &IF(FRCP_y1>"2009-10",,"") &RIGHT(FRCP_y5,2)) -> 2022
E24: Address 2 | F24: =IF(ISBLANK('DMS input'!E24),"",'DMS input'!E24) ->  | L24: RFM | M24: ROLL FORWARD MODEL | O24: CRCP | P24: =CONCATENATE(LEFT(CRCP_y5, 2) &IF(CRCP_y1>"2009-10",,"") &RIGHT(CRCP_y5,2)) -> 2017
D25: Suburb | F25: ='DMS input'!E25:H25 -> 0 | L25: WACC | M25: WEIGHTED AVERAGE COST OF CAPITAL | O25: dms_RYE | P25: =CONCATENATE(LEFT(CRCP_y5, 2) &IF(CRCP_y5>"2009-10",,"") &RIGHT(CRCP_y5,2)) -> 2017
E26: State | F26: ='DMS input'!E26 -> NSW | G26: p/code | H26: ='DMS input'!G26 -> 2000
L28: dms_TradingName_List | M28: dms_ABN_List | N28: dms_State_List | O28: dms_Sector_List | P28: dms_Segment_List | Q28: dms_FormControl_List | R28: dms_CRCPlength_List | S28: dms_FRCPlength_List | T28: dms_JurisdictionList
C29: Contact name/s | D29: ='DMS input'!C29:D29 -> 0 | G29: ='DMS input'!F29:G29 -> 0 | L29: ActewAGL Distribution | M29: 76670568688 | N29: ACT | O29: Electricity | P29: Distribution | Q29: Revenue cap | R29: 5 | S29: 6 | T29: ACT
C30: Contact phone/s | D30: ='DMS input'!C30:D30 -> 0 | G30: ='DMS input'!F30:G30 -> 0 | L30: ActewAGL Distribution (Tx Assets) | M30: 76670568688 | N30: ACT | O30: Electricity | P30: Distribution | Q30: Revenue cap | R30: 5 | S30: 5 | T30: ACT
C31: Contact email address/s | D31: ='DMS input'!C31:D31 -> 0 | G31: ='DMS input'!F31:G31 -> 0 | L31: AGN | M31: 78551685 | N31: SA | O31: Gas | P31: Distribution | Q31: Revenue cap | R31: 5 | S31: 5 | T31: SA
L32: Ausgrid | M32: 67505337385 | N32: NSW | O32: Electricity | P32: Distribution | Q32: Revenue cap | R32: 5 | S32: 5 | T32: NSW
A33: KEEP VISIBLE FOR RESET | C33: Regulatory control period details | L33: Ausgrid (Tx Assets) | M33: 67505337385 | N33: NSW | O33: Electricity | P33: Distribution | Q33: Revenue cap | R33: 5 | S33: 5 | T33: NSW
L34: AusNet (D) | M34: 91064651118 | N34: Vic | O34: Electricity | P34: Distribution | Q34: Revenue cap | R34: 5 | S34: 5 | T34: Vic
C35: Forthcoming regulatory control period | D35: =CONCATENATE(IF(dms_RPT="Calendar",CRCP_y5+1,(LEFT(CRCP_y5,4)+1&"-"&IF(MID(CRCP_y5,6,2)<"09","0"&RIGHT(CRCP_y5,1)+1,RIGHT(CRCP_y5,2)+1)))) -> 2017-18 | E35: =CONCATENATE(IF(dms_RPT="Calendar",FRCP_y1+1,(LEFT(FRCP_y1,4)+1&"-"&IF(MID(FRCP_y1,6,2)<"09","0"&RIGHT(FRCP_y1,1)+1,RIGHT(FRCP_y1,2)+1)))) -> 2018-19 | F35: =CONCATENATE(IF(dms_RPT="Calendar",FRCP_y2+1,(LEFT(FRCP_y2,4)+1&"-"&IF(MID(FRCP_y2,6,2)<"09","0"&RIGHT(FRCP_y2,1)+1,RIGHT(FRCP_y2,2)+1)))) -> 2019-20 | G35: =CONCATENATE(IF(dms_RPT="Calendar",FRCP_y3+1,(LEFT(FRCP_y3,4)+1&"-"&IF(MID(FRCP_y3,6,2)<"09","0"&RIGHT(FRCP_y3,1)+1,RIGHT(FRCP_y3,2)+1)))) -> 2020-21 | H35: =CONCATENATE(IF(dms_RPT="Calendar",FRCP_y4+1,(LEFT(FRCP_y4,4)+1&"-"&IF(MID(FRCP_y4,6,2)<"09","0"&RIGHT(FRCP_y4,1)+1,RIGHT(FRCP_y4,2)+1)))) -> 2021-22 | L35: AusNet (T) | M35: 48116124362 | N35: Vic | O35: Electricity | P35: Transmission | Q35: Revenue cap | R35: 5 | S35: 5 | T35: Vic
L36: Australian Distribution Co. | M36: 11222333444 | N36: - | O36: Electricity | P36: Distribution | Q36: Revenue cap | R36: 5 | S36: 5 | T36: -
L37: Australian Transmission Co. | M37: 11222333444 | N37: - | O37: Electricity | P37: Transmission | Q37: Revenue cap | R37: 5 | S37: 5 | T37: -
C38: Current regulatory control period | D38: =CRY -> 2012-13 | E38: =CONCATENATE(IF(dms_RPT="Calendar",CRCP_y1+1,(LEFT(CRCP_y1,4)+1&"-"&IF(MID(CRCP_y1,6,2)<"09","0"&RIGHT(CRCP_y1,1)+1,RIGHT(CRCP_y1,2)+1)))) -> 2013-14 | F38: =CONCATENATE(IF(dms_RPT="Calendar",CRCP_y2+1,(LEFT(CRCP_y2,4)+1&"-"&IF(MID(CRCP_y2,6,2)<"09","0"&RIGHT(CRCP_y2,1)+1,RIGHT(CRCP_y2,2)+1)))) -> 2014-15 | G38: =CONCATENATE(IF(dms_RPT="Calendar",CRCP_y3+1,(LEFT(CRCP_y3,4)+1&"-"&IF(MID(CRCP_y3,6,2)<"09","0"&RIGHT(CRCP_y3,1)+1,RIGHT(CRCP_y3,2)+1)))) -> 2015-16 | H38: =CONCATENATE(IF(dms_RPT="Calendar",CRCP_y4+1,(LEFT(CRCP_y4,4)+1&"-"&IF(MID(CRCP_y4,6,2)<"09","0"&RIGHT(CRCP_y4,1)+1,RIGHT(CRCP_y4,2)+1)))) -> 2016-17 | L38: CitiPower | M38: 76064651056 | N38: Vic | O38: Electricity | P38: Distribution | Q38: Revenue cap | R38: 5 | S38: 5 | T38: Vic
L39: Directlink | M39: 16779340889 | N39: NSW | O39: Electricity | P39: Transmission | Q39: Revenue cap | R39: 10 | S39: 5 | T39: Qld
L40: ElectraNet | M40: 41094482416 | N40: SA | O40: Electricity | P40: Transmission | Q40: Revenue cap | R40: 5 | S40: 5 | T40: SA
C41: Previous regulatory control period | D41: =CONCATENATE(IF(dms_RPT="Calendar",PRCP_y2-1,(LEFT(PRCP_y2,4)-1&"-"&IF(MID(PRCP_y2,3,1)="0","0"&RIGHT(PRCP_y2,2)-1,RIGHT(PRCP_y2,2)-1)))) -> 2007-08 | E41: =CONCATENATE(IF(dms_RPT="Calendar",PRCP_y3-1,(LEFT(PRCP_y3,4)-1&"-"&IF(MID(PRCP_y3,3,1)="0","0"&RIGHT(PRCP_y3,2)-1,RIGHT(PRCP_y3,2)-1)))) -> 2008-09 | F41: =CONCATENATE(IF(dms_RPT="Calendar",PRCP_y4-1,(LEFT(PRCP_y4,4)-1&"-"&IF(MID(PRCP_y4,3,1)="0","0"&RIGHT(PRCP_y4,2)-1,RIGHT(PRCP_y4,2)-1)))) -> 2009-10 | G41: =CONCATENATE(IF(dms_RPT="Calendar",PRCP_y5-1,(LEFT(PRCP_y5,4)-1&"-"&IF(MID(PRCP_y5,3,1)="0","0"&RIGHT(PRCP_y5,2)-1,RIGHT(PRCP_y5,2)-1)))) -> 2010-11 | H41: =CONCATENATE(IF(dms_RPT="Calendar",CRCP_y1-1,(LEFT(CRCP_y1,4)-1&"-"&IF(MID(CRCP_y1,3,1)="0","0"&RIGHT(CRCP_y1,2)-1,RIGHT(CRCP_y1,2)-1)))) -> 2011-12 | L41: Endeavour Energy | M41: 59253130878 | N41: NSW | O41: Electricity | P41: Distribution | Q41: Revenue cap | R41: 5 | S41: 5 | T41: NSW
L42: Energex | M42: 40078849055 | N42: Qld | O42: Electricity | P42: Distribution | Q42: Revenue cap | R42: 5 | S42: 5 | T42: Qld
L43: Ergon Energy | M43: 50087646062 | N43: Qld | O43: Electricity | P43: Distribution | Q43: Revenue cap | R43: 5 | S43: 5 | T43: Qld
A44: KEEP VISIBLE FOR CA & EB ONLY | L44: Essential Energy | M44: 37428185226 | N44: NSW | O44: Electricity | P44: Distribution | Q44: Revenue cap | R44: 5 | S44: 5 | T44: NSW
C45: Current regulatory year | D45: ='RFM input'!Z7 -> 2012-13 | L45: Jemena Electricity | M45: 82064651083 | N45: Vic | O45: Electricity | P45: Distribution | Q45: Revenue cap | R45: 5 | S45: 5 | T45: Vic
L46: Murraylink | M46: 79181207909 | N46: NSW | O46: Electricity | P46: Transmission | Q46: Revenue cap | R46: 5 | S46: 5 | T46: SA
L47: Powercor Australia | M47: 89064651109 | N47: Vic | O47: Electricity | P47: Distribution | Q47: Revenue cap | R47: 5 | S47: 5 | T47: Vic
L48: Powerlink | M48: 82078849233 | N48: Qld | O48: Electricity | P48: Transmission | Q48: Revenue cap | R48: 5 | S48: 5 | T48: Qld
L49: Qld,SA &ACT Gas Reset | M49: 22222222222 | N49: - | O49: Gas | P49: Distribution | Q49: ? | R49: 5 | S49: 5 | T49: -
C50: Sector | D50: =INDEX(dms_Sector_List,MATCH(dms_TradingName,dms_TradingName_List)) -> Electricity | L50: SA Power Networks | M50: 13332330749 | N50: SA | O50: Electricity | P50: Distribution | Q50: Revenue cap | R50: 5 | S50: 5 | T50: SA
C51: Segment | D51: =INDEX(dms_Segment_List,MATCH(dms_TradingName,dms_TradingName_List)) -> Transmission | L51: TasNetworks (D) | M51: 24167357299 | N51: Tas | O51: Electricity | P51: Distribution | Q51: Revenue cap | R51: 5 | S51: 5 | T51: Tas
C52: Source | D52: Regulatory proposal | L52: TasNetworks (T) | M52: 24167357299 | N52: Tas | O52: Electricity | P52: Transmission | Q52: Revenue cap | R52: 5 | S52: 5 | T52: Tas
C53: Regulatory Year Ending | D53: =(LOOKUP(dms_Model,dms_Model_List,dms_RYE_List2)) -> 2017 | L53: TransGrid | M53: 19622755774 | N53: NSW | O53: Electricity | P53: Transmission | Q53: Revenue cap | R53: 5 | S53: 5 | T53: NSW
C54: Reporting Period Type | D54: =IF(LEN(CRCP_y1)>4,"Financial","Calendar") -> Financial | L54: United Energy | M54: 70064651029 | N54: Vic | O54: Electricity | P54: Distribution | Q54: Revenue cap | R54: 5 | S54: 5 | T54: Vic
C55: Model or RIN Type | D55: RFM
C56: Security Classification | D56: Public
C57: Data quality (actual, estimate, public, consolidated) | D57: Consolidated
C58: EBSS - First application of scheme in forthcoming period? | D58: No
C59: Amended RIN submission - amendment reason
A60: HIDE THESE ROWS | C60: Template - version no. | D60: 1
C61: Dollar $ real (the last month before the FRCP_y1) | D61: =CONCATENATE(IF(dms_RPT="Financial","June ","December "),(CRCP_y5)) -> June 2016-17 | L61: dms_SourceList | M61: dms_FormControl_Choices
C62: Form of control | L62: After appeal | M62: Revenue cap
C63: Length of current reg control period | D63: =INDEX(dms_CRCPlength_List,MATCH(dms_TradingName,dms_TradingName_List)) -> 5 | L63: Draft decision | M63: Revenue yield
C64: Length of forthcoming reg control period | D64: =INDEX(dms_FRCPlength_List,MATCH(dms_TradingName,dms_TradingName_List)) -> 5 | L64: Final decision | M64: Weighted average price cap
C65: RIN response - version no. | D65: 1 | L65: Regulatory proposal
C66: Jurisdiction | D66: =INDEX(dms_JurisdictionList,MATCH(dms_TradingName,dms_TradingName_List)) -> - | L66: Revised regulatory proposal
L67: RFM annual update
L79: Notes
L80: RFM - Base year is usually CRCP_y1 | M80: EG. Victorian 2016-20 - base year = 2011
L81: RFM - Form of Control Field is not relevant
L82: PTRM - capture base year input by NSP | M82: ='[Published version - PTRM - TNSP - version 3 - January 2015 - Appendix A.xlsm]PTRM input'!Q7

Sheet DMS input
B2: =$C$16&" - DMS Input"&" - TNSP RFM - version "&Intro!$M$4 -> Aus Elec - DMS Input - TNSP RFM - version 3 | G2: Input cells are in blue
B6: This sheet requests information that allows the AER to automatically import the RFM into our data management system (DMS).
B7: This sheet's metadata relates to the business and context for the RFM (rather than the RFM itself).
B8: Some of this data is automatically populated based on data entered on the RFM input sheet. Only change blue input cells.
B9: Some rows are hidden. To facilitate the automatic import, please do not delete or add rows on this sheet.
B10: Throughout the rest of the workbook, defined name ranges are used to identify data that is imported into the DMS.
B12: Entity details
B14: Trading name | C14: Australian Transmission Co.
B15: ACN / ABN | C15: =INDEX(dms_ABN_List,MATCH(dms_TradingName,dms_TradingName_List)) -> 11222333444
B16: Business short name | C16: Aus Elec
B18: Business address | C18: Address 1 | E18: 123 Straight Street
D19: Address 2
C20: Suburb | E20: Sydney
D21: State | E21: NSW | F21: Postcode | G21: 2000
B23: Postal address | C23: Address 1 | E23: PO Box 123
D24: Address 2
C25: Suburb | E25: Sydney
D26: State | E26: NSW | F26: Postcode | G26: 2000
B29: Contact name/s | C29: Bob Smith | F29: Julie Lee
B30: Contact phone/s | C30: 212345678 | F30: 291234567
B31: Contact email address/s | C31: bob@auselec.net.au | F31: julie@auselec.net.au
B33: Regulatory process details
B36: Source | C36: Regulatory proposal
B37: Amended model submission - reason

Sheet RFM input
E2: ='DMS input'!$C$16&" - RFM Input"&" - TNSP RFM - version "&Intro!$M$4 -> Aus Elec - RFM Input - TNSP RFM - version 3 | G2: Input cells are in blue
K3: New insert/change | M3: Labelling change
E5: ="Opening Regulatory Asset Base for "&IF(LEN($Z$7)>4,CONCATENATE(LEFT($Z$7,4)-1&"-"&IF($Z$7>"2009-10",,"0")&RIGHT($Z$7,2)-1),$Z$7-1)&" and Opening Tax Asset Base for "&$Z$7&" ($m Nominal)" -> Opening Regulatory Asset Base for 2011-12 and Opening Tax Asset Base for 2012-13 ($m Nominal)
F6: Asset Class Name | I6: Opening Asset Value (Partially As Incurred) | J6: Opening Asset Value (As Commissioned) | K6: Average Remaining Life (Year) | L6: Standard Life (Year) | M6: Forecast Net Capex (As Incurred) | N6: Forecast Net Capex (As Commissioned) | O6: Forecast Regulatory Depreciation (Partially As Incurred) | P6: Forecast Regulatory Depreciation (As Commissioned) | Q6: Difference in Final Year Capex (As Incurred) | R6: Difference in Final Year Capex (As Commissioned) | S6: Return on Difference in Final Year Capex ( As Incurred) | T6: Return on Difference in Final Year Capex (As Commissioned) | U6: Other Final Year Adjustments (As Incurred) | V6: Other Final Year Adjustments (As Commissioned) | W6: Opening Tax Asset Value | X6: Average Tax Remaining Life (Year) | Y6: Tax Standard Life (Year) | Z6: Base Regulatory Year | AA6: Length of Regulatory Control Period (Year)
E7: Asset Class 1 | F7: Transmission lines | I7: 1000 | J7: 1100 | K7: 30 | L7: 50 | M7: 20 | N7: 20 | O7: 5 | P7: 5 | W7: 800 | X7: 25 | Y7: 45 | Z7: 2012-13 | AA7: 5
E8: Asset Class 2 | F8: Substations | I8: 800 | J8: 880 | K8: 25 | L8: 40 | M8: 20 | N8: 20 | O8: 5 | P8: 5 | W8: 700 | X8: 20 | Y8: 35
E9: Asset Class 3 | F9: Easements | I9: 700 | J9: 770 | K9: n/a | L9: n/a | M9: 20 | N9: 20 | O9: 5 | P9: 5 | W9: 600 | X9: n/a | Y9: n/a
E10: Asset Class 4
E11: Asset Class 5
E12: Asset Class 6
E13: Asset Class 7
E14: Asset Class 8
E15: Asset Class 9
E16: Asset Class 10
E17: Asset Class 11
E18: Asset Class 12
E19: Asset Class 13
E20: Asset Class 14
E21: Asset Class 15
E22: Asset Class 16
E23: Asset Class 17
E24: Asset Class 18
E25: Asset Class 19
E26: Asset Class 20
E27: Asset Class 21
E28: Asset Class 22
E29: Asset Class 23
E30: Asset Class 24
E31: Asset Class 25
E32: Asset Class 26
E33: Asset Class 27
E34: Asset Class 28
E35: Asset Class 29
E36: Asset Class 30
E37: Asset Class 31
E38: Asset Class 32
E39: Asset Class 33
E40: Asset Class 34
E41: Asset Class 35
E42: Asset Class 36
E43: Asset Class 37
E44: Asset Class 38
E45: Asset Class 39
E46: Asset Class 40
E47: Asset Class 41
E48: Asset Class 42
E49: Asset Class 43
E50: Asset Class 44
E51: Asset Class 45
E52: Asset Class 46
E53: Asset Class 47
E54: Asset Class 48
E55: Asset Class 49
E56: Asset Class 50 | F56: Equity raising costs
E57: Total | I57: =SUM(I7:I56) -> 2500 | J57: =SUM(J7:J56) -> 2750 | M57: =SUM(M7:M56) -> 60 | N57: 60 | O57: 15 | P57: 15 | Q57: 0 | R57: 0 | S57: 0 | T57: 0 | U57: 0 | V57: 0 | W57: 2100
E59: Actual Capital Expenditure – As Incurred ($m Nominal)
E60: Year | G60: =IF(LEN(H60)>4,CONCATENATE(LEFT(H60,4)-1&"-"&IF(H60>"2009-10",,"0")&RIGHT(H60,2)-1),H60-1) -> 2011-12 | H60: =Z7 -> 2012-13 | I60: =IF(LEN(H60)>4,CONCATENATE(LEFT(H60,4)+1&"-"&IF(H60>"2007-08",,"0")&RIGHT(H60,2)+1),H60+1) -> 2013-14 | J60: =IF(LEN(I60)>4,CONCATENATE(LEFT(I60,4)+1&"-"&IF(I60>"2007-08",,"0")&RIGHT(I60,2)+1),I60+1) -> 2014-15 | K60: 2015-16 | L60: 2016-17 | M60: 2017-18 | N60: 2018-19 | O60: 2019-20 | P60: 2020-21 | Q60: 2021-22
E61: =Asset1 -> Transmission lines | G61: 15 | H61: 10 | I61: 10 | J61: 10 | K61: 10 | L61: 10
E62: =Asset2 -> Substations | G62: 15 | H62: 10 | I62: 10 | J62: 10 | K62: 10 | L62: 10
E63: =Asset3 -> Easements | G63: 15 | H63: 10 | I63: 10 | J63: 10 | K63: 10 | L63: 10
E64: =Asset4 -> 0
E65: =Asset5 -> 0
E66: =Asset6 -> 0
E67: =Asset7 -> 0
E68: =Asset8 -> 0
E69: =Asset9 -> 0
E70: =Asset10 -> 0
E71: =Asset11 -> 0
E72: =Asset12 -> 0
E73: =Asset13 -> 0
E74: =Asset14 -> 0
E75: =Asset15 -> 0
E76: =Asset16 -> 0
E77: =Asset17 -> 0
E78: =Asset18 -> 0
E79: =Asset19 -> 0
E80: =Asset20 -> 0
E81: =Asset21 -> 0
E82: =Asset22 -> 0
E83: =Asset23 -> 0
E84: =Asset24 -> 0
E85: =Asset25 -> 0
E86: =Asset26 -> 0
E87: =Asset27 -> 0
E88: =Asset28 -> 0
E89: =Asset29 -> 0
E90: =Asset30 -> 0
E91: =Asset31 -> 0
E92: =Asset32 -> 0
E93: =Asset33 -> 0
E94: =Asset34 -> 0
E95: =Asset35 -> 0
E96: =Asset36 -> 0
E97: =Asset37 -> 0
E98: =Asset38 -> 0
E99: =Asset39 -> 0
E100: =Asset40 -> 0
E101: =Asset41 -> 0
E102: =Asset42 -> 0
E103: =Asset43 -> 0
E104: =Asset44 -> 0
E105: =Asset45 -> 0
E106: =Asset46 -> 0
E107: =Asset47 -> 0
E108: =Asset48 -> 0
E109: =Asset49 -> 0
E110: =Asset50 -> Equity raising costs
E111: Total | G111: =SUM(G61:G110) -> 45 | H111: =SUM(H61:H110) -> 30 | I111: 30 | J111: 30 | K111: 30 | L111: 30 | M111: 0 | N111: 0 | O111: 0 | P111: 0 | Q111: 0
R112: =SUM(G111:Q111) -> 195
E113: Actual Asset Disposal – As Incurred ($m Nominal)
E114: Year | G114: =G$60 -> 2011-12 | H114: =H$60 -> 2012-13 | I114: 2013-14 | J114: 2014-15 | K114: 2015-16 | L114: 2016-17 | M114: 2017-18 | N114: 2018-19 | O114: 2019-20 | P114: 2020-21 | Q114: 2021-22
E115: =Asset1 -> Transmission lines
E116: =Asset2 -> Substations | G116: 1 | H116: 1 | I116: 1 | J116: 1 | K116: 1 | L116: 1
E117: =Asset3 -> Easements
E118: =Asset4 -> 0
E119: =Asset5 -> 0
E120: =Asset6 -> 0
E121: =Asset7 -> 0
E122: =Asset8 -> 0
E123: =Asset9 -> 0
E124: =Asset10 -> 0
E125: =Asset11 -> 0
E126: =Asset12 -> 0
E127: =Asset13 -> 0
E128: =Asset14 -> 0
E129: =Asset15 -> 0
E130: =Asset16 -> 0
E131: =Asset17 -> 0
E132: =Asset18 -> 0
E133: =Asset19 -> 0
E134: =Asset20 -> 0
E135: =Asset21 -> 0
E136: =Asset22 -> 0
E137: =Asset23 -> 0
E138: =Asset24 -> 0
E139: =Asset25 -> 0
E140: =Asset26 -> 0
E141: =Asset27 -> 0
E142: =Asset28 -> 0
E143: =Asset29 -> 0
E144: =Asset30 -> 0
E145: =Asset31 -> 0
E146: =Asset32 -> 0
E147: =Asset33 -> 0
E148: =Asset34 -> 0
E149: =Asset35 -> 0
E150: =Asset36 -> 0
E151: =Asset37 -> 0
E152: =Asset38 -> 0
E153: =Asset39 -> 0
E154: =Asset40 -> 0
E155: =Asset41 -> 0
E156: =Asset42 -> 0
E157: =Asset43 -> 0
E158: =Asset44 -> 0
E159: =Asset45 -> 0
E160: =Asset46 -> 0
E161: =Asset47 -> 0
E162: =Asset48 -> 0
E163: =Asset49 -> 0
E164: =Asset50 -> Equity raising costs
E165: Total | G165: =SUM(G115:G164) -> 1 | H165: =SUM(H115:H164) -> 1 | I165: 1 | J165: 1 | K165: 1 | L165: 1 | M165: 0 | N165: 0 | O165: 0 | P165: 0 | Q165: 0
R166: =SUM(G165:Q165) -> 6
E167: ="Actual Net Capital Expenditure – As Incurred ($m Real "&IF(LEN($Z$7)>4,CONCATENATE(LEFT($Z$7, 4)-1 &"-" &IF($Z$7>"2009-10",,"0") &RIGHT($Z$7,2)-1),$Z$7-1)&")" -> Actual Net Capital Expenditure – As Incurred ($m Real 2011-12)
E168: Year | G168: =G$60 -> 2011-12 | H168: =H$60 -> 2012-13 | I168: 2013-14 | J168: 2014-15 | K168: 2015-16 | L168: 2016-17 | M168: 2017-18 | N168: 2018-19 | O168: 2019-20 | P168: 2020-21 | Q168: 2021-22
E169: =Asset1 -> Transmission lines | G169: =(G61-G115)/G$386 -> 15 | H169: 9.844011142 | I169: 9.603678839 | J169: 9.330329346 | K169: 9.172781571 | L169: 8.992923109 | M169: 0 | N169: 0 | O169: 0 | P169: 0 | Q169: 0
E170: =Asset2 -> Substations | G170: =(G62-G116)/G$386 -> 14 | H170: 8.859610028 | I170: 8.643310955 | J170: 8.397296412 | K170: 8.255503414 | L170: 8.093630798 | M170: 0 | N170: 0 | O170: 0 | P170: 0 | Q170: 0
E171: =Asset3 -> Easements | G171: =(G63-G117)/G$386 -> 15 | H171: 9.844011142 | I171: 9.603678839 | J171: 9.330329346 | K171: 9.172781571 | L171: 8.992923109 | M171: 0 | N171: 0 | O171: 0 | P171: 0 | Q171: 0
E172: =Asset4 -> 0 | G172: =(G64-G118)/G$386 -> 0 | H172: 0 | I172: 0 | J172: 0 | K172: 0 | L172: 0 | M172: 0 | N172: 0 | O172: 0 | P172: 0 | Q172: 0
E173: =Asset5 -> 0 | G173: =(G65-G119)/G$386 -> 0 | H173: 0 | I173: 0 | J173: 0 | K173: 0 | L173: 0 | M173: 0 | N173: 0 | O173: 0 | P173: 0 | Q173: 0
E174: =Asset6 -> 0 | G174: =(G66-G120)/G$386 -> 0 | H174: 0 | I174: 0 | J174: 0 | K174: 0 | L174: 0 | M174: 0 | N174: 0 | O174: 0 | P174: 0 | Q174: 0
E175: =Asset7 -> 0 | G175: =(G67-G121)/G$386 -> 0 | H175: 0 | I175: 0 | J175: 0 | K175: 0 | L175: 0 | M175: 0 | N175: 0 | O175: 0 | P175: 0 | Q175: 0
E176: =Asset8 -> 0 | G176: =(G68-G122)/G$386 -> 0 | H176: 0 | I176: 0 | J176: 0 | K176: 0 | L176: 0 | M176: 0 | N176: 0 | O176: 0 | P176: 0 | Q176: 0
E177: =Asset9 -> 0 | G177: =(G69-G123)/G$386 -> 0 | H177: 0 | I177: 0 | J177: 0 | K177: 0 | L177: 0 | M177: 0 | N177: 0 | O177: 0 | P177: 0 | Q177: 0
E178: =Asset10 -> 0 | G178: =(G70-G124)/G$386 -> 0 | H178: 0 | I178: 0 | J178: 0 | K178: 0 | L178: 0 | M178: 0 | N178: 0 | O178: 0 | P178: 0 | Q178: 0
E179: =Asset11 -> 0 | G179: =(G71-G125)/G$386 -> 0 | H179: 0 | I179: 0 | J179: 0 | K179: 0 | L179: 0 | M179: 0 | N179: 0 | O179: 0 | P179: 0 | Q179: 0
E180: =Asset12 -> 0 | G180: =(G72-G126)/G$386 -> 0 | H180: 0 | I180: 0 | J180: 0 | K180: 0 | L180: 0 | M180: 0 | N180: 0 | O180: 0 | P180: 0 | Q180: 0
E181: =Asset13 -> 0 | G181: =(G73-G127)/G$386 -> 0 | H181: 0 | I181: 0 | J181: 0 | K181: 0 | L181: 0 | M181: 0 | N181: 0 | O181: 0 | P181: 0 | Q181: 0
E182: =Asset14 -> 0 | G182: =(G74-G128)/G$386 -> 0 | H182: 0 | I182: 0 | J182: 0 | K182: 0 | L182: 0 | M182: 0 | N182: 0 | O182: 0 | P182: 0 | Q182: 0
E183: =Asset15 -> 0 | G183: =(G75-G129)/G$386 -> 0 | H183: 0 | I183: 0 | J183: 0 | K183: 0 | L183: 0 | M183: 0 | N183: 0 | O183: 0 | P183: 0 | Q183: 0
E184: =Asset16 -> 0 | G184: =(G76-G130)/G$386 -> 0 | H184: 0 | I184: 0 | J184: 0 | K184: 0 | L184: 0 | M184: 0 | N184: 0 | O184: 0 | P184: 0 | Q184: 0
E185: =Asset17 -> 0 | G185: =(G77-G131)/G$386 -> 0 | H185: 0 | I185: 0 | J185: 0 | K185: 0 | L185: 0 | M185: 0 | N185: 0 | O185: 0 | P185: 0 | Q185: 0
E186: =Asset18 -> 0 | G186: =(G78-G132)/G$386 -> 0 | H186: 0 | I186: 0 | J186: 0 | K186: 0 | L186: 0 | M186: 0 | N186: 0 | O186: 0 | P186: 0 | Q186: 0
E187: =Asset19 -> 0 | G187: =(G79-G133)/G$386 -> 0 | H187: 0 | I187: 0 | J187: 0 | K187: 0 | L187: 0 | M187: 0 | N187: 0 | O187: 0 | P187: 0 | Q187: 0
E188: =Asset20 -> 0 | G188: =(G80-G134)/G$386 -> 0 | H188: 0 | I188: 0 | J188: 0 | K188: 0 | L188: 0 | M188: 0 | N188: 0 | O188: 0 | P188: 0 | Q188: 0
E189: =Asset21 -> 0 | G189: =(G81-G135)/G$386 -> 0 | H189: 0 | I189: 0 | J189: 0 | K189: 0 | L189: 0 | M189: 0 | N189: 0 | O189: 0 | P189: 0 | Q189: 0
E190: =Asset22 -> 0 | G190: =(G82-G136)/G$386 -> 0 | H190: 0 | I190: 0 | J190: 0 | K190: 0 | L190: 0 | M190: 0 | N190: 0 | O190: 0 | P190: 0 | Q190: 0
E191: =Asset23 -> 0 | G191: =(G83-G137)/G$386 -> 0 | H191: 0 | I191: 0 | J191: 0 | K191: 0 | L191: 0 | M191: 0 | N191: 0 | O191: 0 | P191: 0 | Q191: 0
E192: =Asset24 -> 0 | G192: =(G84-G138)/G$386 -> 0 | H192: 0 | I192: 0 | J192: 0 | K192: 0 | L192: 0 | M192: 0 | N192: 0 | O192: 0 | P192: 0 | Q192: 0
E193: =Asset25 -> 0 | G193: =(G85-G139)/G$386 -> 0 | H193: 0 | I193: 0 | J193: 0 | K193: 0 | L193: 0 | M193: 0 | N193: 0 | O193: 0 | P193: 0 | Q193: 0
E194: =Asset26 -> 0 | G194: =(G86-G140)/G$386 -> 0 | H194: 0 | I194: 0 | J194: 0 | K194: 0 | L194: 0 | M194: 0 | N194: 0 | O194: 0 | P194: 0 | Q194: 0
E195: =Asset27 -> 0 | G195: =(G87-G141)/G$386 -> 0 | H195: 0 | I195: 0 | J195: 0 | K195: 0 | L195: 0 | M195: 0 | N195: 0 | O195: 0 | P195: 0 | Q195: 0
E196: =Asset28 -> 0 | G196: =(G88-G142)/G$386 -> 0 | H196: 0 | I196: 0 | J196: 0 | K196: 0 | L196: 0 | M196: 0 | N196: 0 | O196: 0 | P196: 0 | Q196: 0
E197: =Asset29 -> 0 | G197: =(G89-G143)/G$386 -> 0 | H197: 0 | I197: 0 | J197: 0 | K197: 0 | L197: 0 | M197: 0 | N197: 0 | O197: 0 | P197: 0 | Q197: 0
E198: =Asset30 -> 0 | G198: =(G90-G144)/G$386 -> 0 | H198: =(H90-H144)/H$386 -> 0 | I198: 0 | J198: 0 | K198: 0 | L198: 0 | M198: 0 | N198: 0 | O198: 0 | P198: =(P90-P144)/P$386 -> 0 | Q198: =(Q90-Q144)/Q$386 -> 0
E199: =Asset31 -> 0 | G199: =(G91-G145)/G$386 -> 0 | H199: 0 | I199: 0 | J199: 0 | K199: 0 | L199: 0 | M199: 0 | N199: 0 | O199: 0 | P199: 0 | Q199: 0
E200: =Asset32 -> 0 | G200: =(G92-G146)/G$386 -> 0 | H200: 0 | I200: 0 | J200: 0 | K200: 0 | L200: 0 | M200: 0 | N200: 0 | O200: 0 | P200: 0 | Q200: 0
E201: =Asset33 -> 0 | G201: =(G93-G147)/G$386 -> 0 | H201: 0 | I201: 0 | J201: 0 | K201: 0 | L201: 0 | M201: 0 | N201: 0 | O201: 0 | P201: 0 | Q201: 0
E202: =Asset34 -> 0 | G202: =(G94-G148)/G$386 -> 0 | H202: 0 | I202: 0 | J202: 0 | K202: 0 | L202: 0 | M202: 0 | N202: 0 | O202: 0 | P202: 0 | Q202: 0
E203: =Asset35 -> 0 | G203: =(G95-G149)/G$386 -> 0 | H203: 0 | I203: 0 | J203: 0 | K203: 0 | L203: 0 | M203: 0 | N203: 0 | O203: 0 | P203: 0 | Q203: 0
... 298 more rows

Sheet Adjustment for previous period
B2: ='DMS input'!$C$16&" - Adjustment For Previous Period"&" - TNSP RFM - version "&Intro!$M$4 -> Aus Elec - Adjustment For Previous Period - TNSP RFM - version 3
B4: Year | F4: ='RFM input'!$F$384 -> 2010-11 | G4: ='RFM input'!G60 -> 2011-12 | H4: ='RFM input'!H60 -> 2012-13 | I4: ='RFM input'!I60 -> 2013-14 | J4: ='RFM input'!J60 -> 2014-15 | K4: ='RFM input'!K60 -> 2015-16 | L4: ='RFM input'!L60 -> 2016-17 | M4: ='RFM input'!M60 -> 2017-18 | N4: ='RFM input'!N60 -> 2018-19 | O4: ='RFM input'!O60 -> 2019-20 | P4: ='RFM input'!P60 -> 2020-21 | Q4: ='RFM input'!Q60 -> 2021-22
B6: Actual CPI Inflation Rate | F6: ='RFM input'!F$385 -> 0.03333333333 | G6: ='RFM input'!G$385 -> 0.01584606678 | H6: ='RFM input'!H$385 -> 0.02502502503 | I6: ='RFM input'!I$385 -> 0.029296875 | J6: ='RFM input'!J$385 -> 0.01717557252 | K6: ='RFM input'!K$385 -> 0.02 | L6: ='RFM input'!L$385 -> 0.02 | M6: ='RFM input'!M$385 -> 0 | N6: ='RFM input'!N$385 -> 0 | O6: ='RFM input'!O$385 -> 0 | P6: ='RFM input'!P$385 -> 0 | Q6: ='RFM input'!Q$385 -> 0
B7: Actual CPI (one year lagged) | G7: ='RFM input'!G$386 -> 1 | H7: ='RFM input'!H$386 -> 1.015846067 | I7: ='RFM input'!I$386 -> 1.04126764 | J7: ='RFM input'!J$386 -> 1.071773528 | K7: ='RFM input'!K$386 -> 1.090181852 | L7: ='RFM input'!L$386 -> 1.111985489 | M7: ='RFM input'!M$386 -> 1.134225199 | N7: ='RFM input'!N$386 -> 1.134225199 | O7: ='RFM input'!O$386 -> 1.134225199 | P7: ='RFM input'!P$386 -> 1.134225199 | Q7: ='RFM input'!Q$386 -> 1.134225199
B8: Nominal Vanilla WACC (fixed real time varying) | H8: =vanilla1 -> 0.05517281988 | I8: =vanilla2 -> 0.0595703125 | J8: =vanilla3 -> 0.04709250112 | K8: =vanilla4 -> 0.05 | L8: =vanilla5 -> 0.05 | M8: =vanilla6 -> -0.01960784314 | N8: =vanilla7 -> -0.01960784314 | O8: =vanilla8 -> -0.01960784314 | P8: =vanilla9 -> -0.01960784314 | Q8: =vanilla10 -> -0.01960784314
B9: Real Vanilla WACC | H9: ='RFM input'!H$391 -> 0.02941176471 | I9: ='RFM input'!I$391 -> 0.02941176471 | J9: ='RFM input'!J$391 -> 0.02941176471 | K9: ='RFM input'!K$391 -> 0.02941176471 | L9: ='RFM input'!L$391 -> 0.02941176471 | M9: ='RFM input'!M$391 -> -0.01960784314 | N9: ='RFM input'!N$391 -> -0.01960784314 | O9: ='RFM input'!O$391 -> -0.01960784314 | P9: ='RFM input'!P$391 -> -0.01960784314 | Q9: ='RFM input'!Q$391 -> -0.01960784314
B11: Nominal Adjustments for Difference Between Forecast and Actual Net Capex - As Incurred | S11: label changed
B13: Nominal Forecast Net Capex (previous regulatory control period) | G13: =SUM(G14:G63) -> 60
C14: =Asset1 -> Transmission lines | G14: ='RFM input'!M7 -> 20
C15: =Asset2 -> Substations | G15: ='RFM input'!M8 -> 20
C16: =Asset3 -> Easements | G16: ='RFM input'!M9 -> 20
C17: =Asset4 -> 0 | G17: ='RFM input'!M10 -> 0
C18: =Asset5 -> 0 | G18: ='RFM input'!M11 -> 0
C19: =Asset6 -> 0 | G19: ='RFM input'!M12 -> 0
C20: =Asset7 -> 0 | G20: ='RFM input'!M13 -> 0
C21: =Asset8 -> 0 | G21: ='RFM input'!M14 -> 0
C22: =Asset9 -> 0 | G22: ='RFM input'!M15 -> 0
C23: =Asset10 -> 0 | G23: ='RFM input'!M16 -> 0
C24: =Asset11 -> 0 | G24: ='RFM input'!M17 -> 0
C25: =Asset12 -> 0 | G25: ='RFM input'!M18 -> 0
C26: =Asset13 -> 0 | G26: ='RFM input'!M19 -> 0
C27: =Asset14 -> 0 | G27: ='RFM input'!M20 -> 0
C28: =Asset15 -> 0 | G28: ='RFM input'!M21 -> 0
C29: =Asset16 -> 0 | G29: ='RFM input'!M22 -> 0
C30: =Asset17 -> 0 | G30: ='RFM input'!M23 -> 0
C31: =Asset18 -> 0 | G31: ='RFM input'!M24 -> 0
C32: =Asset19 -> 0 | G32: ='RFM input'!M25 -> 0
C33: =Asset20 -> 0 | G33: ='RFM input'!M26 -> 0
C34: =Asset21 -> 0 | G34: ='RFM input'!M27 -> 0
C35: =Asset22 -> 0 | G35: ='RFM input'!M28 -> 0
C36: =Asset23 -> 0 | G36: ='RFM input'!M29 -> 0
C37: =Asset24 -> 0 | G37: ='RFM input'!M30 -> 0
C38: =Asset25 -> 0 | G38: ='RFM input'!M31 -> 0
C39: =Asset26 -> 0 | G39: ='RFM input'!M32 -> 0
C40: =Asset27 -> 0 | G40: ='RFM input'!M33 -> 0
C41: =Asset28 -> 0 | G41: ='RFM input'!M34 -> 0
C42: =Asset29 -> 0 | G42: ='RFM input'!M35 -> 0
C43: =Asset30 -> 0 | G43: ='RFM input'!M36 -> 0
C44: =Asset31 -> 0 | G44: ='RFM input'!M37 -> 0
C45: =Asset32 -> 0 | G45: ='RFM input'!M38 -> 0
C46: =Asset33 -> 0 | G46: ='RFM input'!M39 -> 0
C47: =Asset34 -> 0 | G47: ='RFM input'!M40 -> 0
C48: =Asset35 -> 0 | G48: ='RFM input'!M41 -> 0
C49: =Asset36 -> 0 | G49: ='RFM input'!M42 -> 0
C50: =Asset37 -> 0 | G50: ='RFM input'!M43 -> 0
C51: =Asset38 -> 0 | G51: ='RFM input'!M44 -> 0
C52: =Asset39 -> 0 | G52: ='RFM input'!M45 -> 0
C53: =Asset40 -> 0 | G53: ='RFM input'!M46 -> 0
C54: =Asset41 -> 0 | G54: ='RFM input'!M47 -> 0
C55: =Asset42 -> 0 | G55: ='RFM input'!M48 -> 0
C56: =Asset43 -> 0 | G56: ='RFM input'!M49 -> 0
C57: =Asset44 -> 0 | G57: ='RFM input'!M50 -> 0
C58: =Asset45 -> 0 | G58: ='RFM input'!M51 -> 0
C59: =Asset46 -> 0 | G59: ='RFM input'!M52 -> 0
C60: =Asset47 -> 0 | G60: ='RFM input'!M53 -> 0
C61: =Asset48 -> 0 | G61: ='RFM input'!M54 -> 0
C62: =Asset49 -> 0 | G62: ='RFM input'!M55 -> 0
C63: =Asset50 -> Equity raising costs | G63: ='RFM input'!M56 -> 0
B65: Nominal Actual Net Capex | G65: =SUM(G66:G115) -> 44.99468252
C66: =Asset1 -> Transmission lines | G66: ='RFM input'!G169*(1+previous_vanilla)^0.5 -> 15.33909632
C67: =Asset2 -> Substations | G67: ='RFM input'!G170*(1+previous_vanilla)^0.5 -> 14.31648989
C68: =Asset3 -> Easements | G68: ='RFM input'!G171*(1+previous_vanilla)^0.5 -> 15.33909632
C69: =Asset4 -> 0 | G69: ='RFM input'!G172*(1+previous_vanilla)^0.5 -> 0
C70: =Asset5 -> 0 | G70: ='RFM input'!G173*(1+previous_vanilla)^0.5 -> 0
C71: =Asset6 -> 0 | G71: ='RFM input'!G174*(1+previous_vanilla)^0.5 -> 0
C72: =Asset7 -> 0 | G72: ='RFM input'!G175*(1+previous_vanilla)^0.5 -> 0
C73: =Asset8 -> 0 | G73: ='RFM input'!G176*(1+previous_vanilla)^0.5 -> 0
C74: =Asset9 -> 0 | G74: ='RFM input'!G177*(1+previous_vanilla)^0.5 -> 0
C75: =Asset10 -> 0 | G75: ='RFM input'!G178*(1+previous_vanilla)^0.5 -> 0
C76: =Asset11 -> 0 | G76: ='RFM input'!G179*(1+previous_vanilla)^0.5 -> 0
C77: =Asset12 -> 0 | G77: ='RFM input'!G180*(1+previous_vanilla)^0.5 -> 0
C78: =Asset13 -> 0 | G78: ='RFM input'!G181*(1+previous_vanilla)^0.5 -> 0
C79: =Asset14 -> 0 | G79: ='RFM input'!G182*(1+previous_vanilla)^0.5 -> 0
C80: =Asset15 -> 0 | G80: ='RFM input'!G183*(1+previous_vanilla)^0.5 -> 0
C81: =Asset16 -> 0 | G81: ='RFM input'!G184*(1+previous_vanilla)^0.5 -> 0
C82: =Asset17 -> 0 | G82: ='RFM input'!G185*(1+previous_vanilla)^0.5 -> 0
C83: =Asset18 -> 0 | G83: ='RFM input'!G186*(1+previous_vanilla)^0.5 -> 0
C84: =Asset19 -> 0 | G84: ='RFM input'!G187*(1+previous_vanilla)^0.5 -> 0
C85: =Asset20 -> 0 | G85: ='RFM input'!G188*(1+previous_vanilla)^0.5 -> 0
C86: =Asset21 -> 0 | G86: ='RFM input'!G189*(1+previous_vanilla)^0.5 -> 0
C87: =Asset22 -> 0 | G87: ='RFM input'!G190*(1+previous_vanilla)^0.5 -> 0
C88: =Asset23 -> 0 | G88: ='RFM input'!G191*(1+previous_vanilla)^0.5 -> 0
C89: =Asset24 -> 0 | G89: ='RFM input'!G192*(1+previous_vanilla)^0.5 -> 0
C90: =Asset25 -> 0 | G90: ='RFM input'!G193*(1+previous_vanilla)^0.5 -> 0
C91: =Asset26 -> 0 | G91: ='RFM input'!G194*(1+previous_vanilla)^0.5 -> 0
C92: =Asset27 -> 0 | G92: ='RFM input'!G195*(1+previous_vanilla)^0.5 -> 0
C93: =Asset28 -> 0 | G93: ='RFM input'!G196*(1+previous_vanilla)^0.5 -> 0
C94: =Asset29 -> 0 | G94: ='RFM input'!G197*(1+previous_vanilla)^0.5 -> 0
C95: =Asset30 -> 0 | G95: ='RFM input'!G198*(1+previous_vanilla)^0.5 -> 0
C96: =Asset31 -> 0 | G96: ='RFM input'!G199*(1+previous_vanilla)^0.5 -> 0
C97: =Asset32 -> 0 | G97: ='RFM input'!G200*(1+previous_vanilla)^0.5 -> 0
C98: =Asset33 -> 0 | G98: ='RFM input'!G201*(1+previous_vanilla)^0.5 -> 0
C99: =Asset34 -> 0 | G99: ='RFM input'!G202*(1+previous_vanilla)^0.5 -> 0
C100: =Asset35 -> 0 | G100: ='RFM input'!G203*(1+previous_vanilla)^0.5 -> 0
C101: =Asset36 -> 0 | G101: ='RFM input'!G204*(1+previous_vanilla)^0.5 -> 0
C102: =Asset37 -> 0 | G102: ='RFM input'!G205*(1+previous_vanilla)^0.5 -> 0
C103: =Asset38 -> 0 | G103: ='RFM input'!G206*(1+previous_vanilla)^0.5 -> 0
C104: =Asset39 -> 0 | G104: ='RFM input'!G207*(1+previous_vanilla)^0.5 -> 0
C105: =Asset40 -> 0 | G105: ='RFM input'!G208*(1+previous_vanilla)^0.5 -> 0
C106: =Asset41 -> 0 | G106: ='RFM input'!G209*(1+previous_vanilla)^0.5 -> 0
C107: =Asset42 -> 0 | G107: ='RFM input'!G210*(1+previous_vanilla)^0.5 -> 0
C108: =Asset43 -> 0 | G108: ='RFM input'!G211*(1+previous_vanilla)^0.5 -> 0
C109: =Asset44 -> 0 | G109: ='RFM input'!G212*(1+previous_vanilla)^0.5 -> 0
C110: =Asset45 -> 0 | G110: ='RFM input'!G213*(1+previous_vanilla)^0.5 -> 0
C111: =Asset46 -> 0 | G111: ='RFM input'!G214*(1+previous_vanilla)^0.5 -> 0
C112: =Asset47 -> 0 | G112: ='RFM input'!G215*(1+previous_vanilla)^0.5 -> 0
C113: =Asset48 -> 0 | G113: ='RFM input'!G216*(1+previous_vanilla)^0.5 -> 0
C114: =Asset49 -> 0 | G114: ='RFM input'!G217*(1+previous_vanilla)^0.5 -> 0
C115: =Asset50 -> Equity raising costs | G115: ='RFM input'!G218*(1+previous_vanilla)^0.5 -> 0
B117: Nominal Difference Between Actual and Forecast Net Capex | G117: =SUM(G118:G167) -> -15.00531748
C118: =Asset1 -> Transmission lines | G118: =G66-G14 -> -4.660903685
C119: =Asset2 -> Substations | G119: =G67-G15 -> -5.683510106
C120: =Asset3 -> Easements | G120: -4.660903685
C121: =Asset4 -> 0 | G121: 0
C122: =Asset5 -> 0 | G122: 0
C123: =Asset6 -> 0 | G123: 0
C124: =Asset7 -> 0 | G124: 0
C125: =Asset8 -> 0 | G125: 0
C126: =Asset9 -> 0 | G126: 0
C127: =Asset10 -> 0 | G127: 0
C128: =Asset11 -> 0 | G128: 0
C129: =Asset12 -> 0 | G129: 0
C130: =Asset13 -> 0 | G130: 0
C131: =Asset14 -> 0 | G131: 0
C132: =Asset15 -> 0 | G132: 0
C133: =Asset16 -> 0 | G133: 0
C134: =Asset17 -> 0 | G134: 0
C135: =Asset18 -> 0 | G135: 0
C136: =Asset19 -> 0 | G136: 0
C137: =Asset20 -> 0 | G137: 0
C138: =Asset21 -> 0 | G138: 0
C139: =Asset22 -> 0 | G139: 0
C140: =Asset23 -> 0 | G140: 0
C141: =Asset24 -> 0 | G141: 0
C142: =Asset25 -> 0 | G142: 0
C143: =Asset26 -> 0 | G143: 0
C144: =Asset27 -> 0 | G144: 0
C145: =Asset28 -> 0 | G145: 0
C146: =Asset29 -> 0 | G146: 0
C147: =Asset30 -> 0 | G147: 0
C148: =Asset31 -> 0 | G148: 0
C149: =Asset32 -> 0 | G149: 0
C150: =Asset33 -> 0 | G150: 0
C151: =Asset34 -> 0 | G151: 0
C152: =Asset35 -> 0 | G152: 0
C153: =Asset36 -> 0 | G153: 0
C154: =Asset37 -> 0 | G154: 0
C155: =Asset38 -> 0 | G155: 0
C156: =Asset39 -> 0 | G156: 0
C157: =Asset40 -> 0 | G157: 0
C158: =Asset41 -> 0 | G158: 0
C159: =Asset42 -> 0 | G159: 0
C160: =Asset43 -> 0 | G160: 0
C161: =Asset44 -> 0 | G161: 0
C162: =Asset45 -> 0 | G162: 0
C163: =Asset46 -> 0 | G163: 0
C164: =Asset47 -> 0 | G164: 0
C165: =Asset48 -> 0 | G165: 0
C166: =Asset49 -> 0 | G166: 0
C167: =Asset50 -> Equity raising costs | G167: 0
B169: Compounded Nominal Return on Difference - Net Capex | H169: =SUM(H170,H172,H174,H176,H178,H180,H182,H184,H186,H188,H190,H192,H194,H196,H198,H200,H202,H204,H206,H208,H210,H212,H214,H216,H218,H220,H222,H224,H226,H228,H230,H232,H234,H236,H238,H240,H242,H244,H246,H248,H250,H252,H254,H256,H258,H260,H262,H264,H266,H268) -> -0.8278856783 | I169: =SUM(I170,I172,I174,I176,I178,I180,I182,I184,I186,I188,I190,I192,I194,I196,I198,I200,I202,I204,I206,I208,I210,I212,I214,I216,I218,I220,I222,I224,I226,I228,I230,I232,I234,I236,I238,I240,I242,I244,I246,I248,I250,I252,I254,I256,I258,I260,I262,I264,I266,I268) -> -0.9431888598 | J169: -0.7900422598 | K169: -0.8783217137 | L169: -0.9222377994 | M169: 0 | N169: 0 | O169: 0 | P169: 0 | Q169: 0
C170: =Asset1 -> Transmission lines | H170: =($G118+(SUM($G170:G170)))*H$8 -> -0.2571551995 | I170: =($G118+(SUM($G170:H170)))*I$8 -> -0.2929703046 | J170: =IF(COUNT($H170:I170)>='RFM input'!$AA$7,0,($G118+(SUM($G170:I170)))*J$8) -> -0.2454003979 | K170: =IF(COUNT($H170:J170)>='RFM input'!$AA$7,0,($G118+(SUM($G170:J170)))*K$8) -> -0.2728214794 | L170: =IF(COUNT($H170:K170)>='RFM input'!$AA$7,0,($G118+(SUM($G170:K170)))*L$8) -> -0.2864625533 | M170: =IF(COUNT($H170:L170)>='RFM input'!$AA$7,0,($G118+(SUM($G170:L170)))*M$8) -> 0 | N170: =IF(COUNT($H170:M170)>='RFM input'!$AA$7,0,($G118+(SUM($G170:M170)))*N$8) -> 0 | O170: =IF(COUNT($H170:N170)>='RFM input'!$AA$7,0,($G118+(SUM($G170:N170)))*O$8) -> 0 | P170: =IF(COUNT($H170:O170)>='RFM input'!$AA$7,0,($G118+(SUM($G170:O170)))*P$8) -> 0 | Q170: =IF(COUNT($H170:P170)>='RFM input'!$AA$7,0,($G118+(SUM($G170:P170)))*Q$8) -> 0
C171: Sub-total | I171: =IF(COUNT($H170:I170)='RFM input'!$AA$7,SUM($G170:I170),0) -> 0 | J171: =IF(COUNT($H170:J170)='RFM input'!$AA$7,SUM($G170:J170),0) -> 0 | K171: =IF(COUNT($H170:K170)='RFM input'!$AA$7,SUM($G170:K170),0) -> 0 | L171: =IF(COUNT($H170:L170)='RFM input'!$AA$7,SUM($G170:L170),0) -> -1.354809935 | M171: =IF(COUNT($H170:M170)='RFM input'!$AA$7,SUM($G170:M170),0) -> 0 | N171: =IF(COUNT($H170:N170)='RFM input'!$AA$7,SUM($G170:N170),0) -> 0 | O171: =IF(COUNT($H170:O170)='RFM input'!$AA$7,SUM($G170:O170),0) -> 0 | P171: =IF(COUNT($H170:P170)='RFM input'!$AA$7,SUM($G170:P170),0) -> 0 | Q171: =IF(COUNT($H170:Q170)='RFM input'!$AA$7,SUM($G170:Q170),0) -> 0
C172: =Asset2 -> Substations | H172: =($G119+(SUM($G172:G172)))*H$8 -> -0.3135752794 | I172: =($G119+(SUM($G172:H172)))*I$8 -> -0.3572482505 | J172: =IF(COUNT($H172:I172)>='RFM input'!$AA$7,0,($G119+(SUM($G172:I172)))*J$8) -> -0.2992414639 | K172: =IF(COUNT($H172:J172)>='RFM input'!$AA$7,0,($G119+(SUM($G172:J172)))*K$8) -> -0.332678755 | L172: =IF(COUNT($H172:K172)>='RFM input'!$AA$7,0,($G119+(SUM($G172:K172)))*L$8) -> -0.3493126927 | M172: =IF(COUNT($H172:L172)>='RFM input'!$AA$7,0,($G119+(SUM($G172:L172)))*M$8) -> 0 | N172: =IF(COUNT($H172:M172)>='RFM input'!$AA$7,0,($G119+(SUM($G172:M172)))*N$8) -> 0 | O172: =IF(COUNT($H172:N172)>='RFM input'!$AA$7,0,($G119+(SUM($G172:N172)))*O$8) -> 0 | P172: =IF(COUNT($H172:O172)>='RFM input'!$AA$7,0,($G119+(SUM($G172:O172)))*P$8) -> 0 | Q172: =IF(COUNT($H172:P172)>='RFM input'!$AA$7,0,($G119+(SUM($G172:P172)))*Q$8) -> 0
C173: Sub-total | I173: =IF(COUNT($H172:I172)='RFM input'!$AA$7,SUM($G172:I172),0) -> 0 | J173: =IF(COUNT($H172:J172)='RFM input'!$AA$7,SUM($G172:J172),0) -> 0 | K173: =IF(COUNT($H172:K172)='RFM input'!$AA$7,SUM($G172:K172),0) -> 0 | L173: =IF(COUNT($H172:L172)='RFM input'!$AA$7,SUM($G172:L172),0) -> -1.652056441 | M173: =IF(COUNT($H172:M172)='RFM input'!$AA$7,SUM($G172:M172),0) -> 0 | N173: =IF(COUNT($H172:N172)='RFM input'!$AA$7,SUM($G172:N172),0) -> 0 | O173: =IF(COUNT($H172:O172)='RFM input'!$AA$7,SUM($G172:O172),0) -> 0 | P173: =IF(COUNT($H172:P172)='RFM input'!$AA$7,SUM($G172:P172),0) -> 0 | Q173: =IF(COUNT($H172:Q172)='RFM input'!$AA$7,SUM($G172:Q172),0) -> 0
C174: =Asset3 -> Easements | H174: =($G120+(SUM($G174:G174)))*H$8 -> -0.2571551995 | I174: =($G120+(SUM($G174:H174)))*I$8 -> -0.2929703046 | J174: =IF(COUNT($H174:I174)>='RFM input'!$AA$7,0,($G120+(SUM($G174:I174)))*J$8) -> -0.2454003979 | K174: =IF(COUNT($H174:J174)>='RFM input'!$AA$7,0,($G120+(SUM($G174:J174)))*K$8) -> -0.2728214794 | L174: =IF(COUNT($H174:K174)>='RFM input'!$AA$7,0,($G120+(SUM($G174:K174)))*L$8) -> -0.2864625533 | M174: =IF(COUNT($H174:L174)>='RFM input'!$AA$7,0,($G120+(SUM($G174:L174)))*M$8) -> 0 | N174: =IF(COUNT($H174:M174)>='RFM input'!$AA$7,0,($G120+(SUM($G174:M174)))*N$8) -> 0 | O174: =IF(COUNT($H174:N174)>='RFM input'!$AA$7,0,($G120+(SUM($G174:N174)))*O$8) -> 0 | P174: =IF(COUNT($H174:O174)>='RFM input'!$AA$7,0,($G120+(SUM($G174:O174)))*P$8) -> 0 | Q174: =IF(COUNT($H174:P174)>='RFM input'!$AA$7,0,($G120+(SUM($G174:P174)))*Q$8) -> 0
C175: Sub-total | I175: =IF(COUNT($H174:I174)='RFM input'!$AA$7,SUM($G174:I174),0) -> 0 | J175: =IF(COUNT($H174:J174)='RFM input'!$AA$7,SUM($G174:J174),0) -> 0 | K175: =IF(COUNT($H174:K174)='RFM input'!$AA$7,SUM($G174:K174),0) -> 0 | L175: =IF(COUNT($H174:L174)='RFM input'!$AA$7,SUM($G174:L174),0) -> -1.354809935 | M175: =IF(COUNT($H174:M174)='RFM input'!$AA$7,SUM($G174:M174),0) -> 0 | N175: =IF(COUNT($H174:N174)='RFM input'!$AA$7,SUM($G174:N174),0) -> 0 | O175: =IF(COUNT($H174:O174)='RFM input'!$AA$7,SUM($G174:O174),0) -> 0 | P175: =IF(COUNT($H174:P174)='RFM input'!$AA$7,SUM($G174:P174),0) -> 0 | Q175: =IF(COUNT($H174:Q174)='RFM input'!$AA$7,SUM($G174:Q174),0) -> 0
C176: =Asset4 -> 0 | H176: =($G121+(SUM($G176:G176)))*H$8 -> 0 | I176: =($G121+(SUM($G176:H176)))*I$8 -> 0 | J176: =IF(COUNT($H176:I176)>='RFM input'!$AA$7,0,($G121+(SUM($G176:I176)))*J$8) -> 0 | K176: =IF(COUNT($H176:J176)>='RFM input'!$AA$7,0,($G121+(SUM($G176:J176)))*K$8) -> 0 | L176: =IF(COUNT($H176:K176)>='RFM input'!$AA$7,0,($G121+(SUM($G176:K176)))*L$8) -> 0 | M176: =IF(COUNT($H176:L176)>='RFM input'!$AA$7,0,($G121+(SUM($G176:L176)))*M$8) -> 0 | N176: =IF(COUNT($H176:M176)>='RFM input'!$AA$7,0,($G121+(SUM($G176:M176)))*N$8) -> 0 | O176: =IF(COUNT($H176:N176)>='RFM input'!$AA$7,0,($G121+(SUM($G176:N176)))*O$8) -> 0 | P176: =IF(COUNT($H176:O176)>='RFM input'!$AA$7,0,($G121+(SUM($G176:O176)))*P$8) -> 0 | Q176: =IF(COUNT($H176:P176)>='RFM input'!$AA$7,0,($G121+(SUM($G176:P176)))*Q$8) -> 0
C177: Sub-total | I177: =IF(COUNT($H176:I176)='RFM input'!$AA$7,SUM($G176:I176),0) -> 0 | J177: =IF(COUNT($H176:J176)='RFM input'!$AA$7,SUM($G176:J176),0) -> 0 | K177: =IF(COUNT($H176:K176)='RFM input'!$AA$7,SUM($G176:K176),0) -> 0 | L177: =IF(COUNT($H176:L176)='RFM input'!$AA$7,SUM($G176:L176),0) -> 0 | M177: =IF(COUNT($H176:M176)='RFM input'!$AA$7,SUM($G176:M176),0) -> 0 | N177: =IF(COUNT($H176:N176)='RFM input'!$AA$7,SUM($G176:N176),0) -> 0 | O177: =IF(COUNT($H176:O176)='RFM input'!$AA$7,SUM($G176:O176),0) -> 0 | P177: =IF(COUNT($H176:P176)='RFM input'!$AA$7,SUM($G176:P176),0) -> 0 | Q177: =IF(COUNT($H176:Q176)='RFM input'!$AA$7,SUM($G176:Q176),0) -> 0
C178: =Asset5 -> 0 | H178: =($G122+(SUM($G178:G178)))*H$8 -> 0 | I178: =($G122+(SUM($G178:H178)))*I$8 -> 0 | J178: =IF(COUNT($H178:I178)>='RFM input'!$AA$7,0,($G122+(SUM($G178:I178)))*J$8) -> 0 | K178: =IF(COUNT($H178:J178)>='RFM input'!$AA$7,0,($G122+(SUM($G178:J178)))*K$8) -> 0 | L178: =IF(COUNT($H178:K178)>='RFM input'!$AA$7,0,($G122+(SUM($G178:K178)))*L$8) -> 0 | M178: =IF(COUNT($H178:L178)>='RFM input'!$AA$7,0,($G122+(SUM($G178:L178)))*M$8) -> 0 | N178: =IF(COUNT($H178:M178)>='RFM input'!$AA$7,0,($G122+(SUM($G178:M178)))*N$8) -> 0 | O178: =IF(COUNT($H178:N178)>='RFM input'!$AA$7,0,($G122+(SUM($G178:N178)))*O$8) -> 0 | P178: =IF(COUNT($H178:O178)>='RFM input'!$AA$7,0,($G122+(SUM($G178:O178)))*P$8) -> 0 | Q178: =IF(COUNT($H178:P178)>='RFM input'!$AA$7,0,($G122+(SUM($G178:P178)))*Q$8) -> 0
C179: Sub-total | I179: =IF(COUNT($H178:I178)='RFM input'!$AA$7,SUM($G178:I178),0) -> 0 | J179: =IF(COUNT($H178:J178)='RFM input'!$AA$7,SUM($G178:J178),0) -> 0 | K179: =IF(COUNT($H178:K178)='RFM input'!$AA$7,SUM($G178:K178),0) -> 0 | L179: =IF(COUNT($H178:L178)='RFM input'!$AA$7,SUM($G178:L178),0) -> 0 | M179: =IF(COUNT($H178:M178)='RFM input'!$AA$7,SUM($G178:M178),0) -> 0 | N179: =IF(COUNT($H178:N178)='RFM input'!$AA$7,SUM($G178:N178),0) -> 0 | O179: =IF(COUNT($H178:O178)='RFM input'!$AA$7,SUM($G178:O178),0) -> 0 | P179: =IF(COUNT($H178:P178)='RFM input'!$AA$7,SUM($G178:P178),0) -> 0 | Q179: =IF(COUNT($H178:Q178)='RFM input'!$AA$7,SUM($G178:Q178),0) -> 0
C180: =Asset6 -> 0 | H180: =($G123+(SUM($G180:G180)))*H$8 -> 0 | I180: =($G123+(SUM($G180:H180)))*I$8 -> 0 | J180: =IF(COUNT($H180:I180)>='RFM input'!$AA$7,0,($G123+(SUM($G180:I180)))*J$8) -> 0 | K180: =IF(COUNT($H180:J180)>='RFM input'!$AA$7,0,($G123+(SUM($G180:J180)))*K$8) -> 0 | L180: =IF(COUNT($H180:K180)>='RFM input'!$AA$7,0,($G123+(SUM($G180:K180)))*L$8) -> 0 | M180: =IF(COUNT($H180:L180)>='RFM input'!$AA$7,0,($G123+(SUM($G180:L180)))*M$8) -> 0 | N180: =IF(COUNT($H180:M180)>='RFM input'!$AA$7,0,($G123+(SUM($G180:M180)))*N$8) -> 0 | O180: =IF(COUNT($H180:N180)>='RFM input'!$AA$7,0,($G123+(SUM($G180:N180)))*O$8) -> 0 | P180: =IF(COUNT($H180:O180)>='RFM input'!$AA$7,0,($G123+(SUM($G180:O180)))*P$8) -> 0 | Q180: =IF(COUNT($H180:P180)>='RFM input'!$AA$7,0,($G123+(SUM($G180:P180)))*Q$8) -> 0
C181: Sub-total | I181: =IF(COUNT($H180:I180)='RFM input'!$AA$7,SUM($G180:I180),0) -> 0 | J181: =IF(COUNT($H180:J180)='RFM input'!$AA$7,SUM($G180:J180),0) -> 0 | K181: =IF(COUNT($H180:K180)='RFM input'!$AA$7,SUM($G180:K180),0) -> 0 | L181: =IF(COUNT($H180:L180)='RFM input'!$AA$7,SUM($G180:L180),0) -> 0 | M181: =IF(COUNT($H180:M180)='RFM input'!$AA$7,SUM($G180:M180),0) -> 0 | N181: =IF(COUNT($H180:N180)='RFM input'!$AA$7,SUM($G180:N180),0) -> 0 | O181: =IF(COUNT($H180:O180)='RFM input'!$AA$7,SUM($G180:O180),0) -> 0 | P181: =IF(COUNT($H180:P180)='RFM input'!$AA$7,SUM($G180:P180),0) -> 0 | Q181: =IF(COUNT($H180:Q180)='RFM input'!$AA$7,SUM($G180:Q180),0) -> 0
C182: =Asset7 -> 0 | H182: =($G124+(SUM($G182:G182)))*H$8 -> 0 | I182: =($G124+(SUM($G182:H182)))*I$8 -> 0 | J182: =IF(COUNT($H182:I182)>='RFM input'!$AA$7,0,($G124+(SUM($G182:I182)))*J$8) -> 0 | K182: =IF(COUNT($H182:J182)>='RFM input'!$AA$7,0,($G124+(SUM($G182:J182)))*K$8) -> 0 | L182: =IF(COUNT($H182:K182)>='RFM input'!$AA$7,0,($G124+(SUM($G182:K182)))*L$8) -> 0 | M182: =IF(COUNT($H182:L182)>='RFM input'!$AA$7,0,($G124+(SUM($G182:L182)))*M$8) -> 0 | N182: =IF(COUNT($H182:M182)>='RFM input'!$AA$7,0,($G124+(SUM($G182:M182)))*N$8) -> 0 | O182: =IF(COUNT($H182:N182)>='RFM input'!$AA$7,0,($G124+(SUM($G182:N182)))*O$8) -> 0 | P182: =IF(COUNT($H182:O182)>='RFM input'!$AA$7,0,($G124+(SUM($G182:O182)))*P$8) -> 0 | Q182: =IF(COUNT($H182:P182)>='RFM input'!$AA$7,0,($G124+(SUM($G182:P182)))*Q$8) -> 0
C183: Sub-total | I183: =IF(COUNT($H182:I182)='RFM input'!$AA$7,SUM($G182:I182),0) -> 0 | J183: =IF(COUNT($H182:J182)='RFM input'!$AA$7,SUM($G182:J182),0) -> 0 | K183: =IF(COUNT($H182:K182)='RFM input'!$AA$7,SUM($G182:K182),0) -> 0 | L183: =IF(COUNT($H182:L182)='RFM input'!$AA$7,SUM($G182:L182),0) -> 0 | M183: =IF(COUNT($H182:M182)='RFM input'!$AA$7,SUM($G182:M182),0) -> 0 | N183: =IF(COUNT($H182:N182)='RFM input'!$AA$7,SUM($G182:N182),0) -> 0 | O183: =IF(COUNT($H182:O182)='RFM input'!$AA$7,SUM($G182:O182),0) -> 0 | P183: =IF(COUNT($H182:P182)='RFM input'!$AA$7,SUM($G182:P182),0) -> 0 | Q183: =IF(COUNT($H182:Q182)='RFM input'!$AA$7,SUM($G182:Q182),0) -> 0
C184: =Asset8 -> 0 | H184: =($G125+(SUM($G184:G184)))*H$8 -> 0 | I184: =($G125+(SUM($G184:H184)))*I$8 -> 0 | J184: =IF(COUNT($H184:I184)>='RFM input'!$AA$7,0,($G125+(SUM($G184:I184)))*J$8) -> 0 | K184: =IF(COUNT($H184:J184)>='RFM input'!$AA$7,0,($G125+(SUM($G184:J184)))*K$8) -> 0 | L184: =IF(COUNT($H184:K184)>='RFM input'!$AA$7,0,($G125+(SUM($G184:K184)))*L$8) -> 0 | M184: =IF(COUNT($H184:L184)>='RFM input'!$AA$7,0,($G125+(SUM($G184:L184)))*M$8) -> 0 | N184: =IF(COUNT($H184:M184)>='RFM input'!$AA$7,0,($G125+(SUM($G184:M184)))*N$8) -> 0 | O184: =IF(COUNT($H184:N184)>='RFM input'!$AA$7,0,($G125+(SUM($G184:N184)))*O$8) -> 0 | P184: =IF(COUNT($H184:O184)>='RFM input'!$AA$7,0,($G125+(SUM($G184:O184)))*P$8) -> 0 | Q184: =IF(COUNT($H184:P184)>='RFM input'!$AA$7,0,($G125+(SUM($G184:P184)))*Q$8) -> 0
C185: Sub-total | I185: =IF(COUNT($H184:I184)='RFM input'!$AA$7,SUM($G184:I184),0) -> 0 | J185: =IF(COUNT($H184:J184)='RFM input'!$AA$7,SUM($G184:J184),0) -> 0 | K185: =IF(COUNT($H184:K184)='RFM input'!$AA$7,SUM($G184:K184),0) -> 0 | L185: =IF(COUNT($H184:L184)='RFM input'!$AA$7,SUM($G184:L184),0) -> 0 | M185: =IF(COUNT($H184:M184)='RFM input'!$AA$7,SUM($G184:M184),0) -> 0 | N185: =IF(COUNT($H184:N184)='RFM input'!$AA$7,SUM($G184:N184),0) -> 0 | O185: =IF(COUNT($H184:O184)='RFM input'!$AA$7,SUM($G184:O184),0) -> 0 | P185: =IF(COUNT($H184:P184)='RFM input'!$AA$7,SUM($G184:P184),0) -> 0 | Q185: =IF(COUNT($H184:Q184)='RFM input'!$AA$7,SUM($G184:Q184),0) -> 0
C186: =Asset9 -> 0 | H186: =($G126+(SUM($G186:G186)))*H$8 -> 0 | I186: =($G126+(SUM($G186:H186)))*I$8 -> 0 | J186: =IF(COUNT($H186:I186)>='RFM input'!$AA$7,0,($G126+(SUM($G186:I186)))*J$8) -> 0 | K186: =IF(COUNT($H186:J186)>='RFM input'!$AA$7,0,($G126+(SUM($G186:J186)))*K$8) -> 0 | L186: =IF(COUNT($H186:K186)>='RFM input'!$AA$7,0,($G126+(SUM($G186:K186)))*L$8) -> 0 | M186: =IF(COUNT($H186:L186)>='RFM input'!$AA$7,0,($G126+(SUM($G186:L186)))*M$8) -> 0 | N186: =IF(COUNT($H186:M186)>='RFM input'!$AA$7,0,($G126+(SUM($G186:M186)))*N$8) -> 0 | O186: =IF(COUNT($H186:N186)>='RFM input'!$AA$7,0,($G126+(SUM($G186:N186)))*O$8) -> 0 | P186: =IF(COUNT($H186:O186)>='RFM input'!$AA$7,0,($G126+(SUM($G186:O186)))*P$8) -> 0 | Q186: =IF(COUNT($H186:P186)>='RFM input'!$AA$7,0,($G126+(SUM($G186:P186)))*Q$8) -> 0
C187: Sub-total | I187: =IF(COUNT($H186:I186)='RFM input'!$AA$7,SUM($G186:I186),0) -> 0 | J187: =IF(COUNT($H186:J186)='RFM input'!$AA$7,SUM($G186:J186),0) -> 0 | K187: =IF(COUNT($H186:K186)='RFM input'!$AA$7,SUM($G186:K186),0) -> 0 | L187: =IF(COUNT($H186:L186)='RFM input'!$AA$7,SUM($G186:L186),0) -> 0 | M187: =IF(COUNT($H186:M186)='RFM input'!$AA$7,SUM($G186:M186),0) -> 0 | N187: =IF(COUNT($H186:N186)='RFM input'!$AA$7,SUM($G186:N186),0) -> 0 | O187: =IF(COUNT($H186:O186)='RFM input'!$AA$7,SUM($G186:O186),0) -> 0 | P187: =IF(COUNT($H186:P186)='RFM input'!$AA$7,SUM($G186:P186),0) -> 0 | Q187: =IF(COUNT($H186:Q186)='RFM input'!$AA$7,SUM($G186:Q186),0) -> 0
C188: =Asset10 -> 0 | H188: =($G127+(SUM($G188:G188)))*H$8 -> 0 | I188: =($G127+(SUM($G188:H188)))*I$8 -> 0 | J188: =IF(COUNT($H188:I188)>='RFM input'!$AA$7,0,($G127+(SUM($G188:I188)))*J$8) -> 0 | K188: =IF(COUNT($H188:J188)>='RFM input'!$AA$7,0,($G127+(SUM($G188:J188)))*K$8) -> 0 | L188: =IF(COUNT($H188:K188)>='RFM input'!$AA$7,0,($G127+(SUM($G188:K188)))*L$8) -> 0 | M188: =IF(COUNT($H188:L188)>='RFM input'!$AA$7,0,($G127+(SUM($G188:L188)))*M$8) -> 0 | N188: =IF(COUNT($H188:M188)>='RFM input'!$AA$7,0,($G127+(SUM($G188:M188)))*N$8) -> 0 | O188: =IF(COUNT($H188:N188)>='RFM input'!$AA$7,0,($G127+(SUM($G188:N188)))*O$8) -> 0 | P188: =IF(COUNT($H188:O188)>='RFM input'!$AA$7,0,($G127+(SUM($G188:O188)))*P$8) -> 0 | Q188: =IF(COUNT($H188:P188)>='RFM input'!$AA$7,0,($G127+(SUM($G188:P188)))*Q$8) -> 0
C189: Sub-total | I189: =IF(COUNT($H188:I188)='RFM input'!$AA$7,SUM($G188:I188),0) -> 0 | J189: =IF(COUNT($H188:J188)='RFM input'!$AA$7,SUM($G188:J188),0) -> 0 | K189: =IF(COUNT($H188:K188)='RFM input'!$AA$7,SUM($G188:K188),0) -> 0 | L189: =IF(COUNT($H188:L188)='RFM input'!$AA$7,SUM($G188:L188),0) -> 0 | M189: =IF(COUNT($H188:M188)='RFM input'!$AA$7,SUM($G188:M188),0) -> 0 | N189: =IF(COUNT($H188:N188)='RFM input'!$AA$7,SUM($G188:N188),0) -> 0 | O189: =IF(COUNT($H188:O188)='RFM input'!$AA$7,SUM($G188:O188),0) -> 0 | P189: =IF(COUNT($H188:P188)='RFM input'!$AA$7,SUM($G188:P188),0) -> 0 | Q189: =IF(COUNT($H188:Q188)='RFM input'!$AA$7,SUM($G188:Q188),0) -> 0
C190: =Asset11 -> 0 | H190: =($G128+(SUM($G190:G190)))*H$8 -> 0 | I190: =($G128+(SUM($G190:H190)))*I$8 -> 0 | J190: =IF(COUNT($H190:I190)>='RFM input'!$AA$7,0,($G128+(SUM($G190:I190)))*J$8) -> 0 | K190: =IF(COUNT($H190:J190)>='RFM input'!$AA$7,0,($G128+(SUM($G190:J190)))*K$8) -> 0 | L190: =IF(COUNT($H190:K190)>='RFM input'!$AA$7,0,($G128+(SUM($G190:K190)))*L$8) -> 0 | M190: =IF(COUNT($H190:L190)>='RFM input'!$AA$7,0,($G128+(SUM($G190:L190)))*M$8) -> 0 | N190: =IF(COUNT($H190:M190)>='RFM input'!$AA$7,0,($G128+(SUM($G190:M190)))*N$8) -> 0 | O190: =IF(COUNT($H190:N190)>='RFM input'!$AA$7,0,($G128+(SUM($G190:N190)))*O$8) -> 0 | P190: =IF(COUNT($H190:O190)>='RFM input'!$AA$7,0,($G128+(SUM($G190:O190)))*P$8) -> 0 | Q190: =IF(COUNT($H190:P190)>='RFM input'!$AA$7,0,($G128+(SUM($G190:P190)))*Q$8) -> 0
C191: Sub-total | I191: =IF(COUNT($H190:I190)='RFM input'!$AA$7,SUM($G190:I190),0) -> 0 | J191: =IF(COUNT($H190:J190)='RFM input'!$AA$7,SUM($G190:J190),0) -> 0 | K191: =IF(COUNT($H190:K190)='RFM input'!$AA$7,SUM($G190:K190),0) -> 0 | L191: =IF(COUNT($H190:L190)='RFM input'!$AA$7,SUM($G190:L190),0) -> 0 | M191: =IF(COUNT($H190:M190)='RFM input'!$AA$7,SUM($G190:M190),0) -> 0 | N191: =IF(COUNT($H190:N190)='RFM input'!$AA$7,SUM($G190:N190),0) -> 0 | O191: =IF(COUNT($H190:O190)='RFM input'!$AA$7,SUM($G190:O190),0) -> 0 | P191: =IF(COUNT($H190:P190)='RFM input'!$AA$7,SUM($G190:P190),0) -> 0 | Q191: =IF(COUNT($H190:Q190)='RFM input'!$AA$7,SUM($G190:Q190),0) -> 0
C192: =Asset12 -> 0 | H192: =($G129+(SUM($G192:G192)))*H$8 -> 0 | I192: =($G129+(SUM($G192:H192)))*I$8 -> 0 | J192: =IF(COUNT($H192:I192)>='RFM input'!$AA$7,0,($G129+(SUM($G192:I192)))*J$8) -> 0 | K192: =IF(COUNT($H192:J192)>='RFM input'!$AA$7,0,($G129+(SUM($G192:J192)))*K$8) -> 0 | L192: =IF(COUNT($H192:K192)>='RFM input'!$AA$7,0,($G129+(SUM($G192:K192)))*L$8) -> 0 | M192: =IF(COUNT($H192:L192)>='RFM input'!$AA$7,0,($G129+(SUM($G192:L192)))*M$8) -> 0 | N192: =IF(COUNT($H192:M192)>='RFM input'!$AA$7,0,($G129+(SUM($G192:M192)))*N$8) -> 0 | O192: =IF(COUNT($H192:N192)>='RFM input'!$AA$7,0,($G129+(SUM($G192:N192)))*O$8) -> 0 | P192: =IF(COUNT($H192:O192)>='RFM input'!$AA$7,0,($G129+(SUM($G192:O192)))*P$8) -> 0 | Q192: =IF(COUNT($H192:P192)>='RFM input'!$AA$7,0,($G129+(SUM($G192:P192)))*Q$8) -> 0
C193: Sub-total | I193: =IF(COUNT($H192:I192)='RFM input'!$AA$7,SUM($G192:I192),0) -> 0 | J193: =IF(COUNT($H192:J192)='RFM input'!$AA$7,SUM($G192:J192),0) -> 0 | K193: =IF(COUNT($H192:K192)='RFM input'!$AA$7,SUM($G192:K192),0) -> 0 | L193: =IF(COUNT($H192:L192)='RFM input'!$AA$7,SUM($G192:L192),0) -> 0 | M193: =IF(COUNT($H192:M192)='RFM input'!$AA$7,SUM($G192:M192),0) -> 0 | N193: =IF(COUNT($H192:N192)='RFM input'!$AA$7,SUM($G192:N192),0) -> 0 | O193: =IF(COUNT($H192:O192)='RFM input'!$AA$7,SUM($G192:O192),0) -> 0 | P193: =IF(COUNT($H192:P192)='RFM input'!$AA$7,SUM($G192:P192),0) -> 0 | Q193: =IF(COUNT($H192:Q192)='RFM input'!$AA$7,SUM($G192:Q192),0) -> 0
C194: =Asset13 -> 0 | H194: =($G130+(SUM($G194:G194)))*H$8 -> 0 | I194: =($G130+(SUM($G194:H194)))*I$8 -> 0 | J194: =IF(COUNT($H194:I194)>='RFM input'!$AA$7,0,($G130+(SUM($G194:I194)))*J$8) -> 0 | K194: =IF(COUNT($H194:J194)>='RFM input'!$AA$7,0,($G130+(SUM($G194:J194)))*K$8) -> 0 | L194: =IF(COUNT($H194:K194)>='RFM input'!$AA$7,0,($G130+(SUM($G194:K194)))*L$8) -> 0 | M194: =IF(COUNT($H194:L194)>='RFM input'!$AA$7,0,($G130+(SUM($G194:L194)))*M$8) -> 0 | N194: =IF(COUNT($H194:M194)>='RFM input'!$AA$7,0,($G130+(SUM($G194:M194)))*N$8) -> 0 | O194: =IF(COUNT($H194:N194)>='RFM input'!$AA$7,0,($G130+(SUM($G194:N194)))*O$8) -> 0 | P194: =IF(COUNT($H194:O194)>='RFM input'!$AA$7,0,($G130+(SUM($G194:O194)))*P$8) -> 0 | Q194: =IF(COUNT($H194:P194)>='RFM input'!$AA$7,0,($G130+(SUM($G194:P194)))*Q$8) -> 0
C195: Sub-total | I195: =IF(COUNT($H194:I194)='RFM input'!$AA$7,SUM($G194:I194),0) -> 0 | J195: =IF(COUNT($H194:J194)='RFM input'!$AA$7,SUM($G194:J194),0) -> 0 | K195: =IF(COUNT($H194:K194)='RFM input'!$AA$7,SUM($G194:K194),0) -> 0 | L195: =IF(COUNT($H194:L194)='RFM input'!$AA$7,SUM($G194:L194),0) -> 0 | M195: =IF(COUNT($H194:M194)='RFM input'!$AA$7,SUM($G194:M194),0) -> 0 | N195: =IF(COUNT($H194:N194)='RFM input'!$AA$7,SUM($G194:N194),0) -> 0 | O195: =IF(COUNT($H194:O194)='RFM input'!$AA$7,SUM($G194:O194),0) -> 0 | P195: =IF(COUNT($H194:P194)='RFM input'!$AA$7,SUM($G194:P194),0) -> 0 | Q195: =IF(COUNT($H194:Q194)='RFM input'!$AA$7,SUM($G194:Q194),0) -> 0
C196: =Asset14 -> 0 | H196: =($G131+(SUM($G196:G196)))*H$8 -> 0 | I196: =($G131+(SUM($G196:H196)))*I$8 -> 0 | J196: =IF(COUNT($H196:I196)>='RFM input'!$AA$7,0,($G131+(SUM($G196:I196)))*J$8) -> 0 | K196: =IF(COUNT($H196:J196)>='RFM input'!$AA$7,0,($G131+(SUM($G196:J196)))*K$8) -> 0 | L196: =IF(COUNT($H196:K196)>='RFM input'!$AA$7,0,($G131+(SUM($G196:K196)))*L$8) -> 0 | M196: =IF(COUNT($H196:L196)>='RFM input'!$AA$7,0,($G131+(SUM($G196:L196)))*M$8) -> 0 | N196: =IF(COUNT($H196:M196)>='RFM input'!$AA$7,0,($G131+(SUM($G196:M196)))*N$8) -> 0 | O196: =IF(COUNT($H196:N196)>='RFM input'!$AA$7,0,($G131+(SUM($G196:N196)))*O$8) -> 0 | P196: =IF(COUNT($H196:O196)>='RFM input'!$AA$7,0,($G131+(SUM($G196:O196)))*P$8) -> 0 | Q196: =IF(COUNT($H196:P196)>='RFM input'!$AA$7,0,($G131+(SUM($G196:P196)))*Q$8) -> 0
C197: Sub-total | I197: =IF(COUNT($H196:I196)='RFM input'!$AA$7,SUM($G196:I196),0) -> 0 | J197: =IF(COUNT($H196:J196)='RFM input'!$AA$7,SUM($G196:J196),0) -> 0 | K197: =IF(COUNT($H196:K196)='RFM input'!$AA$7,SUM($G196:K196),0) -> 0 | L197: =IF(COUNT($H196:L196)='RFM input'!$AA$7,SUM($G196:L196),0) -> 0 | M197: =IF(COUNT($H196:M196)='RFM input'!$AA$7,SUM($G196:M196),0) -> 0 | N197: =IF(COUNT($H196:N196)='RFM input'!$AA$7,SUM($G196:N196),0) -> 0 | O197: =IF(COUNT($H196:O196)='RFM input'!$AA$7,SUM($G196:O196),0) -> 0 | P197: =IF(COUNT($H196:P196)='RFM input'!$AA$7,SUM($G196:P196),0) -> 0 | Q197: =IF(COUNT($H196:Q196)='RFM input'!$AA$7,SUM($G196:Q196),0) -> 0
C198: =Asset15 -> 0 | H198: =($G132+(SUM($G198:G198)))*H$8 -> 0 | I198: =($G132+(SUM($G198:H198)))*I$8 -> 0 | J198: =IF(COUNT($H198:I198)>='RFM input'!$AA$7,0,($G132+(SUM($G198:I198)))*J$8) -> 0 | K198: =IF(COUNT($H198:J198)>='RFM input'!$AA$7,0,($G132+(SUM($G198:J198)))*K$8) -> 0 | L198: =IF(COUNT($H198:K198)>='RFM input'!$AA$7,0,($G132+(SUM($G198:K198)))*L$8) -> 0 | M198: =IF(COUNT($H198:L198)>='RFM input'!$AA$7,0,($G132+(SUM($G198:L198)))*M$8) -> 0 | N198: =IF(COUNT($H198:M198)>='RFM input'!$AA$7,0,($G132+(SUM($G198:M198)))*N$8) -> 0 | O198: =IF(COUNT($H198:N198)>='RFM input'!$AA$7,0,($G132+(SUM($G198:N198)))*O$8) -> 0 | P198: =IF(COUNT($H198:O198)>='RFM input'!$AA$7,0,($G132+(SUM($G198:O198)))*P$8) -> 0 | Q198: =IF(COUNT($H198:P198)>='RFM input'!$AA$7,0,($G132+(SUM($G198:P198)))*Q$8) -> 0
C199: Sub-total | I199: =IF(COUNT($H198:I198)='RFM input'!$AA$7,SUM($G198:I198),0) -> 0 | J199: =IF(COUNT($H198:J198)='RFM input'!$AA$7,SUM($G198:J198),0) -> 0 | K199: =IF(COUNT($H198:K198)='RFM input'!$AA$7,SUM($G198:K198),0) -> 0 | L199: =IF(COUNT($H198:L198)='RFM input'!$AA$7,SUM($G198:L198),0) -> 0 | M199: =IF(COUNT($H198:M198)='RFM input'!$AA$7,SUM($G198:M198),0) -> 0 | N199: =IF(COUNT($H198:N198)='RFM input'!$AA$7,SUM($G198:N198),0) -> 0 | O199: =IF(COUNT($H198:O198)='RFM input'!$AA$7,SUM($G198:O198),0) -> 0 | P199: =IF(COUNT($H198:P198)='RFM input'!$AA$7,SUM($G198:P198),0) -> 0 | Q199: =IF(COUNT($H198:Q198)='RFM input'!$AA$7,SUM($G198:Q198),0) -> 0
C200: =Asset16 -> 0 | H200: =($G133+(SUM($G200:G200)))*H$8 -> 0 | I200: =($G133+(SUM($G200:H200)))*I$8 -> 0 | J200: =IF(COUNT($H200:I200)>='RFM input'!$AA$7,0,($G133+(SUM($G200:I200)))*J$8) -> 0 | K200: =IF(COUNT($H200:J200)>='RFM input'!$AA$7,0,($G133+(SUM($G200:J200)))*K$8) -> 0 | L200: =IF(COUNT($H200:K200)>='RFM input'!$AA$7,0,($G133+(SUM($G200:K200)))*L$8) -> 0 | M200: =IF(COUNT($H200:L200)>='RFM input'!$AA$7,0,($G133+(SUM($G200:L200)))*M$8) -> 0 | N200: =IF(COUNT($H200:M200)>='RFM input'!$AA$7,0,($G133+(SUM($G200:M200)))*N$8) -> 0 | O200: =IF(COUNT($H200:N200)>='RFM input'!$AA$7,0,($G133+(SUM($G200:N200)))*O$8) -> 0 | P200: =IF(COUNT($H200:O200)>='RFM input'!$AA$7,0,($G133+(SUM($G200:O200)))*P$8) -> 0 | Q200: =IF(COUNT($H200:P200)>='RFM input'!$AA$7,0,($G133+(SUM($G200:P200)))*Q$8) -> 0
C201: Sub-total | I201: =IF(COUNT($H200:I200)='RFM input'!$AA$7,SUM($G200:I200),0) -> 0 | J201: =IF(COUNT($H200:J200)='RFM input'!$AA$7,SUM($G200:J200),0) -> 0 | K201: =IF(COUNT($H200:K200)='RFM input'!$AA$7,SUM($G200:K200),0) -> 0 | L201: =IF(COUNT($H200:L200)='RFM input'!$AA$7,SUM($G200:L200),0) -> 0 | M201: =IF(COUNT($H200:M200)='RFM input'!$AA$7,SUM($G200:M200),0) -> 0 | N201: =IF(COUNT($H200:N200)='RFM input'!$AA$7,SUM($G200:N200),0) -> 0 | O201: =IF(COUNT($H200:O200)='RFM input'!$AA$7,SUM($G200:O200),0) -> 0 | P201: =IF(COUNT($H200:P200)='RFM input'!$AA$7,SUM($G200:P200),0) -> 0 | Q201: =IF(COUNT($H200:Q200)='RFM input'!$AA$7,SUM($G200:Q200),0) -> 0
C202: =Asset17 -> 0 | H202: =($G134+(SUM($G202:G202)))*H$8 -> 0 | I202: =($G134+(SUM($G202:H202)))*I$8 -> 0 | J202: =IF(COUNT($H202:I202)>='RFM input'!$AA$7,0,($G134+(SUM($G202:I202)))*J$8) -> 0 | K202: =IF(COUNT($H202:J202)>='RFM input'!$AA$7,0,($G134+(SUM($G202:J202)))*K$8) -> 0 | L202: =IF(COUNT($H202:K202)>='RFM input'!$AA$7,0,($G134+(SUM($G202:K202)))*L$8) -> 0 | M202: =IF(COUNT($H202:L202)>='RFM input'!$AA$7,0,($G134+(SUM($G202:L202)))*M$8) -> 0 | N202: =IF(COUNT($H202:M202)>='RFM input'!$AA$7,0,($G134+(SUM($G202:M202)))*N$8) -> 0 | O202: =IF(COUNT($H202:N202)>='RFM input'!$AA$7,0,($G134+(SUM($G202:N202)))*O$8) -> 0 | P202: =IF(COUNT($H202:O202)>='RFM input'!$AA$7,0,($G134+(SUM($G202:O202)))*P$8) -> 0 | Q202: =IF(COUNT($H202:P202)>='RFM input'!$AA$7,0,($G134+(SUM($G202:P202)))*Q$8) -> 0
C203: Sub-total | I203: =IF(COUNT($H202:I202)='RFM input'!$AA$7,SUM($G202:I202),0) -> 0 | J203: =IF(COUNT($H202:J202)='RFM input'!$AA$7,SUM($G202:J202),0) -> 0 | K203: =IF(COUNT($H202:K202)='RFM input'!$AA$7,SUM($G202:K202),0) -> 0 | L203: =IF(COUNT($H202:L202)='RFM input'!$AA$7,SUM($G202:L202),0) -> 0 | M203: =IF(COUNT($H202:M202)='RFM input'!$AA$7,SUM($G202:M202),0) -> 0 | N203: =IF(COUNT($H202:N202)='RFM input'!$AA$7,SUM($G202:N202),0) -> 0 | O203: =IF(COUNT($H202:O202)='RFM input'!$AA$7,SUM($G202:O202),0) -> 0 | P203: =IF(COUNT($H202:P202)='RFM input'!$AA$7,SUM($G202:P202),0) -> 0 | Q203: =IF(COUNT($H202:Q202)='RFM input'!$AA$7,SUM($G202:Q202),0) -> 0
C204: =Asset18 -> 0 | H204: =($G135+(SUM($G204:G204)))*H$8 -> 0 | I204: =($G135+(SUM($G204:H204)))*I$8 -> 0 | J204: =IF(COUNT($H204:I204)>='RFM input'!$AA$7,0,($G135+(SUM($G204:I204)))*J$8) -> 0 | K204: =IF(COUNT($H204:J204)>='RFM input'!$AA$7,0,($G135+(SUM($G204:J204)))*K$8) -> 0 | L204: =IF(COUNT($H204:K204)>='RFM input'!$AA$7,0,($G135+(SUM($G204:K204)))*L$8) -> 0 | M204: =IF(COUNT($H204:L204)>='RFM input'!$AA$7,0,($G135+(SUM($G204:L204)))*M$8) -> 0 | N204: =IF(COUNT($H204:M204)>='RFM input'!$AA$7,0,($G135+(SUM($G204:M204)))*N$8) -> 0 | O204: =IF(COUNT($H204:N204)>='RFM input'!$AA$7,0,($G135+(SUM($G204:N204)))*O$8) -> 0 | P204: =IF(COUNT($H204:O204)>='RFM input'!$AA$7,0,($G135+(SUM($G204:O204)))*P$8) -> 0 | Q204: =IF(COUNT($H204:P204)>='RFM input'!$AA$7,0,($G135+(SUM($G204:P204)))*Q$8) -> 0
C205: Sub-total | I205: =IF(COUNT($H204:I204)='RFM input'!$AA$7,SUM($G204:I204),0) -> 0 | J205: =IF(COUNT($H204:J204)='RFM input'!$AA$7,SUM($G204:J204),0) -> 0 | K205: =IF(COUNT($H204:K204)='RFM input'!$AA$7,SUM($G204:K204),0) -> 0 | L205: =IF(COUNT($H204:L204)='RFM input'!$AA$7,SUM($G204:L204),0) -> 0 | M205: =IF(COUNT($H204:M204)='RFM input'!$AA$7,SUM($G204:M204),0) -> 0 | N205: =IF(COUNT($H204:N204)='RFM input'!$AA$7,SUM($G204:N204),0) -> 0 | O205: =IF(COUNT($H204:O204)='RFM input'!$AA$7,SUM($G204:O204),0) -> 0 | P205: =IF(COUNT($H204:P204)='RFM input'!$AA$7,SUM($G204:P204),0) -> 0 | Q205: =IF(COUNT($H204:Q204)='RFM input'!$AA$7,SUM($G204:Q204),0) -> 0
C206: =Asset19 -> 0 | H206: =($G136+(SUM($G206:G206)))*H$8 -> 0 | I206: =($G136+(SUM($G206:H206)))*I$8 -> 0 | J206: =IF(COUNT($H206:I206)>='RFM input'!$AA$7,0,($G136+(SUM($G206:I206)))*J$8) -> 0 | K206: =IF(COUNT($H206:J206)>='RFM input'!$AA$7,0,($G136+(SUM($G206:J206)))*K$8) -> 0 | L206: =IF(COUNT($H206:K206)>='RFM input'!$AA$7,0,($G136+(SUM($G206:K206)))*L$8) -> 0 | M206: =IF(COUNT($H206:L206)>='RFM input'!$AA$7,0,($G136+(SUM($G206:L206)))*M$8) -> 0 | N206: =IF(COUNT($H206:M206)>='RFM input'!$AA$7,0,($G136+(SUM($G206:M206)))*N$8) -> 0 | O206: =IF(COUNT($H206:N206)>='RFM input'!$AA$7,0,($G136+(SUM($G206:N206)))*O$8) -> 0 | P206: =IF(COUNT($H206:O206)>='RFM input'!$AA$7,0,($G136+(SUM($G206:O206)))*P$8) -> 0 | Q206: =IF(COUNT($H206:P206)>='RFM input'!$AA$7,0,($G136+(SUM($G206:P206)))*Q$8) -> 0
C207: Sub-total | I207: =IF(COUNT($H206:I206)='RFM input'!$AA$7,SUM($G206:I206),0) -> 0 | J207: =IF(COUNT($H206:J206)='RFM input'!$AA$7,SUM($G206:J206),0) -> 0 | K207: =IF(COUNT($H206:K206)='RFM input'!$AA$7,SUM($G206:K206),0) -> 0 | L207: =IF(COUNT($H206:L206)='RFM input'!$AA$7,SUM($G206:L206),0) -> 0 | M207: =IF(COUNT($H206:M206)='RFM input'!$AA$7,SUM($G206:M206),0) -> 0 | N207: =IF(COUNT($H206:N206)='RFM input'!$AA$7,SUM($G206:N206),0) -> 0 | O207: =IF(COUNT($H206:O206)='RFM input'!$AA$7,SUM($G206:O206),0) -> 0 | P207: =IF(COUNT($H206:P206)='RFM input'!$AA$7,SUM($G206:P206),0) -> 0 | Q207: =IF(COUNT($H206:Q206)='RFM input'!$AA$7,SUM($G206:Q206),0) -> 0
C208: =Asset20 -> 0 | H208: =($G137+(SUM($G208:G208)))*H$8 -> 0 | I208: =($G137+(SUM($G208:H208)))*I$8 -> 0 | J208: =IF(COUNT($H208:I208)>='RFM input'!$AA$7,0,($G137+(SUM($G208:I208)))*J$8) -> 0 | K208: =IF(COUNT($H208:J208)>='RFM input'!$AA$7,0,($G137+(SUM($G208:J208)))*K$8) -> 0 | L208: =IF(COUNT($H208:K208)>='RFM input'!$AA$7,0,($G137+(SUM($G208:K208)))*L$8) -> 0 | M208: =IF(COUNT($H208:L208)>='RFM input'!$AA$7,0,($G137+(SUM($G208:L208)))*M$8) -> 0 | N208: =IF(COUNT($H208:M208)>='RFM input'!$AA$7,0,($G137+(SUM($G208:M208)))*N$8) -> 0 | O208: =IF(COUNT($H208:N208)>='RFM input'!$AA$7,0,($G137+(SUM($G208:N208)))*O$8) -> 0 | P208: =IF(COUNT($H208:O208)>='RFM input'!$AA$7,0,($G137+(SUM($G208:O208)))*P$8) -> 0 | Q208: =IF(COUNT($H208:P208)>='RFM input'!$AA$7,0,($G137+(SUM($G208:P208)))*Q$8) -> 0
... 318 more rows

Sheet RAB roll forward
C2: ='DMS input'!$C$16&" - Asset Roll Forward"&" - TNSP RFM - version "&Intro!$M$4 -> Aus Elec - Asset Roll Forward - TNSP RFM - version 3
G3: 0 | H3: =G3+1 -> 1 | I3: 2 | J3: 3 | K3: 4 | L3: 5 | M3: 6 | N3: 7 | O3: 8 | P3: 9 | Q3: 10 | R3: 11
C4: Year | G4: ='RFM input'!G60 -> 2011-12 | H4: ='RFM input'!H60 -> 2012-13 | I4: ='RFM input'!I60 -> 2013-14 | J4: ='RFM input'!J60 -> 2014-15 | K4: ='RFM input'!K60 -> 2015-16 | L4: ='RFM input'!L60 -> 2016-17 | M4: ='RFM input'!M60 -> 2017-18 | N4: ='RFM input'!N60 -> 2018-19 | O4: ='RFM input'!O60 -> 2019-20 | P4: ='RFM input'!P60 -> 2020-21 | Q4: ='RFM input'!Q60 -> 2021-22 | R4: =IF(LEN(Q4)>4,CONCATENATE(LEFT(Q4, 4)+1 &"-" &IF(Q4>"2007-08",,"0") &RIGHT(Q4,2)+1),Q4+1) -> 2022-23
C6: Actual CPI Inflation Rate | G6: ='RFM input'!G385 -> 0.01584606678 | H6: ='RFM input'!H385 -> 0.02502502503 | I6: ='RFM input'!I385 -> 0.029296875 | J6: ='RFM input'!J385 -> 0.01717557252 | K6: ='RFM input'!K385 -> 0.02 | L6: ='RFM input'!L385 -> 0.02 | M6: ='RFM input'!M385 -> 0 | N6: ='RFM input'!N385 -> 0 | O6: ='RFM input'!O385 -> 0 | P6: ='RFM input'!P385 -> 0 | Q6: ='RFM input'!Q385 -> 0
C7: Actual CPI (one year lagged) | G7: ='RFM input'!G386 -> 1 | H7: ='RFM input'!H386 -> 1.015846067 | I7: ='RFM input'!I386 -> 1.04126764 | J7: ='RFM input'!J386 -> 1.071773528 | K7: ='RFM input'!K386 -> 1.090181852 | L7: ='RFM input'!L386 -> 1.111985489 | M7: ='RFM input'!M386 -> 1.134225199 | N7: ='RFM input'!N386 -> 1.134225199 | O7: ='RFM input'!O386 -> 1.134225199 | P7: ='RFM input'!P386 -> 1.134225199 | Q7: ='RFM input'!Q386 -> 1.134225199
C9: ="Asset Values ($m Real "&G4&")" -> Asset Values ($m Real 2011-12)
C11: Real Actual Net Capex - As Incurred | H11: =SUM(H12:H61) -> 29.32458619 | I11: =SUM(I12:I61) -> 28.66820602 | J11: 27.68773926 | K11: 27.25798193 | L11: 26.7235117 | M11: 0 | N11: 0 | O11: 0 | P11: 0 | Q11: 0
D12: =Asset1 -> Transmission lines | H12: ='RFM input'!H169*(1+vanilla1)^0.5 -> 10.11192627 | I12: ='RFM input'!I169*(1+vanilla2)^0.5 -> 9.885588284 | J12: ='RFM input'!J169*(1+vanilla3)^0.5 -> 9.547496297 | K12: ='RFM input'!K169*(1+vanilla4)^0.5 -> 9.399304115 | L12: ='RFM input'!L169*(1+vanilla5)^0.5 -> 9.215004034 | M12: ='RFM input'!M169*(1+vanilla6)^0.5 -> 0 | N12: ='RFM input'!N169*(1+vanilla7)^0.5 -> 0 | O12: ='RFM input'!O169*(1+vanilla8)^0.5 -> 0 | P12: ='RFM input'!P169*(1+vanilla9)^0.5 -> 0 | Q12: ='RFM input'!Q169*(1+vanilla10)^0.5 -> 0
D13: =Asset2 -> Substations | H13: ='RFM input'!H170*(1+vanilla1)^0.5 -> 9.100733645 | I13: ='RFM input'!I170*(1+vanilla2)^0.5 -> 8.897029455 | J13: ='RFM input'!J170*(1+vanilla3)^0.5 -> 8.592746668 | K13: ='RFM input'!K170*(1+vanilla4)^0.5 -> 8.459373703 | L13: ='RFM input'!L170*(1+vanilla5)^0.5 -> 8.293503631 | M13: ='RFM input'!M170*(1+vanilla6)^0.5 -> 0 | N13: ='RFM input'!N170*(1+vanilla7)^0.5 -> 0 | O13: ='RFM input'!O170*(1+vanilla8)^0.5 -> 0 | P13: ='RFM input'!P170*(1+vanilla9)^0.5 -> 0 | Q13: ='RFM input'!Q170*(1+vanilla10)^0.5 -> 0
D14: =Asset3 -> Easements | H14: ='RFM input'!H171*(1+vanilla1)^0.5 -> 10.11192627 | I14: ='RFM input'!I171*(1+vanilla2)^0.5 -> 9.885588284 | J14: ='RFM input'!J171*(1+vanilla3)^0.5 -> 9.547496297 | K14: ='RFM input'!K171*(1+vanilla4)^0.5 -> 9.399304115 | L14: ='RFM input'!L171*(1+vanilla5)^0.5 -> 9.215004034 | M14: ='RFM input'!M171*(1+vanilla6)^0.5 -> 0 | N14: ='RFM input'!N171*(1+vanilla7)^0.5 -> 0 | O14: ='RFM input'!O171*(1+vanilla8)^0.5 -> 0 | P14: ='RFM input'!P171*(1+vanilla9)^0.5 -> 0 | Q14: ='RFM input'!Q171*(1+vanilla10)^0.5 -> 0
D15: =Asset4 -> 0 | H15: ='RFM input'!H172*(1+vanilla1)^0.5 -> 0 | I15: ='RFM input'!I172*(1+vanilla2)^0.5 -> 0 | J15: ='RFM input'!J172*(1+vanilla3)^0.5 -> 0 | K15: ='RFM input'!K172*(1+vanilla4)^0.5 -> 0 | L15: ='RFM input'!L172*(1+vanilla5)^0.5 -> 0 | M15: ='RFM input'!M172*(1+vanilla6)^0.5 -> 0 | N15: ='RFM input'!N172*(1+vanilla7)^0.5 -> 0 | O15: ='RFM input'!O172*(1+vanilla8)^0.5 -> 0 | P15: ='RFM input'!P172*(1+vanilla9)^0.5 -> 0 | Q15: ='RFM input'!Q172*(1+vanilla10)^0.5 -> 0
D16: =Asset5 -> 0 | H16: ='RFM input'!H173*(1+vanilla1)^0.5 -> 0 | I16: ='RFM input'!I173*(1+vanilla2)^0.5 -> 0 | J16: ='RFM input'!J173*(1+vanilla3)^0.5 -> 0 | K16: ='RFM input'!K173*(1+vanilla4)^0.5 -> 0 | L16: ='RFM input'!L173*(1+vanilla5)^0.5 -> 0 | M16: ='RFM input'!M173*(1+vanilla6)^0.5 -> 0 | N16: ='RFM input'!N173*(1+vanilla7)^0.5 -> 0 | O16: ='RFM input'!O173*(1+vanilla8)^0.5 -> 0 | P16: ='RFM input'!P173*(1+vanilla9)^0.5 -> 0 | Q16: ='RFM input'!Q173*(1+vanilla10)^0.5 -> 0
D17: =Asset6 -> 0 | H17: ='RFM input'!H174*(1+vanilla1)^0.5 -> 0 | I17: ='RFM input'!I174*(1+vanilla2)^0.5 -> 0 | J17: ='RFM input'!J174*(1+vanilla3)^0.5 -> 0 | K17: ='RFM input'!K174*(1+vanilla4)^0.5 -> 0 | L17: ='RFM input'!L174*(1+vanilla5)^0.5 -> 0 | M17: ='RFM input'!M174*(1+vanilla6)^0.5 -> 0 | N17: ='RFM input'!N174*(1+vanilla7)^0.5 -> 0 | O17: ='RFM input'!O174*(1+vanilla8)^0.5 -> 0 | P17: ='RFM input'!P174*(1+vanilla9)^0.5 -> 0 | Q17: ='RFM input'!Q174*(1+vanilla10)^0.5 -> 0
D18: =Asset7 -> 0 | H18: ='RFM input'!H175*(1+vanilla1)^0.5 -> 0 | I18: ='RFM input'!I175*(1+vanilla2)^0.5 -> 0 | J18: ='RFM input'!J175*(1+vanilla3)^0.5 -> 0 | K18: ='RFM input'!K175*(1+vanilla4)^0.5 -> 0 | L18: ='RFM input'!L175*(1+vanilla5)^0.5 -> 0 | M18: ='RFM input'!M175*(1+vanilla6)^0.5 -> 0 | N18: ='RFM input'!N175*(1+vanilla7)^0.5 -> 0 | O18: ='RFM input'!O175*(1+vanilla8)^0.5 -> 0 | P18: ='RFM input'!P175*(1+vanilla9)^0.5 -> 0 | Q18: ='RFM input'!Q175*(1+vanilla10)^0.5 -> 0
D19: =Asset8 -> 0 | H19: ='RFM input'!H176*(1+vanilla1)^0.5 -> 0 | I19: ='RFM input'!I176*(1+vanilla2)^0.5 -> 0 | J19: ='RFM input'!J176*(1+vanilla3)^0.5 -> 0 | K19: ='RFM input'!K176*(1+vanilla4)^0.5 -> 0 | L19: ='RFM input'!L176*(1+vanilla5)^0.5 -> 0 | M19: ='RFM input'!M176*(1+vanilla6)^0.5 -> 0 | N19: ='RFM input'!N176*(1+vanilla7)^0.5 -> 0 | O19: ='RFM input'!O176*(1+vanilla8)^0.5 -> 0 | P19: ='RFM input'!P176*(1+vanilla9)^0.5 -> 0 | Q19: ='RFM input'!Q176*(1+vanilla10)^0.5 -> 0
D20: =Asset9 -> 0 | H20: ='RFM input'!H177*(1+vanilla1)^0.5 -> 0 | I20: ='RFM input'!I177*(1+vanilla2)^0.5 -> 0 | J20: ='RFM input'!J177*(1+vanilla3)^0.5 -> 0 | K20: ='RFM input'!K177*(1+vanilla4)^0.5 -> 0 | L20: ='RFM input'!L177*(1+vanilla5)^0.5 -> 0 | M20: ='RFM input'!M177*(1+vanilla6)^0.5 -> 0 | N20: ='RFM input'!N177*(1+vanilla7)^0.5 -> 0 | O20: ='RFM input'!O177*(1+vanilla8)^0.5 -> 0 | P20: ='RFM input'!P177*(1+vanilla9)^0.5 -> 0 | Q20: ='RFM input'!Q177*(1+vanilla10)^0.5 -> 0
D21: =Asset10 -> 0 | H21: ='RFM input'!H178*(1+vanilla1)^0.5 -> 0 | I21: ='RFM input'!I178*(1+vanilla2)^0.5 -> 0 | J21: ='RFM input'!J178*(1+vanilla3)^0.5 -> 0 | K21: ='RFM input'!K178*(1+vanilla4)^0.5 -> 0 | L21: ='RFM input'!L178*(1+vanilla5)^0.5 -> 0 | M21: ='RFM input'!M178*(1+vanilla6)^0.5 -> 0 | N21: ='RFM input'!N178*(1+vanilla7)^0.5 -> 0 | O21: ='RFM input'!O178*(1+vanilla8)^0.5 -> 0 | P21: ='RFM input'!P178*(1+vanilla9)^0.5 -> 0 | Q21: ='RFM input'!Q178*(1+vanilla10)^0.5 -> 0
D22: =Asset11 -> 0 | H22: ='RFM input'!H179*(1+vanilla1)^0.5 -> 0 | I22: ='RFM input'!I179*(1+vanilla2)^0.5 -> 0 | J22: ='RFM input'!J179*(1+vanilla3)^0.5 -> 0 | K22: ='RFM input'!K179*(1+vanilla4)^0.5 -> 0 | L22: ='RFM input'!L179*(1+vanilla5)^0.5 -> 0 | M22: ='RFM input'!M179*(1+vanilla6)^0.5 -> 0 | N22: ='RFM input'!N179*(1+vanilla7)^0.5 -> 0 | O22: ='RFM input'!O179*(1+vanilla8)^0.5 -> 0 | P22: ='RFM input'!P179*(1+vanilla9)^0.5 -> 0 | Q22: ='RFM input'!Q179*(1+vanilla10)^0.5 -> 0
D23: =Asset12 -> 0 | H23: ='RFM input'!H180*(1+vanilla1)^0.5 -> 0 | I23: ='RFM input'!I180*(1+vanilla2)^0.5 -> 0 | J23: ='RFM input'!J180*(1+vanilla3)^0.5 -> 0 | K23: ='RFM input'!K180*(1+vanilla4)^0.5 -> 0 | L23: ='RFM input'!L180*(1+vanilla5)^0.5 -> 0 | M23: ='RFM input'!M180*(1+vanilla6)^0.5 -> 0 | N23: ='RFM input'!N180*(1+vanilla7)^0.5 -> 0 | O23: ='RFM input'!O180*(1+vanilla8)^0.5 -> 0 | P23: ='RFM input'!P180*(1+vanilla9)^0.5 -> 0 | Q23: ='RFM input'!Q180*(1+vanilla10)^0.5 -> 0
D24: =Asset13 -> 0 | H24: ='RFM input'!H181*(1+vanilla1)^0.5 -> 0 | I24: ='RFM input'!I181*(1+vanilla2)^0.5 -> 0 | J24: ='RFM input'!J181*(1+vanilla3)^0.5 -> 0 | K24: ='RFM input'!K181*(1+vanilla4)^0.5 -> 0 | L24: ='RFM input'!L181*(1+vanilla5)^0.5 -> 0 | M24: ='RFM input'!M181*(1+vanilla6)^0.5 -> 0 | N24: ='RFM input'!N181*(1+vanilla7)^0.5 -> 0 | O24: ='RFM input'!O181*(1+vanilla8)^0.5 -> 0 | P24: ='RFM input'!P181*(1+vanilla9)^0.5 -> 0 | Q24: ='RFM input'!Q181*(1+vanilla10)^0.5 -> 0
D25: =Asset14 -> 0 | H25: ='RFM input'!H182*(1+vanilla1)^0.5 -> 0 | I25: ='RFM input'!I182*(1+vanilla2)^0.5 -> 0 | J25: ='RFM input'!J182*(1+vanilla3)^0.5 -> 0 | K25: ='RFM input'!K182*(1+vanilla4)^0.5 -> 0 | L25: ='RFM input'!L182*(1+vanilla5)^0.5 -> 0 | M25: ='RFM input'!M182*(1+vanilla6)^0.5 -> 0 | N25: ='RFM input'!N182*(1+vanilla7)^0.5 -> 0 | O25: ='RFM input'!O182*(1+vanilla8)^0.5 -> 0 | P25: ='RFM input'!P182*(1+vanilla9)^0.5 -> 0 | Q25: ='RFM input'!Q182*(1+vanilla10)^0.5 -> 0
D26: =Asset15 -> 0 | H26: ='RFM input'!H183*(1+vanilla1)^0.5 -> 0 | I26: ='RFM input'!I183*(1+vanilla2)^0.5 -> 0 | J26: ='RFM input'!J183*(1+vanilla3)^0.5 -> 0 | K26: ='RFM input'!K183*(1+vanilla4)^0.5 -> 0 | L26: ='RFM input'!L183*(1+vanilla5)^0.5 -> 0 | M26: ='RFM input'!M183*(1+vanilla6)^0.5 -> 0 | N26: ='RFM input'!N183*(1+vanilla7)^0.5 -> 0 | O26: ='RFM input'!O183*(1+vanilla8)^0.5 -> 0 | P26: ='RFM input'!P183*(1+vanilla9)^0.5 -> 0 | Q26: ='RFM input'!Q183*(1+vanilla10)^0.5 -> 0
D27: =Asset16 -> 0 | H27: ='RFM input'!H184*(1+vanilla1)^0.5 -> 0 | I27: ='RFM input'!I184*(1+vanilla2)^0.5 -> 0 | J27: ='RFM input'!J184*(1+vanilla3)^0.5 -> 0 | K27: ='RFM input'!K184*(1+vanilla4)^0.5 -> 0 | L27: ='RFM input'!L184*(1+vanilla5)^0.5 -> 0 | M27: ='RFM input'!M184*(1+vanilla6)^0.5 -> 0 | N27: ='RFM input'!N184*(1+vanilla7)^0.5 -> 0 | O27: ='RFM input'!O184*(1+vanilla8)^0.5 -> 0 | P27: ='RFM input'!P184*(1+vanilla9)^0.5 -> 0 | Q27: ='RFM input'!Q184*(1+vanilla10)^0.5 -> 0
D28: =Asset17 -> 0 | H28: ='RFM input'!H185*(1+vanilla1)^0.5 -> 0 | I28: ='RFM input'!I185*(1+vanilla2)^0.5 -> 0 | J28: ='RFM input'!J185*(1+vanilla3)^0.5 -> 0 | K28: ='RFM input'!K185*(1+vanilla4)^0.5 -> 0 | L28: ='RFM input'!L185*(1+vanilla5)^0.5 -> 0 | M28: ='RFM input'!M185*(1+vanilla6)^0.5 -> 0 | N28: ='RFM input'!N185*(1+vanilla7)^0.5 -> 0 | O28: ='RFM input'!O185*(1+vanilla8)^0.5 -> 0 | P28: ='RFM input'!P185*(1+vanilla9)^0.5 -> 0 | Q28: ='RFM input'!Q185*(1+vanilla10)^0.5 -> 0
D29: =Asset18 -> 0 | H29: ='RFM input'!H186*(1+vanilla1)^0.5 -> 0 | I29: ='RFM input'!I186*(1+vanilla2)^0.5 -> 0 | J29: ='RFM input'!J186*(1+vanilla3)^0.5 -> 0 | K29: ='RFM input'!K186*(1+vanilla4)^0.5 -> 0 | L29: ='RFM input'!L186*(1+vanilla5)^0.5 -> 0 | M29: ='RFM input'!M186*(1+vanilla6)^0.5 -> 0 | N29: ='RFM input'!N186*(1+vanilla7)^0.5 -> 0 | O29: ='RFM input'!O186*(1+vanilla8)^0.5 -> 0 | P29: ='RFM input'!P186*(1+vanilla9)^0.5 -> 0 | Q29: ='RFM input'!Q186*(1+vanilla10)^0.5 -> 0
D30: =Asset19 -> 0 | H30: ='RFM input'!H187*(1+vanilla1)^0.5 -> 0 | I30: ='RFM input'!I187*(1+vanilla2)^0.5 -> 0 | J30: ='RFM input'!J187*(1+vanilla3)^0.5 -> 0 | K30: ='RFM input'!K187*(1+vanilla4)^0.5 -> 0 | L30: ='RFM input'!L187*(1+vanilla5)^0.5 -> 0 | M30: ='RFM input'!M187*(1+vanilla6)^0.5 -> 0 | N30: ='RFM input'!N187*(1+vanilla7)^0.5 -> 0 | O30: ='RFM input'!O187*(1+vanilla8)^0.5 -> 0 | P30: ='RFM input'!P187*(1+vanilla9)^0.5 -> 0 | Q30: ='RFM input'!Q187*(1+vanilla10)^0.5 -> 0
D31: =Asset20 -> 0 | H31: ='RFM input'!H188*(1+vanilla1)^0.5 -> 0 | I31: ='RFM input'!I188*(1+vanilla2)^0.5 -> 0 | J31: ='RFM input'!J188*(1+vanilla3)^0.5 -> 0 | K31: ='RFM input'!K188*(1+vanilla4)^0.5 -> 0 | L31: ='RFM input'!L188*(1+vanilla5)^0.5 -> 0 | M31: ='RFM input'!M188*(1+vanilla6)^0.5 -> 0 | N31: ='RFM input'!N188*(1+vanilla7)^0.5 -> 0 | O31: ='RFM input'!O188*(1+vanilla8)^0.5 -> 0 | P31: ='RFM input'!P188*(1+vanilla9)^0.5 -> 0 | Q31: ='RFM input'!Q188*(1+vanilla10)^0.5 -> 0
D32: =Asset21 -> 0 | H32: ='RFM input'!H189*(1+vanilla1)^0.5 -> 0 | I32: ='RFM input'!I189*(1+vanilla2)^0.5 -> 0 | J32: ='RFM input'!J189*(1+vanilla3)^0.5 -> 0 | K32: ='RFM input'!K189*(1+vanilla4)^0.5 -> 0 | L32: ='RFM input'!L189*(1+vanilla5)^0.5 -> 0 | M32: ='RFM input'!M189*(1+vanilla6)^0.5 -> 0 | N32: ='RFM input'!N189*(1+vanilla7)^0.5 -> 0 | O32: ='RFM input'!O189*(1+vanilla8)^0.5 -> 0 | P32: ='RFM input'!P189*(1+vanilla9)^0.5 -> 0 | Q32: ='RFM input'!Q189*(1+vanilla10)^0.5 -> 0
D33: =Asset22 -> 0 | H33: ='RFM input'!H190*(1+vanilla1)^0.5 -> 0 | I33: ='RFM input'!I190*(1+vanilla2)^0.5 -> 0 | J33: ='RFM input'!J190*(1+vanilla3)^0.5 -> 0 | K33: ='RFM input'!K190*(1+vanilla4)^0.5 -> 0 | L33: ='RFM input'!L190*(1+vanilla5)^0.5 -> 0 | M33: ='RFM input'!M190*(1+vanilla6)^0.5 -> 0 | N33: ='RFM input'!N190*(1+vanilla7)^0.5 -> 0 | O33: ='RFM input'!O190*(1+vanilla8)^0.5 -> 0 | P33: ='RFM input'!P190*(1+vanilla9)^0.5 -> 0 | Q33: ='RFM input'!Q190*(1+vanilla10)^0.5 -> 0
D34: =Asset23 -> 0 | H34: ='RFM input'!H191*(1+vanilla1)^0.5 -> 0 | I34: ='RFM input'!I191*(1+vanilla2)^0.5 -> 0 | J34: ='RFM input'!J191*(1+vanilla3)^0.5 -> 0 | K34: ='RFM input'!K191*(1+vanilla4)^0.5 -> 0 | L34: ='RFM input'!L191*(1+vanilla5)^0.5 -> 0 | M34: ='RFM input'!M191*(1+vanilla6)^0.5 -> 0 | N34: ='RFM input'!N191*(1+vanilla7)^0.5 -> 0 | O34: ='RFM input'!O191*(1+vanilla8)^0.5 -> 0 | P34: ='RFM input'!P191*(1+vanilla9)^0.5 -> 0 | Q34: ='RFM input'!Q191*(1+vanilla10)^0.5 -> 0
D35: =Asset24 -> 0 | H35: ='RFM input'!H192*(1+vanilla1)^0.5 -> 0 | I35: ='RFM input'!I192*(1+vanilla2)^0.5 -> 0 | J35: ='RFM input'!J192*(1+vanilla3)^0.5 -> 0 | K35: ='RFM input'!K192*(1+vanilla4)^0.5 -> 0 | L35: ='RFM input'!L192*(1+vanilla5)^0.5 -> 0 | M35: ='RFM input'!M192*(1+vanilla6)^0.5 -> 0 | N35: ='RFM input'!N192*(1+vanilla7)^0.5 -> 0 | O35: ='RFM input'!O192*(1+vanilla8)^0.5 -> 0 | P35: ='RFM input'!P192*(1+vanilla9)^0.5 -> 0 | Q35: ='RFM input'!Q192*(1+vanilla10)^0.5 -> 0
D36: =Asset25 -> 0 | H36: ='RFM input'!H193*(1+vanilla1)^0.5 -> 0 | I36: ='RFM input'!I193*(1+vanilla2)^0.5 -> 0 | J36: ='RFM input'!J193*(1+vanilla3)^0.5 -> 0 | K36: ='RFM input'!K193*(1+vanilla4)^0.5 -> 0 | L36: ='RFM input'!L193*(1+vanilla5)^0.5 -> 0 | M36: ='RFM input'!M193*(1+vanilla6)^0.5 -> 0 | N36: ='RFM input'!N193*(1+vanilla7)^0.5 -> 0 | O36: ='RFM input'!O193*(1+vanilla8)^0.5 -> 0 | P36: ='RFM input'!P193*(1+vanilla9)^0.5 -> 0 | Q36: ='RFM input'!Q193*(1+vanilla10)^0.5 -> 0
D37: =Asset26 -> 0 | H37: ='RFM input'!H194*(1+vanilla1)^0.5 -> 0 | I37: ='RFM input'!I194*(1+vanilla2)^0.5 -> 0 | J37: ='RFM input'!J194*(1+vanilla3)^0.5 -> 0 | K37: ='RFM input'!K194*(1+vanilla4)^0.5 -> 0 | L37: ='RFM input'!L194*(1+vanilla5)^0.5 -> 0 | M37: ='RFM input'!M194*(1+vanilla6)^0.5 -> 0 | N37: ='RFM input'!N194*(1+vanilla7)^0.5 -> 0 | O37: ='RFM input'!O194*(1+vanilla8)^0.5 -> 0 | P37: ='RFM input'!P194*(1+vanilla9)^0.5 -> 0 | Q37: ='RFM input'!Q194*(1+vanilla10)^0.5 -> 0
D38: =Asset27 -> 0 | H38: ='RFM input'!H195*(1+vanilla1)^0.5 -> 0 | I38: ='RFM input'!I195*(1+vanilla2)^0.5 -> 0 | J38: ='RFM input'!J195*(1+vanilla3)^0.5 -> 0 | K38: ='RFM input'!K195*(1+vanilla4)^0.5 -> 0 | L38: ='RFM input'!L195*(1+vanilla5)^0.5 -> 0 | M38: ='RFM input'!M195*(1+vanilla6)^0.5 -> 0 | N38: ='RFM input'!N195*(1+vanilla7)^0.5 -> 0 | O38: ='RFM input'!O195*(1+vanilla8)^0.5 -> 0 | P38: ='RFM input'!P195*(1+vanilla9)^0.5 -> 0 | Q38: ='RFM input'!Q195*(1+vanilla10)^0.5 -> 0
D39: =Asset28 -> 0 | H39: ='RFM input'!H196*(1+vanilla1)^0.5 -> 0 | I39: ='RFM input'!I196*(1+vanilla2)^0.5 -> 0 | J39: ='RFM input'!J196*(1+vanilla3)^0.5 -> 0 | K39: ='RFM input'!K196*(1+vanilla4)^0.5 -> 0 | L39: ='RFM input'!L196*(1+vanilla5)^0.5 -> 0 | M39: ='RFM input'!M196*(1+vanilla6)^0.5 -> 0 | N39: ='RFM input'!N196*(1+vanilla7)^0.5 -> 0 | O39: ='RFM input'!O196*(1+vanilla8)^0.5 -> 0 | P39: ='RFM input'!P196*(1+vanilla9)^0.5 -> 0 | Q39: ='RFM input'!Q196*(1+vanilla10)^0.5 -> 0
D40: =Asset29 -> 0 | H40: ='RFM input'!H197*(1+vanilla1)^0.5 -> 0 | I40: ='RFM input'!I197*(1+vanilla2)^0.5 -> 0 | J40: ='RFM input'!J197*(1+vanilla3)^0.5 -> 0 | K40: ='RFM input'!K197*(1+vanilla4)^0.5 -> 0 | L40: ='RFM input'!L197*(1+vanilla5)^0.5 -> 0 | M40: ='RFM input'!M197*(1+vanilla6)^0.5 -> 0 | N40: ='RFM input'!N197*(1+vanilla7)^0.5 -> 0 | O40: ='RFM input'!O197*(1+vanilla8)^0.5 -> 0 | P40: ='RFM input'!P197*(1+vanilla9)^0.5 -> 0 | Q40: ='RFM input'!Q197*(1+vanilla10)^0.5 -> 0
D41: =Asset30 -> 0 | H41: ='RFM input'!H198*(1+vanilla1)^0.5 -> 0 | I41: ='RFM input'!I198*(1+vanilla2)^0.5 -> 0 | J41: ='RFM input'!J198*(1+vanilla3)^0.5 -> 0 | K41: ='RFM input'!K198*(1+vanilla4)^0.5 -> 0 | L41: ='RFM input'!L198*(1+vanilla5)^0.5 -> 0 | M41: ='RFM input'!M198*(1+vanilla6)^0.5 -> 0 | N41: ='RFM input'!N198*(1+vanilla7)^0.5 -> 0 | O41: ='RFM input'!O198*(1+vanilla8)^0.5 -> 0 | P41: ='RFM input'!P198*(1+vanilla9)^0.5 -> 0 | Q41: ='RFM input'!Q198*(1+vanilla10)^0.5 -> 0
D42: =Asset31 -> 0 | H42: ='RFM input'!H199*(1+vanilla1)^0.5 -> 0 | I42: ='RFM input'!I199*(1+vanilla2)^0.5 -> 0 | J42: ='RFM input'!J199*(1+vanilla3)^0.5 -> 0 | K42: ='RFM input'!K199*(1+vanilla4)^0.5 -> 0 | L42: ='RFM input'!L199*(1+vanilla5)^0.5 -> 0 | M42: ='RFM input'!M199*(1+vanilla6)^0.5 -> 0 | N42: ='RFM input'!N199*(1+vanilla7)^0.5 -> 0 | O42: ='RFM input'!O199*(1+vanilla8)^0.5 -> 0 | P42: ='RFM input'!P199*(1+vanilla9)^0.5 -> 0 | Q42: ='RFM input'!Q199*(1+vanilla10)^0.5 -> 0
D43: =Asset32 -> 0 | H43: ='RFM input'!H200*(1+vanilla1)^0.5 -> 0 | I43: ='RFM input'!I200*(1+vanilla2)^0.5 -> 0 | J43: ='RFM input'!J200*(1+vanilla3)^0.5 -> 0 | K43: ='RFM input'!K200*(1+vanilla4)^0.5 -> 0 | L43: ='RFM input'!L200*(1+vanilla5)^0.5 -> 0 | M43: ='RFM input'!M200*(1+vanilla6)^0.5 -> 0 | N43: ='RFM input'!N200*(1+vanilla7)^0.5 -> 0 | O43: ='RFM input'!O200*(1+vanilla8)^0.5 -> 0 | P43: ='RFM input'!P200*(1+vanilla9)^0.5 -> 0 | Q43: ='RFM input'!Q200*(1+vanilla10)^0.5 -> 0
D44: =Asset33 -> 0 | H44: ='RFM input'!H201*(1+vanilla1)^0.5 -> 0 | I44: ='RFM input'!I201*(1+vanilla2)^0.5 -> 0 | J44: ='RFM input'!J201*(1+vanilla3)^0.5 -> 0 | K44: ='RFM input'!K201*(1+vanilla4)^0.5 -> 0 | L44: ='RFM input'!L201*(1+vanilla5)^0.5 -> 0 | M44: ='RFM input'!M201*(1+vanilla6)^0.5 -> 0 | N44: ='RFM input'!N201*(1+vanilla7)^0.5 -> 0 | O44: ='RFM input'!O201*(1+vanilla8)^0.5 -> 0 | P44: ='RFM input'!P201*(1+vanilla9)^0.5 -> 0 | Q44: ='RFM input'!Q201*(1+vanilla10)^0.5 -> 0
D45: =Asset34 -> 0 | H45: ='RFM input'!H202*(1+vanilla1)^0.5 -> 0 | I45: ='RFM input'!I202*(1+vanilla2)^0.5 -> 0 | J45: ='RFM input'!J202*(1+vanilla3)^0.5 -> 0 | K45: ='RFM input'!K202*(1+vanilla4)^0.5 -> 0 | L45: ='RFM input'!L202*(1+vanilla5)^0.5 -> 0 | M45: ='RFM input'!M202*(1+vanilla6)^0.5 -> 0 | N45: ='RFM input'!N202*(1+vanilla7)^0.5 -> 0 | O45: ='RFM input'!O202*(1+vanilla8)^0.5 -> 0 | P45: ='RFM input'!P202*(1+vanilla9)^0.5 -> 0 | Q45: ='RFM input'!Q202*(1+vanilla10)^0.5 -> 0
D46: =Asset35 -> 0 | H46: ='RFM input'!H203*(1+vanilla1)^0.5 -> 0 | I46: ='RFM input'!I203*(1+vanilla2)^0.5 -> 0 | J46: ='RFM input'!J203*(1+vanilla3)^0.5 -> 0 | K46: ='RFM input'!K203*(1+vanilla4)^0.5 -> 0 | L46: ='RFM input'!L203*(1+vanilla5)^0.5 -> 0 | M46: ='RFM input'!M203*(1+vanilla6)^0.5 -> 0 | N46: ='RFM input'!N203*(1+vanilla7)^0.5 -> 0 | O46: ='RFM input'!O203*(1+vanilla8)^0.5 -> 0 | P46: ='RFM input'!P203*(1+vanilla9)^0.5 -> 0 | Q46: ='RFM input'!Q203*(1+vanilla10)^0.5 -> 0
D47: =Asset36 -> 0 | H47: ='RFM input'!H204*(1+vanilla1)^0.5 -> 0 | I47: ='RFM input'!I204*(1+vanilla2)^0.5 -> 0 | J47: ='RFM input'!J204*(1+vanilla3)^0.5 -> 0 | K47: ='RFM input'!K204*(1+vanilla4)^0.5 -> 0 | L47: ='RFM input'!L204*(1+vanilla5)^0.5 -> 0 | M47: ='RFM input'!M204*(1+vanilla6)^0.5 -> 0 | N47: ='RFM input'!N204*(1+vanilla7)^0.5 -> 0 | O47: ='RFM input'!O204*(1+vanilla8)^0.5 -> 0 | P47: ='RFM input'!P204*(1+vanilla9)^0.5 -> 0 | Q47: ='RFM input'!Q204*(1+vanilla10)^0.5 -> 0
D48: =Asset37 -> 0 | H48: ='RFM input'!H205*(1+vanilla1)^0.5 -> 0 | I48: ='RFM input'!I205*(1+vanilla2)^0.5 -> 0 | J48: ='RFM input'!J205*(1+vanilla3)^0.5 -> 0 | K48: ='RFM input'!K205*(1+vanilla4)^0.5 -> 0 | L48: ='RFM input'!L205*(1+vanilla5)^0.5 -> 0 | M48: ='RFM input'!M205*(1+vanilla6)^0.5 -> 0 | N48: ='RFM input'!N205*(1+vanilla7)^0.5 -> 0 | O48: ='RFM input'!O205*(1+vanilla8)^0.5 -> 0 | P48: ='RFM input'!P205*(1+vanilla9)^0.5 -> 0 | Q48: ='RFM input'!Q205*(1+vanilla10)^0.5 -> 0
D49: =Asset38 -> 0 | H49: ='RFM input'!H206*(1+vanilla1)^0.5 -> 0 | I49: ='RFM input'!I206*(1+vanilla2)^0.5 -> 0 | J49: ='RFM input'!J206*(1+vanilla3)^0.5 -> 0 | K49: ='RFM input'!K206*(1+vanilla4)^0.5 -> 0 | L49: ='RFM input'!L206*(1+vanilla5)^0.5 -> 0 | M49: ='RFM input'!M206*(1+vanilla6)^0.5 -> 0 | N49: ='RFM input'!N206*(1+vanilla7)^0.5 -> 0 | O49: ='RFM input'!O206*(1+vanilla8)^0.5 -> 0 | P49: ='RFM input'!P206*(1+vanilla9)^0.5 -> 0 | Q49: ='RFM input'!Q206*(1+vanilla10)^0.5 -> 0
D50: =Asset39 -> 0 | H50: ='RFM input'!H207*(1+vanilla1)^0.5 -> 0 | I50: ='RFM input'!I207*(1+vanilla2)^0.5 -> 0 | J50: ='RFM input'!J207*(1+vanilla3)^0.5 -> 0 | K50: ='RFM input'!K207*(1+vanilla4)^0.5 -> 0 | L50: ='RFM input'!L207*(1+vanilla5)^0.5 -> 0 | M50: ='RFM input'!M207*(1+vanilla6)^0.5 -> 0 | N50: ='RFM input'!N207*(1+vanilla7)^0.5 -> 0 | O50: ='RFM input'!O207*(1+vanilla8)^0.5 -> 0 | P50: ='RFM input'!P207*(1+vanilla9)^0.5 -> 0 | Q50: ='RFM input'!Q207*(1+vanilla10)^0.5 -> 0
D51: =Asset40 -> 0 | H51: ='RFM input'!H208*(1+vanilla1)^0.5 -> 0 | I51: ='RFM input'!I208*(1+vanilla2)^0.5 -> 0 | J51: ='RFM input'!J208*(1+vanilla3)^0.5 -> 0 | K51: ='RFM input'!K208*(1+vanilla4)^0.5 -> 0 | L51: ='RFM input'!L208*(1+vanilla5)^0.5 -> 0 | M51: ='RFM input'!M208*(1+vanilla6)^0.5 -> 0 | N51: ='RFM input'!N208*(1+vanilla7)^0.5 -> 0 | O51: ='RFM input'!O208*(1+vanilla8)^0.5 -> 0 | P51: ='RFM input'!P208*(1+vanilla9)^0.5 -> 0 | Q51: ='RFM input'!Q208*(1+vanilla10)^0.5 -> 0
D52: =Asset41 -> 0 | H52: ='RFM input'!H209*(1+vanilla1)^0.5 -> 0 | I52: ='RFM input'!I209*(1+vanilla2)^0.5 -> 0 | J52: ='RFM input'!J209*(1+vanilla3)^0.5 -> 0 | K52: ='RFM input'!K209*(1+vanilla4)^0.5 -> 0 | L52: ='RFM input'!L209*(1+vanilla5)^0.5 -> 0 | M52: ='RFM input'!M209*(1+vanilla6)^0.5 -> 0 | N52: ='RFM input'!N209*(1+vanilla7)^0.5 -> 0 | O52: ='RFM input'!O209*(1+vanilla8)^0.5 -> 0 | P52: ='RFM input'!P209*(1+vanilla9)^0.5 -> 0 | Q52: ='RFM input'!Q209*(1+vanilla10)^0.5 -> 0
D53: =Asset42 -> 0 | H53: ='RFM input'!H210*(1+vanilla1)^0.5 -> 0 | I53: ='RFM input'!I210*(1+vanilla2)^0.5 -> 0 | J53: ='RFM input'!J210*(1+vanilla3)^0.5 -> 0 | K53: ='RFM input'!K210*(1+vanilla4)^0.5 -> 0 | L53: ='RFM input'!L210*(1+vanilla5)^0.5 -> 0 | M53: ='RFM input'!M210*(1+vanilla6)^0.5 -> 0 | N53: ='RFM input'!N210*(1+vanilla7)^0.5 -> 0 | O53: ='RFM input'!O210*(1+vanilla8)^0.5 -> 0 | P53: ='RFM input'!P210*(1+vanilla9)^0.5 -> 0 | Q53: ='RFM input'!Q210*(1+vanilla10)^0.5 -> 0
D54: =Asset43 -> 0 | H54: ='RFM input'!H211*(1+vanilla1)^0.5 -> 0 | I54: ='RFM input'!I211*(1+vanilla2)^0.5 -> 0 | J54: ='RFM input'!J211*(1+vanilla3)^0.5 -> 0 | K54: ='RFM input'!K211*(1+vanilla4)^0.5 -> 0 | L54: ='RFM input'!L211*(1+vanilla5)^0.5 -> 0 | M54: ='RFM input'!M211*(1+vanilla6)^0.5 -> 0 | N54: ='RFM input'!N211*(1+vanilla7)^0.5 -> 0 | O54: ='RFM input'!O211*(1+vanilla8)^0.5 -> 0 | P54: ='RFM input'!P211*(1+vanilla9)^0.5 -> 0 | Q54: ='RFM input'!Q211*(1+vanilla10)^0.5 -> 0
D55: =Asset44 -> 0 | H55: ='RFM input'!H212*(1+vanilla1)^0.5 -> 0 | I55: ='RFM input'!I212*(1+vanilla2)^0.5 -> 0 | J55: ='RFM input'!J212*(1+vanilla3)^0.5 -> 0 | K55: ='RFM input'!K212*(1+vanilla4)^0.5 -> 0 | L55: ='RFM input'!L212*(1+vanilla5)^0.5 -> 0 | M55: ='RFM input'!M212*(1+vanilla6)^0.5 -> 0 | N55: ='RFM input'!N212*(1+vanilla7)^0.5 -> 0 | O55: ='RFM input'!O212*(1+vanilla8)^0.5 -> 0 | P55: ='RFM input'!P212*(1+vanilla9)^0.5 -> 0 | Q55: ='RFM input'!Q212*(1+vanilla10)^0.5 -> 0
D56: =Asset45 -> 0 | H56: ='RFM input'!H213*(1+vanilla1)^0.5 -> 0 | I56: ='RFM input'!I213*(1+vanilla2)^0.5 -> 0 | J56: ='RFM input'!J213*(1+vanilla3)^0.5 -> 0 | K56: ='RFM input'!K213*(1+vanilla4)^0.5 -> 0 | L56: ='RFM input'!L213*(1+vanilla5)^0.5 -> 0 | M56: ='RFM input'!M213*(1+vanilla6)^0.5 -> 0 | N56: ='RFM input'!N213*(1+vanilla7)^0.5 -> 0 | O56: ='RFM input'!O213*(1+vanilla8)^0.5 -> 0 | P56: ='RFM input'!P213*(1+vanilla9)^0.5 -> 0 | Q56: ='RFM input'!Q213*(1+vanilla10)^0.5 -> 0
D57: =Asset46 -> 0 | H57: ='RFM input'!H214*(1+vanilla1)^0.5 -> 0 | I57: ='RFM input'!I214*(1+vanilla2)^0.5 -> 0 | J57: ='RFM input'!J214*(1+vanilla3)^0.5 -> 0 | K57: ='RFM input'!K214*(1+vanilla4)^0.5 -> 0 | L57: ='RFM input'!L214*(1+vanilla5)^0.5 -> 0 | M57: ='RFM input'!M214*(1+vanilla6)^0.5 -> 0 | N57: ='RFM input'!N214*(1+vanilla7)^0.5 -> 0 | O57: ='RFM input'!O214*(1+vanilla8)^0.5 -> 0 | P57: ='RFM input'!P214*(1+vanilla9)^0.5 -> 0 | Q57: ='RFM input'!Q214*(1+vanilla10)^0.5 -> 0
D58: =Asset47 -> 0 | H58: ='RFM input'!H215*(1+vanilla1)^0.5 -> 0 | I58: ='RFM input'!I215*(1+vanilla2)^0.5 -> 0 | J58: ='RFM input'!J215*(1+vanilla3)^0.5 -> 0 | K58: ='RFM input'!K215*(1+vanilla4)^0.5 -> 0 | L58: ='RFM input'!L215*(1+vanilla5)^0.5 -> 0 | M58: ='RFM input'!M215*(1+vanilla6)^0.5 -> 0 | N58: ='RFM input'!N215*(1+vanilla7)^0.5 -> 0 | O58: ='RFM input'!O215*(1+vanilla8)^0.5 -> 0 | P58: ='RFM input'!P215*(1+vanilla9)^0.5 -> 0 | Q58: ='RFM input'!Q215*(1+vanilla10)^0.5 -> 0
D59: =Asset48 -> 0 | H59: ='RFM input'!H216*(1+vanilla1)^0.5 -> 0 | I59: ='RFM input'!I216*(1+vanilla2)^0.5 -> 0 | J59: ='RFM input'!J216*(1+vanilla3)^0.5 -> 0 | K59: ='RFM input'!K216*(1+vanilla4)^0.5 -> 0 | L59: ='RFM input'!L216*(1+vanilla5)^0.5 -> 0 | M59: ='RFM input'!M216*(1+vanilla6)^0.5 -> 0 | N59: ='RFM input'!N216*(1+vanilla7)^0.5 -> 0 | O59: ='RFM input'!O216*(1+vanilla8)^0.5 -> 0 | P59: ='RFM input'!P216*(1+vanilla9)^0.5 -> 0 | Q59: ='RFM input'!Q216*(1+vanilla10)^0.5 -> 0
D60: =Asset49 -> 0 | H60: ='RFM input'!H217*(1+vanilla1)^0.5 -> 0 | I60: ='RFM input'!I217*(1+vanilla2)^0.5 -> 0 | J60: ='RFM input'!J217*(1+vanilla3)^0.5 -> 0 | K60: ='RFM input'!K217*(1+vanilla4)^0.5 -> 0 | L60: ='RFM input'!L217*(1+vanilla5)^0.5 -> 0 | M60: ='RFM input'!M217*(1+vanilla6)^0.5 -> 0 | N60: ='RFM input'!N217*(1+vanilla7)^0.5 -> 0 | O60: ='RFM input'!O217*(1+vanilla8)^0.5 -> 0 | P60: ='RFM input'!P217*(1+vanilla9)^0.5 -> 0 | Q60: ='RFM input'!Q217*(1+vanilla10)^0.5 -> 0
D61: =Asset50 -> Equity raising costs | H61: ='RFM input'!H218*(1+vanilla1)^0.5 -> 0 | I61: ='RFM input'!I218*(1+vanilla2)^0.5 -> 0 | J61: ='RFM input'!J218*(1+vanilla3)^0.5 -> 0 | K61: ='RFM input'!K218*(1+vanilla4)^0.5 -> 0 | L61: ='RFM input'!L218*(1+vanilla5)^0.5 -> 0 | M61: ='RFM input'!M218*(1+vanilla6)^0.5 -> 0 | N61: ='RFM input'!N218*(1+vanilla7)^0.5 -> 0 | O61: ='RFM input'!O218*(1+vanilla8)^0.5 -> 0 | P61: ='RFM input'!P218*(1+vanilla9)^0.5 -> 0 | Q61: ='RFM input'!Q218*(1+vanilla10)^0.5 -> 0
C63: Real Actual Net Capex - As Commissioned | H63: =SUM(H64:H113) -> 34.38054933 | I63: =SUM(I64:I113) -> 33.61100016 | J63: 32.46148741 | K63: 31.95763399 | L63: 31.33101372 | M63: 0 | N63: 0 | O63: 0 | P63: 0 | Q63: 0
D64: =Asset1 -> Transmission lines | H64: ='RFM input'!H331*(1+vanilla1)^0.5 -> 10.11192627 | I64: ='RFM input'!I331*(1+vanilla2)^0.5 -> 9.885588284 | J64: ='RFM input'!J331*(1+vanilla3)^0.5 -> 9.547496297 | K64: ='RFM input'!K331*(1+vanilla4)^0.5 -> 9.399304115 | L64: ='RFM input'!L331*(1+vanilla5)^0.5 -> 9.215004034 | M64: ='RFM input'!M331*(1+vanilla6)^0.5 -> 0 | N64: ='RFM input'!N331*(1+vanilla7)^0.5 -> 0 | O64: ='RFM input'!O331*(1+vanilla8)^0.5 -> 0 | P64: ='RFM input'!P331*(1+vanilla9)^0.5 -> 0 | Q64: ='RFM input'!Q331*(1+vanilla10)^0.5 -> 0
D65: =Asset2 -> Substations | H65: ='RFM input'!H332*(1+vanilla1)^0.5 -> 9.100733645 | I65: ='RFM input'!I332*(1+vanilla2)^0.5 -> 8.897029455 | J65: ='RFM input'!J332*(1+vanilla3)^0.5 -> 8.592746668 | K65: ='RFM input'!K332*(1+vanilla4)^0.5 -> 8.459373703 | L65: ='RFM input'!L332*(1+vanilla5)^0.5 -> 8.293503631 | M65: ='RFM input'!M332*(1+vanilla6)^0.5 -> 0 | N65: ='RFM input'!N332*(1+vanilla7)^0.5 -> 0 | O65: ='RFM input'!O332*(1+vanilla8)^0.5 -> 0 | P65: ='RFM input'!P332*(1+vanilla9)^0.5 -> 0 | Q65: ='RFM input'!Q332*(1+vanilla10)^0.5 -> 0
D66: =Asset3 -> Easements | H66: ='RFM input'!H333*(1+vanilla1)^0.5 -> 15.16788941 | I66: ='RFM input'!I333*(1+vanilla2)^0.5 -> 14.82838243 | J66: ='RFM input'!J333*(1+vanilla3)^0.5 -> 14.32124445 | K66: ='RFM input'!K333*(1+vanilla4)^0.5 -> 14.09895617 | L66: ='RFM input'!L333*(1+vanilla5)^0.5 -> 13.82250605 | M66: ='RFM input'!M333*(1+vanilla6)^0.5 -> 0 | N66: ='RFM input'!N333*(1+vanilla7)^0.5 -> 0 | O66: ='RFM input'!O333*(1+vanilla8)^0.5 -> 0 | P66: ='RFM input'!P333*(1+vanilla9)^0.5 -> 0 | Q66: ='RFM input'!Q333*(1+vanilla10)^0.5 -> 0
D67: =Asset4 -> 0 | H67: ='RFM input'!H334*(1+vanilla1)^0.5 -> 0 | I67: ='RFM input'!I334*(1+vanilla2)^0.5 -> 0 | J67: ='RFM input'!J334*(1+vanilla3)^0.5 -> 0 | K67: ='RFM input'!K334*(1+vanilla4)^0.5 -> 0 | L67: ='RFM input'!L334*(1+vanilla5)^0.5 -> 0 | M67: ='RFM input'!M334*(1+vanilla6)^0.5 -> 0 | N67: ='RFM input'!N334*(1+vanilla7)^0.5 -> 0 | O67: ='RFM input'!O334*(1+vanilla8)^0.5 -> 0 | P67: ='RFM input'!P334*(1+vanilla9)^0.5 -> 0 | Q67: ='RFM input'!Q334*(1+vanilla10)^0.5 -> 0
D68: =Asset5 -> 0 | H68: ='RFM input'!H335*(1+vanilla1)^0.5 -> 0 | I68: ='RFM input'!I335*(1+vanilla2)^0.5 -> 0 | J68: ='RFM input'!J335*(1+vanilla3)^0.5 -> 0 | K68: ='RFM input'!K335*(1+vanilla4)^0.5 -> 0 | L68: ='RFM input'!L335*(1+vanilla5)^0.5 -> 0 | M68: ='RFM input'!M335*(1+vanilla6)^0.5 -> 0 | N68: ='RFM input'!N335*(1+vanilla7)^0.5 -> 0 | O68: ='RFM input'!O335*(1+vanilla8)^0.5 -> 0 | P68: ='RFM input'!P335*(1+vanilla9)^0.5 -> 0 | Q68: ='RFM input'!Q335*(1+vanilla10)^0.5 -> 0
D69: =Asset6 -> 0 | H69: ='RFM input'!H336*(1+vanilla1)^0.5 -> 0 | I69: ='RFM input'!I336*(1+vanilla2)^0.5 -> 0 | J69: ='RFM input'!J336*(1+vanilla3)^0.5 -> 0 | K69: ='RFM input'!K336*(1+vanilla4)^0.5 -> 0 | L69: ='RFM input'!L336*(1+vanilla5)^0.5 -> 0 | M69: ='RFM input'!M336*(1+vanilla6)^0.5 -> 0 | N69: ='RFM input'!N336*(1+vanilla7)^0.5 -> 0 | O69: ='RFM input'!O336*(1+vanilla8)^0.5 -> 0 | P69: ='RFM input'!P336*(1+vanilla9)^0.5 -> 0 | Q69: ='RFM input'!Q336*(1+vanilla10)^0.5 -> 0
D70: =Asset7 -> 0 | H70: ='RFM input'!H337*(1+vanilla1)^0.5 -> 0 | I70: ='RFM input'!I337*(1+vanilla2)^0.5 -> 0 | J70: ='RFM input'!J337*(1+vanilla3)^0.5 -> 0 | K70: ='RFM input'!K337*(1+vanilla4)^0.5 -> 0 | L70: ='RFM input'!L337*(1+vanilla5)^0.5 -> 0 | M70: ='RFM input'!M337*(1+vanilla6)^0.5 -> 0 | N70: ='RFM input'!N337*(1+vanilla7)^0.5 -> 0 | O70: ='RFM input'!O337*(1+vanilla8)^0.5 -> 0 | P70: ='RFM input'!P337*(1+vanilla9)^0.5 -> 0 | Q70: ='RFM input'!Q337*(1+vanilla10)^0.5 -> 0
D71: =Asset8 -> 0 | H71: ='RFM input'!H338*(1+vanilla1)^0.5 -> 0 | I71: ='RFM input'!I338*(1+vanilla2)^0.5 -> 0 | J71: ='RFM input'!J338*(1+vanilla3)^0.5 -> 0 | K71: ='RFM input'!K338*(1+vanilla4)^0.5 -> 0 | L71: ='RFM input'!L338*(1+vanilla5)^0.5 -> 0 | M71: ='RFM input'!M338*(1+vanilla6)^0.5 -> 0 | N71: ='RFM input'!N338*(1+vanilla7)^0.5 -> 0 | O71: ='RFM input'!O338*(1+vanilla8)^0.5 -> 0 | P71: ='RFM input'!P338*(1+vanilla9)^0.5 -> 0 | Q71: ='RFM input'!Q338*(1+vanilla10)^0.5 -> 0
D72: =Asset9 -> 0 | H72: ='RFM input'!H339*(1+vanilla1)^0.5 -> 0 | I72: ='RFM input'!I339*(1+vanilla2)^0.5 -> 0 | J72: ='RFM input'!J339*(1+vanilla3)^0.5 -> 0 | K72: ='RFM input'!K339*(1+vanilla4)^0.5 -> 0 | L72: ='RFM input'!L339*(1+vanilla5)^0.5 -> 0 | M72: ='RFM input'!M339*(1+vanilla6)^0.5 -> 0 | N72: ='RFM input'!N339*(1+vanilla7)^0.5 -> 0 | O72: ='RFM input'!O339*(1+vanilla8)^0.5 -> 0 | P72: ='RFM input'!P339*(1+vanilla9)^0.5 -> 0 | Q72: ='RFM input'!Q339*(1+vanilla10)^0.5 -> 0
D73: =Asset10 -> 0 | H73: ='RFM input'!H340*(1+vanilla1)^0.5 -> 0 | I73: ='RFM input'!I340*(1+vanilla2)^0.5 -> 0 | J73: ='RFM input'!J340*(1+vanilla3)^0.5 -> 0 | K73: ='RFM input'!K340*(1+vanilla4)^0.5 -> 0 | L73: ='RFM input'!L340*(1+vanilla5)^0.5 -> 0 | M73: ='RFM input'!M340*(1+vanilla6)^0.5 -> 0 | N73: ='RFM input'!N340*(1+vanilla7)^0.5 -> 0 | O73: ='RFM input'!O340*(1+vanilla8)^0.5 -> 0 | P73: ='RFM input'!P340*(1+vanilla9)^0.5 -> 0 | Q73: ='RFM input'!Q340*(1+vanilla10)^0.5 -> 0
D74: =Asset11 -> 0 | H74: ='RFM input'!H341*(1+vanilla1)^0.5 -> 0 | I74: ='RFM input'!I341*(1+vanilla2)^0.5 -> 0 | J74: ='RFM input'!J341*(1+vanilla3)^0.5 -> 0 | K74: ='RFM input'!K341*(1+vanilla4)^0.5 -> 0 | L74: ='RFM input'!L341*(1+vanilla5)^0.5 -> 0 | M74: ='RFM input'!M341*(1+vanilla6)^0.5 -> 0 | N74: ='RFM input'!N341*(1+vanilla7)^0.5 -> 0 | O74: ='RFM input'!O341*(1+vanilla8)^0.5 -> 0 | P74: ='RFM input'!P341*(1+vanilla9)^0.5 -> 0 | Q74: ='RFM input'!Q341*(1+vanilla10)^0.5 -> 0
D75: =Asset12 -> 0 | H75: ='RFM input'!H342*(1+vanilla1)^0.5 -> 0 | I75: ='RFM input'!I342*(1+vanilla2)^0.5 -> 0 | J75: ='RFM input'!J342*(1+vanilla3)^0.5 -> 0 | K75: ='RFM input'!K342*(1+vanilla4)^0.5 -> 0 | L75: ='RFM input'!L342*(1+vanilla5)^0.5 -> 0 | M75: ='RFM input'!M342*(1+vanilla6)^0.5 -> 0 | N75: ='RFM input'!N342*(1+vanilla7)^0.5 -> 0 | O75: ='RFM input'!O342*(1+vanilla8)^0.5 -> 0 | P75: ='RFM input'!P342*(1+vanilla9)^0.5 -> 0 | Q75: ='RFM input'!Q342*(1+vanilla10)^0.5 -> 0
D76: =Asset13 -> 0 | H76: ='RFM input'!H343*(1+vanilla1)^0.5 -> 0 | I76: ='RFM input'!I343*(1+vanilla2)^0.5 -> 0 | J76: ='RFM input'!J343*(1+vanilla3)^0.5 -> 0 | K76: ='RFM input'!K343*(1+vanilla4)^0.5 -> 0 | L76: ='RFM input'!L343*(1+vanilla5)^0.5 -> 0 | M76: ='RFM input'!M343*(1+vanilla6)^0.5 -> 0 | N76: ='RFM input'!N343*(1+vanilla7)^0.5 -> 0 | O76: ='RFM input'!O343*(1+vanilla8)^0.5 -> 0 | P76: ='RFM input'!P343*(1+vanilla9)^0.5 -> 0 | Q76: ='RFM input'!Q343*(1+vanilla10)^0.5 -> 0
D77: =Asset14 -> 0 | H77: ='RFM input'!H344*(1+vanilla1)^0.5 -> 0 | I77: ='RFM input'!I344*(1+vanilla2)^0.5 -> 0 | J77: ='RFM input'!J344*(1+vanilla3)^0.5 -> 0 | K77: ='RFM input'!K344*(1+vanilla4)^0.5 -> 0 | L77: ='RFM input'!L344*(1+vanilla5)^0.5 -> 0 | M77: ='RFM input'!M344*(1+vanilla6)^0.5 -> 0 | N77: ='RFM input'!N344*(1+vanilla7)^0.5 -> 0 | O77: ='RFM input'!O344*(1+vanilla8)^0.5 -> 0 | P77: ='RFM input'!P344*(1+vanilla9)^0.5 -> 0 | Q77: ='RFM input'!Q344*(1+vanilla10)^0.5 -> 0
D78: =Asset15 -> 0 | H78: ='RFM input'!H345*(1+vanilla1)^0.5 -> 0 | I78: ='RFM input'!I345*(1+vanilla2)^0.5 -> 0 | J78: ='RFM input'!J345*(1+vanilla3)^0.5 -> 0 | K78: ='RFM input'!K345*(1+vanilla4)^0.5 -> 0 | L78: ='RFM input'!L345*(1+vanilla5)^0.5 -> 0 | M78: ='RFM input'!M345*(1+vanilla6)^0.5 -> 0 | N78: ='RFM input'!N345*(1+vanilla7)^0.5 -> 0 | O78: ='RFM input'!O345*(1+vanilla8)^0.5 -> 0 | P78: ='RFM input'!P345*(1+vanilla9)^0.5 -> 0 | Q78: ='RFM input'!Q345*(1+vanilla10)^0.5 -> 0
D79: =Asset16 -> 0 | H79: ='RFM input'!H346*(1+vanilla1)^0.5 -> 0 | I79: ='RFM input'!I346*(1+vanilla2)^0.5 -> 0 | J79: ='RFM input'!J346*(1+vanilla3)^0.5 -> 0 | K79: ='RFM input'!K346*(1+vanilla4)^0.5 -> 0 | L79: ='RFM input'!L346*(1+vanilla5)^0.5 -> 0 | M79: ='RFM input'!M346*(1+vanilla6)^0.5 -> 0 | N79: ='RFM input'!N346*(1+vanilla7)^0.5 -> 0 | O79: ='RFM input'!O346*(1+vanilla8)^0.5 -> 0 | P79: ='RFM input'!P346*(1+vanilla9)^0.5 -> 0 | Q79: ='RFM input'!Q346*(1+vanilla10)^0.5 -> 0
D80: =Asset17 -> 0 | H80: ='RFM input'!H347*(1+vanilla1)^0.5 -> 0 | I80: ='RFM input'!I347*(1+vanilla2)^0.5 -> 0 | J80: ='RFM input'!J347*(1+vanilla3)^0.5 -> 0 | K80: ='RFM input'!K347*(1+vanilla4)^0.5 -> 0 | L80: ='RFM input'!L347*(1+vanilla5)^0.5 -> 0 | M80: ='RFM input'!M347*(1+vanilla6)^0.5 -> 0 | N80: ='RFM input'!N347*(1+vanilla7)^0.5 -> 0 | O80: ='RFM input'!O347*(1+vanilla8)^0.5 -> 0 | P80: ='RFM input'!P347*(1+vanilla9)^0.5 -> 0 | Q80: ='RFM input'!Q347*(1+vanilla10)^0.5 -> 0
D81: =Asset18 -> 0 | H81: ='RFM input'!H348*(1+vanilla1)^0.5 -> 0 | I81: ='RFM input'!I348*(1+vanilla2)^0.5 -> 0 | J81: ='RFM input'!J348*(1+vanilla3)^0.5 -> 0 | K81: ='RFM input'!K348*(1+vanilla4)^0.5 -> 0 | L81: ='RFM input'!L348*(1+vanilla5)^0.5 -> 0 | M81: ='RFM input'!M348*(1+vanilla6)^0.5 -> 0 | N81: ='RFM input'!N348*(1+vanilla7)^0.5 -> 0 | O81: ='RFM input'!O348*(1+vanilla8)^0.5 -> 0 | P81: ='RFM input'!P348*(1+vanilla9)^0.5 -> 0 | Q81: ='RFM input'!Q348*(1+vanilla10)^0.5 -> 0
D82: =Asset19 -> 0 | H82: ='RFM input'!H349*(1+vanilla1)^0.5 -> 0 | I82: ='RFM input'!I349*(1+vanilla2)^0.5 -> 0 | J82: ='RFM input'!J349*(1+vanilla3)^0.5 -> 0 | K82: ='RFM input'!K349*(1+vanilla4)^0.5 -> 0 | L82: ='RFM input'!L349*(1+vanilla5)^0.5 -> 0 | M82: ='RFM input'!M349*(1+vanilla6)^0.5 -> 0 | N82: ='RFM input'!N349*(1+vanilla7)^0.5 -> 0 | O82: ='RFM input'!O349*(1+vanilla8)^0.5 -> 0 | P82: ='RFM input'!P349*(1+vanilla9)^0.5 -> 0 | Q82: ='RFM input'!Q349*(1+vanilla10)^0.5 -> 0
D83: =Asset20 -> 0 | H83: ='RFM input'!H350*(1+vanilla1)^0.5 -> 0 | I83: ='RFM input'!I350*(1+vanilla2)^0.5 -> 0 | J83: ='RFM input'!J350*(1+vanilla3)^0.5 -> 0 | K83: ='RFM input'!K350*(1+vanilla4)^0.5 -> 0 | L83: ='RFM input'!L350*(1+vanilla5)^0.5 -> 0 | M83: ='RFM input'!M350*(1+vanilla6)^0.5 -> 0 | N83: ='RFM input'!N350*(1+vanilla7)^0.5 -> 0 | O83: ='RFM input'!O350*(1+vanilla8)^0.5 -> 0 | P83: ='RFM input'!P350*(1+vanilla9)^0.5 -> 0 | Q83: ='RFM input'!Q350*(1+vanilla10)^0.5 -> 0
D84: =Asset21 -> 0 | H84: ='RFM input'!H351*(1+vanilla1)^0.5 -> 0 | I84: ='RFM input'!I351*(1+vanilla2)^0.5 -> 0 | J84: ='RFM input'!J351*(1+vanilla3)^0.5 -> 0 | K84: ='RFM input'!K351*(1+vanilla4)^0.5 -> 0 | L84: ='RFM input'!L351*(1+vanilla5)^0.5 -> 0 | M84: ='RFM input'!M351*(1+vanilla6)^0.5 -> 0 | N84: ='RFM input'!N351*(1+vanilla7)^0.5 -> 0 | O84: ='RFM input'!O351*(1+vanilla8)^0.5 -> 0 | P84: ='RFM input'!P351*(1+vanilla9)^0.5 -> 0 | Q84: ='RFM input'!Q351*(1+vanilla10)^0.5 -> 0
D85: =Asset22 -> 0 | H85: ='RFM input'!H352*(1+vanilla1)^0.5 -> 0 | I85: ='RFM input'!I352*(1+vanilla2)^0.5 -> 0 | J85: ='RFM input'!J352*(1+vanilla3)^0.5 -> 0 | K85: ='RFM input'!K352*(1+vanilla4)^0.5 -> 0 | L85: ='RFM input'!L352*(1+vanilla5)^0.5 -> 0 | M85: ='RFM input'!M352*(1+vanilla6)^0.5 -> 0 | N85: ='RFM input'!N352*(1+vanilla7)^0.5 -> 0 | O85: ='RFM input'!O352*(1+vanilla8)^0.5 -> 0 | P85: ='RFM input'!P352*(1+vanilla9)^0.5 -> 0 | Q85: ='RFM input'!Q352*(1+vanilla10)^0.5 -> 0
D86: =Asset23 -> 0 | H86: ='RFM input'!H353*(1+vanilla1)^0.5 -> 0 | I86: ='RFM input'!I353*(1+vanilla2)^0.5 -> 0 | J86: ='RFM input'!J353*(1+vanilla3)^0.5 -> 0 | K86: ='RFM input'!K353*(1+vanilla4)^0.5 -> 0 | L86: ='RFM input'!L353*(1+vanilla5)^0.5 -> 0 | M86: ='RFM input'!M353*(1+vanilla6)^0.5 -> 0 | N86: ='RFM input'!N353*(1+vanilla7)^0.5 -> 0 | O86: ='RFM input'!O353*(1+vanilla8)^0.5 -> 0 | P86: ='RFM input'!P353*(1+vanilla9)^0.5 -> 0 | Q86: ='RFM input'!Q353*(1+vanilla10)^0.5 -> 0
D87: =Asset24 -> 0 | H87: ='RFM input'!H354*(1+vanilla1)^0.5 -> 0 | I87: ='RFM input'!I354*(1+vanilla2)^0.5 -> 0 | J87: ='RFM input'!J354*(1+vanilla3)^0.5 -> 0 | K87: ='RFM input'!K354*(1+vanilla4)^0.5 -> 0 | L87: ='RFM input'!L354*(1+vanilla5)^0.5 -> 0 | M87: ='RFM input'!M354*(1+vanilla6)^0.5 -> 0 | N87: ='RFM input'!N354*(1+vanilla7)^0.5 -> 0 | O87: ='RFM input'!O354*(1+vanilla8)^0.5 -> 0 | P87: ='RFM input'!P354*(1+vanilla9)^0.5 -> 0 | Q87: ='RFM input'!Q354*(1+vanilla10)^0.5 -> 0
D88: =Asset25 -> 0 | H88: ='RFM input'!H355*(1+vanilla1)^0.5 -> 0 | I88: ='RFM input'!I355*(1+vanilla2)^0.5 -> 0 | J88: ='RFM input'!J355*(1+vanilla3)^0.5 -> 0 | K88: ='RFM input'!K355*(1+vanilla4)^0.5 -> 0 | L88: ='RFM input'!L355*(1+vanilla5)^0.5 -> 0 | M88: ='RFM input'!M355*(1+vanilla6)^0.5 -> 0 | N88: ='RFM input'!N355*(1+vanilla7)^0.5 -> 0 | O88: ='RFM input'!O355*(1+vanilla8)^0.5 -> 0 | P88: ='RFM input'!P355*(1+vanilla9)^0.5 -> 0 | Q88: ='RFM input'!Q355*(1+vanilla10)^0.5 -> 0
D89: =Asset26 -> 0 | H89: ='RFM input'!H356*(1+vanilla1)^0.5 -> 0 | I89: ='RFM input'!I356*(1+vanilla2)^0.5 -> 0 | J89: ='RFM input'!J356*(1+vanilla3)^0.5 -> 0 | K89: ='RFM input'!K356*(1+vanilla4)^0.5 -> 0 | L89: ='RFM input'!L356*(1+vanilla5)^0.5 -> 0 | M89: ='RFM input'!M356*(1+vanilla6)^0.5 -> 0 | N89: ='RFM input'!N356*(1+vanilla7)^0.5 -> 0 | O89: ='RFM input'!O356*(1+vanilla8)^0.5 -> 0 | P89: ='RFM input'!P356*(1+vanilla9)^0.5 -> 0 | Q89: ='RFM input'!Q356*(1+vanilla10)^0.5 -> 0
D90: =Asset27 -> 0 | H90: ='RFM input'!H357*(1+vanilla1)^0.5 -> 0 | I90: ='RFM input'!I357*(1+vanilla2)^0.5 -> 0 | J90: ='RFM input'!J357*(1+vanilla3)^0.5 -> 0 | K90: ='RFM input'!K357*(1+vanilla4)^0.5 -> 0 | L90: ='RFM input'!L357*(1+vanilla5)^0.5 -> 0 | M90: ='RFM input'!M357*(1+vanilla6)^0.5 -> 0 | N90: ='RFM input'!N357*(1+vanilla7)^0.5 -> 0 | O90: ='RFM input'!O357*(1+vanilla8)^0.5 -> 0 | P90: ='RFM input'!P357*(1+vanilla9)^0.5 -> 0 | Q90: ='RFM input'!Q357*(1+vanilla10)^0.5 -> 0
D91: =Asset28 -> 0 | H91: ='RFM input'!H358*(1+vanilla1)^0.5 -> 0 | I91: ='RFM input'!I358*(1+vanilla2)^0.5 -> 0 | J91: ='RFM input'!J358*(1+vanilla3)^0.5 -> 0 | K91: ='RFM input'!K358*(1+vanilla4)^0.5 -> 0 | L91: ='RFM input'!L358*(1+vanilla5)^0.5 -> 0 | M91: ='RFM input'!M358*(1+vanilla6)^0.5 -> 0 | N91: ='RFM input'!N358*(1+vanilla7)^0.5 -> 0 | O91: ='RFM input'!O358*(1+vanilla8)^0.5 -> 0 | P91: ='RFM input'!P358*(1+vanilla9)^0.5 -> 0 | Q91: ='RFM input'!Q358*(1+vanilla10)^0.5 -> 0
D92: =Asset29 -> 0 | H92: ='RFM input'!H359*(1+vanilla1)^0.5 -> 0 | I92: ='RFM input'!I359*(1+vanilla2)^0.5 -> 0 | J92: ='RFM input'!J359*(1+vanilla3)^0.5 -> 0 | K92: ='RFM input'!K359*(1+vanilla4)^0.5 -> 0 | L92: ='RFM input'!L359*(1+vanilla5)^0.5 -> 0 | M92: ='RFM input'!M359*(1+vanilla6)^0.5 -> 0 | N92: ='RFM input'!N359*(1+vanilla7)^0.5 -> 0 | O92: ='RFM input'!O359*(1+vanilla8)^0.5 -> 0 | P92: ='RFM input'!P359*(1+vanilla9)^0.5 -> 0 | Q92: ='RFM input'!Q359*(1+vanilla10)^0.5 -> 0
D93: =Asset30 -> 0 | H93: ='RFM input'!H360*(1+vanilla1)^0.5 -> 0 | I93: ='RFM input'!I360*(1+vanilla2)^0.5 -> 0 | J93: ='RFM input'!J360*(1+vanilla3)^0.5 -> 0 | K93: ='RFM input'!K360*(1+vanilla4)^0.5 -> 0 | L93: ='RFM input'!L360*(1+vanilla5)^0.5 -> 0 | M93: ='RFM input'!M360*(1+vanilla6)^0.5 -> 0 | N93: ='RFM input'!N360*(1+vanilla7)^0.5 -> 0 | O93: ='RFM input'!O360*(1+vanilla8)^0.5 -> 0 | P93: ='RFM input'!P360*(1+vanilla9)^0.5 -> 0 | Q93: ='RFM input'!Q360*(1+vanilla10)^0.5 -> 0
D94: =Asset31 -> 0 | H94: ='RFM input'!H361*(1+vanilla1)^0.5 -> 0 | I94: ='RFM input'!I361*(1+vanilla2)^0.5 -> 0 | J94: ='RFM input'!J361*(1+vanilla3)^0.5 -> 0 | K94: ='RFM input'!K361*(1+vanilla4)^0.5 -> 0 | L94: ='RFM input'!L361*(1+vanilla5)^0.5 -> 0 | M94: ='RFM input'!M361*(1+vanilla6)^0.5 -> 0 | N94: ='RFM input'!N361*(1+vanilla7)^0.5 -> 0 | O94: ='RFM input'!O361*(1+vanilla8)^0.5 -> 0 | P94: ='RFM input'!P361*(1+vanilla9)^0.5 -> 0 | Q94: ='RFM input'!Q361*(1+vanilla10)^0.5 -> 0
D95: =Asset32 -> 0 | H95: ='RFM input'!H362*(1+vanilla1)^0.5 -> 0 | I95: ='RFM input'!I362*(1+vanilla2)^0.5 -> 0 | J95: ='RFM input'!J362*(1+vanilla3)^0.5 -> 0 | K95: ='RFM input'!K362*(1+vanilla4)^0.5 -> 0 | L95: ='RFM input'!L362*(1+vanilla5)^0.5 -> 0 | M95: ='RFM input'!M362*(1+vanilla6)^0.5 -> 0 | N95: ='RFM input'!N362*(1+vanilla7)^0.5 -> 0 | O95: ='RFM input'!O362*(1+vanilla8)^0.5 -> 0 | P95: ='RFM input'!P362*(1+vanilla9)^0.5 -> 0 | Q95: ='RFM input'!Q362*(1+vanilla10)^0.5 -> 0
D96: =Asset33 -> 0 | H96: ='RFM input'!H363*(1+vanilla1)^0.5 -> 0 | I96: ='RFM input'!I363*(1+vanilla2)^0.5 -> 0 | J96: ='RFM input'!J363*(1+vanilla3)^0.5 -> 0 | K96: ='RFM input'!K363*(1+vanilla4)^0.5 -> 0 | L96: ='RFM input'!L363*(1+vanilla5)^0.5 -> 0 | M96: ='RFM input'!M363*(1+vanilla6)^0.5 -> 0 | N96: ='RFM input'!N363*(1+vanilla7)^0.5 -> 0 | O96: ='RFM input'!O363*(1+vanilla8)^0.5 -> 0 | P96: ='RFM input'!P363*(1+vanilla9)^0.5 -> 0 | Q96: ='RFM input'!Q363*(1+vanilla10)^0.5 -> 0
D97: =Asset34 -> 0 | H97: ='RFM input'!H364*(1+vanilla1)^0.5 -> 0 | I97: ='RFM input'!I364*(1+vanilla2)^0.5 -> 0 | J97: ='RFM input'!J364*(1+vanilla3)^0.5 -> 0 | K97: ='RFM input'!K364*(1+vanilla4)^0.5 -> 0 | L97: ='RFM input'!L364*(1+vanilla5)^0.5 -> 0 | M97: ='RFM input'!M364*(1+vanilla6)^0.5 -> 0 | N97: ='RFM input'!N364*(1+vanilla7)^0.5 -> 0 | O97: ='RFM input'!O364*(1+vanilla8)^0.5 -> 0 | P97: ='RFM input'!P364*(1+vanilla9)^0.5 -> 0 | Q97: ='RFM input'!Q364*(1+vanilla10)^0.5 -> 0
D98: =Asset35 -> 0 | H98: ='RFM input'!H365*(1+vanilla1)^0.5 -> 0 | I98: ='RFM input'!I365*(1+vanilla2)^0.5 -> 0 | J98: ='RFM input'!J365*(1+vanilla3)^0.5 -> 0 | K98: ='RFM input'!K365*(1+vanilla4)^0.5 -> 0 | L98: ='RFM input'!L365*(1+vanilla5)^0.5 -> 0 | M98: ='RFM input'!M365*(1+vanilla6)^0.5 -> 0 | N98: ='RFM input'!N365*(1+vanilla7)^0.5 -> 0 | O98: ='RFM input'!O365*(1+vanilla8)^0.5 -> 0 | P98: ='RFM input'!P365*(1+vanilla9)^0.5 -> 0 | Q98: ='RFM input'!Q365*(1+vanilla10)^0.5 -> 0
D99: =Asset36 -> 0 | H99: ='RFM input'!H366*(1+vanilla1)^0.5 -> 0 | I99: ='RFM input'!I366*(1+vanilla2)^0.5 -> 0 | J99: ='RFM input'!J366*(1+vanilla3)^0.5 -> 0 | K99: ='RFM input'!K366*(1+vanilla4)^0.5 -> 0 | L99: ='RFM input'!L366*(1+vanilla5)^0.5 -> 0 | M99: ='RFM input'!M366*(1+vanilla6)^0.5 -> 0 | N99: ='RFM input'!N366*(1+vanilla7)^0.5 -> 0 | O99: ='RFM input'!O366*(1+vanilla8)^0.5 -> 0 | P99: ='RFM input'!P366*(1+vanilla9)^0.5 -> 0 | Q99: ='RFM input'!Q366*(1+vanilla10)^0.5 -> 0
D100: =Asset37 -> 0 | H100: ='RFM input'!H367*(1+vanilla1)^0.5 -> 0 | I100: ='RFM input'!I367*(1+vanilla2)^0.5 -> 0 | J100: ='RFM input'!J367*(1+vanilla3)^0.5 -> 0 | K100: ='RFM input'!K367*(1+vanilla4)^0.5 -> 0 | L100: ='RFM input'!L367*(1+vanilla5)^0.5 -> 0 | M100: ='RFM input'!M367*(1+vanilla6)^0.5 -> 0 | N100: ='RFM input'!N367*(1+vanilla7)^0.5 -> 0 | O100: ='RFM input'!O367*(1+vanilla8)^0.5 -> 0 | P100: ='RFM input'!P367*(1+vanilla9)^0.5 -> 0 | Q100: ='RFM input'!Q367*(1+vanilla10)^0.5 -> 0
D101: =Asset38 -> 0 | H101: ='RFM input'!H368*(1+vanilla1)^0.5 -> 0 | I101: ='RFM input'!I368*(1+vanilla2)^0.5 -> 0 | J101: ='RFM input'!J368*(1+vanilla3)^0.5 -> 0 | K101: ='RFM input'!K368*(1+vanilla4)^0.5 -> 0 | L101: ='RFM input'!L368*(1+vanilla5)^0.5 -> 0 | M101: ='RFM input'!M368*(1+vanilla6)^0.5 -> 0 | N101: ='RFM input'!N368*(1+vanilla7)^0.5 -> 0 | O101: ='RFM input'!O368*(1+vanilla8)^0.5 -> 0 | P101: ='RFM input'!P368*(1+vanilla9)^0.5 -> 0 | Q101: ='RFM input'!Q368*(1+vanilla10)^0.5 -> 0
D102: =Asset39 -> 0 | H102: ='RFM input'!H369*(1+vanilla1)^0.5 -> 0 | I102: ='RFM input'!I369*(1+vanilla2)^0.5 -> 0 | J102: ='RFM input'!J369*(1+vanilla3)^0.5 -> 0 | K102: ='RFM input'!K369*(1+vanilla4)^0.5 -> 0 | L102: ='RFM input'!L369*(1+vanilla5)^0.5 -> 0 | M102: ='RFM input'!M369*(1+vanilla6)^0.5 -> 0 | N102: ='RFM input'!N369*(1+vanilla7)^0.5 -> 0 | O102: ='RFM input'!O369*(1+vanilla8)^0.5 -> 0 | P102: ='RFM input'!P369*(1+vanilla9)^0.5 -> 0 | Q102: ='RFM input'!Q369*(1+vanilla10)^0.5 -> 0
D103: =Asset40 -> 0 | H103: ='RFM input'!H370*(1+vanilla1)^0.5 -> 0 | I103: ='RFM input'!I370*(1+vanilla2)^0.5 -> 0 | J103: ='RFM input'!J370*(1+vanilla3)^0.5 -> 0 | K103: ='RFM input'!K370*(1+vanilla4)^0.5 -> 0 | L103: ='RFM input'!L370*(1+vanilla5)^0.5 -> 0 | M103: ='RFM input'!M370*(1+vanilla6)^0.5 -> 0 | N103: ='RFM input'!N370*(1+vanilla7)^0.5 -> 0 | O103: ='RFM input'!O370*(1+vanilla8)^0.5 -> 0 | P103: ='RFM input'!P370*(1+vanilla9)^0.5 -> 0 | Q103: ='RFM input'!Q370*(1+vanilla10)^0.5 -> 0
D104: =Asset41 -> 0 | H104: ='RFM input'!H371*(1+vanilla1)^0.5 -> 0 | I104: ='RFM input'!I371*(1+vanilla2)^0.5 -> 0 | J104: ='RFM input'!J371*(1+vanilla3)^0.5 -> 0 | K104: ='RFM input'!K371*(1+vanilla4)^0.5 -> 0 | L104: ='RFM input'!L371*(1+vanilla5)^0.5 -> 0 | M104: ='RFM input'!M371*(1+vanilla6)^0.5 -> 0 | N104: ='RFM input'!N371*(1+vanilla7)^0.5 -> 0 | O104: ='RFM input'!O371*(1+vanilla8)^0.5 -> 0 | P104: ='RFM input'!P371*(1+vanilla9)^0.5 -> 0 | Q104: ='RFM input'!Q371*(1+vanilla10)^0.5 -> 0
D105: =Asset42 -> 0 | H105: ='RFM input'!H372*(1+vanilla1)^0.5 -> 0 | I105: ='RFM input'!I372*(1+vanilla2)^0.5 -> 0 | J105: ='RFM input'!J372*(1+vanilla3)^0.5 -> 0 | K105: ='RFM input'!K372*(1+vanilla4)^0.5 -> 0 | L105: ='RFM input'!L372*(1+vanilla5)^0.5 -> 0 | M105: ='RFM input'!M372*(1+vanilla6)^0.5 -> 0 | N105: ='RFM input'!N372*(1+vanilla7)^0.5 -> 0 | O105: ='RFM input'!O372*(1+vanilla8)^0.5 -> 0 | P105: ='RFM input'!P372*(1+vanilla9)^0.5 -> 0 | Q105: ='RFM input'!Q372*(1+vanilla10)^0.5 -> 0
D106: =Asset43 -> 0 | H106: ='RFM input'!H373*(1+vanilla1)^0.5 -> 0 | I106: ='RFM input'!I373*(1+vanilla2)^0.5 -> 0 | J106: ='RFM input'!J373*(1+vanilla3)^0.5 -> 0 | K106: ='RFM input'!K373*(1+vanilla4)^0.5 -> 0 | L106: ='RFM input'!L373*(1+vanilla5)^0.5 -> 0 | M106: ='RFM input'!M373*(1+vanilla6)^0.5 -> 0 | N106: ='RFM input'!N373*(1+vanilla7)^0.5 -> 0 | O106: ='RFM input'!O373*(1+vanilla8)^0.5 -> 0 | P106: ='RFM input'!P373*(1+vanilla9)^0.5 -> 0 | Q106: ='RFM input'!Q373*(1+vanilla10)^0.5 -> 0
D107: =Asset44 -> 0 | H107: ='RFM input'!H374*(1+vanilla1)^0.5 -> 0 | I107: ='RFM input'!I374*(1+vanilla2)^0.5 -> 0 | J107: ='RFM input'!J374*(1+vanilla3)^0.5 -> 0 | K107: ='RFM input'!K374*(1+vanilla4)^0.5 -> 0 | L107: ='RFM input'!L374*(1+vanilla5)^0.5 -> 0 | M107: ='RFM input'!M374*(1+vanilla6)^0.5 -> 0 | N107: ='RFM input'!N374*(1+vanilla7)^0.5 -> 0 | O107: ='RFM input'!O374*(1+vanilla8)^0.5 -> 0 | P107: ='RFM input'!P374*(1+vanilla9)^0.5 -> 0 | Q107: ='RFM input'!Q374*(1+vanilla10)^0.5 -> 0
D108: =Asset45 -> 0 | H108: ='RFM input'!H375*(1+vanilla1)^0.5 -> 0 | I108: ='RFM input'!I375*(1+vanilla2)^0.5 -> 0 | J108: ='RFM input'!J375*(1+vanilla3)^0.5 -> 0 | K108: ='RFM input'!K375*(1+vanilla4)^0.5 -> 0 | L108: ='RFM input'!L375*(1+vanilla5)^0.5 -> 0 | M108: ='RFM input'!M375*(1+vanilla6)^0.5 -> 0 | N108: ='RFM input'!N375*(1+vanilla7)^0.5 -> 0 | O108: ='RFM input'!O375*(1+vanilla8)^0.5 -> 0 | P108: ='RFM input'!P375*(1+vanilla9)^0.5 -> 0 | Q108: ='RFM input'!Q375*(1+vanilla10)^0.5 -> 0
D109: =Asset46 -> 0 | H109: ='RFM input'!H376*(1+vanilla1)^0.5 -> 0 | I109: ='RFM input'!I376*(1+vanilla2)^0.5 -> 0 | J109: ='RFM input'!J376*(1+vanilla3)^0.5 -> 0 | K109: ='RFM input'!K376*(1+vanilla4)^0.5 -> 0 | L109: ='RFM input'!L376*(1+vanilla5)^0.5 -> 0 | M109: ='RFM input'!M376*(1+vanilla6)^0.5 -> 0 | N109: ='RFM input'!N376*(1+vanilla7)^0.5 -> 0 | O109: ='RFM input'!O376*(1+vanilla8)^0.5 -> 0 | P109: ='RFM input'!P376*(1+vanilla9)^0.5 -> 0 | Q109: ='RFM input'!Q376*(1+vanilla10)^0.5 -> 0
D110: =Asset47 -> 0 | H110: ='RFM input'!H377*(1+vanilla1)^0.5 -> 0 | I110: ='RFM input'!I377*(1+vanilla2)^0.5 -> 0 | J110: ='RFM input'!J377*(1+vanilla3)^0.5 -> 0 | K110: ='RFM input'!K377*(1+vanilla4)^0.5 -> 0 | L110: ='RFM input'!L377*(1+vanilla5)^0.5 -> 0 | M110: ='RFM input'!M377*(1+vanilla6)^0.5 -> 0 | N110: ='RFM input'!N377*(1+vanilla7)^0.5 -> 0 | O110: ='RFM input'!O377*(1+vanilla8)^0.5 -> 0 | P110: ='RFM input'!P377*(1+vanilla9)^0.5 -> 0 | Q110: ='RFM input'!Q377*(1+vanilla10)^0.5 -> 0
D111: =Asset48 -> 0 | H111: ='RFM input'!H378*(1+vanilla1)^0.5 -> 0 | I111: ='RFM input'!I378*(1+vanilla2)^0.5 -> 0 | J111: ='RFM input'!J378*(1+vanilla3)^0.5 -> 0 | K111: ='RFM input'!K378*(1+vanilla4)^0.5 -> 0 | L111: ='RFM input'!L378*(1+vanilla5)^0.5 -> 0 | M111: ='RFM input'!M378*(1+vanilla6)^0.5 -> 0 | N111: ='RFM input'!N378*(1+vanilla7)^0.5 -> 0 | O111: ='RFM input'!O378*(1+vanilla8)^0.5 -> 0 | P111: ='RFM input'!P378*(1+vanilla9)^0.5 -> 0 | Q111: ='RFM input'!Q378*(1+vanilla10)^0.5 -> 0
D112: =Asset49 -> 0 | H112: ='RFM input'!H379*(1+vanilla1)^0.5 -> 0 | I112: ='RFM input'!I379*(1+vanilla2)^0.5 -> 0 | J112: ='RFM input'!J379*(1+vanilla3)^0.5 -> 0 | K112: ='RFM input'!K379*(1+vanilla4)^0.5 -> 0 | L112: ='RFM input'!L379*(1+vanilla5)^0.5 -> 0 | M112: ='RFM input'!M379*(1+vanilla6)^0.5 -> 0 | N112: ='RFM input'!N379*(1+vanilla7)^0.5 -> 0 | O112: ='RFM input'!O379*(1+vanilla8)^0.5 -> 0 | P112: ='RFM input'!P379*(1+vanilla9)^0.5 -> 0 | Q112: ='RFM input'!Q379*(1+vanilla10)^0.5 -> 0
D113: =Asset50 -> Equity raising costs | H113: ='RFM input'!H380*(1+vanilla1)^0.5 -> 0 | I113: ='RFM input'!I380*(1+vanilla2)^0.5 -> 0 | J113: ='RFM input'!J380*(1+vanilla3)^0.5 -> 0 | K113: ='RFM input'!K380*(1+vanilla4)^0.5 -> 0 | L113: ='RFM input'!L380*(1+vanilla5)^0.5 -> 0 | M113: ='RFM input'!M380*(1+vanilla6)^0.5 -> 0 | N113: ='RFM input'!N380*(1+vanilla7)^0.5 -> 0 | O113: ='RFM input'!O380*(1+vanilla8)^0.5 -> 0 | P113: ='RFM input'!P380*(1+vanilla9)^0.5 -> 0 | Q113: ='RFM input'!Q380*(1+vanilla10)^0.5 -> 0
C115: ="Real "&'RFM input'!$G$397& " Straight-line Depreciation" -> Real Actual Straight-line Depreciation | H115: =H128+H141+H154+H167+H180+H193+H206+H219+H232+H245+H258+H271+H284+H297+H310+H323+H336+H349+H362+H375+H388+H401+H414+H427+H440+H453+H466+H479+H492+H505+H518+H531+H544+H557+H570+H583+H596+H609+H622+H635+H648+H661+H674+H687+H700+H713+H726+H739+H752+H765 -> -72.96666667 | I115: =I128+I141+I154+I167+I180+I193+I206+I219+I232+I245+I258+I271+I284+I297+I310+I323+I336+I349+I362+I375+I388+I401+I414+I427+I440+I453+I466+I479+I492+I505+I518+I531+I544+I557+I570+I583+I596+I609+I622+I635+I648+I661+I674+I687+I700+I713+I726+I739+I752+I765 -> -73.39642353 | J115: -73.81656104 | K115: -74.22232963 | L115: -74.62180005 | M115: 0 | N115: =N128+N141+N154+N167+N180+N193+N206+N219+N232+N245+N258+N271+N284+N297+N310+N323+N336+N349+N362+N375+N388+N401+N414+N427+N440+N453+N466+N479+N492+N505+N518+N531+N544+N557+N570+N583+N596+N609+N622+N635+N648+N661+N674+N687+N700+N713+N726+N739+N752+N765 -> 0 | O115: 0 | P115: 0 | Q115: 0
C116: =Asset1 -> Transmission lines | E116: Opening RAB | H116: =IF(H$3>A1remlife,A1value-SUM($G116:G116),IF(A1remlife="N/A","n/a",A1value/A1remlife)) -> 37.16666667 | I116: =IF(I$3>A1remlife,A1value-SUM($G116:H116),IF(A1remlife="N/A","n/a",A1value/A1remlife)) -> 37.16666667 | J116: =IF(J$3>A1remlife,A1value-SUM($G116:I116),IF(A1remlife="N/A","n/a",A1value/A1remlife)) -> 37.16666667 | K116: =IF(K$3>A1remlife,A1value-SUM($G116:J116),IF(A1remlife="N/A","n/a",A1value/A1remlife)) -> 37.16666667 | L116: =IF(L$3>A1remlife,A1value-SUM($G116:K116),IF(A1remlife="N/A","n/a",A1value/A1remlife)) -> 37.16666667 | M116: =IF(M$3>A1remlife,A1value-SUM($G116:L116),IF(A1remlife="N/A","n/a",A1value/A1remlife)) -> 37.16666667 | N116: =IF(N$3>A1remlife,A1value-SUM($G116:M116),IF(A1remlife="N/A","n/a",A1value/A1remlife)) -> 37.16666667 | O116: =IF(O$3>A1remlife,A1value-SUM($G116:N116),IF(A1remlife="N/A","n/a",A1value/A1remlife)) -> 37.16666667 | P116: =IF(P$3>A1remlife,A1value-SUM($G116:O116),IF(A1remlife="N/A","n/a",A1value/A1remlife)) -> 37.16666667 | Q116: =IF(Q$3>A1remlife,A1value-SUM($G116:P116),IF(A1remlife="N/A","n/a",A1value/A1remlife)) -> 37.16666667
E117: Capex in year
F118: 1 | I118: =IF(A1stdlife="n/a","n/a",IF(I$3>(A1stdlife+$F118),('RFM input'!$H$331*(1+vanilla1)^0.5)-SUM($H118:H118),('RFM input'!$H$331*(1+vanilla1)^0.5)/A1stdlife)) -> 0.2022385255 | J118: =IF(A1stdlife="n/a","n/a",IF(J$3>(A1stdlife+$F118),('RFM input'!$H$331*(1+vanilla1)^0.5)-SUM($H118:I118),('RFM input'!$H$331*(1+vanilla1)^0.5)/A1stdlife)) -> 0.2022385255 | K118: =IF(A1stdlife="n/a","n/a",IF(K$3>(A1stdlife+$F118),('RFM input'!$H$331*(1+vanilla1)^0.5)-SUM($H118:J118),('RFM input'!$H$331*(1+vanilla1)^0.5)/A1stdlife)) -> 0.2022385255 | L118: =IF(A1stdlife="n/a","n/a",IF(L$3>(A1stdlife+$F118),('RFM input'!$H$331*(1+vanilla1)^0.5)-SUM($H118:K118),('RFM input'!$H$331*(1+vanilla1)^0.5)/A1stdlife)) -> 0.2022385255 | M118: =IF(A1stdlife="n/a","n/a",IF(M$3>(A1stdlife+$F118),('RFM input'!$H$331*(1+vanilla1)^0.5)-SUM($H118:L118),('RFM input'!$H$331*(1+vanilla1)^0.5)/A1stdlife)) -> 0.2022385255 | N118: =IF(A1stdlife="n/a","n/a",IF(N$3>(A1stdlife+$F118),('RFM input'!$H$331*(1+vanilla1)^0.5)-SUM($H118:M118),('RFM input'!$H$331*(1+vanilla1)^0.5)/A1stdlife)) -> 0.2022385255 | O118: =IF(A1stdlife="n/a","n/a",IF(O$3>(A1stdlife+$F118),('RFM input'!$H$331*(1+vanilla1)^0.5)-SUM($H118:N118),('RFM input'!$H$331*(1+vanilla1)^0.5)/A1stdlife)) -> 0.2022385255 | P118: =IF(A1stdlife="n/a","n/a",IF(P$3>(A1stdlife+$F118),('RFM input'!$H$331*(1+vanilla1)^0.5)-SUM($H118:O118),('RFM input'!$H$331*(1+vanilla1)^0.5)/A1stdlife)) -> 0.2022385255 | Q118: =IF(A1stdlife="n/a","n/a",IF(Q$3>(A1stdlife+$F118),('RFM input'!$H$331*(1+vanilla1)^0.5)-SUM($H118:P118),('RFM input'!$H$331*(1+vanilla1)^0.5)/A1stdlife)) -> 0.2022385255
F119: 2 | J119: =IF(A1stdlife="n/a","n/a",IF(J$3>(A1stdlife+$F119),('RFM input'!$I$331*(1+vanilla2)^0.5)-SUM($I119:I119),('RFM input'!$I$331*(1+vanilla2)^0.5)/A1stdlife)) -> 0.1977117657 | K119: =IF(A1stdlife="n/a","n/a",IF(K$3>(A1stdlife+$F119),('RFM input'!$I$331*(1+vanilla2)^0.5)-SUM($I119:J119),('RFM input'!$I$331*(1+vanilla2)^0.5)/A1stdlife)) -> 0.1977117657 | L119: =IF(A1stdlife="n/a","n/a",IF(L$3>(A1stdlife+$F119),('RFM input'!$I$331*(1+vanilla2)^0.5)-SUM($I119:K119),('RFM input'!$I$331*(1+vanilla2)^0.5)/A1stdlife)) -> 0.1977117657 | M119: =IF(A1stdlife="n/a","n/a",IF(M$3>(A1stdlife+$F119),('RFM input'!$I$331*(1+vanilla2)^0.5)-SUM($I119:L119),('RFM input'!$I$331*(1+vanilla2)^0.5)/A1stdlife)) -> 0.1977117657 | N119: =IF(A1stdlife="n/a","n/a",IF(N$3>(A1stdlife+$F119),('RFM input'!$I$331*(1+vanilla2)^0.5)-SUM($I119:M119),('RFM input'!$I$331*(1+vanilla2)^0.5)/A1stdlife)) -> 0.1977117657 | O119: =IF(A1stdlife="n/a","n/a",IF(O$3>(A1stdlife+$F119),('RFM input'!$I$331*(1+vanilla2)^0.5)-SUM($I119:N119),('RFM input'!$I$331*(1+vanilla2)^0.5)/A1stdlife)) -> 0.1977117657 | P119: =IF(A1stdlife="n/a","n/a",IF(P$3>(A1stdlife+$F119),('RFM input'!$I$331*(1+vanilla2)^0.5)-SUM($I119:O119),('RFM input'!$I$331*(1+vanilla2)^0.5)/A1stdlife)) -> 0.1977117657 | Q119: =IF(A1stdlife="n/a","n/a",IF(Q$3>(A1stdlife+$F119),('RFM input'!$I$331*(1+vanilla2)^0.5)-SUM($I119:P119),('RFM input'!$I$331*(1+vanilla2)^0.5)/A1stdlife)) -> 0.1977117657
F120: 3 | K120: =IF(A1stdlife="n/a","n/a",IF(K$3>(A1stdlife+$F120),('RFM input'!$J$331*(1+vanilla3)^0.5)-SUM($J120:J120),('RFM input'!$J$331*(1+vanilla3)^0.5)/A1stdlife)) -> 0.1909499259 | L120: =IF(A1stdlife="n/a","n/a",IF(L$3>(A1stdlife+$F120),('RFM input'!$J$331*(1+vanilla3)^0.5)-SUM($J120:K120),('RFM input'!$J$331*(1+vanilla3)^0.5)/A1stdlife)) -> 0.1909499259 | M120: =IF(A1stdlife="n/a","n/a",IF(M$3>(A1stdlife+$F120),('RFM input'!$J$331*(1+vanilla3)^0.5)-SUM($J120:L120),('RFM input'!$J$331*(1+vanilla3)^0.5)/A1stdlife)) -> 0.1909499259 | N120: =IF(A1stdlife="n/a","n/a",IF(N$3>(A1stdlife+$F120),('RFM input'!$J$331*(1+vanilla3)^0.5)-SUM($J120:M120),('RFM input'!$J$331*(1+vanilla3)^0.5)/A1stdlife)) -> 0.1909499259 | O120: =IF(A1stdlife="n/a","n/a",IF(O$3>(A1stdlife+$F120),('RFM input'!$J$331*(1+vanilla3)^0.5)-SUM($J120:N120),('RFM input'!$J$331*(1+vanilla3)^0.5)/A1stdlife)) -> 0.1909499259 | P120: =IF(A1stdlife="n/a","n/a",IF(P$3>(A1stdlife+$F120),('RFM input'!$J$331*(1+vanilla3)^0.5)-SUM($J120:O120),('RFM input'!$J$331*(1+vanilla3)^0.5)/A1stdlife)) -> 0.1909499259 | Q120: =IF(A1stdlife="n/a","n/a",IF(Q$3>(A1stdlife+$F120),('RFM input'!$J$331*(1+vanilla3)^0.5)-SUM($J120:P120),('RFM input'!$J$331*(1+vanilla3)^0.5)/A1stdlife)) -> 0.1909499259
F121: 4 | L121: =IF(A1stdlife="n/a","n/a",IF(L$3>(A1stdlife+$F121),('RFM input'!$K$331*(1+vanilla4)^0.5)-SUM($K121:K121),('RFM input'!$K$331*(1+vanilla4)^0.5)/A1stdlife)) -> 0.1879860823 | M121: =IF(A1stdlife="n/a","n/a",IF(M$3>(A1stdlife+$F121),('RFM input'!$K$331*(1+vanilla4)^0.5)-SUM($K121:L121),('RFM input'!$K$331*(1+vanilla4)^0.5)/A1stdlife)) -> 0.1879860823 | N121: =IF(A1stdlife="n/a","n/a",IF(N$3>(A1stdlife+$F121),('RFM input'!$K$331*(1+vanilla4)^0.5)-SUM($K121:M121),('RFM input'!$K$331*(1+vanilla4)^0.5)/A1stdlife)) -> 0.1879860823 | O121: =IF(A1stdlife="n/a","n/a",IF(O$3>(A1stdlife+$F121),('RFM input'!$K$331*(1+vanilla4)^0.5)-SUM($K121:N121),('RFM input'!$K$331*(1+vanilla4)^0.5)/A1stdlife)) -> 0.1879860823 | P121: =IF(A1stdlife="n/a","n/a",IF(P$3>(A1stdlife+$F121),('RFM input'!$K$331*(1+vanilla4)^0.5)-SUM($K121:O121),('RFM input'!$K$331*(1+vanilla4)^0.5)/A1stdlife)) -> 0.1879860823 | Q121: =IF(A1stdlife="n/a","n/a",IF(Q$3>(A1stdlife+$F121),('RFM input'!$K$331*(1+vanilla4)^0.5)-SUM($K121:P121),('RFM input'!$K$331*(1+vanilla4)^0.5)/A1stdlife)) -> 0.1879860823
F122: 5 | M122: =IF(A1stdlife="n/a","n/a",IF(M$3>(A1stdlife+$F122),('RFM input'!$L$331*(1+vanilla5)^0.5)-SUM($L122:L122),('RFM input'!$L$331*(1+vanilla5)^0.5)/A1stdlife)) -> 0.1843000807 | N122: =IF(A1stdlife="n/a","n/a",IF(N$3>(A1stdlife+$F122),('RFM input'!$L$331*(1+vanilla5)^0.5)-SUM($L122:M122),('RFM input'!$L$331*(1+vanilla5)^0.5)/A1stdlife)) -> 0.1843000807 | O122: =IF(A1stdlife="n/a","n/a",IF(O$3>(A1stdlife+$F122),('RFM input'!$L$331*(1+vanilla5)^0.5)-SUM($L122:N122),('RFM input'!$L$331*(1+vanilla5)^0.5)/A1stdlife)) -> 0.1843000807 | P122: =IF(A1stdlife="n/a","n/a",IF(P$3>(A1stdlife+$F122),('RFM input'!$L$331*(1+vanilla5)^0.5)-SUM($L122:O122),('RFM input'!$L$331*(1+vanilla5)^0.5)/A1stdlife)) -> 0.1843000807 | Q122: =IF(A1stdlife="n/a","n/a",IF(Q$3>(A1stdlife+$F122),('RFM input'!$L$331*(1+vanilla5)^0.5)-SUM($L122:P122),('RFM input'!$L$331*(1+vanilla5)^0.5)/A1stdlife)) -> 0.1843000807
F123: 6 | N123: =IF(A1stdlife="n/a","n/a",IF(N$3>(A1stdlife+$F123),('RFM input'!$M$331*(1+vanilla6)^0.5)-SUM($M123:M123),('RFM input'!$M$331*(1+vanilla6)^0.5)/A1stdlife)) -> 0 | O123: =IF(A1stdlife="n/a","n/a",IF(O$3>(A1stdlife+$F123),('RFM input'!$M$331*(1+vanilla6)^0.5)-SUM($M123:N123),('RFM input'!$M$331*(1+vanilla6)^0.5)/A1stdlife)) -> 0 | P123: =IF(A1stdlife="n/a","n/a",IF(P$3>(A1stdlife+$F123),('RFM input'!$M$331*(1+vanilla6)^0.5)-SUM($M123:O123),('RFM input'!$M$331*(1+vanilla6)^0.5)/A1stdlife)) -> 0 | Q123: =IF(A1stdlife="n/a","n/a",IF(Q$3>(A1stdlife+$F123),('RFM input'!$M$331*(1+vanilla6)^0.5)-SUM($M123:P123),('RFM input'!$M$331*(1+vanilla6)^0.5)/A1stdlife)) -> 0
F124: 7 | O124: =IF(A1stdlife="n/a","n/a",IF(O$3>(A1stdlife+$F124),('RFM input'!$N$331*(1+vanilla7)^0.5)-SUM($N124:N124),('RFM input'!$N$331*(1+vanilla7)^0.5)/A1stdlife)) -> 0 | P124: =IF(A1stdlife="n/a","n/a",IF(P$3>(A1stdlife+$F124),('RFM input'!$N$331*(1+vanilla7)^0.5)-SUM($N124:O124),('RFM input'!$N$331*(1+vanilla7)^0.5)/A1stdlife)) -> 0 | Q124: =IF(A1stdlife="n/a","n/a",IF(Q$3>(A1stdlife+$F124),('RFM input'!$N$331*(1+vanilla7)^0.5)-SUM($N124:P124),('RFM input'!$N$331*(1+vanilla7)^0.5)/A1stdlife)) -> 0
F125: 8 | P125: =IF(A1stdlife="n/a","n/a",IF(P$3>(A1stdlife+$F125),('RFM input'!$O$331*(1+vanilla8)^0.5)-SUM($O125:O125),('RFM input'!$O$331*(1+vanilla8)^0.5)/A1stdlife)) -> 0 | Q125: =IF(A1stdlife="n/a","n/a",IF(Q$3>(A1stdlife+$F125),('RFM input'!$O$331*(1+vanilla8)^0.5)-SUM($O125:P125),('RFM input'!$O$331*(1+vanilla8)^0.5)/A1stdlife)) -> 0
F126: 9 | Q126: =IF(A1stdlife="n/a","n/a",IF(Q$3>(A1stdlife+$F126),('RFM input'!$P$331*(1+vanilla9)^0.5)-SUM($P126:P126),('RFM input'!$P$331*(1+vanilla9)^0.5)/A1stdlife)) -> 0
F127: 10
D128: =Asset1 -> Transmission lines | H128: =IF('RFM input'!$E$396='RFM input'!$G$395,-'RFM input'!H401,-SUM(H116:H127)) -> -37.16666667 | I128: =IF('RFM input'!$E$396='RFM input'!$G$395,-'RFM input'!I401,-SUM(I116:I127)) -> -37.36890519 | J128: =IF(COUNT($H128:I128)>='RFM input'!$AA$7,0,IF('RFM input'!$E$396='RFM input'!$G$395,-'RFM input'!J401,-SUM(J116:J127))) -> -37.56661696 | K128: =IF(COUNT($H128:J128)>='RFM input'!$AA$7,0,IF('RFM input'!$E$396='RFM input'!$G$395,-'RFM input'!K401,-SUM(K116:K127))) -> -37.75756688 | L128: =IF(COUNT($H128:K128)>='RFM input'!$AA$7,0,IF('RFM input'!$E$396='RFM input'!$G$395,-'RFM input'!L401,-SUM(L116:L127))) -> -37.94555297 | M128: =IF(COUNT($H128:L128)>='RFM input'!$AA$7,0,IF('RFM input'!$E$396='RFM input'!$G$395,-'RFM input'!M401,-SUM(M116:M127))) -> 0 | N128: =IF(COUNT($H128:M128)>='RFM input'!$AA$7,0,IF('RFM input'!$E$396='RFM input'!$G$395,-'RFM input'!N401,-SUM(N116:N127))) -> 0 | O128: =IF(COUNT($H128:N128)>='RFM input'!$AA$7,0,IF('RFM input'!$E$396='RFM input'!$G$395,-'RFM input'!O401,-SUM(O116:O127))) -> 0 | P128: =IF(COUNT($H128:O128)>='RFM input'!$AA$7,0,IF('RFM input'!$E$396='RFM input'!$G$395,-'RFM input'!P401,-SUM(P116:P127))) -> 0 | Q128: =IF(COUNT($H128:P128)>='RFM input'!$AA$7,0,IF('RFM input'!$E$396='RFM input'!$G$395,-'RFM input'!Q401,-SUM(Q116:Q127))) -> 0
C129: =Asset2 -> Substations | E129: Opening RAB | H129: =IF(H$3>A2remlife,A2value-SUM($G129:G129),IF(A2remlife="N/A","n/a",A2value/A2remlife)) -> 35.8 | I129: =IF(I$3>A2remlife,A2value-SUM($G129:H129),IF(A2remlife="N/A","n/a",A2value/A2remlife)) -> 35.8 | J129: =IF(J$3>A2remlife,A2value-SUM($G129:I129),IF(A2remlife="N/A","n/a",A2value/A2remlife)) -> 35.8 | K129: =IF(K$3>A2remlife,A2value-SUM($G129:J129),IF(A2remlife="N/A","n/a",A2value/A2remlife)) -> 35.8 | L129: =IF(L$3>A2remlife,A2value-SUM($G129:K129),IF(A2remlife="N/A","n/a",A2value/A2remlife)) -> 35.8 | M129: =IF(M$3>A2remlife,A2value-SUM($G129:L129),IF(A2remlife="N/A","n/a",A2value/A2remlife)) -> 35.8 | N129: =IF(N$3>A2remlife,A2value-SUM($G129:M129),IF(A2remlife="N/A","n/a",A2value/A2remlife)) -> 35.8 | O129: =IF(O$3>A2remlife,A2value-SUM($G129:N129),IF(A2remlife="N/A","n/a",A2value/A2remlife)) -> 35.8 | P129: =IF(P$3>A2remlife,A2value-SUM($G129:O129),IF(A2remlife="N/A","n/a",A2value/A2remlife)) -> 35.8 | Q129: =IF(Q$3>A2remlife,A2value-SUM($G129:P129),IF(A2remlife="N/A","n/a",A2value/A2remlife)) -> 35.8
E130: Capex in year
F131: 1 | I131: =IF(A2stdlife="n/a","n/a",IF(I$3>(A2stdlife+$F131),('RFM input'!$H$332*(1+vanilla1)^0.5)-SUM($H131:H131),('RFM input'!$H$332*(1+vanilla1)^0.5)/A2stdlife)) -> 0.2275183411 | J131: =IF(A2stdlife="n/a","n/a",IF(J$3>(A2stdlife+$F131),('RFM input'!$H$332*(1+vanilla1)^0.5)-SUM($H131:I131),('RFM input'!$H$332*(1+vanilla1)^0.5)/A2stdlife)) -> 0.2275183411 | K131: =IF(A2stdlife="n/a","n/a",IF(K$3>(A2stdlife+$F131),('RFM input'!$H$332*(1+vanilla1)^0.5)-SUM($H131:J131),('RFM input'!$H$332*(1+vanilla1)^0.5)/A2stdlife)) -> 0.2275183411 | L131: =IF(A2stdlife="n/a","n/a",IF(L$3>(A2stdlife+$F131),('RFM input'!$H$332*(1+vanilla1)^0.5)-SUM($H131:K131),('RFM input'!$H$332*(1+vanilla1)^0.5)/A2stdlife)) -> 0.2275183411 | M131: =IF(A2stdlife="n/a","n/a",IF(M$3>(A2stdlife+$F131),('RFM input'!$H$332*(1+vanilla1)^0.5)-SUM($H131:L131),('RFM input'!$H$332*(1+vanilla1)^0.5)/A2stdlife)) -> 0.2275183411 | N131: =IF(A2stdlife="n/a","n/a",IF(N$3>(A2stdlife+$F131),('RFM input'!$H$332*(1+vanilla1)^0.5)-SUM($H131:M131),('RFM input'!$H$332*(1+vanilla1)^0.5)/A2stdlife)) -> 0.2275183411 | O131: =IF(A2stdlife="n/a","n/a",IF(O$3>(A2stdlife+$F131),('RFM input'!$H$332*(1+vanilla1)^0.5)-SUM($H131:N131),('RFM input'!$H$332*(1+vanilla1)^0.5)/A2stdlife)) -> 0.2275183411 | P131: =IF(A2stdlife="n/a","n/a",IF(P$3>(A2stdlife+$F131),('RFM input'!$H$332*(1+vanilla1)^0.5)-SUM($H131:O131),('RFM input'!$H$332*(1+vanilla1)^0.5)/A2stdlife)) -> 0.2275183411 | Q131: =IF(A2stdlife="n/a","n/a",IF(Q$3>(A2stdlife+$F131),('RFM input'!$H$332*(1+vanilla1)^0.5)-SUM($H131:P131),('RFM input'!$H$332*(1+vanilla1)^0.5)/A2stdlife)) -> 0.2275183411
F132: 2 | J132: =IF(A2stdlife="n/a","n/a",IF(J$3>(A2stdlife+$F132),('RFM input'!$I$332*(1+vanilla2)^0.5)-SUM($I132:I132),('RFM input'!$I$332*(1+vanilla2)^0.5)/A2stdlife)) -> 0.2224257364 | K132: =IF(A2stdlife="n/a","n/a",IF(K$3>(A2stdlife+$F132),('RFM input'!$I$332*(1+vanilla2)^0.5)-SUM($I132:J132),('RFM input'!$I$332*(1+vanilla2)^0.5)/A2stdlife)) -> 0.2224257364 | L132: =IF(A2stdlife="n/a","n/a",IF(L$3>(A2stdlife+$F132),('RFM input'!$I$332*(1+vanilla2)^0.5)-SUM($I132:K132),('RFM input'!$I$332*(1+vanilla2)^0.5)/A2stdlife)) -> 0.2224257364 | M132: =IF(A2stdlife="n/a","n/a",IF(M$3>(A2stdlife+$F132),('RFM input'!$I$332*(1+vanilla2)^0.5)-SUM($I132:L132),('RFM input'!$I$332*(1+vanilla2)^0.5)/A2stdlife)) -> 0.2224257364 | N132: =IF(A2stdlife="n/a","n/a",IF(N$3>(A2stdlife+$F132),('RFM input'!$I$332*(1+vanilla2)^0.5)-SUM($I132:M132),('RFM input'!$I$332*(1+vanilla2)^0.5)/A2stdlife)) -> 0.2224257364 | O132: =IF(A2stdlife="n/a","n/a",IF(O$3>(A2stdlife+$F132),('RFM input'!$I$332*(1+vanilla2)^0.5)-SUM($I132:N132),('RFM input'!$I$332*(1+vanilla2)^0.5)/A2stdlife)) -> 0.2224257364 | P132: =IF(A2stdlife="n/a","n/a",IF(P$3>(A2stdlife+$F132),('RFM input'!$I$332*(1+vanilla2)^0.5)-SUM($I132:O132),('RFM input'!$I$332*(1+vanilla2)^0.5)/A2stdlife)) -> 0.2224257364 | Q132: =IF(A2stdlife="n/a","n/a",IF(Q$3>(A2stdlife+$F132),('RFM input'!$I$332*(1+vanilla2)^0.5)-SUM($I132:P132),('RFM input'!$I$332*(1+vanilla2)^0.5)/A2stdlife)) -> 0.2224257364
F133: 3 | K133: =IF(A2stdlife="n/a","n/a",IF(K$3>(A2stdlife+$F133),('RFM input'!$J$332*(1+vanilla3)^0.5)-SUM($J133:J133),('RFM input'!$J$332*(1+vanilla3)^0.5)/A2stdlife)) -> 0.2148186667 | L133: =IF(A2stdlife="n/a","n/a",IF(L$3>(A2stdlife+$F133),('RFM input'!$J$332*(1+vanilla3)^0.5)-SUM($J133:K133),('RFM input'!$J$332*(1+vanilla3)^0.5)/A2stdlife)) -> 0.2148186667 | M133: =IF(A2stdlife="n/a","n/a",IF(M$3>(A2stdlife+$F133),('RFM input'!$J$332*(1+vanilla3)^0.5)-SUM($J133:L133),('RFM input'!$J$332*(1+vanilla3)^0.5)/A2stdlife)) -> 0.2148186667 | N133: =IF(A2stdlife="n/a","n/a",IF(N$3>(A2stdlife+$F133),('RFM input'!$J$332*(1+vanilla3)^0.5)-SUM($J133:M133),('RFM input'!$J$332*(1+vanilla3)^0.5)/A2stdlife)) -> 0.2148186667 | O133: =IF(A2stdlife="n/a","n/a",IF(O$3>(A2stdlife+$F133),('RFM input'!$J$332*(1+vanilla3)^0.5)-SUM($J133:N133),('RFM input'!$J$332*(1+vanilla3)^0.5)/A2stdlife)) -> 0.2148186667 | P133: =IF(A2stdlife="n/a","n/a",IF(P$3>(A2stdlife+$F133),('RFM input'!$J$332*(1+vanilla3)^0.5)-SUM($J133:O133),('RFM input'!$J$332*(1+vanilla3)^0.5)/A2stdlife)) -> 0.2148186667 | Q133: =IF(A2stdlife="n/a","n/a",IF(Q$3>(A2stdlife+$F133),('RFM input'!$J$332*(1+vanilla3)^0.5)-SUM($J133:P133),('RFM input'!$J$332*(1+vanilla3)^0.5)/A2stdlife)) -> 0.2148186667
F134: 4 | L134: =IF(A2stdlife="n/a","n/a",IF(L$3>(A2stdlife+$F134),('RFM input'!$K$332*(1+vanilla4)^0.5)-SUM($K134:K134),('RFM input'!$K$332*(1+vanilla4)^0.5)/A2stdlife)) -> 0.2114843426 | M134: =IF(A2stdlife="n/a","n/a",IF(M$3>(A2stdlife+$F134),('RFM input'!$K$332*(1+vanilla4)^0.5)-SUM($K134:L134),('RFM input'!$K$332*(1+vanilla4)^0.5)/A2stdlife)) -> 0.2114843426 | N134: =IF(A2stdlife="n/a","n/a",IF(N$3>(A2stdlife+$F134),('RFM input'!$K$332*(1+vanilla4)^0.5)-SUM($K134:M134),('RFM input'!$K$332*(1+vanilla4)^0.5)/A2stdlife)) -> 0.2114843426 | O134: =IF(A2stdlife="n/a","n/a",IF(O$3>(A2stdlife+$F134),('RFM input'!$K$332*(1+vanilla4)^0.5)-SUM($K134:N134),('RFM input'!$K$332*(1+vanilla4)^0.5)/A2stdlife)) -> 0.2114843426 | P134: =IF(A2stdlife="n/a","n/a",IF(P$3>(A2stdlife+$F134),('RFM input'!$K$332*(1+vanilla4)^0.5)-SUM($K134:O134),('RFM input'!$K$332*(1+vanilla4)^0.5)/A2stdlife)) -> 0.2114843426 | Q134: =IF(A2stdlife="n/a","n/a",IF(Q$3>(A2stdlife+$F134),('RFM input'!$K$332*(1+vanilla4)^0.5)-SUM($K134:P134),('RFM input'!$K$332*(1+vanilla4)^0.5)/A2stdlife)) -> 0.2114843426
F135: 5 | M135: =IF(A2stdlife="n/a","n/a",IF(M$3>(A2stdlife+$F135),('RFM input'!$L$332*(1+vanilla5)^0.5)-SUM($L135:L135),('RFM input'!$L$332*(1+vanilla5)^0.5)/A2stdlife)) -> 0.2073375908 | N135: =IF(A2stdlife="n/a","n/a",IF(N$3>(A2stdlife+$F135),('RFM input'!$L$332*(1+vanilla5)^0.5)-SUM($L135:M135),('RFM input'!$L$332*(1+vanilla5)^0.5)/A2stdlife)) -> 0.2073375908 | O135: =IF(A2stdlife="n/a","n/a",IF(O$3>(A2stdlife+$F135),('RFM input'!$L$332*(1+vanilla5)^0.5)-SUM($L135:N135),('RFM input'!$L$332*(1+vanilla5)^0.5)/A2stdlife)) -> 0.2073375908 | P135: =IF(A2stdlife="n/a","n/a",IF(P$3>(A2stdlife+$F135),('RFM input'!$L$332*(1+vanilla5)^0.5)-SUM($L135:O135),('RFM input'!$L$332*(1+vanilla5)^0.5)/A2stdlife)) -> 0.2073375908 | Q135: =IF(A2stdlife="n/a","n/a",IF(Q$3>(A2stdlife+$F135),('RFM input'!$L$332*(1+vanilla5)^0.5)-SUM($L135:P135),('RFM input'!$L$332*(1+vanilla5)^0.5)/A2stdlife)) -> 0.2073375908
F136: 6 | N136: =IF(A2stdlife="n/a","n/a",IF(N$3>(A2stdlife+$F136),('RFM input'!$M$332*(1+vanilla6)^0.5)-SUM($M136:M136),('RFM input'!$M$332*(1+vanilla6)^0.5)/A2stdlife)) -> 0 | O136: =IF(A2stdlife="n/a","n/a",IF(O$3>(A2stdlife+$F136),('RFM input'!$M$332*(1+vanilla6)^0.5)-SUM($M136:N136),('RFM input'!$M$332*(1+vanilla6)^0.5)/A2stdlife)) -> 0 | P136: =IF(A2stdlife="n/a","n/a",IF(P$3>(A2stdlife+$F136),('RFM input'!$M$332*(1+vanilla6)^0.5)-SUM($M136:O136),('RFM input'!$M$332*(1+vanilla6)^0.5)/A2stdlife)) -> 0 | Q136: =IF(A2stdlife="n/a","n/a",IF(Q$3>(A2stdlife+$F136),('RFM input'!$M$332*(1+vanilla6)^0.5)-SUM($M136:P136),('RFM input'!$M$332*(1+vanilla6)^0.5)/A2stdlife)) -> 0
F137: 7 | O137: =IF(A2stdlife="n/a","n/a",IF(O$3>(A2stdlife+$F137),('RFM input'!$N$332*(1+vanilla7)^0.5)-SUM($N137:N137),('RFM input'!$N$332*(1+vanilla7)^0.5)/A2stdlife)) -> 0 | P137: =IF(A2stdlife="n/a","n/a",IF(P$3>(A2stdlife+$F137),('RFM input'!$N$332*(1+vanilla7)^0.5)-SUM($N137:O137),('RFM input'!$N$332*(1+vanilla7)^0.5)/A2stdlife)) -> 0 | Q137: =IF(A2stdlife="n/a","n/a",IF(Q$3>(A2stdlife+$F137),('RFM input'!$N$332*(1+vanilla7)^0.5)-SUM($N137:P137),('RFM input'!$N$332*(1+vanilla7)^0.5)/A2stdlife)) -> 0
F138: 8 | P138: =IF(A2stdlife="n/a","n/a",IF(P$3>(A2stdlife+$F138),('RFM input'!$O$332*(1+vanilla8)^0.5)-SUM($O138:O138),('RFM input'!$O$332*(1+vanilla8)^0.5)/A2stdlife)) -> 0 | Q138: =IF(A2stdlife="n/a","n/a",IF(Q$3>(A2stdlife+$F138),('RFM input'!$O$332*(1+vanilla8)^0.5)-SUM($O138:P138),('RFM input'!$O$332*(1+vanilla8)^0.5)/A2stdlife)) -> 0
F139: 9 | Q139: =IF(A2stdlife="n/a","n/a",IF(Q$3>(A2stdlife+$F139),('RFM input'!$P$332*(1+vanilla9)^0.5)-SUM($P139:P139),('RFM input'!$P$332*(1+vanilla9)^0.5)/A2stdlife)) -> 0
F140: 10
D141: =Asset2 -> Substations | H141: =IF('RFM input'!$E$396='RFM input'!$G$395,-'RFM input'!H402,-SUM(H129:H140)) -> -35.8 | I141: =IF('RFM input'!$E$396='RFM input'!$G$395,-'RFM input'!I402,-SUM(I129:I140)) -> -36.02751834 | J141: =IF(COUNT($H141:I141)>='RFM input'!$AA$7,0,IF('RFM input'!$E$396='RFM input'!$G$395,-'RFM input'!J402,-SUM(J129:J140))) -> -36.24994408 | K141: =IF(COUNT($H141:J141)>='RFM input'!$AA$7,0,IF('RFM input'!$E$396='RFM input'!$G$395,-'RFM input'!K402,-SUM(K129:K140))) -> -36.46476274 | L141: =IF(COUNT($H141:K141)>='RFM input'!$AA$7,0,IF('RFM input'!$E$396='RFM input'!$G$395,-'RFM input'!L402,-SUM(L129:L140))) -> -36.67624709 | M141: =IF(COUNT($H141:L141)>='RFM input'!$AA$7,0,IF('RFM input'!$E$396='RFM input'!$G$395,-'RFM input'!M402,-SUM(M129:M140))) -> 0 | N141: =IF(COUNT($H141:M141)>='RFM input'!$AA$7,0,IF('RFM input'!$E$396='RFM input'!$G$395,-'RFM input'!N402,-SUM(N129:N140))) -> 0 | O141: =IF(COUNT($H141:N141)>='RFM input'!$AA$7,0,IF('RFM input'!$E$396='RFM input'!$G$395,-'RFM input'!O402,-SUM(O129:O140))) -> 0 | P141: =IF(COUNT($H141:O141)>='RFM input'!$AA$7,0,IF('RFM input'!$E$396='RFM input'!$G$395,-'RFM input'!P402,-SUM(P129:P140))) -> 0 | Q141: =IF(COUNT($H141:P141)>='RFM input'!$AA$7,0,IF('RFM input'!$E$396='RFM input'!$G$395,-'RFM input'!Q402,-SUM(Q129:Q140))) -> 0
C142: =Asset3 -> Easements | E142: Opening RAB | H142: =IF(H$3>A3remlife,A3value-SUM($G142:G142),IF(A3remlife="N/A","n/a",A3value/A3remlife)) -> n/a | I142: =IF(I$3>A3remlife,A3value-SUM($G142:H142),IF(A3remlife="N/A","n/a",A3value/A3remlife)) -> n/a | J142: =IF(J$3>A3remlife,A3value-SUM($G142:I142),IF(A3remlife="N/A","n/a",A3value/A3remlife)) -> n/a | K142: =IF(K$3>A3remlife,A3value-SUM($G142:J142),IF(A3remlife="N/A","n/a",A3value/A3remlife)) -> n/a | L142: =IF(L$3>A3remlife,A3value-SUM($G142:K142),IF(A3remlife="N/A","n/a",A3value/A3remlife)) -> n/a | M142: =IF(M$3>A3remlife,A3value-SUM($G142:L142),IF(A3remlife="N/A","n/a",A3value/A3remlife)) -> n/a | N142: =IF(N$3>A3remlife,A3value-SUM($G142:M142),IF(A3remlife="N/A","n/a",A3value/A3remlife)) -> n/a | O142: =IF(O$3>A3remlife,A3value-SUM($G142:N142),IF(A3remlife="N/A","n/a",A3value/A3remlife)) -> n/a | P142: =IF(P$3>A3remlife,A3value-SUM($G142:O142),IF(A3remlife="N/A","n/a",A3value/A3remlife)) -> n/a | Q142: =IF(Q$3>A3remlife,A3value-SUM($G142:P142),IF(A3remlife="N/A","n/a",A3value/A3remlife)) -> n/a
E143: Capex in year
F144: 1 | I144: =IF(A3stdlife="n/a","n/a",IF(I$3>(A3stdlife+$F144),('RFM input'!$H$333*(1+vanilla1)^0.5)-SUM($H144:H144),('RFM input'!$H$333*(1+vanilla1)^0.5)/A3stdlife)) -> n/a | J144: =IF(A3stdlife="n/a","n/a",IF(J$3>(A3stdlife+$F144),('RFM input'!$H$333*(1+vanilla1)^0.5)-SUM($H144:I144),('RFM input'!$H$333*(1+vanilla1)^0.5)/A3stdlife)) -> n/a | K144: =IF(A3stdlife="n/a","n/a",IF(K$3>(A3stdlife+$F144),('RFM input'!$H$333*(1+vanilla1)^0.5)-SUM($H144:J144),('RFM input'!$H$333*(1+vanilla1)^0.5)/A3stdlife)) -> n/a | L144: =IF(A3stdlife="n/a","n/a",IF(L$3>(A3stdlife+$F144),('RFM input'!$H$333*(1+vanilla1)^0.5)-SUM($H144:K144),('RFM input'!$H$333*(1+vanilla1)^0.5)/A3stdlife)) -> n/a | M144: =IF(A3stdlife="n/a","n/a",IF(M$3>(A3stdlife+$F144),('RFM input'!$H$333*(1+vanilla1)^0.5)-SUM($H144:L144),('RFM input'!$H$333*(1+vanilla1)^0.5)/A3stdlife)) -> n/a | N144: =IF(A3stdlife="n/a","n/a",IF(N$3>(A3stdlife+$F144),('RFM input'!$H$333*(1+vanilla1)^0.5)-SUM($H144:M144),('RFM input'!$H$333*(1+vanilla1)^0.5)/A3stdlife)) -> n/a | O144: =IF(A3stdlife="n/a","n/a",IF(O$3>(A3stdlife+$F144),('RFM input'!$H$333*(1+vanilla1)^0.5)-SUM($H144:N144),('RFM input'!$H$333*(1+vanilla1)^0.5)/A3stdlife)) -> n/a | P144: =IF(A3stdlife="n/a","n/a",IF(P$3>(A3stdlife+$F144),('RFM input'!$H$333*(1+vanilla1)^0.5)-SUM($H144:O144),('RFM input'!$H$333*(1+vanilla1)^0.5)/A3stdlife)) -> n/a | Q144: =IF(A3stdlife="n/a","n/a",IF(Q$3>(A3stdlife+$F144),('RFM input'!$H$333*(1+vanilla1)^0.5)-SUM($H144:P144),('RFM input'!$H$333*(1+vanilla1)^0.5)/A3stdlife)) -> n/a
F145: 2 | J145: =IF(A3stdlife="n/a","n/a",IF(J$3>(A3stdlife+$F145),('RFM input'!$I$333*(1+vanilla2)^0.5)-SUM($I145:I145),('RFM input'!$I$333*(1+vanilla2)^0.5)/A3stdlife)) -> n/a | K145: =IF(A3stdlife="n/a","n/a",IF(K$3>(A3stdlife+$F145),('RFM input'!$I$333*(1+vanilla2)^0.5)-SUM($I145:J145),('RFM input'!$I$333*(1+vanilla2)^0.5)/A3stdlife)) -> n/a | L145: =IF(A3stdlife="n/a","n/a",IF(L$3>(A3stdlife+$F145),('RFM input'!$I$333*(1+vanilla2)^0.5)-SUM($I145:K145),('RFM input'!$I$333*(1+vanilla2)^0.5)/A3stdlife)) -> n/a | M145: =IF(A3stdlife="n/a","n/a",IF(M$3>(A3stdlife+$F145),('RFM input'!$I$333*(1+vanilla2)^0.5)-SUM($I145:L145),('RFM input'!$I$333*(1+vanilla2)^0.5)/A3stdlife)) -> n/a | N145: =IF(A3stdlife="n/a","n/a",IF(N$3>(A3stdlife+$F145),('RFM input'!$I$333*(1+vanilla2)^0.5)-SUM($I145:M145),('RFM input'!$I$333*(1+vanilla2)^0.5)/A3stdlife)) -> n/a | O145: =IF(A3stdlife="n/a","n/a",IF(O$3>(A3stdlife+$F145),('RFM input'!$I$333*(1+vanilla2)^0.5)-SUM($I145:N145),('RFM input'!$I$333*(1+vanilla2)^0.5)/A3stdlife)) -> n/a | P145: =IF(A3stdlife="n/a","n/a",IF(P$3>(A3stdlife+$F145),('RFM input'!$I$333*(1+vanilla2)^0.5)-SUM($I145:O145),('RFM input'!$I$333*(1+vanilla2)^0.5)/A3stdlife)) -> n/a | Q145: =IF(A3stdlife="n/a","n/a",IF(Q$3>(A3stdlife+$F145),('RFM input'!$I$333*(1+vanilla2)^0.5)-SUM($I145:P145),('RFM input'!$I$333*(1+vanilla2)^0.5)/A3stdlife)) -> n/a
F146: 3 | K146: =IF(A3stdlife="n/a","n/a",IF(K$3>(A3stdlife+$F146),('RFM input'!$J$333*(1+vanilla3)^0.5)-SUM($J146:J146),('RFM input'!$J$333*(1+vanilla3)^0.5)/A3stdlife)) -> n/a | L146: =IF(A3stdlife="n/a","n/a",IF(L$3>(A3stdlife+$F146),('RFM input'!$J$333*(1+vanilla3)^0.5)-SUM($J146:K146),('RFM input'!$J$333*(1+vanilla3)^0.5)/A3stdlife)) -> n/a | M146: =IF(A3stdlife="n/a","n/a",IF(M$3>(A3stdlife+$F146),('RFM input'!$J$333*(1+vanilla3)^0.5)-SUM($J146:L146),('RFM input'!$J$333*(1+vanilla3)^0.5)/A3stdlife)) -> n/a | N146: =IF(A3stdlife="n/a","n/a",IF(N$3>(A3stdlife+$F146),('RFM input'!$J$333*(1+vanilla3)^0.5)-SUM($J146:M146),('RFM input'!$J$333*(1+vanilla3)^0.5)/A3stdlife)) -> n/a | O146: =IF(A3stdlife="n/a","n/a",IF(O$3>(A3stdlife+$F146),('RFM input'!$J$333*(1+vanilla3)^0.5)-SUM($J146:N146),('RFM input'!$J$333*(1+vanilla3)^0.5)/A3stdlife)) -> n/a | P146: =IF(A3stdlife="n/a","n/a",IF(P$3>(A3stdlife+$F146),('RFM input'!$J$333*(1+vanilla3)^0.5)-SUM($J146:O146),('RFM input'!$J$333*(1+vanilla3)^0.5)/A3stdlife)) -> n/a | Q146: =IF(A3stdlife="n/a","n/a",IF(Q$3>(A3stdlife+$F146),('RFM input'!$J$333*(1+vanilla3)^0.5)-SUM($J146:P146),('RFM input'!$J$333*(1+vanilla3)^0.5)/A3stdlife)) -> n/a
F147: 4 | L147: =IF(A3stdlife="n/a","n/a",IF(L$3>(A3stdlife+$F147),('RFM input'!$K$333*(1+vanilla4)^0.5)-SUM($K147:K147),('RFM input'!$K$333*(1+vanilla4)^0.5)/A3stdlife)) -> n/a | M147: =IF(A3stdlife="n/a","n/a",IF(M$3>(A3stdlife+$F147),('RFM input'!$K$333*(1+vanilla4)^0.5)-SUM($K147:L147),('RFM input'!$K$333*(1+vanilla4)^0.5)/A3stdlife)) -> n/a | N147: =IF(A3stdlife="n/a","n/a",IF(N$3>(A3stdlife+$F147),('RFM input'!$K$333*(1+vanilla4)^0.5)-SUM($K147:M147),('RFM input'!$K$333*(1+vanilla4)^0.5)/A3stdlife)) -> n/a | O147: =IF(A3stdlife="n/a","n/a",IF(O$3>(A3stdlife+$F147),('RFM input'!$K$333*(1+vanilla4)^0.5)-SUM($K147:N147),('RFM input'!$K$333*(1+vanilla4)^0.5)/A3stdlife)) -> n/a | P147: =IF(A3stdlife="n/a","n/a",IF(P$3>(A3stdlife+$F147),('RFM input'!$K$333*(1+vanilla4)^0.5)-SUM($K147:O147),('RFM input'!$K$333*(1+vanilla4)^0.5)/A3stdlife)) -> n/a | Q147: =IF(A3stdlife="n/a","n/a",IF(Q$3>(A3stdlife+$F147),('RFM input'!$K$333*(1+vanilla4)^0.5)-SUM($K147:P147),('RFM input'!$K$333*(1+vanilla4)^0.5)/A3stdlife)) -> n/a
F148: 5 | M148: =IF(A3stdlife="n/a","n/a",IF(M$3>(A3stdlife+$F148),('RFM input'!$L$333*(1+vanilla5)^0.5)-SUM($L148:L148),('RFM input'!$L$333*(1+vanilla5)^0.5)/A3stdlife)) -> n/a | N148: =IF(A3stdlife="n/a","n/a",IF(N$3>(A3stdlife+$F148),('RFM input'!$L$333*(1+vanilla5)^0.5)-SUM($L148:M148),('RFM input'!$L$333*(1+vanilla5)^0.5)/A3stdlife)) -> n/a | O148: =IF(A3stdlife="n/a","n/a",IF(O$3>(A3stdlife+$F148),('RFM input'!$L$333*(1+vanilla5)^0.5)-SUM($L148:N148),('RFM input'!$L$333*(1+vanilla5)^0.5)/A3stdlife)) -> n/a | P148: =IF(A3stdlife="n/a","n/a",IF(P$3>(A3stdlife+$F148),('RFM input'!$L$333*(1+vanilla5)^0.5)-SUM($L148:O148),('RFM input'!$L$333*(1+vanilla5)^0.5)/A3stdlife)) -> n/a | Q148: =IF(A3stdlife="n/a","n/a",IF(Q$3>(A3stdlife+$F148),('RFM input'!$L$333*(1+vanilla5)^0.5)-SUM($L148:P148),('RFM input'!$L$333*(1+vanilla5)^0.5)/A3stdlife)) -> n/a
F149: 6 | N149: =IF(A3stdlife="n/a","n/a",IF(N$3>(A3stdlife+$F149),('RFM input'!$M$333*(1+vanilla6)^0.5)-SUM($M149:M149),('RFM input'!$M$333*(1+vanilla6)^0.5)/A3stdlife)) -> n/a | O149: =IF(A3stdlife="n/a","n/a",IF(O$3>(A3stdlife+$F149),('RFM input'!$M$333*(1+vanilla6)^0.5)-SUM($M149:N149),('RFM input'!$M$333*(1+vanilla6)^0.5)/A3stdlife)) -> n/a | P149: =IF(A3stdlife="n/a","n/a",IF(P$3>(A3stdlife+$F149),('RFM input'!$M$333*(1+vanilla6)^0.5)-SUM($M149:O149),('RFM input'!$M$333*(1+vanilla6)^0.5)/A3stdlife)) -> n/a | Q149: =IF(A3stdlife="n/a","n/a",IF(Q$3>(A3stdlife+$F149),('RFM input'!$M$333*(1+vanilla6)^0.5)-SUM($M149:P149),('RFM input'!$M$333*(1+vanilla6)^0.5)/A3stdlife)) -> n/a
F150: 7 | O150: =IF(A3stdlife="n/a","n/a",IF(O$3>(A3stdlife+$F150),('RFM input'!$N$333*(1+vanilla7)^0.5)-SUM($N150:N150),('RFM input'!$N$333*(1+vanilla7)^0.5)/A3stdlife)) -> n/a | P150: =IF(A3stdlife="n/a","n/a",IF(P$3>(A3stdlife+$F150),('RFM input'!$N$333*(1+vanilla7)^0.5)-SUM($N150:O150),('RFM input'!$N$333*(1+vanilla7)^0.5)/A3stdlife)) -> n/a | Q150: =IF(A3stdlife="n/a","n/a",IF(Q$3>(A3stdlife+$F150),('RFM input'!$N$333*(1+vanilla7)^0.5)-SUM($N150:P150),('RFM input'!$N$333*(1+vanilla7)^0.5)/A3stdlife)) -> n/a
F151: 8 | P151: =IF(A3stdlife="n/a","n/a",IF(P$3>(A3stdlife+$F151),('RFM input'!$O$333*(1+vanilla8)^0.5)-SUM($O151:O151),('RFM input'!$O$333*(1+vanilla8)^0.5)/A3stdlife)) -> n/a | Q151: =IF(A3stdlife="n/a","n/a",IF(Q$3>(A3stdlife+$F151),('RFM input'!$O$333*(1+vanilla8)^0.5)-SUM($O151:P151),('RFM input'!$O$333*(1+vanilla8)^0.5)/A3stdlife)) -> n/a
F152: 9 | Q152: =IF(A3stdlife="n/a","n/a",IF(Q$3>(A3stdlife+$F152),('RFM input'!$P$333*(1+vanilla9)^0.5)-SUM($P152:P152),('RFM input'!$P$333*(1+vanilla9)^0.5)/A3stdlife)) -> n/a
F153: 10
D154: =Asset3 -> Easements | H154: =IF('RFM input'!$E$396='RFM input'!$G$395,-'RFM input'!H403,-SUM(H142:H153)) -> 0 | I154: =IF('RFM input'!$E$396='RFM input'!$G$395,-'RFM input'!I403,-SUM(I142:I153)) -> 0 | J154: =IF(COUNT($H154:I154)>='RFM input'!$AA$7,0,IF('RFM input'!$E$396='RFM input'!$G$395,-'RFM input'!J403,-SUM(J142:J153))) -> 0 | K154: =IF(COUNT($H154:J154)>='RFM input'!$AA$7,0,IF('RFM input'!$E$396='RFM input'!$G$395,-'RFM input'!K403,-SUM(K142:K153))) -> 0 | L154: =IF(COUNT($H154:K154)>='RFM input'!$AA$7,0,IF('RFM input'!$E$396='RFM input'!$G$395,-'RFM input'!L403,-SUM(L142:L153))) -> 0 | M154: =IF(COUNT($H154:L154)>='RFM input'!$AA$7,0,IF('RFM input'!$E$396='RFM input'!$G$395,-'RFM input'!M403,-SUM(M142:M153))) -> 0 | N154: =IF(COUNT($H154:M154)>='RFM input'!$AA$7,0,IF('RFM input'!$E$396='RFM input'!$G$395,-'RFM input'!N403,-SUM(N142:N153))) -> 0 | O154: =IF(COUNT($H154:N154)>='RFM input'!$AA$7,0,IF('RFM input'!$E$396='RFM input'!$G$395,-'RFM input'!O403,-SUM(O142:O153))) -> 0 | P154: =IF(COUNT($H154:O154)>='RFM input'!$AA$7,0,IF('RFM input'!$E$396='RFM input'!$G$395,-'RFM input'!P403,-SUM(P142:P153))) -> 0 | Q154: =IF(COUNT($H154:P154)>='RFM input'!$AA$7,0,IF('RFM input'!$E$396='RFM input'!$G$395,-'RFM input'!Q403,-SUM(Q142:Q153))) -> 0
C155: =Asset4 -> 0 | E155: Opening RAB | H155: =IF(H$3>A4remlife,A4value-SUM($G155:G155),IF(A4remlife="N/A","n/a",A4value/A4remlife)) -> 0 | I155: =IF(I$3>A4remlife,A4value-SUM($G155:H155),IF(A4remlife="N/A","n/a",A4value/A4remlife)) -> 0 | J155: =IF(J$3>A4remlife,A4value-SUM($G155:I155),IF(A4remlife="N/A","n/a",A4value/A4remlife)) -> 0 | K155: =IF(K$3>A4remlife,A4value-SUM($G155:J155),IF(A4remlife="N/A","n/a",A4value/A4remlife)) -> 0 | L155: =IF(L$3>A4remlife,A4value-SUM($G155:K155),IF(A4remlife="N/A","n/a",A4value/A4remlife)) -> 0 | M155: =IF(M$3>A4remlife,A4value-SUM($G155:L155),IF(A4remlife="N/A","n/a",A4value/A4remlife)) -> 0 | N155: =IF(N$3>A4remlife,A4value-SUM($G155:M155),IF(A4remlife="N/A","n/a",A4value/A4remlife)) -> 0 | O155: =IF(O$3>A4remlife,A4value-SUM($G155:N155),IF(A4remlife="N/A","n/a",A4value/A4remlife)) -> 0 | P155: =IF(P$3>A4remlife,A4value-SUM($G155:O155),IF(A4remlife="N/A","n/a",A4value/A4remlife)) -> 0 | Q155: =IF(Q$3>A4remlife,A4value-SUM($G155:P155),IF(A4remlife="N/A","n/a",A4value/A4remlife)) -> 0
E156: Capex in year
F157: 1 | I157: =IF(A4stdlife="n/a","n/a",IF(I$3>(A4stdlife+$F157),('RFM input'!$H$334*(1+vanilla1)^0.5)-SUM($H157:H157),('RFM input'!$H$334*(1+vanilla1)^0.5)/A4stdlife)) -> 0 | J157: =IF(A4stdlife="n/a","n/a",IF(J$3>(A4stdlife+$F157),('RFM input'!$H$334*(1+vanilla1)^0.5)-SUM($H157:I157),('RFM input'!$H$334*(1+vanilla1)^0.5)/A4stdlife)) -> 0 | K157: =IF(A4stdlife="n/a","n/a",IF(K$3>(A4stdlife+$F157),('RFM input'!$H$334*(1+vanilla1)^0.5)-SUM($H157:J157),('RFM input'!$H$334*(1+vanilla1)^0.5)/A4stdlife)) -> 0 | L157: =IF(A4stdlife="n/a","n/a",IF(L$3>(A4stdlife+$F157),('RFM input'!$H$334*(1+vanilla1)^0.5)-SUM($H157:K157),('RFM input'!$H$334*(1+vanilla1)^0.5)/A4stdlife)) -> 0 | M157: =IF(A4stdlife="n/a","n/a",IF(M$3>(A4stdlife+$F157),('RFM input'!$H$334*(1+vanilla1)^0.5)-SUM($H157:L157),('RFM input'!$H$334*(1+vanilla1)^0.5)/A4stdlife)) -> 0 | N157: =IF(A4stdlife="n/a","n/a",IF(N$3>(A4stdlife+$F157),('RFM input'!$H$334*(1+vanilla1)^0.5)-SUM($H157:M157),('RFM input'!$H$334*(1+vanilla1)^0.5)/A4stdlife)) -> 0 | O157: =IF(A4stdlife="n/a","n/a",IF(O$3>(A4stdlife+$F157),('RFM input'!$H$334*(1+vanilla1)^0.5)-SUM($H157:N157),('RFM input'!$H$334*(1+vanilla1)^0.5)/A4stdlife)) -> 0 | P157: =IF(A4stdlife="n/a","n/a",IF(P$3>(A4stdlife+$F157),('RFM input'!$H$334*(1+vanilla1)^0.5)-SUM($H157:O157),('RFM input'!$H$334*(1+vanilla1)^0.5)/A4stdlife)) -> 0 | Q157: =IF(A4stdlife="n/a","n/a",IF(Q$3>(A4stdlife+$F157),('RFM input'!$H$334*(1+vanilla1)^0.5)-SUM($H157:P157),('RFM input'!$H$334*(1+vanilla1)^0.5)/A4stdlife)) -> 0
F158: 2 | J158: =IF(A4stdlife="n/a","n/a",IF(J$3>(A4stdlife+$F158),('RFM input'!$I$334*(1+vanilla2)^0.5)-SUM($I158:I158),('RFM input'!$I$334*(1+vanilla2)^0.5)/A4stdlife)) -> 0 | K158: =IF(A4stdlife="n/a","n/a",IF(K$3>(A4stdlife+$F158),('RFM input'!$I$334*(1+vanilla2)^0.5)-SUM($I158:J158),('RFM input'!$I$334*(1+vanilla2)^0.5)/A4stdlife)) -> 0 | L158: =IF(A4stdlife="n/a","n/a",IF(L$3>(A4stdlife+$F158),('RFM input'!$I$334*(1+vanilla2)^0.5)-SUM($I158:K158),('RFM input'!$I$334*(1+vanilla2)^0.5)/A4stdlife)) -> 0 | M158: =IF(A4stdlife="n/a","n/a",IF(M$3>(A4stdlife+$F158),('RFM input'!$I$334*(1+vanilla2)^0.5)-SUM($I158:L158),('RFM input'!$I$334*(1+vanilla2)^0.5)/A4stdlife)) -> 0 | N158: =IF(A4stdlife="n/a","n/a",IF(N$3>(A4stdlife+$F158),('RFM input'!$I$334*(1+vanilla2)^0.5)-SUM($I158:M158),('RFM input'!$I$334*(1+vanilla2)^0.5)/A4stdlife)) -> 0 | O158: =IF(A4stdlife="n/a","n/a",IF(O$3>(A4stdlife+$F158),('RFM input'!$I$334*(1+vanilla2)^0.5)-SUM($I158:N158),('RFM input'!$I$334*(1+vanilla2)^0.5)/A4stdlife)) -> 0 | P158: =IF(A4stdlife="n/a","n/a",IF(P$3>(A4stdlife+$F158),('RFM input'!$I$334*(1+vanilla2)^0.5)-SUM($I158:O158),('RFM input'!$I$334*(1+vanilla2)^0.5)/A4stdlife)) -> 0 | Q158: =IF(A4stdlife="n/a","n/a",IF(Q$3>(A4stdlife+$F158),('RFM input'!$I$334*(1+vanilla2)^0.5)-SUM($I158:P158),('RFM input'!$I$334*(1+vanilla2)^0.5)/A4stdlife)) -> 0
F159: 3 | K159: =IF(A4stdlife="n/a","n/a",IF(K$3>(A4stdlife+$F159),('RFM input'!$J$334*(1+vanilla3)^0.5)-SUM($J159:J159),('RFM input'!$J$334*(1+vanilla3)^0.5)/A4stdlife)) -> 0 | L159: =IF(A4stdlife="n/a","n/a",IF(L$3>(A4stdlife+$F159),('RFM input'!$J$334*(1+vanilla3)^0.5)-SUM($J159:K159),('RFM input'!$J$334*(1+vanilla3)^0.5)/A4stdlife)) -> 0 | M159: =IF(A4stdlife="n/a","n/a",IF(M$3>(A4stdlife+$F159),('RFM input'!$J$334*(1+vanilla3)^0.5)-SUM($J159:L159),('RFM input'!$J$334*(1+vanilla3)^0.5)/A4stdlife)) -> 0 | N159: =IF(A4stdlife="n/a","n/a",IF(N$3>(A4stdlife+$F159),('RFM input'!$J$334*(1+vanilla3)^0.5)-SUM($J159:M159),('RFM input'!$J$334*(1+vanilla3)^0.5)/A4stdlife)) -> 0 | O159: =IF(A4stdlife="n/a","n/a",IF(O$3>(A4stdlife+$F159),('RFM input'!$J$334*(1+vanilla3)^0.5)-SUM($J159:N159),('RFM input'!$J$334*(1+vanilla3)^0.5)/A4stdlife)) -> 0 | P159: =IF(A4stdlife="n/a","n/a",IF(P$3>(A4stdlife+$F159),('RFM input'!$J$334*(1+vanilla3)^0.5)-SUM($J159:O159),('RFM input'!$J$334*(1+vanilla3)^0.5)/A4stdlife)) -> 0 | Q159: =IF(A4stdlife="n/a","n/a",IF(Q$3>(A4stdlife+$F159),('RFM input'!$J$334*(1+vanilla3)^0.5)-SUM($J159:P159),('RFM input'!$J$334*(1+vanilla3)^0.5)/A4stdlife)) -> 0
F160: 4 | L160: =IF(A4stdlife="n/a","n/a",IF(L$3>(A4stdlife+$F160),('RFM input'!$K$334*(1+vanilla4)^0.5)-SUM($K160:K160),('RFM input'!$K$334*(1+vanilla4)^0.5)/A4stdlife)) -> 0 | M160: =IF(A4stdlife="n/a","n/a",IF(M$3>(A4stdlife+$F160),('RFM input'!$K$334*(1+vanilla4)^0.5)-SUM($K160:L160),('RFM input'!$K$334*(1+vanilla4)^0.5)/A4stdlife)) -> 0 | N160: =IF(A4stdlife="n/a","n/a",IF(N$3>(A4stdlife+$F160),('RFM input'!$K$334*(1+vanilla4)^0.5)-SUM($K160:M160),('RFM input'!$K$334*(1+vanilla4)^0.5)/A4stdlife)) -> 0 | O160: =IF(A4stdlife="n/a","n/a",IF(O$3>(A4stdlife+$F160),('RFM input'!$K$334*(1+vanilla4)^0.5)-SUM($K160:N160),('RFM input'!$K$334*(1+vanilla4)^0.5)/A4stdlife)) -> 0 | P160: =IF(A4stdlife="n/a","n/a",IF(P$3>(A4stdlife+$F160),('RFM input'!$K$334*(1+vanilla4)^0.5)-SUM($K160:O160),('RFM input'!$K$334*(1+vanilla4)^0.5)/A4stdlife)) -> 0 | Q160: =IF(A4stdlife="n/a","n/a",IF(Q$3>(A4stdlife+$F160),('RFM input'!$K$334*(1+vanilla4)^0.5)-SUM($K160:P160),('RFM input'!$K$334*(1+vanilla4)^0.5)/A4stdlife)) -> 0
F161: 5 | M161: =IF(A4stdlife="n/a","n/a",IF(M$3>(A4stdlife+$F161),('RFM input'!$L$334*(1+vanilla5)^0.5)-SUM($L161:L161),('RFM input'!$L$334*(1+vanilla5)^0.5)/A4stdlife)) -> 0 | N161: =IF(A4stdlife="n/a","n/a",IF(N$3>(A4stdlife+$F161),('RFM input'!$L$334*(1+vanilla5)^0.5)-SUM($L161:M161),('RFM input'!$L$334*(1+vanilla5)^0.5)/A4stdlife)) -> 0 | O161: =IF(A4stdlife="n/a","n/a",IF(O$3>(A4stdlife+$F161),('RFM input'!$L$334*(1+vanilla5)^0.5)-SUM($L161:N161),('RFM input'!$L$334*(1+vanilla5)^0.5)/A4stdlife)) -> 0 | P161: =IF(A4stdlife="n/a","n/a",IF(P$3>(A4stdlife+$F161),('RFM input'!$L$334*(1+vanilla5)^0.5)-SUM($L161:O161),('RFM input'!$L$334*(1+vanilla5)^0.5)/A4stdlife)) -> 0 | Q161: =IF(A4stdlife="n/a","n/a",IF(Q$3>(A4stdlife+$F161),('RFM input'!$L$334*(1+vanilla5)^0.5)-SUM($L161:P161),('RFM input'!$L$334*(1+vanilla5)^0.5)/A4stdlife)) -> 0
F162: 6 | N162: =IF(A4stdlife="n/a","n/a",IF(N$3>(A4stdlife+$F162),('RFM input'!$M$334*(1+vanilla6)^0.5)-SUM($M162:M162),('RFM input'!$M$334*(1+vanilla6)^0.5)/A4stdlife)) -> 0 | O162: =IF(A4stdlife="n/a","n/a",IF(O$3>(A4stdlife+$F162),('RFM input'!$M$334*(1+vanilla6)^0.5)-SUM($M162:N162),('RFM input'!$M$334*(1+vanilla6)^0.5)/A4stdlife)) -> 0 | P162: =IF(A4stdlife="n/a","n/a",IF(P$3>(A4stdlife+$F162),('RFM input'!$M$334*(1+vanilla6)^0.5)-SUM($M162:O162),('RFM input'!$M$334*(1+vanilla6)^0.5)/A4stdlife)) -> 0 | Q162: =IF(A4stdlife="n/a","n/a",IF(Q$3>(A4stdlife+$F162),('RFM input'!$M$334*(1+vanilla6)^0.5)-SUM($M162:P162),('RFM input'!$M$334*(1+vanilla6)^0.5)/A4stdlife)) -> 0
F163: 7 | O163: =IF(A4stdlife="n/a","n/a",IF(O$3>(A4stdlife+$F163),('RFM input'!$N$334*(1+vanilla7)^0.5)-SUM($N163:N163),('RFM input'!$N$334*(1+vanilla7)^0.5)/A4stdlife)) -> 0 | P163: =IF(A4stdlife="n/a","n/a",IF(P$3>(A4stdlife+$F163),('RFM input'!$N$334*(1+vanilla7)^0.5)-SUM($N163:O163),('RFM input'!$N$334*(1+vanilla7)^0.5)/A4stdlife)) -> 0 | Q163: =IF(A4stdlife="n/a","n/a",IF(Q$3>(A4stdlife+$F163),('RFM input'!$N$334*(1+vanilla7)^0.5)-SUM($N163:P163),('RFM input'!$N$334*(1+vanilla7)^0.5)/A4stdlife)) -> 0
F164: 8 | P164: =IF(A4stdlife="n/a","n/a",IF(P$3>(A4stdlife+$F164),('RFM input'!$O$334*(1+vanilla8)^0.5)-SUM($O164:O164),('RFM input'!$O$334*(1+vanilla8)^0.5)/A4stdlife)) -> 0 | Q164: =IF(A4stdlife="n/a","n/a",IF(Q$3>(A4stdlife+$F164),('RFM input'!$O$334*(1+vanilla8)^0.5)-SUM($O164:P164),('RFM input'!$O$334*(1+vanilla8)^0.5)/A4stdlife)) -> 0
F165: 9 | Q165: =IF(A4stdlife="n/a","n/a",IF(Q$3>(A4stdlife+$F165),('RFM input'!$P$334*(1+vanilla9)^0.5)-SUM($P165:P165),('RFM input'!$P$334*(1+vanilla9)^0.5)/A4stdlife)) -> 0
F166: 10
D167: =Asset4 -> 0 | H167: =IF('RFM input'!$E$396='RFM input'!$G$395,-'RFM input'!H404,-SUM(H155:H166)) -> 0 | I167: =IF('RFM input'!$E$396='RFM input'!$G$395,-'RFM input'!I404,-SUM(I155:I166)) -> 0 | J167: =IF(COUNT($H167:I167)>='RFM input'!$AA$7,0,IF('RFM input'!$E$396='RFM input'!$G$395,-'RFM input'!J404,-SUM(J155:J166))) -> 0 | K167: =IF(COUNT($H167:J167)>='RFM input'!$AA$7,0,IF('RFM input'!$E$396='RFM input'!$G$395,-'RFM input'!K404,-SUM(K155:K166))) -> 0 | L167: =IF(COUNT($H167:K167)>='RFM input'!$AA$7,0,IF('RFM input'!$E$396='RFM input'!$G$395,-'RFM input'!L404,-SUM(L155:L166))) -> 0 | M167: =IF(COUNT($H167:L167)>='RFM input'!$AA$7,0,IF('RFM input'!$E$396='RFM input'!$G$395,-'RFM input'!M404,-SUM(M155:M166))) -> 0 | N167: =IF(COUNT($H167:M167)>='RFM input'!$AA$7,0,IF('RFM input'!$E$396='RFM input'!$G$395,-'RFM input'!N404,-SUM(N155:N166))) -> 0 | O167: =IF(COUNT($H167:N167)>='RFM input'!$AA$7,0,IF('RFM input'!$E$396='RFM input'!$G$395,-'RFM input'!O404,-SUM(O155:O166))) -> 0 | P167: =IF(COUNT($H167:O167)>='RFM input'!$AA$7,0,IF('RFM input'!$E$396='RFM input'!$G$395,-'RFM input'!P404,-SUM(P155:P166))) -> 0 | Q167: =IF(COUNT($H167:P167)>='RFM input'!$AA$7,0,IF('RFM input'!$E$396='RFM input'!$G$395,-'RFM input'!Q404,-SUM(Q155:Q166))) -> 0
C168: =Asset5 -> 0 | E168: Opening RAB | H168: =IF(H$3>A5remlife,A5value-SUM($G168:G168),IF(A5remlife="N/A","n/a",A5value/A5remlife)) -> 0 | I168: =IF(I$3>A5remlife,A5value-SUM($G168:H168),IF(A5remlife="N/A","n/a",A5value/A5remlife)) -> 0 | J168: =IF(J$3>A5remlife,A5value-SUM($G168:I168),IF(A5remlife="N/A","n/a",A5value/A5remlife)) -> 0 | K168: =IF(K$3>A5remlife,A5value-SUM($G168:J168),IF(A5remlife="N/A","n/a",A5value/A5remlife)) -> 0 | L168: =IF(L$3>A5remlife,A5value-SUM($G168:K168),IF(A5remlife="N/A","n/a",A5value/A5remlife)) -> 0 | M168: =IF(M$3>A5remlife,A5value-SUM($G168:L168),IF(A5remlife="N/A","n/a",A5value/A5remlife)) -> 0 | N168: =IF(N$3>A5remlife,A5value-SUM($G168:M168),IF(A5remlife="N/A","n/a",A5value/A5remlife)) -> 0 | O168: =IF(O$3>A5remlife,A5value-SUM($G168:N168),IF(A5remlife="N/A","n/a",A5value/A5remlife)) -> 0 | P168: =IF(P$3>A5remlife,A5value-SUM($G168:O168),IF(A5remlife="N/A","n/a",A5value/A5remlife)) -> 0 | Q168: =IF(Q$3>A5remlife,A5value-SUM($G168:P168),IF(A5remlife="N/A","n/a",A5value/A5remlife)) -> 0
E169: Capex in year
F170: 1 | I170: =IF(A5stdlife="n/a","n/a",IF(I$3>(A5stdlife+$F170),('RFM input'!$H$335*(1+vanilla1)^0.5)-SUM($H170:H170),('RFM input'!$H$335*(1+vanilla1)^0.5)/A5stdlife)) -> 0 | J170: =IF(A5stdlife="n/a","n/a",IF(J$3>(A5stdlife+$F170),('RFM input'!$H$335*(1+vanilla1)^0.5)-SUM($H170:I170),('RFM input'!$H$335*(1+vanilla1)^0.5)/A5stdlife)) -> 0 | K170: =IF(A5stdlife="n/a","n/a",IF(K$3>(A5stdlife+$F170),('RFM input'!$H$335*(1+vanilla1)^0.5)-SUM($H170:J170),('RFM input'!$H$335*(1+vanilla1)^0.5)/A5stdlife)) -> 0 | L170: =IF(A5stdlife="n/a","n/a",IF(L$3>(A5stdlife+$F170),('RFM input'!$H$335*(1+vanilla1)^0.5)-SUM($H170:K170),('RFM input'!$H$335*(1+vanilla1)^0.5)/A5stdlife)) -> 0 | M170: =IF(A5stdlife="n/a","n/a",IF(M$3>(A5stdlife+$F170),('RFM input'!$H$335*(1+vanilla1)^0.5)-SUM($H170:L170),('RFM input'!$H$335*(1+vanilla1)^0.5)/A5stdlife)) -> 0 | N170: =IF(A5stdlife="n/a","n/a",IF(N$3>(A5stdlife+$F170),('RFM input'!$H$335*(1+vanilla1)^0.5)-SUM($H170:M170),('RFM input'!$H$335*(1+vanilla1)^0.5)/A5stdlife)) -> 0 | O170: =IF(A5stdlife="n/a","n/a",IF(O$3>(A5stdlife+$F170),('RFM input'!$H$335*(1+vanilla1)^0.5)-SUM($H170:N170),('RFM input'!$H$335*(1+vanilla1)^0.5)/A5stdlife)) -> 0 | P170: =IF(A5stdlife="n/a","n/a",IF(P$3>(A5stdlife+$F170),('RFM input'!$H$335*(1+vanilla1)^0.5)-SUM($H170:O170),('RFM input'!$H$335*(1+vanilla1)^0.5)/A5stdlife)) -> 0 | Q170: =IF(A5stdlife="n/a","n/a",IF(Q$3>(A5stdlife+$F170),('RFM input'!$H$335*(1+vanilla1)^0.5)-SUM($H170:P170),('RFM input'!$H$335*(1+vanilla1)^0.5)/A5stdlife)) -> 0
F171: 2 | J171: =IF(A5stdlife="n/a","n/a",IF(J$3>(A5stdlife+$F171),('RFM input'!$I$335*(1+vanilla2)^0.5)-SUM($I171:I171),('RFM input'!$I$335*(1+vanilla2)^0.5)/A5stdlife)) -> 0 | K171: =IF(A5stdlife="n/a","n/a",IF(K$3>(A5stdlife+$F171),('RFM input'!$I$335*(1+vanilla2)^0.5)-SUM($I171:J171),('RFM input'!$I$335*(1+vanilla2)^0.5)/A5stdlife)) -> 0 | L171: =IF(A5stdlife="n/a","n/a",IF(L$3>(A5stdlife+$F171),('RFM input'!$I$335*(1+vanilla2)^0.5)-SUM($I171:K171),('RFM input'!$I$335*(1+vanilla2)^0.5)/A5stdlife)) -> 0 | M171: =IF(A5stdlife="n/a","n/a",IF(M$3>(A5stdlife+$F171),('RFM input'!$I$335*(1+vanilla2)^0.5)-SUM($I171:L171),('RFM input'!$I$335*(1+vanilla2)^0.5)/A5stdlife)) -> 0 | N171: =IF(A5stdlife="n/a","n/a",IF(N$3>(A5stdlife+$F171),('RFM input'!$I$335*(1+vanilla2)^0.5)-SUM($I171:M171),('RFM input'!$I$335*(1+vanilla2)^0.5)/A5stdlife)) -> 0 | O171: =IF(A5stdlife="n/a","n/a",IF(O$3>(A5stdlife+$F171),('RFM input'!$I$335*(1+vanilla2)^0.5)-SUM($I171:N171),('RFM input'!$I$335*(1+vanilla2)^0.5)/A5stdlife)) -> 0 | P171: =IF(A5stdlife="n/a","n/a",IF(P$3>(A5stdlife+$F171),('RFM input'!$I$335*(1+vanilla2)^0.5)-SUM($I171:O171),('RFM input'!$I$335*(1+vanilla2)^0.5)/A5stdlife)) -> 0 | Q171: =IF(A5stdlife="n/a","n/a",IF(Q$3>(A5stdlife+$F171),('RFM input'!$I$335*(1+vanilla2)^0.5)-SUM($I171:P171),('RFM input'!$I$335*(1+vanilla2)^0.5)/A5stdlife)) -> 0
F172: 3 | K172: =IF(A5stdlife="n/a","n/a",IF(K$3>(A5stdlife+$F172),('RFM input'!$J$335*(1+vanilla3)^0.5)-SUM($J172:J172),('RFM input'!$J$335*(1+vanilla3)^0.5)/A5stdlife)) -> 0 | L172: =IF(A5stdlife="n/a","n/a",IF(L$3>(A5stdlife+$F172),('RFM input'!$J$335*(1+vanilla3)^0.5)-SUM($J172:K172),('RFM input'!$J$335*(1+vanilla3)^0.5)/A5stdlife)) -> 0 | M172: =IF(A5stdlife="n/a","n/a",IF(M$3>(A5stdlife+$F172),('RFM input'!$J$335*(1+vanilla3)^0.5)-SUM($J172:L172),('RFM input'!$J$335*(1+vanilla3)^0.5)/A5stdlife)) -> 0 | N172: =IF(A5stdlife="n/a","n/a",IF(N$3>(A5stdlife+$F172),('RFM input'!$J$335*(1+vanilla3)^0.5)-SUM($J172:M172),('RFM input'!$J$335*(1+vanilla3)^0.5)/A5stdlife)) -> 0 | O172: =IF(A5stdlife="n/a","n/a",IF(O$3>(A5stdlife+$F172),('RFM input'!$J$335*(1+vanilla3)^0.5)-SUM($J172:N172),('RFM input'!$J$335*(1+vanilla3)^0.5)/A5stdlife)) -> 0 | P172: =IF(A5stdlife="n/a","n/a",IF(P$3>(A5stdlife+$F172),('RFM input'!$J$335*(1+vanilla3)^0.5)-SUM($J172:O172),('RFM input'!$J$335*(1+vanilla3)^0.5)/A5stdlife)) -> 0 | Q172: =IF(A5stdlife="n/a","n/a",IF(Q$3>(A5stdlife+$F172),('RFM input'!$J$335*(1+vanilla3)^0.5)-SUM($J172:P172),('RFM input'!$J$335*(1+vanilla3)^0.5)/A5stdlife)) -> 0
F173: 4 | L173: =IF(A5stdlife="n/a","n/a",IF(L$3>(A5stdlife+$F173),('RFM input'!$K$335*(1+vanilla4)^0.5)-SUM($K173:K173),('RFM input'!$K$335*(1+vanilla4)^0.5)/A5stdlife)) -> 0 | M173: =IF(A5stdlife="n/a","n/a",IF(M$3>(A5stdlife+$F173),('RFM input'!$K$335*(1+vanilla4)^0.5)-SUM($K173:L173),('RFM input'!$K$335*(1+vanilla4)^0.5)/A5stdlife)) -> 0 | N173: =IF(A5stdlife="n/a","n/a",IF(N$3>(A5stdlife+$F173),('RFM input'!$K$335*(1+vanilla4)^0.5)-SUM($K173:M173),('RFM input'!$K$335*(1+vanilla4)^0.5)/A5stdlife)) -> 0 | O173: =IF(A5stdlife="n/a","n/a",IF(O$3>(A5stdlife+$F173),('RFM input'!$K$335*(1+vanilla4)^0.5)-SUM($K173:N173),('RFM input'!$K$335*(1+vanilla4)^0.5)/A5stdlife)) -> 0 | P173: =IF(A5stdlife="n/a","n/a",IF(P$3>(A5stdlife+$F173),('RFM input'!$K$335*(1+vanilla4)^0.5)-SUM($K173:O173),('RFM input'!$K$335*(1+vanilla4)^0.5)/A5stdlife)) -> 0 | Q173: =IF(A5stdlife="n/a","n/a",IF(Q$3>(A5stdlife+$F173),('RFM input'!$K$335*(1+vanilla4)^0.5)-SUM($K173:P173),('RFM input'!$K$335*(1+vanilla4)^0.5)/A5stdlife)) -> 0
F174: 5 | M174: =IF(A5stdlife="n/a","n/a",IF(M$3>(A5stdlife+$F174),('RFM input'!$L$335*(1+vanilla5)^0.5)-SUM($L174:L174),('RFM input'!$L$335*(1+vanilla5)^0.5)/A5stdlife)) -> 0 | N174: =IF(A5stdlife="n/a","n/a",IF(N$3>(A5stdlife+$F174),('RFM input'!$L$335*(1+vanilla5)^0.5)-SUM($L174:M174),('RFM input'!$L$335*(1+vanilla5)^0.5)/A5stdlife)) -> 0 | O174: =IF(A5stdlife="n/a","n/a",IF(O$3>(A5stdlife+$F174),('RFM input'!$L$335*(1+vanilla5)^0.5)-SUM($L174:N174),('RFM input'!$L$335*(1+vanilla5)^0.5)/A5stdlife)) -> 0 | P174: =IF(A5stdlife="n/a","n/a",IF(P$3>(A5stdlife+$F174),('RFM input'!$L$335*(1+vanilla5)^0.5)-SUM($L174:O174),('RFM input'!$L$335*(1+vanilla5)^0.5)/A5stdlife)) -> 0 | Q174: =IF(A5stdlife="n/a","n/a",IF(Q$3>(A5stdlife+$F174),('RFM input'!$L$335*(1+vanilla5)^0.5)-SUM($L174:P174),('RFM input'!$L$335*(1+vanilla5)^0.5)/A5stdlife)) -> 0
F175: 6 | N175: =IF(A5stdlife="n/a","n/a",IF(N$3>(A5stdlife+$F175),('RFM input'!$M$335*(1+vanilla6)^0.5)-SUM($M175:M175),('RFM input'!$M$335*(1+vanilla6)^0.5)/A5stdlife)) -> 0 | O175: =IF(A5stdlife="n/a","n/a",IF(O$3>(A5stdlife+$F175),('RFM input'!$M$335*(1+vanilla6)^0.5)-SUM($M175:N175),('RFM input'!$M$335*(1+vanilla6)^0.5)/A5stdlife)) -> 0 | P175: =IF(A5stdlife="n/a","n/a",IF(P$3>(A5stdlife+$F175),('RFM input'!$M$335*(1+vanilla6)^0.5)-SUM($M175:O175),('RFM input'!$M$335*(1+vanilla6)^0.5)/A5stdlife)) -> 0 | Q175: =IF(A5stdlife="n/a","n/a",IF(Q$3>(A5stdlife+$F175),('RFM input'!$M$335*(1+vanilla6)^0.5)-SUM($M175:P175),('RFM input'!$M$335*(1+vanilla6)^0.5)/A5stdlife)) -> 0
F176: 7 | O176: =IF(A5stdlife="n/a","n/a",IF(O$3>(A5stdlife+$F176),('RFM input'!$N$335*(1+vanilla7)^0.5)-SUM($N176:N176),('RFM input'!$N$335*(1+vanilla7)^0.5)/A5stdlife)) -> 0 | P176: =IF(A5stdlife="n/a","n/a",IF(P$3>(A5stdlife+$F176),('RFM input'!$N$335*(1+vanilla7)^0.5)-SUM($N176:O176),('RFM input'!$N$335*(1+vanilla7)^0.5)/A5stdlife)) -> 0 | Q176: =IF(A5stdlife="n/a","n/a",IF(Q$3>(A5stdlife+$F176),('RFM input'!$N$335*(1+vanilla7)^0.5)-SUM($N176:P176),('RFM input'!$N$335*(1+vanilla7)^0.5)/A5stdlife)) -> 0
F177: 8 | P177: =IF(A5stdlife="n/a","n/a",IF(P$3>(A5stdlife+$F177),('RFM input'!$O$335*(1+vanilla8)^0.5)-SUM($O177:O177),('RFM input'!$O$335*(1+vanilla8)^0.5)/A5stdlife)) -> 0 | Q177: =IF(A5stdlife="n/a","n/a",IF(Q$3>(A5stdlife+$F177),('RFM input'!$O$335*(1+vanilla8)^0.5)-SUM($O177:P177),('RFM input'!$O$335*(1+vanilla8)^0.5)/A5stdlife)) -> 0
F178: 9 | Q178: =IF(A5stdlife="n/a","n/a",IF(Q$3>(A5stdlife+$F178),('RFM input'!$P$335*(1+vanilla9)^0.5)-SUM($P178:P178),('RFM input'!$P$335*(1+vanilla9)^0.5)/A5stdlife)) -> 0
F179: 10
D180: =Asset5 -> 0 | H180: =IF('RFM input'!$E$396='RFM input'!$G$395,-'RFM input'!H405,-SUM(H168:H179)) -> 0 | I180: =IF('RFM input'!$E$396='RFM input'!$G$395,-'RFM input'!I405,-SUM(I168:I179)) -> 0 | J180: =IF(COUNT($H180:I180)>='RFM input'!$AA$7,0,IF('RFM input'!$E$396='RFM input'!$G$395,-'RFM input'!J405,-SUM(J168:J179))) -> 0 | K180: =IF(COUNT($H180:J180)>='RFM input'!$AA$7,0,IF('RFM input'!$E$396='RFM input'!$G$395,-'RFM input'!K405,-SUM(K168:K179))) -> 0 | L180: =IF(COUNT($H180:K180)>='RFM input'!$AA$7,0,IF('RFM input'!$E$396='RFM input'!$G$395,-'RFM input'!L405,-SUM(L168:L179))) -> 0 | M180: =IF(COUNT($H180:L180)>='RFM input'!$AA$7,0,IF('RFM input'!$E$396='RFM input'!$G$395,-'RFM input'!M405,-SUM(M168:M179))) -> 0 | N180: =IF(COUNT($H180:M180)>='RFM input'!$AA$7,0,IF('RFM input'!$E$396='RFM input'!$G$395,-'RFM input'!N405,-SUM(N168:N179))) -> 0 | O180: =IF(COUNT($H180:N180)>='RFM input'!$AA$7,0,IF('RFM input'!$E$396='RFM input'!$G$395,-'RFM input'!O405,-SUM(O168:O179))) -> 0 | P180: =IF(COUNT($H180:O180)>='RFM input'!$AA$7,0,IF('RFM input'!$E$396='RFM input'!$G$395,-'RFM input'!P405,-SUM(P168:P179))) -> 0 | Q180: =IF(COUNT($H180:P180)>='RFM input'!$AA$7,0,IF('RFM input'!$E$396='RFM input'!$G$395,-'RFM input'!Q405,-SUM(Q168:Q179))) -> 0
C181: =Asset6 -> 0 | E181: Opening RAB | H181: =IF(H$3>A6remlife,A6value-SUM($G181:G181),IF(A6remlife="N/A","n/a",A6value/A6remlife)) -> 0 | I181: =IF(I$3>A6remlife,A6value-SUM($G181:H181),IF(A6remlife="N/A","n/a",A6value/A6remlife)) -> 0 | J181: =IF(J$3>A6remlife,A6value-SUM($G181:I181),IF(A6remlife="N/A","n/a",A6value/A6remlife)) -> 0 | K181: =IF(K$3>A6remlife,A6value-SUM($G181:J181),IF(A6remlife="N/A","n/a",A6value/A6remlife)) -> 0 | L181: =IF(L$3>A6remlife,A6value-SUM($G181:K181),IF(A6remlife="N/A","n/a",A6value/A6remlife)) -> 0 | M181: =IF(M$3>A6remlife,A6value-SUM($G181:L181),IF(A6remlife="N/A","n/a",A6value/A6remlife)) -> 0 | N181: =IF(N$3>A6remlife,A6value-SUM($G181:M181),IF(A6remlife="N/A","n/a",A6value/A6remlife)) -> 0 | O181: =IF(O$3>A6remlife,A6value-SUM($G181:N181),IF(A6remlife="N/A","n/a",A6value/A6remlife)) -> 0 | P181: =IF(P$3>A6remlife,A6value-SUM($G181:O181),IF(A6remlife="N/A","n/a",A6value/A6remlife)) -> 0 | Q181: =IF(Q$3>A6remlife,A6value-SUM($G181:P181),IF(A6remlife="N/A","n/a",A6value/A6remlife)) -> 0
E182: Capex in year
F183: 1 | I183: =IF(A6stdlife="n/a","n/a",IF(I$3>(A6stdlife+$F183),('RFM input'!$H$336*(1+vanilla1)^0.5)-SUM($H183:H183),('RFM input'!$H$336*(1+vanilla1)^0.5)/A6stdlife)) -> 0 | J183: =IF(A6stdlife="n/a","n/a",IF(J$3>(A6stdlife+$F183),('RFM input'!$H$336*(1+vanilla1)^0.5)-SUM($H183:I183),('RFM input'!$H$336*(1+vanilla1)^0.5)/A6stdlife)) -> 0 | K183: =IF(A6stdlife="n/a","n/a",IF(K$3>(A6stdlife+$F183),('RFM input'!$H$336*(1+vanilla1)^0.5)-SUM($H183:J183),('RFM input'!$H$336*(1+vanilla1)^0.5)/A6stdlife)) -> 0 | L183: =IF(A6stdlife="n/a","n/a",IF(L$3>(A6stdlife+$F183),('RFM input'!$H$336*(1+vanilla1)^0.5)-SUM($H183:K183),('RFM input'!$H$336*(1+vanilla1)^0.5)/A6stdlife)) -> 0 | M183: =IF(A6stdlife="n/a","n/a",IF(M$3>(A6stdlife+$F183),('RFM input'!$H$336*(1+vanilla1)^0.5)-SUM($H183:L183),('RFM input'!$H$336*(1+vanilla1)^0.5)/A6stdlife)) -> 0 | N183: =IF(A6stdlife="n/a","n/a",IF(N$3>(A6stdlife+$F183),('RFM input'!$H$336*(1+vanilla1)^0.5)-SUM($H183:M183),('RFM input'!$H$336*(1+vanilla1)^0.5)/A6stdlife)) -> 0 | O183: =IF(A6stdlife="n/a","n/a",IF(O$3>(A6stdlife+$F183),('RFM input'!$H$336*(1+vanilla1)^0.5)-SUM($H183:N183),('RFM input'!$H$336*(1+vanilla1)^0.5)/A6stdlife)) -> 0 | P183: =IF(A6stdlife="n/a","n/a",IF(P$3>(A6stdlife+$F183),('RFM input'!$H$336*(1+vanilla1)^0.5)-SUM($H183:O183),('RFM input'!$H$336*(1+vanilla1)^0.5)/A6stdlife)) -> 0 | Q183: =IF(A6stdlife="n/a","n/a",IF(Q$3>(A6stdlife+$F183),('RFM input'!$H$336*(1+vanilla1)^0.5)-SUM($H183:P183),('RFM input'!$H$336*(1+vanilla1)^0.5)/A6stdlife)) -> 0
F184: 2 | J184: =IF(A6stdlife="n/a","n/a",IF(J$3>(A6stdlife+$F184),('RFM input'!$I$336*(1+vanilla2)^0.5)-SUM($I184:I184),('RFM input'!$I$336*(1+vanilla2)^0.5)/A6stdlife)) -> 0 | K184: =IF(A6stdlife="n/a","n/a",IF(K$3>(A6stdlife+$F184),('RFM input'!$I$336*(1+vanilla2)^0.5)-SUM($I184:J184),('RFM input'!$I$336*(1+vanilla2)^0.5)/A6stdlife)) -> 0 | L184: =IF(A6stdlife="n/a","n/a",IF(L$3>(A6stdlife+$F184),('RFM input'!$I$336*(1+vanilla2)^0.5)-SUM($I184:K184),('RFM input'!$I$336*(1+vanilla2)^0.5)/A6stdlife)) -> 0 | M184: =IF(A6stdlife="n/a","n/a",IF(M$3>(A6stdlife+$F184),('RFM input'!$I$336*(1+vanilla2)^0.5)-SUM($I184:L184),('RFM input'!$I$336*(1+vanilla2)^0.5)/A6stdlife)) -> 0 | N184: =IF(A6stdlife="n/a","n/a",IF(N$3>(A6stdlife+$F184),('RFM input'!$I$336*(1+vanilla2)^0.5)-SUM($I184:M184),('RFM input'!$I$336*(1+vanilla2)^0.5)/A6stdlife)) -> 0 | O184: =IF(A6stdlife="n/a","n/a",IF(O$3>(A6stdlife+$F184),('RFM input'!$I$336*(1+vanilla2)^0.5)-SUM($I184:N184),('RFM input'!$I$336*(1+vanilla2)^0.5)/A6stdlife)) -> 0 | P184: =IF(A6stdlife="n/a","n/a",IF(P$3>(A6stdlife+$F184),('RFM input'!$I$336*(1+vanilla2)^0.5)-SUM($I184:O184),('RFM input'!$I$336*(1+vanilla2)^0.5)/A6stdlife)) -> 0 | Q184: =IF(A6stdlife="n/a","n/a",IF(Q$3>(A6stdlife+$F184),('RFM input'!$I$336*(1+vanilla2)^0.5)-SUM($I184:P184),('RFM input'!$I$336*(1+vanilla2)^0.5)/A6stdlife)) -> 0
F185: 3 | K185: =IF(A6stdlife="n/a","n/a",IF(K$3>(A6stdlife+$F185),('RFM input'!$J$336*(1+vanilla3)^0.5)-SUM($J185:J185),('RFM input'!$J$336*(1+vanilla3)^0.5)/A6stdlife)) -> 0 | L185: =IF(A6stdlife="n/a","n/a",IF(L$3>(A6stdlife+$F185),('RFM input'!$J$336*(1+vanilla3)^0.5)-SUM($J185:K185),('RFM input'!$J$336*(1+vanilla3)^0.5)/A6stdlife)) -> 0 | M185: =IF(A6stdlife="n/a","n/a",IF(M$3>(A6stdlife+$F185),('RFM input'!$J$336*(1+vanilla3)^0.5)-SUM($J185:L185),('RFM input'!$J$336*(1+vanilla3)^0.5)/A6stdlife)) -> 0 | N185: =IF(A6stdlife="n/a","n/a",IF(N$3>(A6stdlife+$F185),('RFM input'!$J$336*(1+vanilla3)^0.5)-SUM($J185:M185),('RFM input'!$J$336*(1+vanilla3)^0.5)/A6stdlife)) -> 0 | O185: =IF(A6stdlife="n/a","n/a",IF(O$3>(A6stdlife+$F185),('RFM input'!$J$336*(1+vanilla3)^0.5)-SUM($J185:N185),('RFM input'!$J$336*(1+vanilla3)^0.5)/A6stdlife)) -> 0 | P185: =IF(A6stdlife="n/a","n/a",IF(P$3>(A6stdlife+$F185),('RFM input'!$J$336*(1+vanilla3)^0.5)-SUM($J185:O185),('RFM input'!$J$336*(1+vanilla3)^0.5)/A6stdlife)) -> 0 | Q185: =IF(A6stdlife="n/a","n/a",IF(Q$3>(A6stdlife+$F185),('RFM input'!$J$336*(1+vanilla3)^0.5)-SUM($J185:P185),('RFM input'!$J$336*(1+vanilla3)^0.5)/A6stdlife)) -> 0
F186: 4 | L186: =IF(A6stdlife="n/a","n/a",IF(L$3>(A6stdlife+$F186),('RFM input'!$K$336*(1+vanilla4)^0.5)-SUM($K186:K186),('RFM input'!$K$336*(1+vanilla4)^0.5)/A6stdlife)) -> 0 | M186: =IF(A6stdlife="n/a","n/a",IF(M$3>(A6stdlife+$F186),('RFM input'!$K$336*(1+vanilla4)^0.5)-SUM($K186:L186),('RFM input'!$K$336*(1+vanilla4)^0.5)/A6stdlife)) -> 0 | N186: =IF(A6stdlife="n/a","n/a",IF(N$3>(A6stdlife+$F186),('RFM input'!$K$336*(1+vanilla4)^0.5)-SUM($K186:M186),('RFM input'!$K$336*(1+vanilla4)^0.5)/A6stdlife)) -> 0 | O186: =IF(A6stdlife="n/a","n/a",IF(O$3>(A6stdlife+$F186),('RFM input'!$K$336*(1+vanilla4)^0.5)-SUM($K186:N186),('RFM input'!$K$336*(1+vanilla4)^0.5)/A6stdlife)) -> 0 | P186: =IF(A6stdlife="n/a","n/a",IF(P$3>(A6stdlife+$F186),('RFM input'!$K$336*(1+vanilla4)^0.5)-SUM($K186:O186),('RFM input'!$K$336*(1+vanilla4)^0.5)/A6stdlife)) -> 0 | Q186: =IF(A6stdlife="n/a","n/a",IF(Q$3>(A6stdlife+$F186),('RFM input'!$K$336*(1+vanilla4)^0.5)-SUM($K186:P186),('RFM input'!$K$336*(1+vanilla4)^0.5)/A6stdlife)) -> 0
F187: 5 | M187: =IF(A6stdlife="n/a","n/a",IF(M$3>(A6stdlife+$F187),('RFM input'!$L$336*(1+vanilla5)^0.5)-SUM($L187:L187),('RFM input'!$L$336*(1+vanilla5)^0.5)/A6stdlife)) -> 0 | N187: =IF(A6stdlife="n/a","n/a",IF(N$3>(A6stdlife+$F187),('RFM input'!$L$336*(1+vanilla5)^0.5)-SUM($L187:M187),('RFM input'!$L$336*(1+vanilla5)^0.5)/A6stdlife)) -> 0 | O187: =IF(A6stdlife="n/a","n/a",IF(O$3>(A6stdlife+$F187),('RFM input'!$L$336*(1+vanilla5)^0.5)-SUM($L187:N187),('RFM input'!$L$336*(1+vanilla5)^0.5)/A6stdlife)) -> 0 | P187: =IF(A6stdlife="n/a","n/a",IF(P$3>(A6stdlife+$F187),('RFM input'!$L$336*(1+vanilla5)^0.5)-SUM($L187:O187),('RFM input'!$L$336*(1+vanilla5)^0.5)/A6stdlife)) -> 0 | Q187: =IF(A6stdlife="n/a","n/a",IF(Q$3>(A6stdlife+$F187),('RFM input'!$L$336*(1+vanilla5)^0.5)-SUM($L187:P187),('RFM input'!$L$336*(1+vanilla5)^0.5)/A6stdlife)) -> 0
F188: 6 | N188: =IF(A6stdlife="n/a","n/a",IF(N$3>(A6stdlife+$F188),('RFM input'!$M$336*(1+vanilla6)^0.5)-SUM($M188:M188),('RFM input'!$M$336*(1+vanilla6)^0.5)/A6stdlife)) -> 0 | O188: =IF(A6stdlife="n/a","n/a",IF(O$3>(A6stdlife+$F188),('RFM input'!$M$336*(1+vanilla6)^0.5)-SUM($M188:N188),('RFM input'!$M$336*(1+vanilla6)^0.5)/A6stdlife)) -> 0 | P188: =IF(A6stdlife="n/a","n/a",IF(P$3>(A6stdlife+$F188),('RFM input'!$M$336*(1+vanilla6)^0.5)-SUM($M188:O188),('RFM input'!$M$336*(1+vanilla6)^0.5)/A6stdlife)) -> 0 | Q188: =IF(A6stdlife="n/a","n/a",IF(Q$3>(A6stdlife+$F188),('RFM input'!$M$336*(1+vanilla6)^0.5)-SUM($M188:P188),('RFM input'!$M$336*(1+vanilla6)^0.5)/A6stdlife)) -> 0
F189: 7 | O189: =IF(A6stdlife="n/a","n/a",IF(O$3>(A6stdlife+$F189),('RFM input'!$N$336*(1+vanilla7)^0.5)-SUM($N189:N189),('RFM input'!$N$336*(1+vanilla7)^0.5)/A6stdlife)) -> 0 | P189: =IF(A6stdlife="n/a","n/a",IF(P$3>(A6stdlife+$F189),('RFM input'!$N$336*(1+vanilla7)^0.5)-SUM($N189:O189),('RFM input'!$N$336*(1+vanilla7)^0.5)/A6stdlife)) -> 0 | Q189: =IF(A6stdlife="n/a","n/a",IF(Q$3>(A6stdlife+$F189),('RFM input'!$N$336*(1+vanilla7)^0.5)-SUM($N189:P189),('RFM input'!$N$336*(1+vanilla7)^0.5)/A6stdlife)) -> 0
F190: 8 | P190: =IF(A6stdlife="n/a","n/a",IF(P$3>(A6stdlife+$F190),('RFM input'!$O$336*(1+vanilla8)^0.5)-SUM($O190:O190),('RFM input'!$O$336*(1+vanilla8)^0.5)/A6stdlife)) -> 0 | Q190: =IF(A6stdlife="n/a","n/a",IF(Q$3>(A6stdlife+$F190),('RFM input'!$O$336*(1+vanilla8)^0.5)-SUM($O190:P190),('RFM input'!$O$336*(1+vanilla8)^0.5)/A6stdlife)) -> 0
F191: 9 | Q191: =IF(A6stdlife="n/a","n/a",IF(Q$3>(A6stdlife+$F191),('RFM input'!$P$336*(1+vanilla9)^0.5)-SUM($P191:P191),('RFM input'!$P$336*(1+vanilla9)^0.5)/A6stdlife)) -> 0
F192: 10
D193: =Asset6 -> 0 | H193: =IF('RFM input'!$E$396='RFM input'!$G$395,-'RFM input'!H406,-SUM(H181:H192)) -> 0 | I193: =IF('RFM input'!$E$396='RFM input'!$G$395,-'RFM input'!I406,-SUM(I181:I192)) -> 0 | J193: =IF(COUNT($H193:I193)>='RFM input'!$AA$7,0,IF('RFM input'!$E$396='RFM input'!$G$395,-'RFM input'!J406,-SUM(J181:J192))) -> 0 | K193: =IF(COUNT($H193:J193)>='RFM input'!$AA$7,0,IF('RFM input'!$E$396='RFM input'!$G$395,-'RFM input'!K406,-SUM(K181:K192))) -> 0 | L193: =IF(COUNT($H193:K193)>='RFM input'!$AA$7,0,IF('RFM input'!$E$396='RFM input'!$G$395,-'RFM input'!L406,-SUM(L181:L192))) -> 0 | M193: =IF(COUNT($H193:L193)>='RFM input'!$AA$7,0,IF('RFM input'!$E$396='RFM input'!$G$395,-'RFM input'!M406,-SUM(M181:M192))) -> 0 | N193: =IF(COUNT($H193:M193)>='RFM input'!$AA$7,0,IF('RFM input'!$E$396='RFM input'!$G$395,-'RFM input'!N406,-SUM(N181:N192))) -> 0 | O193: =IF(COUNT($H193:N193)>='RFM input'!$AA$7,0,IF('RFM input'!$E$396='RFM input'!$G$395,-'RFM input'!O406,-SUM(O181:O192))) -> 0 | P193: =IF(COUNT($H193:O193)>='RFM input'!$AA$7,0,IF('RFM input'!$E$396='RFM input'!$G$395,-'RFM input'!P406,-SUM(P181:P192))) -> 0 | Q193: =IF(COUNT($H193:P193)>='RFM input'!$AA$7,0,IF('RFM input'!$E$396='RFM input'!$G$395,-'RFM input'!Q406,-SUM(Q181:Q192))) -> 0
C194: =Asset7 -> 0 | E194: Opening RAB | H194: =IF(H$3>A7remlife,A7value-SUM($G194:G194),IF(A7remlife="N/A","n/a",A7value/A7remlife)) -> 0 | I194: =IF(I$3>A7remlife,A7value-SUM($G194:H194),IF(A7remlife="N/A","n/a",A7value/A7remlife)) -> 0 | J194: =IF(J$3>A7remlife,A7value-SUM($G194:I194),IF(A7remlife="N/A","n/a",A7value/A7remlife)) -> 0 | K194: =IF(K$3>A7remlife,A7value-SUM($G194:J194),IF(A7remlife="N/A","n/a",A7value/A7remlife)) -> 0 | L194: =IF(L$3>A7remlife,A7value-SUM($G194:K194),IF(A7remlife="N/A","n/a",A7value/A7remlife)) -> 0 | M194: =IF(M$3>A7remlife,A7value-SUM($G194:L194),IF(A7remlife="N/A","n/a",A7value/A7remlife)) -> 0 | N194: =IF(N$3>A7remlife,A7value-SUM($G194:M194),IF(A7remlife="N/A","n/a",A7value/A7remlife)) -> 0 | O194: =IF(O$3>A7remlife,A7value-SUM($G194:N194),IF(A7remlife="N/A","n/a",A7value/A7remlife)) -> 0 | P194: =IF(P$3>A7remlife,A7value-SUM($G194:O194),IF(A7remlife="N/A","n/a",A7value/A7remlife)) -> 0 | Q194: =IF(Q$3>A7remlife,A7value-SUM($G194:P194),IF(A7remlife="N/A","n/a",A7value/A7remlife)) -> 0
E195: Capex in year
F196: 1 | I196: =IF(A7stdlife="n/a","n/a",IF(I$3>(A7stdlife+$F196),('RFM input'!$H$337*(1+vanilla1)^0.5)-SUM($H196:H196),('RFM input'!$H$337*(1+vanilla1)^0.5)/A7stdlife)) -> 0 | J196: =IF(A7stdlife="n/a","n/a",IF(J$3>(A7stdlife+$F196),('RFM input'!$H$337*(1+vanilla1)^0.5)-SUM($H196:I196),('RFM input'!$H$337*(1+vanilla1)^0.5)/A7stdlife)) -> 0 | K196: =IF(A7stdlife="n/a","n/a",IF(K$3>(A7stdlife+$F196),('RFM input'!$H$337*(1+vanilla1)^0.5)-SUM($H196:J196),('RFM input'!$H$337*(1+vanilla1)^0.5)/A7stdlife)) -> 0 | L196: =IF(A7stdlife="n/a","n/a",IF(L$3>(A7stdlife+$F196),('RFM input'!$H$337*(1+vanilla1)^0.5)-SUM($H196:K196),('RFM input'!$H$337*(1+vanilla1)^0.5)/A7stdlife)) -> 0 | M196: =IF(A7stdlife="n/a","n/a",IF(M$3>(A7stdlife+$F196),('RFM input'!$H$337*(1+vanilla1)^0.5)-SUM($H196:L196),('RFM input'!$H$337*(1+vanilla1)^0.5)/A7stdlife)) -> 0 | N196: =IF(A7stdlife="n/a","n/a",IF(N$3>(A7stdlife+$F196),('RFM input'!$H$337*(1+vanilla1)^0.5)-SUM($H196:M196),('RFM input'!$H$337*(1+vanilla1)^0.5)/A7stdlife)) -> 0 | O196: =IF(A7stdlife="n/a","n/a",IF(O$3>(A7stdlife+$F196),('RFM input'!$H$337*(1+vanilla1)^0.5)-SUM($H196:N196),('RFM input'!$H$337*(1+vanilla1)^0.5)/A7stdlife)) -> 0 | P196: =IF(A7stdlife="n/a","n/a",IF(P$3>(A7stdlife+$F196),('RFM input'!$H$337*(1+vanilla1)^0.5)-SUM($H196:O196),('RFM input'!$H$337*(1+vanilla1)^0.5)/A7stdlife)) -> 0 | Q196: =IF(A7stdlife="n/a","n/a",IF(Q$3>(A7stdlife+$F196),('RFM input'!$H$337*(1+vanilla1)^0.5)-SUM($H196:P196),('RFM input'!$H$337*(1+vanilla1)^0.5)/A7stdlife)) -> 0
F197: 2 | J197: =IF(A7stdlife="n/a","n/a",IF(J$3>(A7stdlife+$F197),('RFM input'!$I$337*(1+vanilla2)^0.5)-SUM($I197:I197),('RFM input'!$I$337*(1+vanilla2)^0.5)/A7stdlife)) -> 0 | K197: =IF(A7stdlife="n/a","n/a",IF(K$3>(A7stdlife+$F197),('RFM input'!$I$337*(1+vanilla2)^0.5)-SUM($I197:J197),('RFM input'!$I$337*(1+vanilla2)^0.5)/A7stdlife)) -> 0 | L197: =IF(A7stdlife="n/a","n/a",IF(L$3>(A7stdlife+$F197),('RFM input'!$I$337*(1+vanilla2)^0.5)-SUM($I197:K197),('RFM input'!$I$337*(1+vanilla2)^0.5)/A7stdlife)) -> 0 | M197: =IF(A7stdlife="n/a","n/a",IF(M$3>(A7stdlife+$F197),('RFM input'!$I$337*(1+vanilla2)^0.5)-SUM($I197:L197),('RFM input'!$I$337*(1+vanilla2)^0.5)/A7stdlife)) -> 0 | N197: =IF(A7stdlife="n/a","n/a",IF(N$3>(A7stdlife+$F197),('RFM input'!$I$337*(1+vanilla2)^0.5)-SUM($I197:M197),('RFM input'!$I$337*(1+vanilla2)^0.5)/A7stdlife)) -> 0 | O197: =IF(A7stdlife="n/a","n/a",IF(O$3>(A7stdlife+$F197),('RFM input'!$I$337*(1+vanilla2)^0.5)-SUM($I197:N197),('RFM input'!$I$337*(1+vanilla2)^0.5)/A7stdlife)) -> 0 | P197: =IF(A7stdlife="n/a","n/a",IF(P$3>(A7stdlife+$F197),('RFM input'!$I$337*(1+vanilla2)^0.5)-SUM($I197:O197),('RFM input'!$I$337*(1+vanilla2)^0.5)/A7stdlife)) -> 0 | Q197: =IF(A7stdlife="n/a","n/a",IF(Q$3>(A7stdlife+$F197),('RFM input'!$I$337*(1+vanilla2)^0.5)-SUM($I197:P197),('RFM input'!$I$337*(1+vanilla2)^0.5)/A7stdlife)) -> 0
F198: 3 | K198: =IF(A7stdlife="n/a","n/a",IF(K$3>(A7stdlife+$F198),('RFM input'!$J$337*(1+vanilla3)^0.5)-SUM($J198:J198),('RFM input'!$J$337*(1+vanilla3)^0.5)/A7stdlife)) -> 0 | L198: =IF(A7stdlife="n/a","n/a",IF(L$3>(A7stdlife+$F198),('RFM input'!$J$337*(1+vanilla3)^0.5)-SUM($J198:K198),('RFM input'!$J$337*(1+vanilla3)^0.5)/A7stdlife)) -> 0 | M198: =IF(A7stdlife="n/a","n/a",IF(M$3>(A7stdlife+$F198),('RFM input'!$J$337*(1+vanilla3)^0.5)-SUM($J198:L198),('RFM input'!$J$337*(1+vanilla3)^0.5)/A7stdlife)) -> 0 | N198: =IF(A7stdlife="n/a","n/a",IF(N$3>(A7stdlife+$F198),('RFM input'!$J$337*(1+vanilla3)^0.5)-SUM($J198:M198),('RFM input'!$J$337*(1+vanilla3)^0.5)/A7stdlife)) -> 0 | O198: =IF(A7stdlife="n/a","n/a",IF(O$3>(A7stdlife+$F198),('RFM input'!$J$337*(1+vanilla3)^0.5)-SUM($J198:N198),('RFM input'!$J$337*(1+vanilla3)^0.5)/A7stdlife)) -> 0 | P198: =IF(A7stdlife="n/a","n/a",IF(P$3>(A7stdlife+$F198),('RFM input'!$J$337*(1+vanilla3)^0.5)-SUM($J198:O198),('RFM input'!$J$337*(1+vanilla3)^0.5)/A7stdlife)) -> 0 | Q198: =IF(A7stdlife="n/a","n/a",IF(Q$3>(A7stdlife+$F198),('RFM input'!$J$337*(1+vanilla3)^0.5)-SUM($J198:P198),('RFM input'!$J$337*(1+vanilla3)^0.5)/A7stdlife)) -> 0
F199: 4 | L199: =IF(A7stdlife="n/a","n/a",IF(L$3>(A7stdlife+$F199),('RFM input'!$K$337*(1+vanilla4)^0.5)-SUM($K199:K199),('RFM input'!$K$337*(1+vanilla4)^0.5)/A7stdlife)) -> 0 | M199: =IF(A7stdlife="n/a","n/a",IF(M$3>(A7stdlife+$F199),('RFM input'!$K$337*(1+vanilla4)^0.5)-SUM($K199:L199),('RFM input'!$K$337*(1+vanilla4)^0.5)/A7stdlife)) -> 0 | N199: =IF(A7stdlife="n/a","n/a",IF(N$3>(A7stdlife+$F199),('RFM input'!$K$337*(1+vanilla4)^0.5)-SUM($K199:M199),('RFM input'!$K$337*(1+vanilla4)^0.5)/A7stdlife)) -> 0 | O199: =IF(A7stdlife="n/a","n/a",IF(O$3>(A7stdlife+$F199),('RFM input'!$K$337*(1+vanilla4)^0.5)-SUM($K199:N199),('RFM input'!$K$337*(1+vanilla4)^0.5)/A7stdlife)) -> 0 | P199: =IF(A7stdlife="n/a","n/a",IF(P$3>(A7stdlife+$F199),('RFM input'!$K$337*(1+vanilla4)^0.5)-SUM($K199:O199),('RFM input'!$K$337*(1+vanilla4)^0.5)/A7stdlife)) -> 0 | Q199: =IF(A7stdlife="n/a","n/a",IF(Q$3>(A7stdlife+$F199),('RFM input'!$K$337*(1+vanilla4)^0.5)-SUM($K199:P199),('RFM input'!$K$337*(1+vanilla4)^0.5)/A7stdlife)) -> 0
F200: 5 | M200: =IF(A7stdlife="n/a","n/a",IF(M$3>(A7stdlife+$F200),('RFM input'!$L$337*(1+vanilla5)^0.5)-SUM($L200:L200),('RFM input'!$L$337*(1+vanilla5)^0.5)/A7stdlife)) -> 0 | N200: =IF(A7stdlife="n/a","n/a",IF(N$3>(A7stdlife+$F200),('RFM input'!$L$337*(1+vanilla5)^0.5)-SUM($L200:M200),('RFM input'!$L$337*(1+vanilla5)^0.5)/A7stdlife)) -> 0 | O200: =IF(A7stdlife="n/a","n/a",IF(O$3>(A7stdlife+$F200),('RFM input'!$L$337*(1+vanilla5)^0.5)-SUM($L200:N200),('RFM input'!$L$337*(1+vanilla5)^0.5)/A7stdlife)) -> 0 | P200: =IF(A7stdlife="n/a","n/a",IF(P$3>(A7stdlife+$F200),('RFM input'!$L$337*(1+vanilla5)^0.5)-SUM($L200:O200),('RFM input'!$L$337*(1+vanilla5)^0.5)/A7stdlife)) -> 0 | Q200: =IF(A7stdlife="n/a","n/a",IF(Q$3>(A7stdlife+$F200),('RFM input'!$L$337*(1+vanilla5)^0.5)-SUM($L200:P200),('RFM input'!$L$337*(1+vanilla5)^0.5)/A7stdlife)) -> 0
F201: 6 | N201: =IF(A7stdlife="n/a","n/a",IF(N$3>(A7stdlife+$F201),('RFM input'!$M$337*(1+vanilla6)^0.5)-SUM($M201:M201),('RFM input'!$M$337*(1+vanilla6)^0.5)/A7stdlife)) -> 0 | O201: =IF(A7stdlife="n/a","n/a",IF(O$3>(A7stdlife+$F201),('RFM input'!$M$337*(1+vanilla6)^0.5)-SUM($M201:N201),('RFM input'!$M$337*(1+vanilla6)^0.5)/A7stdlife)) -> 0 | P201: =IF(A7stdlife="n/a","n/a",IF(P$3>(A7stdlife+$F201),('RFM input'!$M$337*(1+vanilla6)^0.5)-SUM($M201:O201),('RFM input'!$M$337*(1+vanilla6)^0.5)/A7stdlife)) -> 0 | Q201: =IF(A7stdlife="n/a","n/a",IF(Q$3>(A7stdlife+$F201),('RFM input'!$M$337*(1+vanilla6)^0.5)-SUM($M201:P201),('RFM input'!$M$337*(1+vanilla6)^0.5)/A7stdlife)) -> 0
F202: 7 | O202: =IF(A7stdlife="n/a","n/a",IF(O$3>(A7stdlife+$F202),('RFM input'!$N$337*(1+vanilla7)^0.5)-SUM($N202:N202),('RFM input'!$N$337*(1+vanilla7)^0.5)/A7stdlife)) -> 0 | P202: =IF(A7stdlife="n/a","n/a",IF(P$3>(A7stdlife+$F202),('RFM input'!$N$337*(1+vanilla7)^0.5)-SUM($N202:O202),('RFM input'!$N$337*(1+vanilla7)^0.5)/A7stdlife)) -> 0 | Q202: =IF(A7stdlife="n/a","n/a",IF(Q$3>(A7stdlife+$F202),('RFM input'!$N$337*(1+vanilla7)^0.5)-SUM($N202:P202),('RFM input'!$N$337*(1+vanilla7)^0.5)/A7stdlife)) -> 0
F203: 8 | P203: =IF(A7stdlife="n/a","n/a",IF(P$3>(A7stdlife+$F203),('RFM input'!$O$337*(1+vanilla8)^0.5)-SUM($O203:O203),('RFM input'!$O$337*(1+vanilla8)^0.5)/A7stdlife)) -> 0 | Q203: =IF(A7stdlife="n/a","n/a",IF(Q$3>(A7stdlife+$F203),('RFM input'!$O$337*(1+vanilla8)^0.5)-SUM($O203:P203),('RFM input'!$O$337*(1+vanilla8)^0.5)/A7stdlife)) -> 0
F204: 9 | Q204: =IF(A7stdlife="n/a","n/a",IF(Q$3>(A7stdlife+$F204),('RFM input'!$P$337*(1+vanilla9)^0.5)-SUM($P204:P204),('RFM input'!$P$337*(1+vanilla9)^0.5)/A7stdlife)) -> 0
F205: 10
D206: =Asset7 -> 0 | H206: =IF('RFM input'!$E$396='RFM input'!$G$395,-'RFM input'!H407,-SUM(H194:H205)) -> 0 | I206: =IF('RFM input'!$E$396='RFM input'!$G$395,-'RFM input'!I407,-SUM(I194:I205)) -> 0 | J206: =IF(COUNT($H206:I206)>='RFM input'!$AA$7,0,IF('RFM input'!$E$396='RFM input'!$G$395,-'RFM input'!J407,-SUM(J194:J205))) -> 0 | K206: =IF(COUNT($H206:J206)>='RFM input'!$AA$7,0,IF('RFM input'!$E$396='RFM input'!$G$395,-'RFM input'!K407,-SUM(K194:K205))) -> 0 | L206: =IF(COUNT($H206:K206)>='RFM input'!$AA$7,0,IF('RFM input'!$E$396='RFM input'!$G$395,-'RFM input'!L407,-SUM(L194:L205))) -> 0 | M206: =IF(COUNT($H206:L206)>='RFM input'!$AA$7,0,IF('RFM input'!$E$396='RFM input'!$G$395,-'RFM input'!M407,-SUM(M194:M205))) -> 0 | N206: =IF(COUNT($H206:M206)>='RFM input'!$AA$7,0,IF('RFM input'!$E$396='RFM input'!$G$395,-'RFM input'!N407,-SUM(N194:N205))) -> 0 | O206: =IF(COUNT($H206:N206)>='RFM input'!$AA$7,0,IF('RFM input'!$E$396='RFM input'!$G$395,-'RFM input'!O407,-SUM(O194:O205))) -> 0 | P206: =IF(COUNT($H206:O206)>='RFM input'!$AA$7,0,IF('RFM input'!$E$396='RFM input'!$G$395,-'RFM input'!P407,-SUM(P194:P205))) -> 0 | Q206: =IF(COUNT($H206:P206)>='RFM input'!$AA$7,0,IF('RFM input'!$E$396='RFM input'!$G$395,-'RFM input'!Q407,-SUM(Q194:Q205))) -> 0
... 1377 more rows

Sheet Total RAB roll forward
C2: ='DMS input'!$C$16&" - Total Asset Roll Forward"&" - TNSP RFM - version "&Intro!$M$4 -> Aus Elec - Total Asset Roll Forward - TNSP RFM - version 3
G3: 0 | H3: =G3+1 -> 1 | I3: 2 | J3: 3 | K3: 4 | L3: 5 | M3: 6
C4: Year | G4: ='RFM input'!G60 -> 2011-12 | H4: ='RFM input'!H60 -> 2012-13 | I4: ='RFM input'!I60 -> 2013-14 | J4: ='RFM input'!J60 -> 2014-15 | K4: ='RFM input'!K60 -> 2015-16 | L4: ='RFM input'!L60 -> 2016-17 | M4: ='RFM input'!M60 -> 2017-18 | N4: ='RFM input'!N60 -> 2018-19 | O4: ='RFM input'!O60 -> 2019-20 | P4: ='RFM input'!P60 -> 2020-21 | Q4: ='RFM input'!Q60 -> 2021-22
C5: Asset Values – Partially As Incurred ($m Nominal)
C7: Nominal Opening Regulatory Asset Base | G7: =SUM(G8:G57) -> 2500 | H7: =SUM(H8:H57) -> 2545 | I7: 2564.355053 | J7: 2592.908597 | K7: 2588.003636 | L7: 2588.56403 | M7: 0 | N7: 0 | O7: 0 | P7: 0 | Q7: 0
D8: =Asset1 -> Transmission lines | G8: ='RAB roll forward'!G770 -> 1000 | H8: =G8+G60+G112+G164+G216+G268 -> 1015 | I8: =H8+H60+H112 -> 1012.916949 | J8: =IF(COUNT($H8:I8)>='RFM input'!$AA$7,0,I8+I60+I112) -> 1013.974761 | K8: =IF(COUNT($H8:J8)>='RFM input'!$AA$7,0,J8+J60+J112) -> 1001.360207 | L8: =IF(COUNT($H8:K8)>='RFM input'!$AA$7,0,K8+K60+K112) -> 990.4717474 | M8: =IF(COUNT($H8:L8)>='RFM input'!$AA$7,0,L8+L60+L112) -> 0 | N8: =IF(COUNT($H8:M8)>='RFM input'!$AA$7,0,M8+M60+M112) -> 0 | O8: =IF(COUNT($H8:N8)>='RFM input'!$AA$7,0,N8+N60+N112) -> 0 | P8: =IF(COUNT($H8:O8)>='RFM input'!$AA$7,0,O8+O60+O112) -> 0 | Q8: =IF(COUNT($H8:P8)>='RFM input'!$AA$7,0,P8+P60+P112) -> 0
D9: =Asset2 -> Substations | G9: ='RAB roll forward'!G771 -> 800 | H9: 815 | I9: 808.2730507 | J9: =IF(COUNT($H9:I9)>='RFM input'!$AA$7,0,I9+I61+I113) -> 803.7028251 | K9: =IF(COUNT($H9:J9)>='RFM input'!$AA$7,0,J9+J61+J113) -> 787.8646292 | L9: =IF(COUNT($H9:K9)>='RFM input'!$AA$7,0,K9+K61+K113) -> 773.0909549 | M9: =IF(COUNT($H9:L9)>='RFM input'!$AA$7,0,L9+L61+L113) -> 0 | N9: =IF(COUNT($H9:M9)>='RFM input'!$AA$7,0,M9+M61+M113) -> 0 | O9: =IF(COUNT($H9:N9)>='RFM input'!$AA$7,0,N9+N61+N113) -> 0 | P9: =IF(COUNT($H9:O9)>='RFM input'!$AA$7,0,O9+O61+O113) -> 0 | Q9: =IF(COUNT($H9:P9)>='RFM input'!$AA$7,0,P9+P61+P113) -> 0
D10: =Asset3 -> Easements | G10: ='RAB roll forward'!G772 -> 700 | H10: 715 | I10: 743.1650534 | J10: =IF(COUNT($H10:I10)>='RFM input'!$AA$7,0,I10+I62+I114) -> 775.2310103 | K10: =IF(COUNT($H10:J10)>='RFM input'!$AA$7,0,J10+J62+J114) -> 798.7788005 | L10: =IF(COUNT($H10:K10)>='RFM input'!$AA$7,0,K10+K62+K114) -> 825.0013273 | M10: =IF(COUNT($H10:L10)>='RFM input'!$AA$7,0,L10+L62+L114) -> 0 | N10: =IF(COUNT($H10:M10)>='RFM input'!$AA$7,0,M10+M62+M114) -> 0 | O10: =IF(COUNT($H10:N10)>='RFM input'!$AA$7,0,N10+N62+N114) -> 0 | P10: =IF(COUNT($H10:O10)>='RFM input'!$AA$7,0,O10+O62+O114) -> 0 | Q10: =IF(COUNT($H10:P10)>='RFM input'!$AA$7,0,P10+P62+P114) -> 0
D11: =Asset4 -> 0 | G11: ='RAB roll forward'!G773 -> 0 | H11: 0 | I11: 0 | J11: =IF(COUNT($H11:I11)>='RFM input'!$AA$7,0,I11+I63+I115) -> 0 | K11: =IF(COUNT($H11:J11)>='RFM input'!$AA$7,0,J11+J63+J115) -> 0 | L11: =IF(COUNT($H11:K11)>='RFM input'!$AA$7,0,K11+K63+K115) -> 0 | M11: =IF(COUNT($H11:L11)>='RFM input'!$AA$7,0,L11+L63+L115) -> 0 | N11: =IF(COUNT($H11:M11)>='RFM input'!$AA$7,0,M11+M63+M115) -> 0 | O11: =IF(COUNT($H11:N11)>='RFM input'!$AA$7,0,N11+N63+N115) -> 0 | P11: =IF(COUNT($H11:O11)>='RFM input'!$AA$7,0,O11+O63+O115) -> 0 | Q11: =IF(COUNT($H11:P11)>='RFM input'!$AA$7,0,P11+P63+P115) -> 0
D12: =Asset5 -> 0 | G12: ='RAB roll forward'!G774 -> 0 | H12: 0 | I12: 0 | J12: =IF(COUNT($H12:I12)>='RFM input'!$AA$7,0,I12+I64+I116) -> 0 | K12: =IF(COUNT($H12:J12)>='RFM input'!$AA$7,0,J12+J64+J116) -> 0 | L12: =IF(COUNT($H12:K12)>='RFM input'!$AA$7,0,K12+K64+K116) -> 0 | M12: =IF(COUNT($H12:L12)>='RFM input'!$AA$7,0,L12+L64+L116) -> 0 | N12: =IF(COUNT($H12:M12)>='RFM input'!$AA$7,0,M12+M64+M116) -> 0 | O12: =IF(COUNT($H12:N12)>='RFM input'!$AA$7,0,N12+N64+N116) -> 0 | P12: =IF(COUNT($H12:O12)>='RFM input'!$AA$7,0,O12+O64+O116) -> 0 | Q12: =IF(COUNT($H12:P12)>='RFM input'!$AA$7,0,P12+P64+P116) -> 0
D13: =Asset6 -> 0 | G13: ='RAB roll forward'!G775 -> 0 | H13: 0 | I13: 0 | J13: =IF(COUNT($H13:I13)>='RFM input'!$AA$7,0,I13+I65+I117) -> 0 | K13: =IF(COUNT($H13:J13)>='RFM input'!$AA$7,0,J13+J65+J117) -> 0 | L13: =IF(COUNT($H13:K13)>='RFM input'!$AA$7,0,K13+K65+K117) -> 0 | M13: =IF(COUNT($H13:L13)>='RFM input'!$AA$7,0,L13+L65+L117) -> 0 | N13: =IF(COUNT($H13:M13)>='RFM input'!$AA$7,0,M13+M65+M117) -> 0 | O13: =IF(COUNT($H13:N13)>='RFM input'!$AA$7,0,N13+N65+N117) -> 0 | P13: =IF(COUNT($H13:O13)>='RFM input'!$AA$7,0,O13+O65+O117) -> 0 | Q13: =IF(COUNT($H13:P13)>='RFM input'!$AA$7,0,P13+P65+P117) -> 0
D14: =Asset7 -> 0 | G14: ='RAB roll forward'!G776 -> 0 | H14: 0 | I14: 0 | J14: =IF(COUNT($H14:I14)>='RFM input'!$AA$7,0,I14+I66+I118) -> 0 | K14: =IF(COUNT($H14:J14)>='RFM input'!$AA$7,0,J14+J66+J118) -> 0 | L14: =IF(COUNT($H14:K14)>='RFM input'!$AA$7,0,K14+K66+K118) -> 0 | M14: =IF(COUNT($H14:L14)>='RFM input'!$AA$7,0,L14+L66+L118) -> 0 | N14: =IF(COUNT($H14:M14)>='RFM input'!$AA$7,0,M14+M66+M118) -> 0 | O14: =IF(COUNT($H14:N14)>='RFM input'!$AA$7,0,N14+N66+N118) -> 0 | P14: =IF(COUNT($H14:O14)>='RFM input'!$AA$7,0,O14+O66+O118) -> 0 | Q14: =IF(COUNT($H14:P14)>='RFM input'!$AA$7,0,P14+P66+P118) -> 0
D15: =Asset8 -> 0 | G15: ='RAB roll forward'!G777 -> 0 | H15: 0 | I15: 0 | J15: =IF(COUNT($H15:I15)>='RFM input'!$AA$7,0,I15+I67+I119) -> 0 | K15: =IF(COUNT($H15:J15)>='RFM input'!$AA$7,0,J15+J67+J119) -> 0 | L15: =IF(COUNT($H15:K15)>='RFM input'!$AA$7,0,K15+K67+K119) -> 0 | M15: =IF(COUNT($H15:L15)>='RFM input'!$AA$7,0,L15+L67+L119) -> 0 | N15: =IF(COUNT($H15:M15)>='RFM input'!$AA$7,0,M15+M67+M119) -> 0 | O15: =IF(COUNT($H15:N15)>='RFM input'!$AA$7,0,N15+N67+N119) -> 0 | P15: =IF(COUNT($H15:O15)>='RFM input'!$AA$7,0,O15+O67+O119) -> 0 | Q15: =IF(COUNT($H15:P15)>='RFM input'!$AA$7,0,P15+P67+P119) -> 0
D16: =Asset9 -> 0 | G16: ='RAB roll forward'!G778 -> 0 | H16: 0 | I16: 0 | J16: =IF(COUNT($H16:I16)>='RFM input'!$AA$7,0,I16+I68+I120) -> 0 | K16: =IF(COUNT($H16:J16)>='RFM input'!$AA$7,0,J16+J68+J120) -> 0 | L16: =IF(COUNT($H16:K16)>='RFM input'!$AA$7,0,K16+K68+K120) -> 0 | M16: =IF(COUNT($H16:L16)>='RFM input'!$AA$7,0,L16+L68+L120) -> 0 | N16: =IF(COUNT($H16:M16)>='RFM input'!$AA$7,0,M16+M68+M120) -> 0 | O16: =IF(COUNT($H16:N16)>='RFM input'!$AA$7,0,N16+N68+N120) -> 0 | P16: =IF(COUNT($H16:O16)>='RFM input'!$AA$7,0,O16+O68+O120) -> 0 | Q16: =IF(COUNT($H16:P16)>='RFM input'!$AA$7,0,P16+P68+P120) -> 0
D17: =Asset10 -> 0 | G17: ='RAB roll forward'!G779 -> 0 | H17: 0 | I17: 0 | J17: =IF(COUNT($H17:I17)>='RFM input'!$AA$7,0,I17+I69+I121) -> 0 | K17: =IF(COUNT($H17:J17)>='RFM input'!$AA$7,0,J17+J69+J121) -> 0 | L17: =IF(COUNT($H17:K17)>='RFM input'!$AA$7,0,K17+K69+K121) -> 0 | M17: =IF(COUNT($H17:L17)>='RFM input'!$AA$7,0,L17+L69+L121) -> 0 | N17: =IF(COUNT($H17:M17)>='RFM input'!$AA$7,0,M17+M69+M121) -> 0 | O17: =IF(COUNT($H17:N17)>='RFM input'!$AA$7,0,N17+N69+N121) -> 0 | P17: =IF(COUNT($H17:O17)>='RFM input'!$AA$7,0,O17+O69+O121) -> 0 | Q17: =IF(COUNT($H17:P17)>='RFM input'!$AA$7,0,P17+P69+P121) -> 0
D18: =Asset11 -> 0 | G18: ='RAB roll forward'!G780 -> 0 | H18: 0 | I18: 0 | J18: =IF(COUNT($H18:I18)>='RFM input'!$AA$7,0,I18+I70+I122) -> 0 | K18: =IF(COUNT($H18:J18)>='RFM input'!$AA$7,0,J18+J70+J122) -> 0 | L18: =IF(COUNT($H18:K18)>='RFM input'!$AA$7,0,K18+K70+K122) -> 0 | M18: =IF(COUNT($H18:L18)>='RFM input'!$AA$7,0,L18+L70+L122) -> 0 | N18: =IF(COUNT($H18:M18)>='RFM input'!$AA$7,0,M18+M70+M122) -> 0 | O18: =IF(COUNT($H18:N18)>='RFM input'!$AA$7,0,N18+N70+N122) -> 0 | P18: =IF(COUNT($H18:O18)>='RFM input'!$AA$7,0,O18+O70+O122) -> 0 | Q18: =IF(COUNT($H18:P18)>='RFM input'!$AA$7,0,P18+P70+P122) -> 0
D19: =Asset12 -> 0 | G19: ='RAB roll forward'!G781 -> 0 | H19: 0 | I19: 0 | J19: =IF(COUNT($H19:I19)>='RFM input'!$AA$7,0,I19+I71+I123) -> 0 | K19: =IF(COUNT($H19:J19)>='RFM input'!$AA$7,0,J19+J71+J123) -> 0 | L19: =IF(COUNT($H19:K19)>='RFM input'!$AA$7,0,K19+K71+K123) -> 0 | M19: =IF(COUNT($H19:L19)>='RFM input'!$AA$7,0,L19+L71+L123) -> 0 | N19: =IF(COUNT($H19:M19)>='RFM input'!$AA$7,0,M19+M71+M123) -> 0 | O19: =IF(COUNT($H19:N19)>='RFM input'!$AA$7,0,N19+N71+N123) -> 0 | P19: =IF(COUNT($H19:O19)>='RFM input'!$AA$7,0,O19+O71+O123) -> 0 | Q19: =IF(COUNT($H19:P19)>='RFM input'!$AA$7,0,P19+P71+P123) -> 0
D20: =Asset13 -> 0 | G20: ='RAB roll forward'!G782 -> 0 | H20: 0 | I20: 0 | J20: =IF(COUNT($H20:I20)>='RFM input'!$AA$7,0,I20+I72+I124) -> 0 | K20: =IF(COUNT($H20:J20)>='RFM input'!$AA$7,0,J20+J72+J124) -> 0 | L20: =IF(COUNT($H20:K20)>='RFM input'!$AA$7,0,K20+K72+K124) -> 0 | M20: =IF(COUNT($H20:L20)>='RFM input'!$AA$7,0,L20+L72+L124) -> 0 | N20: =IF(COUNT($H20:M20)>='RFM input'!$AA$7,0,M20+M72+M124) -> 0 | O20: =IF(COUNT($H20:N20)>='RFM input'!$AA$7,0,N20+N72+N124) -> 0 | P20: =IF(COUNT($H20:O20)>='RFM input'!$AA$7,0,O20+O72+O124) -> 0 | Q20: =IF(COUNT($H20:P20)>='RFM input'!$AA$7,0,P20+P72+P124) -> 0
D21: =Asset14 -> 0 | G21: ='RAB roll forward'!G783 -> 0 | H21: 0 | I21: 0 | J21: =IF(COUNT($H21:I21)>='RFM input'!$AA$7,0,I21+I73+I125) -> 0 | K21: =IF(COUNT($H21:J21)>='RFM input'!$AA$7,0,J21+J73+J125) -> 0 | L21: =IF(COUNT($H21:K21)>='RFM input'!$AA$7,0,K21+K73+K125) -> 0 | M21: =IF(COUNT($H21:L21)>='RFM input'!$AA$7,0,L21+L73+L125) -> 0 | N21: =IF(COUNT($H21:M21)>='RFM input'!$AA$7,0,M21+M73+M125) -> 0 | O21: =IF(COUNT($H21:N21)>='RFM input'!$AA$7,0,N21+N73+N125) -> 0 | P21: =IF(COUNT($H21:O21)>='RFM input'!$AA$7,0,O21+O73+O125) -> 0 | Q21: =IF(COUNT($H21:P21)>='RFM input'!$AA$7,0,P21+P73+P125) -> 0
D22: =Asset15 -> 0 | G22: ='RAB roll forward'!G784 -> 0 | H22: 0 | I22: 0 | J22: =IF(COUNT($H22:I22)>='RFM input'!$AA$7,0,I22+I74+I126) -> 0 | K22: =IF(COUNT($H22:J22)>='RFM input'!$AA$7,0,J22+J74+J126) -> 0 | L22: =IF(COUNT($H22:K22)>='RFM input'!$AA$7,0,K22+K74+K126) -> 0 | M22: =IF(COUNT($H22:L22)>='RFM input'!$AA$7,0,L22+L74+L126) -> 0 | N22: =IF(COUNT($H22:M22)>='RFM input'!$AA$7,0,M22+M74+M126) -> 0 | O22: =IF(COUNT($H22:N22)>='RFM input'!$AA$7,0,N22+N74+N126) -> 0 | P22: =IF(COUNT($H22:O22)>='RFM input'!$AA$7,0,O22+O74+O126) -> 0 | Q22: =IF(COUNT($H22:P22)>='RFM input'!$AA$7,0,P22+P74+P126) -> 0
D23: =Asset16 -> 0 | G23: ='RAB roll forward'!G785 -> 0 | H23: 0 | I23: 0 | J23: =IF(COUNT($H23:I23)>='RFM input'!$AA$7,0,I23+I75+I127) -> 0 | K23: =IF(COUNT($H23:J23)>='RFM input'!$AA$7,0,J23+J75+J127) -> 0 | L23: =IF(COUNT($H23:K23)>='RFM input'!$AA$7,0,K23+K75+K127) -> 0 | M23: =IF(COUNT($H23:L23)>='RFM input'!$AA$7,0,L23+L75+L127) -> 0 | N23: =IF(COUNT($H23:M23)>='RFM input'!$AA$7,0,M23+M75+M127) -> 0 | O23: =IF(COUNT($H23:N23)>='RFM input'!$AA$7,0,N23+N75+N127) -> 0 | P23: =IF(COUNT($H23:O23)>='RFM input'!$AA$7,0,O23+O75+O127) -> 0 | Q23: =IF(COUNT($H23:P23)>='RFM input'!$AA$7,0,P23+P75+P127) -> 0
D24: =Asset17 -> 0 | G24: ='RAB roll forward'!G786 -> 0 | H24: 0 | I24: 0 | J24: =IF(COUNT($H24:I24)>='RFM input'!$AA$7,0,I24+I76+I128) -> 0 | K24: =IF(COUNT($H24:J24)>='RFM input'!$AA$7,0,J24+J76+J128) -> 0 | L24: =IF(COUNT($H24:K24)>='RFM input'!$AA$7,0,K24+K76+K128) -> 0 | M24: =IF(COUNT($H24:L24)>='RFM input'!$AA$7,0,L24+L76+L128) -> 0 | N24: =IF(COUNT($H24:M24)>='RFM input'!$AA$7,0,M24+M76+M128) -> 0 | O24: =IF(COUNT($H24:N24)>='RFM input'!$AA$7,0,N24+N76+N128) -> 0 | P24: =IF(COUNT($H24:O24)>='RFM input'!$AA$7,0,O24+O76+O128) -> 0 | Q24: =IF(COUNT($H24:P24)>='RFM input'!$AA$7,0,P24+P76+P128) -> 0
D25: =Asset18 -> 0 | G25: ='RAB roll forward'!G787 -> 0 | H25: 0 | I25: 0 | J25: =IF(COUNT($H25:I25)>='RFM input'!$AA$7,0,I25+I77+I129) -> 0 | K25: =IF(COUNT($H25:J25)>='RFM input'!$AA$7,0,J25+J77+J129) -> 0 | L25: =IF(COUNT($H25:K25)>='RFM input'!$AA$7,0,K25+K77+K129) -> 0 | M25: =IF(COUNT($H25:L25)>='RFM input'!$AA$7,0,L25+L77+L129) -> 0 | N25: =IF(COUNT($H25:M25)>='RFM input'!$AA$7,0,M25+M77+M129) -> 0 | O25: =IF(COUNT($H25:N25)>='RFM input'!$AA$7,0,N25+N77+N129) -> 0 | P25: =IF(COUNT($H25:O25)>='RFM input'!$AA$7,0,O25+O77+O129) -> 0 | Q25: =IF(COUNT($H25:P25)>='RFM input'!$AA$7,0,P25+P77+P129) -> 0
D26: =Asset19 -> 0 | G26: ='RAB roll forward'!G788 -> 0 | H26: 0 | I26: 0 | J26: =IF(COUNT($H26:I26)>='RFM input'!$AA$7,0,I26+I78+I130) -> 0 | K26: =IF(COUNT($H26:J26)>='RFM input'!$AA$7,0,J26+J78+J130) -> 0 | L26: =IF(COUNT($H26:K26)>='RFM input'!$AA$7,0,K26+K78+K130) -> 0 | M26: =IF(COUNT($H26:L26)>='RFM input'!$AA$7,0,L26+L78+L130) -> 0 | N26: =IF(COUNT($H26:M26)>='RFM input'!$AA$7,0,M26+M78+M130) -> 0 | O26: =IF(COUNT($H26:N26)>='RFM input'!$AA$7,0,N26+N78+N130) -> 0 | P26: =IF(COUNT($H26:O26)>='RFM input'!$AA$7,0,O26+O78+O130) -> 0 | Q26: =IF(COUNT($H26:P26)>='RFM input'!$AA$7,0,P26+P78+P130) -> 0
D27: =Asset20 -> 0 | G27: ='RAB roll forward'!G789 -> 0 | H27: 0 | I27: 0 | J27: =IF(COUNT($H27:I27)>='RFM input'!$AA$7,0,I27+I79+I131) -> 0 | K27: =IF(COUNT($H27:J27)>='RFM input'!$AA$7,0,J27+J79+J131) -> 0 | L27: =IF(COUNT($H27:K27)>='RFM input'!$AA$7,0,K27+K79+K131) -> 0 | M27: =IF(COUNT($H27:L27)>='RFM input'!$AA$7,0,L27+L79+L131) -> 0 | N27: =IF(COUNT($H27:M27)>='RFM input'!$AA$7,0,M27+M79+M131) -> 0 | O27: =IF(COUNT($H27:N27)>='RFM input'!$AA$7,0,N27+N79+N131) -> 0 | P27: =IF(COUNT($H27:O27)>='RFM input'!$AA$7,0,O27+O79+O131) -> 0 | Q27: =IF(COUNT($H27:P27)>='RFM input'!$AA$7,0,P27+P79+P131) -> 0
D28: =Asset21 -> 0 | G28: ='RAB roll forward'!G790 -> 0 | H28: 0 | I28: 0 | J28: =IF(COUNT($H28:I28)>='RFM input'!$AA$7,0,I28+I80+I132) -> 0 | K28: =IF(COUNT($H28:J28)>='RFM input'!$AA$7,0,J28+J80+J132) -> 0 | L28: =IF(COUNT($H28:K28)>='RFM input'!$AA$7,0,K28+K80+K132) -> 0 | M28: =IF(COUNT($H28:L28)>='RFM input'!$AA$7,0,L28+L80+L132) -> 0 | N28: =IF(COUNT($H28:M28)>='RFM input'!$AA$7,0,M28+M80+M132) -> 0 | O28: =IF(COUNT($H28:N28)>='RFM input'!$AA$7,0,N28+N80+N132) -> 0 | P28: =IF(COUNT($H28:O28)>='RFM input'!$AA$7,0,O28+O80+O132) -> 0 | Q28: =IF(COUNT($H28:P28)>='RFM input'!$AA$7,0,P28+P80+P132) -> 0
D29: =Asset22 -> 0 | G29: ='RAB roll forward'!G791 -> 0 | H29: 0 | I29: 0 | J29: =IF(COUNT($H29:I29)>='RFM input'!$AA$7,0,I29+I81+I133) -> 0 | K29: =IF(COUNT($H29:J29)>='RFM input'!$AA$7,0,J29+J81+J133) -> 0 | L29: =IF(COUNT($H29:K29)>='RFM input'!$AA$7,0,K29+K81+K133) -> 0 | M29: =IF(COUNT($H29:L29)>='RFM input'!$AA$7,0,L29+L81+L133) -> 0 | N29: =IF(COUNT($H29:M29)>='RFM input'!$AA$7,0,M29+M81+M133) -> 0 | O29: =IF(COUNT($H29:N29)>='RFM input'!$AA$7,0,N29+N81+N133) -> 0 | P29: =IF(COUNT($H29:O29)>='RFM input'!$AA$7,0,O29+O81+O133) -> 0 | Q29: =IF(COUNT($H29:P29)>='RFM input'!$AA$7,0,P29+P81+P133) -> 0
D30: =Asset23 -> 0 | G30: ='RAB roll forward'!G792 -> 0 | H30: 0 | I30: 0 | J30: =IF(COUNT($H30:I30)>='RFM input'!$AA$7,0,I30+I82+I134) -> 0 | K30: =IF(COUNT($H30:J30)>='RFM input'!$AA$7,0,J30+J82+J134) -> 0 | L30: =IF(COUNT($H30:K30)>='RFM input'!$AA$7,0,K30+K82+K134) -> 0 | M30: =IF(COUNT($H30:L30)>='RFM input'!$AA$7,0,L30+L82+L134) -> 0 | N30: =IF(COUNT($H30:M30)>='RFM input'!$AA$7,0,M30+M82+M134) -> 0 | O30: =IF(COUNT($H30:N30)>='RFM input'!$AA$7,0,N30+N82+N134) -> 0 | P30: =IF(COUNT($H30:O30)>='RFM input'!$AA$7,0,O30+O82+O134) -> 0 | Q30: =IF(COUNT($H30:P30)>='RFM input'!$AA$7,0,P30+P82+P134) -> 0
D31: =Asset24 -> 0 | G31: ='RAB roll forward'!G793 -> 0 | H31: 0 | I31: 0 | J31: =IF(COUNT($H31:I31)>='RFM input'!$AA$7,0,I31+I83+I135) -> 0 | K31: =IF(COUNT($H31:J31)>='RFM input'!$AA$7,0,J31+J83+J135) -> 0 | L31: =IF(COUNT($H31:K31)>='RFM input'!$AA$7,0,K31+K83+K135) -> 0 | M31: =IF(COUNT($H31:L31)>='RFM input'!$AA$7,0,L31+L83+L135) -> 0 | N31: =IF(COUNT($H31:M31)>='RFM input'!$AA$7,0,M31+M83+M135) -> 0 | O31: =IF(COUNT($H31:N31)>='RFM input'!$AA$7,0,N31+N83+N135) -> 0 | P31: =IF(COUNT($H31:O31)>='RFM input'!$AA$7,0,O31+O83+O135) -> 0 | Q31: =IF(COUNT($H31:P31)>='RFM input'!$AA$7,0,P31+P83+P135) -> 0
D32: =Asset25 -> 0 | G32: ='RAB roll forward'!G794 -> 0 | H32: 0 | I32: 0 | J32: =IF(COUNT($H32:I32)>='RFM input'!$AA$7,0,I32+I84+I136) -> 0 | K32: =IF(COUNT($H32:J32)>='RFM input'!$AA$7,0,J32+J84+J136) -> 0 | L32: =IF(COUNT($H32:K32)>='RFM input'!$AA$7,0,K32+K84+K136) -> 0 | M32: =IF(COUNT($H32:L32)>='RFM input'!$AA$7,0,L32+L84+L136) -> 0 | N32: =IF(COUNT($H32:M32)>='RFM input'!$AA$7,0,M32+M84+M136) -> 0 | O32: =IF(COUNT($H32:N32)>='RFM input'!$AA$7,0,N32+N84+N136) -> 0 | P32: =IF(COUNT($H32:O32)>='RFM input'!$AA$7,0,O32+O84+O136) -> 0 | Q32: =IF(COUNT($H32:P32)>='RFM input'!$AA$7,0,P32+P84+P136) -> 0
D33: =Asset26 -> 0 | G33: ='RAB roll forward'!G795 -> 0 | H33: 0 | I33: 0 | J33: =IF(COUNT($H33:I33)>='RFM input'!$AA$7,0,I33+I85+I137) -> 0 | K33: =IF(COUNT($H33:J33)>='RFM input'!$AA$7,0,J33+J85+J137) -> 0 | L33: =IF(COUNT($H33:K33)>='RFM input'!$AA$7,0,K33+K85+K137) -> 0 | M33: =IF(COUNT($H33:L33)>='RFM input'!$AA$7,0,L33+L85+L137) -> 0 | N33: =IF(COUNT($H33:M33)>='RFM input'!$AA$7,0,M33+M85+M137) -> 0 | O33: =IF(COUNT($H33:N33)>='RFM input'!$AA$7,0,N33+N85+N137) -> 0 | P33: =IF(COUNT($H33:O33)>='RFM input'!$AA$7,0,O33+O85+O137) -> 0 | Q33: =IF(COUNT($H33:P33)>='RFM input'!$AA$7,0,P33+P85+P137) -> 0
D34: =Asset27 -> 0 | G34: ='RAB roll forward'!G796 -> 0 | H34: 0 | I34: 0 | J34: =IF(COUNT($H34:I34)>='RFM input'!$AA$7,0,I34+I86+I138) -> 0 | K34: =IF(COUNT($H34:J34)>='RFM input'!$AA$7,0,J34+J86+J138) -> 0 | L34: =IF(COUNT($H34:K34)>='RFM input'!$AA$7,0,K34+K86+K138) -> 0 | M34: =IF(COUNT($H34:L34)>='RFM input'!$AA$7,0,L34+L86+L138) -> 0 | N34: =IF(COUNT($H34:M34)>='RFM input'!$AA$7,0,M34+M86+M138) -> 0 | O34: =IF(COUNT($H34:N34)>='RFM input'!$AA$7,0,N34+N86+N138) -> 0 | P34: =IF(COUNT($H34:O34)>='RFM input'!$AA$7,0,O34+O86+O138) -> 0 | Q34: =IF(COUNT($H34:P34)>='RFM input'!$AA$7,0,P34+P86+P138) -> 0
D35: =Asset28 -> 0 | G35: ='RAB roll forward'!G797 -> 0 | H35: 0 | I35: 0 | J35: =IF(COUNT($H35:I35)>='RFM input'!$AA$7,0,I35+I87+I139) -> 0 | K35: =IF(COUNT($H35:J35)>='RFM input'!$AA$7,0,J35+J87+J139) -> 0 | L35: =IF(COUNT($H35:K35)>='RFM input'!$AA$7,0,K35+K87+K139) -> 0 | M35: =IF(COUNT($H35:L35)>='RFM input'!$AA$7,0,L35+L87+L139) -> 0 | N35: =IF(COUNT($H35:M35)>='RFM input'!$AA$7,0,M35+M87+M139) -> 0 | O35: =IF(COUNT($H35:N35)>='RFM input'!$AA$7,0,N35+N87+N139) -> 0 | P35: =IF(COUNT($H35:O35)>='RFM input'!$AA$7,0,O35+O87+O139) -> 0 | Q35: =IF(COUNT($H35:P35)>='RFM input'!$AA$7,0,P35+P87+P139) -> 0
D36: =Asset29 -> 0 | G36: ='RAB roll forward'!G798 -> 0 | H36: 0 | I36: 0 | J36: =IF(COUNT($H36:I36)>='RFM input'!$AA$7,0,I36+I88+I140) -> 0 | K36: =IF(COUNT($H36:J36)>='RFM input'!$AA$7,0,J36+J88+J140) -> 0 | L36: =IF(COUNT($H36:K36)>='RFM input'!$AA$7,0,K36+K88+K140) -> 0 | M36: =IF(COUNT($H36:L36)>='RFM input'!$AA$7,0,L36+L88+L140) -> 0 | N36: =IF(COUNT($H36:M36)>='RFM input'!$AA$7,0,M36+M88+M140) -> 0 | O36: =IF(COUNT($H36:N36)>='RFM input'!$AA$7,0,N36+N88+N140) -> 0 | P36: =IF(COUNT($H36:O36)>='RFM input'!$AA$7,0,O36+O88+O140) -> 0 | Q36: =IF(COUNT($H36:P36)>='RFM input'!$AA$7,0,P36+P88+P140) -> 0
D37: =Asset30 -> 0 | G37: ='RAB roll forward'!G799 -> 0 | H37: 0 | I37: 0 | J37: =IF(COUNT($H37:I37)>='RFM input'!$AA$7,0,I37+I89+I141) -> 0 | K37: =IF(COUNT($H37:J37)>='RFM input'!$AA$7,0,J37+J89+J141) -> 0 | L37: =IF(COUNT($H37:K37)>='RFM input'!$AA$7,0,K37+K89+K141) -> 0 | M37: =IF(COUNT($H37:L37)>='RFM input'!$AA$7,0,L37+L89+L141) -> 0 | N37: =IF(COUNT($H37:M37)>='RFM input'!$AA$7,0,M37+M89+M141) -> 0 | O37: =IF(COUNT($H37:N37)>='RFM input'!$AA$7,0,N37+N89+N141) -> 0 | P37: =IF(COUNT($H37:O37)>='RFM input'!$AA$7,0,O37+O89+O141) -> 0 | Q37: =IF(COUNT($H37:P37)>='RFM input'!$AA$7,0,P37+P89+P141) -> 0
D38: =Asset31 -> 0 | G38: ='RAB roll forward'!G800 -> 0 | H38: =G38+G90+G142+G194+G246+G298 -> 0 | I38: =H38+H90+H142 -> 0 | J38: =IF(COUNT($H38:I38)>='RFM input'!$AA$7,0,I38+I90+I142) -> 0 | K38: =IF(COUNT($H38:J38)>='RFM input'!$AA$7,0,J38+J90+J142) -> 0 | L38: =IF(COUNT($H38:K38)>='RFM input'!$AA$7,0,K38+K90+K142) -> 0 | M38: =IF(COUNT($H38:L38)>='RFM input'!$AA$7,0,L38+L90+L142) -> 0 | N38: =IF(COUNT($H38:M38)>='RFM input'!$AA$7,0,M38+M90+M142) -> 0 | O38: =IF(COUNT($H38:N38)>='RFM input'!$AA$7,0,N38+N90+N142) -> 0 | P38: =IF(COUNT($H38:O38)>='RFM input'!$AA$7,0,O38+O90+O142) -> 0 | Q38: =IF(COUNT($H38:P38)>='RFM input'!$AA$7,0,P38+P90+P142) -> 0
D39: =Asset32 -> 0 | G39: ='RAB roll forward'!G801 -> 0 | H39: 0 | I39: 0 | J39: =IF(COUNT($H39:I39)>='RFM input'!$AA$7,0,I39+I91+I143) -> 0 | K39: =IF(COUNT($H39:J39)>='RFM input'!$AA$7,0,J39+J91+J143) -> 0 | L39: =IF(COUNT($H39:K39)>='RFM input'!$AA$7,0,K39+K91+K143) -> 0 | M39: =IF(COUNT($H39:L39)>='RFM input'!$AA$7,0,L39+L91+L143) -> 0 | N39: =IF(COUNT($H39:M39)>='RFM input'!$AA$7,0,M39+M91+M143) -> 0 | O39: =IF(COUNT($H39:N39)>='RFM input'!$AA$7,0,N39+N91+N143) -> 0 | P39: =IF(COUNT($H39:O39)>='RFM input'!$AA$7,0,O39+O91+O143) -> 0 | Q39: =IF(COUNT($H39:P39)>='RFM input'!$AA$7,0,P39+P91+P143) -> 0
D40: =Asset33 -> 0 | G40: ='RAB roll forward'!G802 -> 0 | H40: 0 | I40: 0 | J40: =IF(COUNT($H40:I40)>='RFM input'!$AA$7,0,I40+I92+I144) -> 0 | K40: =IF(COUNT($H40:J40)>='RFM input'!$AA$7,0,J40+J92+J144) -> 0 | L40: =IF(COUNT($H40:K40)>='RFM input'!$AA$7,0,K40+K92+K144) -> 0 | M40: =IF(COUNT($H40:L40)>='RFM input'!$AA$7,0,L40+L92+L144) -> 0 | N40: =IF(COUNT($H40:M40)>='RFM input'!$AA$7,0,M40+M92+M144) -> 0 | O40: =IF(COUNT($H40:N40)>='RFM input'!$AA$7,0,N40+N92+N144) -> 0 | P40: =IF(COUNT($H40:O40)>='RFM input'!$AA$7,0,O40+O92+O144) -> 0 | Q40: =IF(COUNT($H40:P40)>='RFM input'!$AA$7,0,P40+P92+P144) -> 0
D41: =Asset34 -> 0 | G41: ='RAB roll forward'!G803 -> 0 | H41: 0 | I41: 0 | J41: =IF(COUNT($H41:I41)>='RFM input'!$AA$7,0,I41+I93+I145) -> 0 | K41: =IF(COUNT($H41:J41)>='RFM input'!$AA$7,0,J41+J93+J145) -> 0 | L41: =IF(COUNT($H41:K41)>='RFM input'!$AA$7,0,K41+K93+K145) -> 0 | M41: =IF(COUNT($H41:L41)>='RFM input'!$AA$7,0,L41+L93+L145) -> 0 | N41: =IF(COUNT($H41:M41)>='RFM input'!$AA$7,0,M41+M93+M145) -> 0 | O41: =IF(COUNT($H41:N41)>='RFM input'!$AA$7,0,N41+N93+N145) -> 0 | P41: =IF(COUNT($H41:O41)>='RFM input'!$AA$7,0,O41+O93+O145) -> 0 | Q41: =IF(COUNT($H41:P41)>='RFM input'!$AA$7,0,P41+P93+P145) -> 0
D42: =Asset35 -> 0 | G42: ='RAB roll forward'!G804 -> 0 | H42: 0 | I42: 0 | J42: =IF(COUNT($H42:I42)>='RFM input'!$AA$7,0,I42+I94+I146) -> 0 | K42: =IF(COUNT($H42:J42)>='RFM input'!$AA$7,0,J42+J94+J146) -> 0 | L42: =IF(COUNT($H42:K42)>='RFM input'!$AA$7,0,K42+K94+K146) -> 0 | M42: =IF(COUNT($H42:L42)>='RFM input'!$AA$7,0,L42+L94+L146) -> 0 | N42: =IF(COUNT($H42:M42)>='RFM input'!$AA$7,0,M42+M94+M146) -> 0 | O42: =IF(COUNT($H42:N42)>='RFM input'!$AA$7,0,N42+N94+N146) -> 0 | P42: =IF(COUNT($H42:O42)>='RFM input'!$AA$7,0,O42+O94+O146) -> 0 | Q42: =IF(COUNT($H42:P42)>='RFM input'!$AA$7,0,P42+P94+P146) -> 0
D43: =Asset36 -> 0 | G43: ='RAB roll forward'!G805 -> 0 | H43: 0 | I43: 0 | J43: =IF(COUNT($H43:I43)>='RFM input'!$AA$7,0,I43+I95+I147) -> 0 | K43: =IF(COUNT($H43:J43)>='RFM input'!$AA$7,0,J43+J95+J147) -> 0 | L43: =IF(COUNT($H43:K43)>='RFM input'!$AA$7,0,K43+K95+K147) -> 0 | M43: =IF(COUNT($H43:L43)>='RFM input'!$AA$7,0,L43+L95+L147) -> 0 | N43: =IF(COUNT($H43:M43)>='RFM input'!$AA$7,0,M43+M95+M147) -> 0 | O43: =IF(COUNT($H43:N43)>='RFM input'!$AA$7,0,N43+N95+N147) -> 0 | P43: =IF(COUNT($H43:O43)>='RFM input'!$AA$7,0,O43+O95+O147) -> 0 | Q43: =IF(COUNT($H43:P43)>='RFM input'!$AA$7,0,P43+P95+P147) -> 0
D44: =Asset37 -> 0 | G44: ='RAB roll forward'!G806 -> 0 | H44: 0 | I44: 0 | J44: =IF(COUNT($H44:I44)>='RFM input'!$AA$7,0,I44+I96+I148) -> 0 | K44: =IF(COUNT($H44:J44)>='RFM input'!$AA$7,0,J44+J96+J148) -> 0 | L44: =IF(COUNT($H44:K44)>='RFM input'!$AA$7,0,K44+K96+K148) -> 0 | M44: =IF(COUNT($H44:L44)>='RFM input'!$AA$7,0,L44+L96+L148) -> 0 | N44: =IF(COUNT($H44:M44)>='RFM input'!$AA$7,0,M44+M96+M148) -> 0 | O44: =IF(COUNT($H44:N44)>='RFM input'!$AA$7,0,N44+N96+N148) -> 0 | P44: =IF(COUNT($H44:O44)>='RFM input'!$AA$7,0,O44+O96+O148) -> 0 | Q44: =IF(COUNT($H44:P44)>='RFM input'!$AA$7,0,P44+P96+P148) -> 0
D45: =Asset38 -> 0 | G45: ='RAB roll forward'!G807 -> 0 | H45: 0 | I45: 0 | J45: =IF(COUNT($H45:I45)>='RFM input'!$AA$7,0,I45+I97+I149) -> 0 | K45: =IF(COUNT($H45:J45)>='RFM input'!$AA$7,0,J45+J97+J149) -> 0 | L45: =IF(COUNT($H45:K45)>='RFM input'!$AA$7,0,K45+K97+K149) -> 0 | M45: =IF(COUNT($H45:L45)>='RFM input'!$AA$7,0,L45+L97+L149) -> 0 | N45: =IF(COUNT($H45:M45)>='RFM input'!$AA$7,0,M45+M97+M149) -> 0 | O45: =IF(COUNT($H45:N45)>='RFM input'!$AA$7,0,N45+N97+N149) -> 0 | P45: =IF(COUNT($H45:O45)>='RFM input'!$AA$7,0,O45+O97+O149) -> 0 | Q45: =IF(COUNT($H45:P45)>='RFM input'!$AA$7,0,P45+P97+P149) -> 0
D46: =Asset39 -> 0 | G46: ='RAB roll forward'!G808 -> 0 | H46: 0 | I46: 0 | J46: =IF(COUNT($H46:I46)>='RFM input'!$AA$7,0,I46+I98+I150) -> 0 | K46: =IF(COUNT($H46:J46)>='RFM input'!$AA$7,0,J46+J98+J150) -> 0 | L46: =IF(COUNT($H46:K46)>='RFM input'!$AA$7,0,K46+K98+K150) -> 0 | M46: =IF(COUNT($H46:L46)>='RFM input'!$AA$7,0,L46+L98+L150) -> 0 | N46: =IF(COUNT($H46:M46)>='RFM input'!$AA$7,0,M46+M98+M150) -> 0 | O46: =IF(COUNT($H46:N46)>='RFM input'!$AA$7,0,N46+N98+N150) -> 0 | P46: =IF(COUNT($H46:O46)>='RFM input'!$AA$7,0,O46+O98+O150) -> 0 | Q46: =IF(COUNT($H46:P46)>='RFM input'!$AA$7,0,P46+P98+P150) -> 0
D47: =Asset40 -> 0 | G47: ='RAB roll forward'!G809 -> 0 | H47: 0 | I47: 0 | J47: =IF(COUNT($H47:I47)>='RFM input'!$AA$7,0,I47+I99+I151) -> 0 | K47: =IF(COUNT($H47:J47)>='RFM input'!$AA$7,0,J47+J99+J151) -> 0 | L47: =IF(COUNT($H47:K47)>='RFM input'!$AA$7,0,K47+K99+K151) -> 0 | M47: =IF(COUNT($H47:L47)>='RFM input'!$AA$7,0,L47+L99+L151) -> 0 | N47: =IF(COUNT($H47:M47)>='RFM input'!$AA$7,0,M47+M99+M151) -> 0 | O47: =IF(COUNT($H47:N47)>='RFM input'!$AA$7,0,N47+N99+N151) -> 0 | P47: =IF(COUNT($H47:O47)>='RFM input'!$AA$7,0,O47+O99+O151) -> 0 | Q47: =IF(COUNT($H47:P47)>='RFM input'!$AA$7,0,P47+P99+P151) -> 0
D48: =Asset41 -> 0 | G48: ='RAB roll forward'!G810 -> 0 | H48: 0 | I48: 0 | J48: =IF(COUNT($H48:I48)>='RFM input'!$AA$7,0,I48+I100+I152) -> 0 | K48: =IF(COUNT($H48:J48)>='RFM input'!$AA$7,0,J48+J100+J152) -> 0 | L48: =IF(COUNT($H48:K48)>='RFM input'!$AA$7,0,K48+K100+K152) -> 0 | M48: =IF(COUNT($H48:L48)>='RFM input'!$AA$7,0,L48+L100+L152) -> 0 | N48: =IF(COUNT($H48:M48)>='RFM input'!$AA$7,0,M48+M100+M152) -> 0 | O48: =IF(COUNT($H48:N48)>='RFM input'!$AA$7,0,N48+N100+N152) -> 0 | P48: =IF(COUNT($H48:O48)>='RFM input'!$AA$7,0,O48+O100+O152) -> 0 | Q48: =IF(COUNT($H48:P48)>='RFM input'!$AA$7,0,P48+P100+P152) -> 0
D49: =Asset42 -> 0 | G49: ='RAB roll forward'!G811 -> 0 | H49: 0 | I49: 0 | J49: =IF(COUNT($H49:I49)>='RFM input'!$AA$7,0,I49+I101+I153) -> 0 | K49: =IF(COUNT($H49:J49)>='RFM input'!$AA$7,0,J49+J101+J153) -> 0 | L49: =IF(COUNT($H49:K49)>='RFM input'!$AA$7,0,K49+K101+K153) -> 0 | M49: =IF(COUNT($H49:L49)>='RFM input'!$AA$7,0,L49+L101+L153) -> 0 | N49: =IF(COUNT($H49:M49)>='RFM input'!$AA$7,0,M49+M101+M153) -> 0 | O49: =IF(COUNT($H49:N49)>='RFM input'!$AA$7,0,N49+N101+N153) -> 0 | P49: =IF(COUNT($H49:O49)>='RFM input'!$AA$7,0,O49+O101+O153) -> 0 | Q49: =IF(COUNT($H49:P49)>='RFM input'!$AA$7,0,P49+P101+P153) -> 0
D50: =Asset43 -> 0 | G50: ='RAB roll forward'!G812 -> 0 | H50: 0 | I50: 0 | J50: =IF(COUNT($H50:I50)>='RFM input'!$AA$7,0,I50+I102+I154) -> 0 | K50: =IF(COUNT($H50:J50)>='RFM input'!$AA$7,0,J50+J102+J154) -> 0 | L50: =IF(COUNT($H50:K50)>='RFM input'!$AA$7,0,K50+K102+K154) -> 0 | M50: =IF(COUNT($H50:L50)>='RFM input'!$AA$7,0,L50+L102+L154) -> 0 | N50: =IF(COUNT($H50:M50)>='RFM input'!$AA$7,0,M50+M102+M154) -> 0 | O50: =IF(COUNT($H50:N50)>='RFM input'!$AA$7,0,N50+N102+N154) -> 0 | P50: =IF(COUNT($H50:O50)>='RFM input'!$AA$7,0,O50+O102+O154) -> 0 | Q50: =IF(COUNT($H50:P50)>='RFM input'!$AA$7,0,P50+P102+P154) -> 0
D51: =Asset44 -> 0 | G51: ='RAB roll forward'!G813 -> 0 | H51: 0 | I51: 0 | J51: =IF(COUNT($H51:I51)>='RFM input'!$AA$7,0,I51+I103+I155) -> 0 | K51: =IF(COUNT($H51:J51)>='RFM input'!$AA$7,0,J51+J103+J155) -> 0 | L51: =IF(COUNT($H51:K51)>='RFM input'!$AA$7,0,K51+K103+K155) -> 0 | M51: =IF(COUNT($H51:L51)>='RFM input'!$AA$7,0,L51+L103+L155) -> 0 | N51: =IF(COUNT($H51:M51)>='RFM input'!$AA$7,0,M51+M103+M155) -> 0 | O51: =IF(COUNT($H51:N51)>='RFM input'!$AA$7,0,N51+N103+N155) -> 0 | P51: =IF(COUNT($H51:O51)>='RFM input'!$AA$7,0,O51+O103+O155) -> 0 | Q51: =IF(COUNT($H51:P51)>='RFM input'!$AA$7,0,P51+P103+P155) -> 0
D52: =Asset45 -> 0 | G52: ='RAB roll forward'!G814 -> 0 | H52: 0 | I52: 0 | J52: =IF(COUNT($H52:I52)>='RFM input'!$AA$7,0,I52+I104+I156) -> 0 | K52: =IF(COUNT($H52:J52)>='RFM input'!$AA$7,0,J52+J104+J156) -> 0 | L52: =IF(COUNT($H52:K52)>='RFM input'!$AA$7,0,K52+K104+K156) -> 0 | M52: =IF(COUNT($H52:L52)>='RFM input'!$AA$7,0,L52+L104+L156) -> 0 | N52: =IF(COUNT($H52:M52)>='RFM input'!$AA$7,0,M52+M104+M156) -> 0 | O52: =IF(COUNT($H52:N52)>='RFM input'!$AA$7,0,N52+N104+N156) -> 0 | P52: =IF(COUNT($H52:O52)>='RFM input'!$AA$7,0,O52+O104+O156) -> 0 | Q52: =IF(COUNT($H52:P52)>='RFM input'!$AA$7,0,P52+P104+P156) -> 0
D53: =Asset46 -> 0 | G53: ='RAB roll forward'!G815 -> 0 | H53: 0 | I53: 0 | J53: =IF(COUNT($H53:I53)>='RFM input'!$AA$7,0,I53+I105+I157) -> 0 | K53: =IF(COUNT($H53:J53)>='RFM input'!$AA$7,0,J53+J105+J157) -> 0 | L53: =IF(COUNT($H53:K53)>='RFM input'!$AA$7,0,K53+K105+K157) -> 0 | M53: =IF(COUNT($H53:L53)>='RFM input'!$AA$7,0,L53+L105+L157) -> 0 | N53: =IF(COUNT($H53:M53)>='RFM input'!$AA$7,0,M53+M105+M157) -> 0 | O53: =IF(COUNT($H53:N53)>='RFM input'!$AA$7,0,N53+N105+N157) -> 0 | P53: =IF(COUNT($H53:O53)>='RFM input'!$AA$7,0,O53+O105+O157) -> 0 | Q53: =IF(COUNT($H53:P53)>='RFM input'!$AA$7,0,P53+P105+P157) -> 0
D54: =Asset47 -> 0 | G54: ='RAB roll forward'!G816 -> 0 | H54: 0 | I54: 0 | J54: =IF(COUNT($H54:I54)>='RFM input'!$AA$7,0,I54+I106+I158) -> 0 | K54: =IF(COUNT($H54:J54)>='RFM input'!$AA$7,0,J54+J106+J158) -> 0 | L54: =IF(COUNT($H54:K54)>='RFM input'!$AA$7,0,K54+K106+K158) -> 0 | M54: =IF(COUNT($H54:L54)>='RFM input'!$AA$7,0,L54+L106+L158) -> 0 | N54: =IF(COUNT($H54:M54)>='RFM input'!$AA$7,0,M54+M106+M158) -> 0 | O54: =IF(COUNT($H54:N54)>='RFM input'!$AA$7,0,N54+N106+N158) -> 0 | P54: =IF(COUNT($H54:O54)>='RFM input'!$AA$7,0,O54+O106+O158) -> 0 | Q54: =IF(COUNT($H54:P54)>='RFM input'!$AA$7,0,P54+P106+P158) -> 0
D55: =Asset48 -> 0 | G55: ='RAB roll forward'!G817 -> 0 | H55: 0 | I55: 0 | J55: =IF(COUNT($H55:I55)>='RFM input'!$AA$7,0,I55+I107+I159) -> 0 | K55: =IF(COUNT($H55:J55)>='RFM input'!$AA$7,0,J55+J107+J159) -> 0 | L55: =IF(COUNT($H55:K55)>='RFM input'!$AA$7,0,K55+K107+K159) -> 0 | M55: =IF(COUNT($H55:L55)>='RFM input'!$AA$7,0,L55+L107+L159) -> 0 | N55: =IF(COUNT($H55:M55)>='RFM input'!$AA$7,0,M55+M107+M159) -> 0 | O55: =IF(COUNT($H55:N55)>='RFM input'!$AA$7,0,N55+N107+N159) -> 0 | P55: =IF(COUNT($H55:O55)>='RFM input'!$AA$7,0,O55+O107+O159) -> 0 | Q55: =IF(COUNT($H55:P55)>='RFM input'!$AA$7,0,P55+P107+P159) -> 0
D56: =Asset49 -> 0 | G56: ='RAB roll forward'!G818 -> 0 | H56: 0 | I56: 0 | J56: =IF(COUNT($H56:I56)>='RFM input'!$AA$7,0,I56+I108+I160) -> 0 | K56: =IF(COUNT($H56:J56)>='RFM input'!$AA$7,0,J56+J108+J160) -> 0 | L56: =IF(COUNT($H56:K56)>='RFM input'!$AA$7,0,K56+K108+K160) -> 0 | M56: =IF(COUNT($H56:L56)>='RFM input'!$AA$7,0,L56+L108+L160) -> 0 | N56: =IF(COUNT($H56:M56)>='RFM input'!$AA$7,0,M56+M108+M160) -> 0 | O56: =IF(COUNT($H56:N56)>='RFM input'!$AA$7,0,N56+N108+N160) -> 0 | P56: =IF(COUNT($H56:O56)>='RFM input'!$AA$7,0,O56+O108+O160) -> 0 | Q56: =IF(COUNT($H56:P56)>='RFM input'!$AA$7,0,P56+P108+P160) -> 0
D57: =Asset50 -> Equity raising costs | G57: ='RAB roll forward'!G819 -> 0 | H57: 0 | I57: 0 | J57: =IF(COUNT($H57:I57)>='RFM input'!$AA$7,0,I57+I109+I161) -> 0 | K57: =IF(COUNT($H57:J57)>='RFM input'!$AA$7,0,J57+J109+J161) -> 0 | L57: =IF(COUNT($H57:K57)>='RFM input'!$AA$7,0,K57+K109+K161) -> 0 | M57: =IF(COUNT($H57:L57)>='RFM input'!$AA$7,0,L57+L109+L161) -> 0 | N57: =IF(COUNT($H57:M57)>='RFM input'!$AA$7,0,M57+M109+M161) -> 0 | O57: =IF(COUNT($H57:N57)>='RFM input'!$AA$7,0,N57+N109+N161) -> 0 | P57: =IF(COUNT($H57:O57)>='RFM input'!$AA$7,0,O57+O109+O161) -> 0 | Q57: =IF(COUNT($H57:P57)>='RFM input'!$AA$7,0,P57+P109+P161) -> 0
C59: Nominal Actual Net Capex | G59: =SUM(G60:G109) -> 60 | H59: =SUM(H60:H109) -> 29.78926554 | I59: 29.85127523 | J59: 29.67498599 | K59: 29.71615722 | L59: 29.71615722 | M59: 0 | N59: 0 | O59: 0 | P59: 0 | Q59: 0
D60: =Asset1 -> Transmission lines | G60: ='RAB roll forward'!G822 -> 20 | H60: ='RAB roll forward'!H822 -> 10.27216053 | I60: ='RAB roll forward'!I822 -> 10.29354318 | J60: ='RAB roll forward'!J822 -> 10.23275379 | K60: ='RAB roll forward'!K822 -> 10.24695077 | L60: ='RAB roll forward'!L822 -> 10.24695077 | M60: ='RAB roll forward'!M822 -> 0 | N60: ='RAB roll forward'!N822 -> 0 | O60: ='RAB roll forward'!O822 -> 0 | P60: ='RAB roll forward'!P822 -> 0 | Q60: ='RAB roll forward'!Q822 -> 0
D61: =Asset2 -> Substations | G61: ='RAB roll forward'!G823 -> 20 | H61: ='RAB roll forward'!H823 -> 9.244944478 | I61: ='RAB roll forward'!I823 -> 9.264188864 | J61: ='RAB roll forward'!J823 -> 9.20947841 | K61: ='RAB roll forward'!K823 -> 9.222255689 | L61: ='RAB roll forward'!L823 -> 9.222255689 | M61: ='RAB roll forward'!M823 -> 0 | N61: ='RAB roll forward'!N823 -> 0 | O61: ='RAB roll forward'!O823 -> 0 | P61: ='RAB roll forward'!P823 -> 0 | Q61: ='RAB roll forward'!Q823 -> 0
D62: =Asset3 -> Easements | G62: ='RAB roll forward'!G824 -> 20 | H62: ='RAB roll forward'!H824 -> 10.27216053 | I62: ='RAB roll forward'!I824 -> 10.29354318 | J62: ='RAB roll forward'!J824 -> 10.23275379 | K62: ='RAB roll forward'!K824 -> 10.24695077 | L62: ='RAB roll forward'!L824 -> 10.24695077 | M62: ='RAB roll forward'!M824 -> 0 | N62: ='RAB roll forward'!N824 -> 0 | O62: ='RAB roll forward'!O824 -> 0 | P62: ='RAB roll forward'!P824 -> 0 | Q62: ='RAB roll forward'!Q824 -> 0
D63: =Asset4 -> 0 | G63: ='RAB roll forward'!G825 -> 0 | H63: ='RAB roll forward'!H825 -> 0 | I63: ='RAB roll forward'!I825 -> 0 | J63: ='RAB roll forward'!J825 -> 0 | K63: ='RAB roll forward'!K825 -> 0 | L63: ='RAB roll forward'!L825 -> 0 | M63: ='RAB roll forward'!M825 -> 0 | N63: ='RAB roll forward'!N825 -> 0 | O63: ='RAB roll forward'!O825 -> 0 | P63: ='RAB roll forward'!P825 -> 0 | Q63: ='RAB roll forward'!Q825 -> 0
D64: =Asset5 -> 0 | G64: ='RAB roll forward'!G826 -> 0 | H64: ='RAB roll forward'!H826 -> 0 | I64: ='RAB roll forward'!I826 -> 0 | J64: ='RAB roll forward'!J826 -> 0 | K64: ='RAB roll forward'!K826 -> 0 | L64: ='RAB roll forward'!L826 -> 0 | M64: ='RAB roll forward'!M826 -> 0 | N64: ='RAB roll forward'!N826 -> 0 | O64: ='RAB roll forward'!O826 -> 0 | P64: ='RAB roll forward'!P826 -> 0 | Q64: ='RAB roll forward'!Q826 -> 0
D65: =Asset6 -> 0 | G65: ='RAB roll forward'!G827 -> 0 | H65: ='RAB roll forward'!H827 -> 0 | I65: ='RAB roll forward'!I827 -> 0 | J65: ='RAB roll forward'!J827 -> 0 | K65: ='RAB roll forward'!K827 -> 0 | L65: ='RAB roll forward'!L827 -> 0 | M65: ='RAB roll forward'!M827 -> 0 | N65: ='RAB roll forward'!N827 -> 0 | O65: ='RAB roll forward'!O827 -> 0 | P65: ='RAB roll forward'!P827 -> 0 | Q65: ='RAB roll forward'!Q827 -> 0
D66: =Asset7 -> 0 | G66: ='RAB roll forward'!G828 -> 0 | H66: ='RAB roll forward'!H828 -> 0 | I66: ='RAB roll forward'!I828 -> 0 | J66: ='RAB roll forward'!J828 -> 0 | K66: ='RAB roll forward'!K828 -> 0 | L66: ='RAB roll forward'!L828 -> 0 | M66: ='RAB roll forward'!M828 -> 0 | N66: ='RAB roll forward'!N828 -> 0 | O66: ='RAB roll forward'!O828 -> 0 | P66: ='RAB roll forward'!P828 -> 0 | Q66: ='RAB roll forward'!Q828 -> 0
D67: =Asset8 -> 0 | G67: ='RAB roll forward'!G829 -> 0 | H67: ='RAB roll forward'!H829 -> 0 | I67: ='RAB roll forward'!I829 -> 0 | J67: ='RAB roll forward'!J829 -> 0 | K67: ='RAB roll forward'!K829 -> 0 | L67: ='RAB roll forward'!L829 -> 0 | M67: ='RAB roll forward'!M829 -> 0 | N67: ='RAB roll forward'!N829 -> 0 | O67: ='RAB roll forward'!O829 -> 0 | P67: ='RAB roll forward'!P829 -> 0 | Q67: ='RAB roll forward'!Q829 -> 0
D68: =Asset9 -> 0 | G68: ='RAB roll forward'!G830 -> 0 | H68: ='RAB roll forward'!H830 -> 0 | I68: ='RAB roll forward'!I830 -> 0 | J68: ='RAB roll forward'!J830 -> 0 | K68: ='RAB roll forward'!K830 -> 0 | L68: ='RAB roll forward'!L830 -> 0 | M68: ='RAB roll forward'!M830 -> 0 | N68: ='RAB roll forward'!N830 -> 0 | O68: ='RAB roll forward'!O830 -> 0 | P68: ='RAB roll forward'!P830 -> 0 | Q68: ='RAB roll forward'!Q830 -> 0
D69: =Asset10 -> 0 | G69: ='RAB roll forward'!G831 -> 0 | H69: ='RAB roll forward'!H831 -> 0 | I69: ='RAB roll forward'!I831 -> 0 | J69: ='RAB roll forward'!J831 -> 0 | K69: ='RAB roll forward'!K831 -> 0 | L69: ='RAB roll forward'!L831 -> 0 | M69: ='RAB roll forward'!M831 -> 0 | N69: ='RAB roll forward'!N831 -> 0 | O69: ='RAB roll forward'!O831 -> 0 | P69: ='RAB roll forward'!P831 -> 0 | Q69: ='RAB roll forward'!Q831 -> 0
D70: =Asset11 -> 0 | G70: ='RAB roll forward'!G832 -> 0 | H70: ='RAB roll forward'!H832 -> 0 | I70: ='RAB roll forward'!I832 -> 0 | J70: ='RAB roll forward'!J832 -> 0 | K70: ='RAB roll forward'!K832 -> 0 | L70: ='RAB roll forward'!L832 -> 0 | M70: ='RAB roll forward'!M832 -> 0 | N70: ='RAB roll forward'!N832 -> 0 | O70: ='RAB roll forward'!O832 -> 0 | P70: ='RAB roll forward'!P832 -> 0 | Q70: ='RAB roll forward'!Q832 -> 0
D71: =Asset12 -> 0 | G71: ='RAB roll forward'!G833 -> 0 | H71: ='RAB roll forward'!H833 -> 0 | I71: ='RAB roll forward'!I833 -> 0 | J71: ='RAB roll forward'!J833 -> 0 | K71: ='RAB roll forward'!K833 -> 0 | L71: ='RAB roll forward'!L833 -> 0 | M71: ='RAB roll forward'!M833 -> 0 | N71: ='RAB roll forward'!N833 -> 0 | O71: ='RAB roll forward'!O833 -> 0 | P71: ='RAB roll forward'!P833 -> 0 | Q71: ='RAB roll forward'!Q833 -> 0
D72: =Asset13 -> 0 | G72: ='RAB roll forward'!G834 -> 0 | H72: ='RAB roll forward'!H834 -> 0 | I72: ='RAB roll forward'!I834 -> 0 | J72: ='RAB roll forward'!J834 -> 0 | K72: ='RAB roll forward'!K834 -> 0 | L72: ='RAB roll forward'!L834 -> 0 | M72: ='RAB roll forward'!M834 -> 0 | N72: ='RAB roll forward'!N834 -> 0 | O72: ='RAB roll forward'!O834 -> 0 | P72: ='RAB roll forward'!P834 -> 0 | Q72: ='RAB roll forward'!Q834 -> 0
D73: =Asset14 -> 0 | G73: ='RAB roll forward'!G835 -> 0 | H73: ='RAB roll forward'!H835 -> 0 | I73: ='RAB roll forward'!I835 -> 0 | J73: ='RAB roll forward'!J835 -> 0 | K73: ='RAB roll forward'!K835 -> 0 | L73: ='RAB roll forward'!L835 -> 0 | M73: ='RAB roll forward'!M835 -> 0 | N73: ='RAB roll forward'!N835 -> 0 | O73: ='RAB roll forward'!O835 -> 0 | P73: ='RAB roll forward'!P835 -> 0 | Q73: ='RAB roll forward'!Q835 -> 0
D74: =Asset15 -> 0 | G74: ='RAB roll forward'!G836 -> 0 | H74: ='RAB roll forward'!H836 -> 0 | I74: ='RAB roll forward'!I836 -> 0 | J74: ='RAB roll forward'!J836 -> 0 | K74: ='RAB roll forward'!K836 -> 0 | L74: ='RAB roll forward'!L836 -> 0 | M74: ='RAB roll forward'!M836 -> 0 | N74: ='RAB roll forward'!N836 -> 0 | O74: ='RAB roll forward'!O836 -> 0 | P74: ='RAB roll forward'!P836 -> 0 | Q74: ='RAB roll forward'!Q836 -> 0
D75: =Asset16 -> 0 | G75: ='RAB roll forward'!G837 -> 0 | H75: ='RAB roll forward'!H837 -> 0 | I75: ='RAB roll forward'!I837 -> 0 | J75: ='RAB roll forward'!J837 -> 0 | K75: ='RAB roll forward'!K837 -> 0 | L75: ='RAB roll forward'!L837 -> 0 | M75: ='RAB roll forward'!M837 -> 0 | N75: ='RAB roll forward'!N837 -> 0 | O75: ='RAB roll forward'!O837 -> 0 | P75: ='RAB roll forward'!P837 -> 0 | Q75: ='RAB roll forward'!Q837 -> 0
D76: =Asset17 -> 0 | G76: ='RAB roll forward'!G838 -> 0 | H76: ='RAB roll forward'!H838 -> 0 | I76: ='RAB roll forward'!I838 -> 0 | J76: ='RAB roll forward'!J838 -> 0 | K76: ='RAB roll forward'!K838 -> 0 | L76: ='RAB roll forward'!L838 -> 0 | M76: ='RAB roll forward'!M838 -> 0 | N76: ='RAB roll forward'!N838 -> 0 | O76: ='RAB roll forward'!O838 -> 0 | P76: ='RAB roll forward'!P838 -> 0 | Q76: ='RAB roll forward'!Q838 -> 0
D77: =Asset18 -> 0 | G77: ='RAB roll forward'!G839 -> 0 | H77: ='RAB roll forward'!H839 -> 0 | I77: ='RAB roll forward'!I839 -> 0 | J77: ='RAB roll forward'!J839 -> 0 | K77: ='RAB roll forward'!K839 -> 0 | L77: ='RAB roll forward'!L839 -> 0 | M77: ='RAB roll forward'!M839 -> 0 | N77: ='RAB roll forward'!N839 -> 0 | O77: ='RAB roll forward'!O839 -> 0 | P77: ='RAB roll forward'!P839 -> 0 | Q77: ='RAB roll forward'!Q839 -> 0
D78: =Asset19 -> 0 | G78: ='RAB roll forward'!G840 -> 0 | H78: ='RAB roll forward'!H840 -> 0 | I78: ='RAB roll forward'!I840 -> 0 | J78: ='RAB roll forward'!J840 -> 0 | K78: ='RAB roll forward'!K840 -> 0 | L78: ='RAB roll forward'!L840 -> 0 | M78: ='RAB roll forward'!M840 -> 0 | N78: ='RAB roll forward'!N840 -> 0 | O78: ='RAB roll forward'!O840 -> 0 | P78: ='RAB roll forward'!P840 -> 0 | Q78: ='RAB roll forward'!Q840 -> 0
D79: =Asset20 -> 0 | G79: ='RAB roll forward'!G841 -> 0 | H79: ='RAB roll forward'!H841 -> 0 | I79: ='RAB roll forward'!I841 -> 0 | J79: ='RAB roll forward'!J841 -> 0 | K79: ='RAB roll forward'!K841 -> 0 | L79: ='RAB roll forward'!L841 -> 0 | M79: ='RAB roll forward'!M841 -> 0 | N79: ='RAB roll forward'!N841 -> 0 | O79: ='RAB roll forward'!O841 -> 0 | P79: ='RAB roll forward'!P841 -> 0 | Q79: ='RAB roll forward'!Q841 -> 0
D80: =Asset21 -> 0 | G80: ='RAB roll forward'!G842 -> 0 | H80: ='RAB roll forward'!H842 -> 0 | I80: ='RAB roll forward'!I842 -> 0 | J80: ='RAB roll forward'!J842 -> 0 | K80: ='RAB roll forward'!K842 -> 0 | L80: ='RAB roll forward'!L842 -> 0 | M80: ='RAB roll forward'!M842 -> 0 | N80: ='RAB roll forward'!N842 -> 0 | O80: ='RAB roll forward'!O842 -> 0 | P80: ='RAB roll forward'!P842 -> 0 | Q80: ='RAB roll forward'!Q842 -> 0
D81: =Asset22 -> 0 | G81: ='RAB roll forward'!G843 -> 0 | H81: ='RAB roll forward'!H843 -> 0 | I81: ='RAB roll forward'!I843 -> 0 | J81: ='RAB roll forward'!J843 -> 0 | K81: ='RAB roll forward'!K843 -> 0 | L81: ='RAB roll forward'!L843 -> 0 | M81: ='RAB roll forward'!M843 -> 0 | N81: ='RAB roll forward'!N843 -> 0 | O81: ='RAB roll forward'!O843 -> 0 | P81: ='RAB roll forward'!P843 -> 0 | Q81: ='RAB roll forward'!Q843 -> 0
D82: =Asset23 -> 0 | G82: ='RAB roll forward'!G844 -> 0 | H82: ='RAB roll forward'!H844 -> 0 | I82: ='RAB roll forward'!I844 -> 0 | J82: ='RAB roll forward'!J844 -> 0 | K82: ='RAB roll forward'!K844 -> 0 | L82: ='RAB roll forward'!L844 -> 0 | M82: ='RAB roll forward'!M844 -> 0 | N82: ='RAB roll forward'!N844 -> 0 | O82: ='RAB roll forward'!O844 -> 0 | P82: ='RAB roll forward'!P844 -> 0 | Q82: ='RAB roll forward'!Q844 -> 0
D83: =Asset24 -> 0 | G83: ='RAB roll forward'!G845 -> 0 | H83: ='RAB roll forward'!H845 -> 0 | I83: ='RAB roll forward'!I845 -> 0 | J83: ='RAB roll forward'!J845 -> 0 | K83: ='RAB roll forward'!K845 -> 0 | L83: ='RAB roll forward'!L845 -> 0 | M83: ='RAB roll forward'!M845 -> 0 | N83: ='RAB roll forward'!N845 -> 0 | O83: ='RAB roll forward'!O845 -> 0 | P83: ='RAB roll forward'!P845 -> 0 | Q83: ='RAB roll forward'!Q845 -> 0
D84: =Asset25 -> 0 | G84: ='RAB roll forward'!G846 -> 0 | H84: ='RAB roll forward'!H846 -> 0 | I84: ='RAB roll forward'!I846 -> 0 | J84: ='RAB roll forward'!J846 -> 0 | K84: ='RAB roll forward'!K846 -> 0 | L84: ='RAB roll forward'!L846 -> 0 | M84: ='RAB roll forward'!M846 -> 0 | N84: ='RAB roll forward'!N846 -> 0 | O84: ='RAB roll forward'!O846 -> 0 | P84: ='RAB roll forward'!P846 -> 0 | Q84: ='RAB roll forward'!Q846 -> 0
D85: =Asset26 -> 0 | G85: ='RAB roll forward'!G847 -> 0 | H85: ='RAB roll forward'!H847 -> 0 | I85: ='RAB roll forward'!I847 -> 0 | J85: ='RAB roll forward'!J847 -> 0 | K85: ='RAB roll forward'!K847 -> 0 | L85: ='RAB roll forward'!L847 -> 0 | M85: ='RAB roll forward'!M847 -> 0 | N85: ='RAB roll forward'!N847 -> 0 | O85: ='RAB roll forward'!O847 -> 0 | P85: ='RAB roll forward'!P847 -> 0 | Q85: ='RAB roll forward'!Q847 -> 0
D86: =Asset27 -> 0 | G86: ='RAB roll forward'!G848 -> 0 | H86: ='RAB roll forward'!H848 -> 0 | I86: ='RAB roll forward'!I848 -> 0 | J86: ='RAB roll forward'!J848 -> 0 | K86: ='RAB roll forward'!K848 -> 0 | L86: ='RAB roll forward'!L848 -> 0 | M86: ='RAB roll forward'!M848 -> 0 | N86: ='RAB roll forward'!N848 -> 0 | O86: ='RAB roll forward'!O848 -> 0 | P86: ='RAB roll forward'!P848 -> 0 | Q86: ='RAB roll forward'!Q848 -> 0
D87: =Asset28 -> 0 | G87: ='RAB roll forward'!G849 -> 0 | H87: ='RAB roll forward'!H849 -> 0 | I87: ='RAB roll forward'!I849 -> 0 | J87: ='RAB roll forward'!J849 -> 0 | K87: ='RAB roll forward'!K849 -> 0 | L87: ='RAB roll forward'!L849 -> 0 | M87: ='RAB roll forward'!M849 -> 0 | N87: ='RAB roll forward'!N849 -> 0 | O87: ='RAB roll forward'!O849 -> 0 | P87: ='RAB roll forward'!P849 -> 0 | Q87: ='RAB roll forward'!Q849 -> 0
D88: =Asset29 -> 0 | G88: ='RAB roll forward'!G850 -> 0 | H88: ='RAB roll forward'!H850 -> 0 | I88: ='RAB roll forward'!I850 -> 0 | J88: ='RAB roll forward'!J850 -> 0 | K88: ='RAB roll forward'!K850 -> 0 | L88: ='RAB roll forward'!L850 -> 0 | M88: ='RAB roll forward'!M850 -> 0 | N88: ='RAB roll forward'!N850 -> 0 | O88: ='RAB roll forward'!O850 -> 0 | P88: ='RAB roll forward'!P850 -> 0 | Q88: ='RAB roll forward'!Q850 -> 0
D89: =Asset30 -> 0 | G89: ='RAB roll forward'!G851 -> 0 | H89: ='RAB roll forward'!H851 -> 0 | I89: ='RAB roll forward'!I851 -> 0 | J89: ='RAB roll forward'!J851 -> 0 | K89: ='RAB roll forward'!K851 -> 0 | L89: ='RAB roll forward'!L851 -> 0 | M89: ='RAB roll forward'!M851 -> 0 | N89: ='RAB roll forward'!N851 -> 0 | O89: ='RAB roll forward'!O851 -> 0 | P89: ='RAB roll forward'!P851 -> 0 | Q89: ='RAB roll forward'!Q851 -> 0
D90: =Asset31 -> 0 | G90: ='RAB roll forward'!G852 -> 0 | H90: ='RAB roll forward'!H852 -> 0 | I90: ='RAB roll forward'!I852 -> 0 | J90: ='RAB roll forward'!J852 -> 0 | K90: ='RAB roll forward'!K852 -> 0 | L90: ='RAB roll forward'!L852 -> 0 | M90: ='RAB roll forward'!M852 -> 0 | N90: ='RAB roll forward'!N852 -> 0 | O90: ='RAB roll forward'!O852 -> 0 | P90: ='RAB roll forward'!P852 -> 0 | Q90: ='RAB roll forward'!Q852 -> 0
D91: =Asset32 -> 0 | G91: ='RAB roll forward'!G853 -> 0 | H91: ='RAB roll forward'!H853 -> 0 | I91: ='RAB roll forward'!I853 -> 0 | J91: ='RAB roll forward'!J853 -> 0 | K91: ='RAB roll forward'!K853 -> 0 | L91: ='RAB roll forward'!L853 -> 0 | M91: ='RAB roll forward'!M853 -> 0 | N91: ='RAB roll forward'!N853 -> 0 | O91: ='RAB roll forward'!O853 -> 0 | P91: ='RAB roll forward'!P853 -> 0 | Q91: ='RAB roll forward'!Q853 -> 0
D92: =Asset33 -> 0 | G92: ='RAB roll forward'!G854 -> 0 | H92: ='RAB roll forward'!H854 -> 0 | I92: ='RAB roll forward'!I854 -> 0 | J92: ='RAB roll forward'!J854 -> 0 | K92: ='RAB roll forward'!K854 -> 0 | L92: ='RAB roll forward'!L854 -> 0 | M92: ='RAB roll forward'!M854 -> 0 | N92: ='RAB roll forward'!N854 -> 0 | O92: ='RAB roll forward'!O854 -> 0 | P92: ='RAB roll forward'!P854 -> 0 | Q92: ='RAB roll forward'!Q854 -> 0
D93: =Asset34 -> 0 | G93: ='RAB roll forward'!G855 -> 0 | H93: ='RAB roll forward'!H855 -> 0 | I93: ='RAB roll forward'!I855 -> 0 | J93: ='RAB roll forward'!J855 -> 0 | K93: ='RAB roll forward'!K855 -> 0 | L93: ='RAB roll forward'!L855 -> 0 | M93: ='RAB roll forward'!M855 -> 0 | N93: ='RAB roll forward'!N855 -> 0 | O93: ='RAB roll forward'!O855 -> 0 | P93: ='RAB roll forward'!P855 -> 0 | Q93: ='RAB roll forward'!Q855 -> 0
D94: =Asset35 -> 0 | G94: ='RAB roll forward'!G856 -> 0 | H94: ='RAB roll forward'!H856 -> 0 | I94: ='RAB roll forward'!I856 -> 0 | J94: ='RAB roll forward'!J856 -> 0 | K94: ='RAB roll forward'!K856 -> 0 | L94: ='RAB roll forward'!L856 -> 0 | M94: ='RAB roll forward'!M856 -> 0 | N94: ='RAB roll forward'!N856 -> 0 | O94: ='RAB roll forward'!O856 -> 0 | P94: ='RAB roll forward'!P856 -> 0 | Q94: ='RAB roll forward'!Q856 -> 0
D95: =Asset36 -> 0 | G95: ='RAB roll forward'!G857 -> 0 | H95: ='RAB roll forward'!H857 -> 0 | I95: ='RAB roll forward'!I857 -> 0 | J95: ='RAB roll forward'!J857 -> 0 | K95: ='RAB roll forward'!K857 -> 0 | L95: ='RAB roll forward'!L857 -> 0 | M95: ='RAB roll forward'!M857 -> 0 | N95: ='RAB roll forward'!N857 -> 0 | O95: ='RAB roll forward'!O857 -> 0 | P95: ='RAB roll forward'!P857 -> 0 | Q95: ='RAB roll forward'!Q857 -> 0
D96: =Asset37 -> 0 | G96: ='RAB roll forward'!G858 -> 0 | H96: ='RAB roll forward'!H858 -> 0 | I96: ='RAB roll forward'!I858 -> 0 | J96: ='RAB roll forward'!J858 -> 0 | K96: ='RAB roll forward'!K858 -> 0 | L96: ='RAB roll forward'!L858 -> 0 | M96: ='RAB roll forward'!M858 -> 0 | N96: ='RAB roll forward'!N858 -> 0 | O96: ='RAB roll forward'!O858 -> 0 | P96: ='RAB roll forward'!P858 -> 0 | Q96: ='RAB roll forward'!Q858 -> 0
D97: =Asset38 -> 0 | G97: ='RAB roll forward'!G859 -> 0 | H97: ='RAB roll forward'!H859 -> 0 | I97: ='RAB roll forward'!I859 -> 0 | J97: ='RAB roll forward'!J859 -> 0 | K97: ='RAB roll forward'!K859 -> 0 | L97: ='RAB roll forward'!L859 -> 0 | M97: ='RAB roll forward'!M859 -> 0 | N97: ='RAB roll forward'!N859 -> 0 | O97: ='RAB roll forward'!O859 -> 0 | P97: ='RAB roll forward'!P859 -> 0 | Q97: ='RAB roll forward'!Q859 -> 0
D98: =Asset39 -> 0 | G98: ='RAB roll forward'!G860 -> 0 | H98: ='RAB roll forward'!H860 -> 0 | I98: ='RAB roll forward'!I860 -> 0 | J98: ='RAB roll forward'!J860 -> 0 | K98: ='RAB roll forward'!K860 -> 0 | L98: ='RAB roll forward'!L860 -> 0 | M98: ='RAB roll forward'!M860 -> 0 | N98: ='RAB roll forward'!N860 -> 0 | O98: ='RAB roll forward'!O860 -> 0 | P98: ='RAB roll forward'!P860 -> 0 | Q98: ='RAB roll forward'!Q860 -> 0
D99: =Asset40 -> 0 | G99: ='RAB roll forward'!G861 -> 0 | H99: ='RAB roll forward'!H861 -> 0 | I99: ='RAB roll forward'!I861 -> 0 | J99: ='RAB roll forward'!J861 -> 0 | K99: ='RAB roll forward'!K861 -> 0 | L99: ='RAB roll forward'!L861 -> 0 | M99: ='RAB roll forward'!M861 -> 0 | N99: ='RAB roll forward'!N861 -> 0 | O99: ='RAB roll forward'!O861 -> 0 | P99: ='RAB roll forward'!P861 -> 0 | Q99: ='RAB roll forward'!Q861 -> 0
D100: =Asset41 -> 0 | G100: ='RAB roll forward'!G862 -> 0 | H100: ='RAB roll forward'!H862 -> 0 | I100: ='RAB roll forward'!I862 -> 0 | J100: ='RAB roll forward'!J862 -> 0 | K100: ='RAB roll forward'!K862 -> 0 | L100: ='RAB roll forward'!L862 -> 0 | M100: ='RAB roll forward'!M862 -> 0 | N100: ='RAB roll forward'!N862 -> 0 | O100: ='RAB roll forward'!O862 -> 0 | P100: ='RAB roll forward'!P862 -> 0 | Q100: ='RAB roll forward'!Q862 -> 0
D101: =Asset42 -> 0 | G101: ='RAB roll forward'!G863 -> 0 | H101: ='RAB roll forward'!H863 -> 0 | I101: ='RAB roll forward'!I863 -> 0 | J101: ='RAB roll forward'!J863 -> 0 | K101: ='RAB roll forward'!K863 -> 0 | L101: ='RAB roll forward'!L863 -> 0 | M101: ='RAB roll forward'!M863 -> 0 | N101: ='RAB roll forward'!N863 -> 0 | O101: ='RAB roll forward'!O863 -> 0 | P101: ='RAB roll forward'!P863 -> 0 | Q101: ='RAB roll forward'!Q863 -> 0
D102: =Asset43 -> 0 | G102: ='RAB roll forward'!G864 -> 0 | H102: ='RAB roll forward'!H864 -> 0 | I102: ='RAB roll forward'!I864 -> 0 | J102: ='RAB roll forward'!J864 -> 0 | K102: ='RAB roll forward'!K864 -> 0 | L102: ='RAB roll forward'!L864 -> 0 | M102: ='RAB roll forward'!M864 -> 0 | N102: ='RAB roll forward'!N864 -> 0 | O102: ='RAB roll forward'!O864 -> 0 | P102: ='RAB roll forward'!P864 -> 0 | Q102: ='RAB roll forward'!Q864 -> 0
D103: =Asset44 -> 0 | G103: ='RAB roll forward'!G865 -> 0 | H103: ='RAB roll forward'!H865 -> 0 | I103: ='RAB roll forward'!I865 -> 0 | J103: ='RAB roll forward'!J865 -> 0 | K103: ='RAB roll forward'!K865 -> 0 | L103: ='RAB roll forward'!L865 -> 0 | M103: ='RAB roll forward'!M865 -> 0 | N103: ='RAB roll forward'!N865 -> 0 | O103: ='RAB roll forward'!O865 -> 0 | P103: ='RAB roll forward'!P865 -> 0 | Q103: ='RAB roll forward'!Q865 -> 0
D104: =Asset45 -> 0 | G104: ='RAB roll forward'!G866 -> 0 | H104: ='RAB roll forward'!H866 -> 0 | I104: ='RAB roll forward'!I866 -> 0 | J104: ='RAB roll forward'!J866 -> 0 | K104: ='RAB roll forward'!K866 -> 0 | L104: ='RAB roll forward'!L866 -> 0 | M104: ='RAB roll forward'!M866 -> 0 | N104: ='RAB roll forward'!N866 -> 0 | O104: ='RAB roll forward'!O866 -> 0 | P104: ='RAB roll forward'!P866 -> 0 | Q104: ='RAB roll forward'!Q866 -> 0
D105: =Asset46 -> 0 | G105: ='RAB roll forward'!G867 -> 0 | H105: ='RAB roll forward'!H867 -> 0 | I105: ='RAB roll forward'!I867 -> 0 | J105: ='RAB roll forward'!J867 -> 0 | K105: ='RAB roll forward'!K867 -> 0 | L105: ='RAB roll forward'!L867 -> 0 | M105: ='RAB roll forward'!M867 -> 0 | N105: ='RAB roll forward'!N867 -> 0 | O105: ='RAB roll forward'!O867 -> 0 | P105: ='RAB roll forward'!P867 -> 0 | Q105: ='RAB roll forward'!Q867 -> 0
D106: =Asset47 -> 0 | G106: ='RAB roll forward'!G868 -> 0 | H106: ='RAB roll forward'!H868 -> 0 | I106: ='RAB roll forward'!I868 -> 0 | J106: ='RAB roll forward'!J868 -> 0 | K106: ='RAB roll forward'!K868 -> 0 | L106: ='RAB roll forward'!L868 -> 0 | M106: ='RAB roll forward'!M868 -> 0 | N106: ='RAB roll forward'!N868 -> 0 | O106: ='RAB roll forward'!O868 -> 0 | P106: ='RAB roll forward'!P868 -> 0 | Q106: ='RAB roll forward'!Q868 -> 0
D107: =Asset48 -> 0 | G107: ='RAB roll forward'!G869 -> 0 | H107: ='RAB roll forward'!H869 -> 0 | I107: ='RAB roll forward'!I869 -> 0 | J107: ='RAB roll forward'!J869 -> 0 | K107: ='RAB roll forward'!K869 -> 0 | L107: ='RAB roll forward'!L869 -> 0 | M107: ='RAB roll forward'!M869 -> 0 | N107: ='RAB roll forward'!N869 -> 0 | O107: ='RAB roll forward'!O869 -> 0 | P107: ='RAB roll forward'!P869 -> 0 | Q107: ='RAB roll forward'!Q869 -> 0
D108: =Asset49 -> 0 | G108: ='RAB roll forward'!G870 -> 0 | H108: ='RAB roll forward'!H870 -> 0 | I108: ='RAB roll forward'!I870 -> 0 | J108: ='RAB roll forward'!J870 -> 0 | K108: ='RAB roll forward'!K870 -> 0 | L108: ='RAB roll forward'!L870 -> 0 | M108: ='RAB roll forward'!M870 -> 0 | N108: ='RAB roll forward'!N870 -> 0 | O108: ='RAB roll forward'!O870 -> 0 | P108: ='RAB roll forward'!P870 -> 0 | Q108: ='RAB roll forward'!Q870 -> 0
D109: =Asset50 -> Equity raising costs | G109: ='RAB roll forward'!G871 -> 0 | H109: ='RAB roll forward'!H871 -> 0 | I109: ='RAB roll forward'!I871 -> 0 | J109: ='RAB roll forward'!J871 -> 0 | K109: ='RAB roll forward'!K871 -> 0 | L109: ='RAB roll forward'!L871 -> 0 | M109: ='RAB roll forward'!M871 -> 0 | N109: ='RAB roll forward'!N871 -> 0 | O109: ='RAB roll forward'!O871 -> 0 | P109: ='RAB roll forward'!P871 -> 0 | Q109: ='RAB roll forward'!Q871 -> 0
C111: ="Nominal "&'RFM input'!$G$397& " Regulatory Depreciation" -> Nominal Actual Regulatory Depreciation | G111: =SUM(G112:G161) -> -15 | H111: =SUM(H112:H161) -> -10.43421265 | I111: -1.297731278 | J111: -34.5799464 | K111: -29.15576404 | L111: -31.20707822 | M111: 0 | N111: 0 | O111: 0 | P111: 0 | Q111: 0
D112: =Asset1 -> Transmission lines | G112: ='RAB roll forward'!G874 -> -5 | H112: ='RAB roll forward'!H874 -> -12.35521175 | I112: ='RAB roll forward'!I874 -> -9.235730486 | J112: ='RAB roll forward'!J874 -> -22.84730854 | K112: ='RAB roll forward'!K874 -> -21.13541005 | L112: ='RAB roll forward'!L874 -> -22.38546932 | M112: ='RAB roll forward'!M874 -> 0 | N112: ='RAB roll forward'!N874 -> 0 | O112: ='RAB roll forward'!O874 -> 0 | P112: ='RAB roll forward'!P874 -> 0 | Q112: ='RAB roll forward'!Q874 -> 0
D113: =Asset2 -> Substations | G113: ='RAB roll forward'!G875 -> -5 | H113: ='RAB roll forward'!H875 -> -15.9718938 | I113: ='RAB roll forward'!I875 -> -13.83441447 | J113: ='RAB roll forward'!J875 -> -25.04767429 | K113: ='RAB roll forward'!K875 -> -23.99592999 | L113: ='RAB roll forward'!L875 -> -25.32163545 | M113: ='RAB roll forward'!M875 -> 0 | N113: ='RAB roll forward'!N875 -> 0 | O113: ='RAB roll forward'!O875 -> 0 | P113: ='RAB roll forward'!P875 -> 0 | Q113: ='RAB roll forward'!Q875 -> 0
D114: =Asset3 -> Easements | G114: ='RAB roll forward'!G876 -> -5 | H114: ='RAB roll forward'!H876 -> 17.89289289 | I114: ='RAB roll forward'!I876 -> 21.77241367 | J114: ='RAB roll forward'!J876 -> 13.31503644 | K114: ='RAB roll forward'!K876 -> 15.97557601 | L114: ='RAB roll forward'!L876 -> 16.50002655 | M114: ='RAB roll forward'!M876 -> 0 | N114: ='RAB roll forward'!N876 -> 0 | O114: ='RAB roll forward'!O876 -> 0 | P114: ='RAB roll forward'!P876 -> 0 | Q114: ='RAB roll forward'!Q876 -> 0
D115: =Asset4 -> 0 | G115: ='RAB roll forward'!G877 -> 0 | H115: ='RAB roll forward'!H877 -> 0 | I115: ='RAB roll forward'!I877 -> 0 | J115: ='RAB roll forward'!J877 -> 0 | K115: ='RAB roll forward'!K877 -> 0 | L115: ='RAB roll forward'!L877 -> 0 | M115: ='RAB roll forward'!M877 -> 0 | N115: ='RAB roll forward'!N877 -> 0 | O115: ='RAB roll forward'!O877 -> 0 | P115: ='RAB roll forward'!P877 -> 0 | Q115: ='RAB roll forward'!Q877 -> 0
D116: =Asset5 -> 0 | G116: ='RAB roll forward'!G878 -> 0 | H116: ='RAB roll forward'!H878 -> 0 | I116: ='RAB roll forward'!I878 -> 0 | J116: ='RAB roll forward'!J878 -> 0 | K116: ='RAB roll forward'!K878 -> 0 | L116: ='RAB roll forward'!L878 -> 0 | M116: ='RAB roll forward'!M878 -> 0 | N116: ='RAB roll forward'!N878 -> 0 | O116: ='RAB roll forward'!O878 -> 0 | P116: ='RAB roll forward'!P878 -> 0 | Q116: ='RAB roll forward'!Q878 -> 0
D117: =Asset6 -> 0 | G117: ='RAB roll forward'!G879 -> 0 | H117: ='RAB roll forward'!H879 -> 0 | I117: ='RAB roll forward'!I879 -> 0 | J117: ='RAB roll forward'!J879 -> 0 | K117: ='RAB roll forward'!K879 -> 0 | L117: ='RAB roll forward'!L879 -> 0 | M117: ='RAB roll forward'!M879 -> 0 | N117: ='RAB roll forward'!N879 -> 0 | O117: ='RAB roll forward'!O879 -> 0 | P117: ='RAB roll forward'!P879 -> 0 | Q117: ='RAB roll forward'!Q879 -> 0
D118: =Asset7 -> 0 | G118: ='RAB roll forward'!G880 -> 0 | H118: ='RAB roll forward'!H880 -> 0 | I118: ='RAB roll forward'!I880 -> 0 | J118: ='RAB roll forward'!J880 -> 0 | K118: ='RAB roll forward'!K880 -> 0 | L118: ='RAB roll forward'!L880 -> 0 | M118: ='RAB roll forward'!M880 -> 0 | N118: ='RAB roll forward'!N880 -> 0 | O118: ='RAB roll forward'!O880 -> 0 | P118: ='RAB roll forward'!P880 -> 0 | Q118: ='RAB roll forward'!Q880 -> 0
D119: =Asset8 -> 0 | G119: ='RAB roll forward'!G881 -> 0 | H119: ='RAB roll forward'!H881 -> 0 | I119: ='RAB roll forward'!I881 -> 0 | J119: ='RAB roll forward'!J881 -> 0 | K119: ='RAB roll forward'!K881 -> 0 | L119: ='RAB roll forward'!L881 -> 0 | M119: ='RAB roll forward'!M881 -> 0 | N119: ='RAB roll forward'!N881 -> 0 | O119: ='RAB roll forward'!O881 -> 0 | P119: ='RAB roll forward'!P881 -> 0 | Q119: ='RAB roll forward'!Q881 -> 0
D120: =Asset9 -> 0 | G120: ='RAB roll forward'!G882 -> 0 | H120: ='RAB roll forward'!H882 -> 0 | I120: ='RAB roll forward'!I882 -> 0 | J120: ='RAB roll forward'!J882 -> 0 | K120: ='RAB roll forward'!K882 -> 0 | L120: ='RAB roll forward'!L882 -> 0 | M120: ='RAB roll forward'!M882 -> 0 | N120: ='RAB roll forward'!N882 -> 0 | O120: ='RAB roll forward'!O882 -> 0 | P120: ='RAB roll forward'!P882 -> 0 | Q120: ='RAB roll forward'!Q882 -> 0
D121: =Asset10 -> 0 | G121: ='RAB roll forward'!G883 -> 0 | H121: ='RAB roll forward'!H883 -> 0 | I121: ='RAB roll forward'!I883 -> 0 | J121: ='RAB roll forward'!J883 -> 0 | K121: ='RAB roll forward'!K883 -> 0 | L121: ='RAB roll forward'!L883 -> 0 | M121: ='RAB roll forward'!M883 -> 0 | N121: ='RAB roll forward'!N883 -> 0 | O121: ='RAB roll forward'!O883 -> 0 | P121: ='RAB roll forward'!P883 -> 0 | Q121: ='RAB roll forward'!Q883 -> 0
D122: =Asset11 -> 0 | G122: ='RAB roll forward'!G884 -> 0 | H122: ='RAB roll forward'!H884 -> 0 | I122: ='RAB roll forward'!I884 -> 0 | J122: ='RAB roll forward'!J884 -> 0 | K122: ='RAB roll forward'!K884 -> 0 | L122: ='RAB roll forward'!L884 -> 0 | M122: ='RAB roll forward'!M884 -> 0 | N122: ='RAB roll forward'!N884 -> 0 | O122: ='RAB roll forward'!O884 -> 0 | P122: ='RAB roll forward'!P884 -> 0 | Q122: ='RAB roll forward'!Q884 -> 0
D123: =Asset12 -> 0 | G123: ='RAB roll forward'!G885 -> 0 | H123: ='RAB roll forward'!H885 -> 0 | I123: ='RAB roll forward'!I885 -> 0 | J123: ='RAB roll forward'!J885 -> 0 | K123: ='RAB roll forward'!K885 -> 0 | L123: ='RAB roll forward'!L885 -> 0 | M123: ='RAB roll forward'!M885 -> 0 | N123: ='RAB roll forward'!N885 -> 0 | O123: ='RAB roll forward'!O885 -> 0 | P123: ='RAB roll forward'!P885 -> 0 | Q123: ='RAB roll forward'!Q885 -> 0
D124: =Asset13 -> 0 | G124: ='RAB roll forward'!G886 -> 0 | H124: ='RAB roll forward'!H886 -> 0 | I124: ='RAB roll forward'!I886 -> 0 | J124: ='RAB roll forward'!J886 -> 0 | K124: ='RAB roll forward'!K886 -> 0 | L124: ='RAB roll forward'!L886 -> 0 | M124: ='RAB roll forward'!M886 -> 0 | N124: ='RAB roll forward'!N886 -> 0 | O124: ='RAB roll forward'!O886 -> 0 | P124: ='RAB roll forward'!P886 -> 0 | Q124: ='RAB roll forward'!Q886 -> 0
D125: =Asset14 -> 0 | G125: ='RAB roll forward'!G887 -> 0 | H125: ='RAB roll forward'!H887 -> 0 | I125: ='RAB roll forward'!I887 -> 0 | J125: ='RAB roll forward'!J887 -> 0 | K125: ='RAB roll forward'!K887 -> 0 | L125: ='RAB roll forward'!L887 -> 0 | M125: ='RAB roll forward'!M887 -> 0 | N125: ='RAB roll forward'!N887 -> 0 | O125: ='RAB roll forward'!O887 -> 0 | P125: ='RAB roll forward'!P887 -> 0 | Q125: ='RAB roll forward'!Q887 -> 0
D126: =Asset15 -> 0 | G126: ='RAB roll forward'!G888 -> 0 | H126: ='RAB roll forward'!H888 -> 0 | I126: ='RAB roll forward'!I888 -> 0 | J126: ='RAB roll forward'!J888 -> 0 | K126: ='RAB roll forward'!K888 -> 0 | L126: ='RAB roll forward'!L888 -> 0 | M126: ='RAB roll forward'!M888 -> 0 | N126: ='RAB roll forward'!N888 -> 0 | O126: ='RAB roll forward'!O888 -> 0 | P126: ='RAB roll forward'!P888 -> 0 | Q126: ='RAB roll forward'!Q888 -> 0
D127: =Asset16 -> 0 | G127: ='RAB roll forward'!G889 -> 0 | H127: ='RAB roll forward'!H889 -> 0 | I127: ='RAB roll forward'!I889 -> 0 | J127: ='RAB roll forward'!J889 -> 0 | K127: ='RAB roll forward'!K889 -> 0 | L127: ='RAB roll forward'!L889 -> 0 | M127: ='RAB roll forward'!M889 -> 0 | N127: ='RAB roll forward'!N889 -> 0 | O127: ='RAB roll forward'!O889 -> 0 | P127: ='RAB roll forward'!P889 -> 0 | Q127: ='RAB roll forward'!Q889 -> 0
D128: =Asset17 -> 0 | G128: ='RAB roll forward'!G890 -> 0 | H128: ='RAB roll forward'!H890 -> 0 | I128: ='RAB roll forward'!I890 -> 0 | J128: ='RAB roll forward'!J890 -> 0 | K128: ='RAB roll forward'!K890 -> 0 | L128: ='RAB roll forward'!L890 -> 0 | M128: ='RAB roll forward'!M890 -> 0 | N128: ='RAB roll forward'!N890 -> 0 | O128: ='RAB roll forward'!O890 -> 0 | P128: ='RAB roll forward'!P890 -> 0 | Q128: ='RAB roll forward'!Q890 -> 0
D129: =Asset18 -> 0 | G129: ='RAB roll forward'!G891 -> 0 | H129: ='RAB roll forward'!H891 -> 0 | I129: ='RAB roll forward'!I891 -> 0 | J129: ='RAB roll forward'!J891 -> 0 | K129: ='RAB roll forward'!K891 -> 0 | L129: ='RAB roll forward'!L891 -> 0 | M129: ='RAB roll forward'!M891 -> 0 | N129: ='RAB roll forward'!N891 -> 0 | O129: ='RAB roll forward'!O891 -> 0 | P129: ='RAB roll forward'!P891 -> 0 | Q129: ='RAB roll forward'!Q891 -> 0
D130: =Asset19 -> 0 | G130: ='RAB roll forward'!G892 -> 0 | H130: ='RAB roll forward'!H892 -> 0 | I130: ='RAB roll forward'!I892 -> 0 | J130: ='RAB roll forward'!J892 -> 0 | K130: ='RAB roll forward'!K892 -> 0 | L130: ='RAB roll forward'!L892 -> 0 | M130: ='RAB roll forward'!M892 -> 0 | N130: ='RAB roll forward'!N892 -> 0 | O130: ='RAB roll forward'!O892 -> 0 | P130: ='RAB roll forward'!P892 -> 0 | Q130: ='RAB roll forward'!Q892 -> 0
D131: =Asset20 -> 0 | G131: ='RAB roll forward'!G893 -> 0 | H131: ='RAB roll forward'!H893 -> 0 | I131: ='RAB roll forward'!I893 -> 0 | J131: ='RAB roll forward'!J893 -> 0 | K131: ='RAB roll forward'!K893 -> 0 | L131: ='RAB roll forward'!L893 -> 0 | M131: ='RAB roll forward'!M893 -> 0 | N131: ='RAB roll forward'!N893 -> 0 | O131: ='RAB roll forward'!O893 -> 0 | P131: ='RAB roll forward'!P893 -> 0 | Q131: ='RAB roll forward'!Q893 -> 0
D132: =Asset21 -> 0 | G132: ='RAB roll forward'!G894 -> 0 | H132: ='RAB roll forward'!H894 -> 0 | I132: ='RAB roll forward'!I894 -> 0 | J132: ='RAB roll forward'!J894 -> 0 | K132: ='RAB roll forward'!K894 -> 0 | L132: ='RAB roll forward'!L894 -> 0 | M132: ='RAB roll forward'!M894 -> 0 | N132: ='RAB roll forward'!N894 -> 0 | O132: ='RAB roll forward'!O894 -> 0 | P132: ='RAB roll forward'!P894 -> 0 | Q132: ='RAB roll forward'!Q894 -> 0
D133: =Asset22 -> 0 | G133: ='RAB roll forward'!G895 -> 0 | H133: ='RAB roll forward'!H895 -> 0 | I133: ='RAB roll forward'!I895 -> 0 | J133: ='RAB roll forward'!J895 -> 0 | K133: ='RAB roll forward'!K895 -> 0 | L133: ='RAB roll forward'!L895 -> 0 | M133: ='RAB roll forward'!M895 -> 0 | N133: ='RAB roll forward'!N895 -> 0 | O133: ='RAB roll forward'!O895 -> 0 | P133: ='RAB roll forward'!P895 -> 0 | Q133: ='RAB roll forward'!Q895 -> 0
D134: =Asset23 -> 0 | G134: ='RAB roll forward'!G896 -> 0 | H134: ='RAB roll forward'!H896 -> 0 | I134: ='RAB roll forward'!I896 -> 0 | J134: ='RAB roll forward'!J896 -> 0 | K134: ='RAB roll forward'!K896 -> 0 | L134: ='RAB roll forward'!L896 -> 0 | M134: ='RAB roll forward'!M896 -> 0 | N134: ='RAB roll forward'!N896 -> 0 | O134: ='RAB roll forward'!O896 -> 0 | P134: ='RAB roll forward'!P896 -> 0 | Q134: ='RAB roll forward'!Q896 -> 0
D135: =Asset24 -> 0 | G135: ='RAB roll forward'!G897 -> 0 | H135: ='RAB roll forward'!H897 -> 0 | I135: ='RAB roll forward'!I897 -> 0 | J135: ='RAB roll forward'!J897 -> 0 | K135: ='RAB roll forward'!K897 -> 0 | L135: ='RAB roll forward'!L897 -> 0 | M135: ='RAB roll forward'!M897 -> 0 | N135: ='RAB roll forward'!N897 -> 0 | O135: ='RAB roll forward'!O897 -> 0 | P135: ='RAB roll forward'!P897 -> 0 | Q135: ='RAB roll forward'!Q897 -> 0
D136: =Asset25 -> 0 | G136: ='RAB roll forward'!G898 -> 0 | H136: ='RAB roll forward'!H898 -> 0 | I136: ='RAB roll forward'!I898 -> 0 | J136: ='RAB roll forward'!J898 -> 0 | K136: ='RAB roll forward'!K898 -> 0 | L136: ='RAB roll forward'!L898 -> 0 | M136: ='RAB roll forward'!M898 -> 0 | N136: ='RAB roll forward'!N898 -> 0 | O136: ='RAB roll forward'!O898 -> 0 | P136: ='RAB roll forward'!P898 -> 0 | Q136: ='RAB roll forward'!Q898 -> 0
D137: =Asset26 -> 0 | G137: ='RAB roll forward'!G899 -> 0 | H137: ='RAB roll forward'!H899 -> 0 | I137: ='RAB roll forward'!I899 -> 0 | J137: ='RAB roll forward'!J899 -> 0 | K137: ='RAB roll forward'!K899 -> 0 | L137: ='RAB roll forward'!L899 -> 0 | M137: ='RAB roll forward'!M899 -> 0 | N137: ='RAB roll forward'!N899 -> 0 | O137: ='RAB roll forward'!O899 -> 0 | P137: ='RAB roll forward'!P899 -> 0 | Q137: ='RAB roll forward'!Q899 -> 0
D138: =Asset27 -> 0 | G138: ='RAB roll forward'!G900 -> 0 | H138: ='RAB roll forward'!H900 -> 0 | I138: ='RAB roll forward'!I900 -> 0 | J138: ='RAB roll forward'!J900 -> 0 | K138: ='RAB roll forward'!K900 -> 0 | L138: ='RAB roll forward'!L900 -> 0 | M138: ='RAB roll forward'!M900 -> 0 | N138: ='RAB roll forward'!N900 -> 0 | O138: ='RAB roll forward'!O900 -> 0 | P138: ='RAB roll forward'!P900 -> 0 | Q138: ='RAB roll forward'!Q900 -> 0
D139: =Asset28 -> 0 | G139: ='RAB roll forward'!G901 -> 0 | H139: ='RAB roll forward'!H901 -> 0 | I139: ='RAB roll forward'!I901 -> 0 | J139: ='RAB roll forward'!J901 -> 0 | K139: ='RAB roll forward'!K901 -> 0 | L139: ='RAB roll forward'!L901 -> 0 | M139: ='RAB roll forward'!M901 -> 0 | N139: ='RAB roll forward'!N901 -> 0 | O139: ='RAB roll forward'!O901 -> 0 | P139: ='RAB roll forward'!P901 -> 0 | Q139: ='RAB roll forward'!Q901 -> 0
D140: =Asset29 -> 0 | G140: ='RAB roll forward'!G902 -> 0 | H140: ='RAB roll forward'!H902 -> 0 | I140: ='RAB roll forward'!I902 -> 0 | J140: ='RAB roll forward'!J902 -> 0 | K140: ='RAB roll forward'!K902 -> 0 | L140: ='RAB roll forward'!L902 -> 0 | M140: ='RAB roll forward'!M902 -> 0 | N140: ='RAB roll forward'!N902 -> 0 | O140: ='RAB roll forward'!O902 -> 0 | P140: ='RAB roll forward'!P902 -> 0 | Q140: ='RAB roll forward'!Q902 -> 0
D141: =Asset30 -> 0 | G141: ='RAB roll forward'!G903 -> 0 | H141: ='RAB roll forward'!H903 -> 0 | I141: ='RAB roll forward'!I903 -> 0 | J141: ='RAB roll forward'!J903 -> 0 | K141: ='RAB roll forward'!K903 -> 0 | L141: ='RAB roll forward'!L903 -> 0 | M141: ='RAB roll forward'!M903 -> 0 | N141: ='RAB roll forward'!N903 -> 0 | O141: ='RAB roll forward'!O903 -> 0 | P141: ='RAB roll forward'!P903 -> 0 | Q141: ='RAB roll forward'!Q903 -> 0
D142: =Asset31 -> 0 | G142: ='RAB roll forward'!G904 -> 0 | H142: ='RAB roll forward'!H904 -> 0 | I142: ='RAB roll forward'!I904 -> 0 | J142: ='RAB roll forward'!J904 -> 0 | K142: ='RAB roll forward'!K904 -> 0 | L142: ='RAB roll forward'!L904 -> 0 | M142: ='RAB roll forward'!M904 -> 0 | N142: ='RAB roll forward'!N904 -> 0 | O142: ='RAB roll forward'!O904 -> 0 | P142: ='RAB roll forward'!P904 -> 0 | Q142: ='RAB roll forward'!Q904 -> 0
D143: =Asset32 -> 0 | G143: ='RAB roll forward'!G905 -> 0 | H143: ='RAB roll forward'!H905 -> 0 | I143: ='RAB roll forward'!I905 -> 0 | J143: ='RAB roll forward'!J905 -> 0 | K143: ='RAB roll forward'!K905 -> 0 | L143: ='RAB roll forward'!L905 -> 0 | M143: ='RAB roll forward'!M905 -> 0 | N143: ='RAB roll forward'!N905 -> 0 | O143: ='RAB roll forward'!O905 -> 0 | P143: ='RAB roll forward'!P905 -> 0 | Q143: ='RAB roll forward'!Q905 -> 0
D144: =Asset33 -> 0 | G144: ='RAB roll forward'!G906 -> 0 | H144: ='RAB roll forward'!H906 -> 0 | I144: ='RAB roll forward'!I906 -> 0 | J144: ='RAB roll forward'!J906 -> 0 | K144: ='RAB roll forward'!K906 -> 0 | L144: ='RAB roll forward'!L906 -> 0 | M144: ='RAB roll forward'!M906 -> 0 | N144: ='RAB roll forward'!N906 -> 0 | O144: ='RAB roll forward'!O906 -> 0 | P144: ='RAB roll forward'!P906 -> 0 | Q144: ='RAB roll forward'!Q906 -> 0
D145: =Asset34 -> 0 | G145: ='RAB roll forward'!G907 -> 0 | H145: ='RAB roll forward'!H907 -> 0 | I145: ='RAB roll forward'!I907 -> 0 | J145: ='RAB roll forward'!J907 -> 0 | K145: ='RAB roll forward'!K907 -> 0 | L145: ='RAB roll forward'!L907 -> 0 | M145: ='RAB roll forward'!M907 -> 0 | N145: ='RAB roll forward'!N907 -> 0 | O145: ='RAB roll forward'!O907 -> 0 | P145: ='RAB roll forward'!P907 -> 0 | Q145: ='RAB roll forward'!Q907 -> 0
D146: =Asset35 -> 0 | G146: ='RAB roll forward'!G908 -> 0 | H146: ='RAB roll forward'!H908 -> 0 | I146: ='RAB roll forward'!I908 -> 0 | J146: ='RAB roll forward'!J908 -> 0 | K146: ='RAB roll forward'!K908 -> 0 | L146: ='RAB roll forward'!L908 -> 0 | M146: ='RAB roll forward'!M908 -> 0 | N146: ='RAB roll forward'!N908 -> 0 | O146: ='RAB roll forward'!O908 -> 0 | P146: ='RAB roll forward'!P908 -> 0 | Q146: ='RAB roll forward'!Q908 -> 0
D147: =Asset36 -> 0 | G147: ='RAB roll forward'!G909 -> 0 | H147: ='RAB roll forward'!H909 -> 0 | I147: ='RAB roll forward'!I909 -> 0 | J147: ='RAB roll forward'!J909 -> 0 | K147: ='RAB roll forward'!K909 -> 0 | L147: ='RAB roll forward'!L909 -> 0 | M147: ='RAB roll forward'!M909 -> 0 | N147: ='RAB roll forward'!N909 -> 0 | O147: ='RAB roll forward'!O909 -> 0 | P147: ='RAB roll forward'!P909 -> 0 | Q147: ='RAB roll forward'!Q909 -> 0
D148: =Asset37 -> 0 | G148: ='RAB roll forward'!G910 -> 0 | H148: ='RAB roll forward'!H910 -> 0 | I148: ='RAB roll forward'!I910 -> 0 | J148: ='RAB roll forward'!J910 -> 0 | K148: ='RAB roll forward'!K910 -> 0 | L148: ='RAB roll forward'!L910 -> 0 | M148: ='RAB roll forward'!M910 -> 0 | N148: ='RAB roll forward'!N910 -> 0 | O148: ='RAB roll forward'!O910 -> 0 | P148: ='RAB roll forward'!P910 -> 0 | Q148: ='RAB roll forward'!Q910 -> 0
D149: =Asset38 -> 0 | G149: ='RAB roll forward'!G911 -> 0 | H149: ='RAB roll forward'!H911 -> 0 | I149: ='RAB roll forward'!I911 -> 0 | J149: ='RAB roll forward'!J911 -> 0 | K149: ='RAB roll forward'!K911 -> 0 | L149: ='RAB roll forward'!L911 -> 0 | M149: ='RAB roll forward'!M911 -> 0 | N149: ='RAB roll forward'!N911 -> 0 | O149: ='RAB roll forward'!O911 -> 0 | P149: ='RAB roll forward'!P911 -> 0 | Q149: ='RAB roll forward'!Q911 -> 0
D150: =Asset39 -> 0 | G150: ='RAB roll forward'!G912 -> 0 | H150: ='RAB roll forward'!H912 -> 0 | I150: ='RAB roll forward'!I912 -> 0 | J150: ='RAB roll forward'!J912 -> 0 | K150: ='RAB roll forward'!K912 -> 0 | L150: ='RAB roll forward'!L912 -> 0 | M150: ='RAB roll forward'!M912 -> 0 | N150: ='RAB roll forward'!N912 -> 0 | O150: ='RAB roll forward'!O912 -> 0 | P150: ='RAB roll forward'!P912 -> 0 | Q150: ='RAB roll forward'!Q912 -> 0
D151: =Asset40 -> 0 | G151: ='RAB roll forward'!G913 -> 0 | H151: ='RAB roll forward'!H913 -> 0 | I151: ='RAB roll forward'!I913 -> 0 | J151: ='RAB roll forward'!J913 -> 0 | K151: ='RAB roll forward'!K913 -> 0 | L151: ='RAB roll forward'!L913 -> 0 | M151: ='RAB roll forward'!M913 -> 0 | N151: ='RAB roll forward'!N913 -> 0 | O151: ='RAB roll forward'!O913 -> 0 | P151: ='RAB roll forward'!P913 -> 0 | Q151: ='RAB roll forward'!Q913 -> 0
D152: =Asset41 -> 0 | G152: ='RAB roll forward'!G914 -> 0 | H152: ='RAB roll forward'!H914 -> 0 | I152: ='RAB roll forward'!I914 -> 0 | J152: ='RAB roll forward'!J914 -> 0 | K152: ='RAB roll forward'!K914 -> 0 | L152: ='RAB roll forward'!L914 -> 0 | M152: ='RAB roll forward'!M914 -> 0 | N152: ='RAB roll forward'!N914 -> 0 | O152: ='RAB roll forward'!O914 -> 0 | P152: ='RAB roll forward'!P914 -> 0 | Q152: ='RAB roll forward'!Q914 -> 0
D153: =Asset42 -> 0 | G153: ='RAB roll forward'!G915 -> 0 | H153: ='RAB roll forward'!H915 -> 0 | I153: ='RAB roll forward'!I915 -> 0 | J153: ='RAB roll forward'!J915 -> 0 | K153: ='RAB roll forward'!K915 -> 0 | L153: ='RAB roll forward'!L915 -> 0 | M153: ='RAB roll forward'!M915 -> 0 | N153: ='RAB roll forward'!N915 -> 0 | O153: ='RAB roll forward'!O915 -> 0 | P153: ='RAB roll forward'!P915 -> 0 | Q153: ='RAB roll forward'!Q915 -> 0
D154: =Asset43 -> 0 | G154: ='RAB roll forward'!G916 -> 0 | H154: ='RAB roll forward'!H916 -> 0 | I154: ='RAB roll forward'!I916 -> 0 | J154: ='RAB roll forward'!J916 -> 0 | K154: ='RAB roll forward'!K916 -> 0 | L154: ='RAB roll forward'!L916 -> 0 | M154: ='RAB roll forward'!M916 -> 0 | N154: ='RAB roll forward'!N916 -> 0 | O154: ='RAB roll forward'!O916 -> 0 | P154: ='RAB roll forward'!P916 -> 0 | Q154: ='RAB roll forward'!Q916 -> 0
D155: =Asset44 -> 0 | G155: ='RAB roll forward'!G917 -> 0 | H155: ='RAB roll forward'!H917 -> 0 | I155: ='RAB roll forward'!I917 -> 0 | J155: ='RAB roll forward'!J917 -> 0 | K155: ='RAB roll forward'!K917 -> 0 | L155: ='RAB roll forward'!L917 -> 0 | M155: ='RAB roll forward'!M917 -> 0 | N155: ='RAB roll forward'!N917 -> 0 | O155: ='RAB roll forward'!O917 -> 0 | P155: ='RAB roll forward'!P917 -> 0 | Q155: ='RAB roll forward'!Q917 -> 0
D156: =Asset45 -> 0 | G156: ='RAB roll forward'!G918 -> 0 | H156: ='RAB roll forward'!H918 -> 0 | I156: ='RAB roll forward'!I918 -> 0 | J156: ='RAB roll forward'!J918 -> 0 | K156: ='RAB roll forward'!K918 -> 0 | L156: ='RAB roll forward'!L918 -> 0 | M156: ='RAB roll forward'!M918 -> 0 | N156: ='RAB roll forward'!N918 -> 0 | O156: ='RAB roll forward'!O918 -> 0 | P156: ='RAB roll forward'!P918 -> 0 | Q156: ='RAB roll forward'!Q918 -> 0
D157: =Asset46 -> 0 | G157: ='RAB roll forward'!G919 -> 0 | H157: ='RAB roll forward'!H919 -> 0 | I157: ='RAB roll forward'!I919 -> 0 | J157: ='RAB roll forward'!J919 -> 0 | K157: ='RAB roll forward'!K919 -> 0 | L157: ='RAB roll forward'!L919 -> 0 | M157: ='RAB roll forward'!M919 -> 0 | N157: ='RAB roll forward'!N919 -> 0 | O157: ='RAB roll forward'!O919 -> 0 | P157: ='RAB roll forward'!P919 -> 0 | Q157: ='RAB roll forward'!Q919 -> 0
D158: =Asset47 -> 0 | G158: ='RAB roll forward'!G920 -> 0 | H158: ='RAB roll forward'!H920 -> 0 | I158: ='RAB roll forward'!I920 -> 0 | J158: ='RAB roll forward'!J920 -> 0 | K158: ='RAB roll forward'!K920 -> 0 | L158: ='RAB roll forward'!L920 -> 0 | M158: ='RAB roll forward'!M920 -> 0 | N158: ='RAB roll forward'!N920 -> 0 | O158: ='RAB roll forward'!O920 -> 0 | P158: ='RAB roll forward'!P920 -> 0 | Q158: ='RAB roll forward'!Q920 -> 0
D159: =Asset48 -> 0 | G159: ='RAB roll forward'!G921 -> 0 | H159: ='RAB roll forward'!H921 -> 0 | I159: ='RAB roll forward'!I921 -> 0 | J159: ='RAB roll forward'!J921 -> 0 | K159: ='RAB roll forward'!K921 -> 0 | L159: ='RAB roll forward'!L921 -> 0 | M159: ='RAB roll forward'!M921 -> 0 | N159: ='RAB roll forward'!N921 -> 0 | O159: ='RAB roll forward'!O921 -> 0 | P159: ='RAB roll forward'!P921 -> 0 | Q159: ='RAB roll forward'!Q921 -> 0
D160: =Asset49 -> 0 | G160: ='RAB roll forward'!G922 -> 0 | H160: ='RAB roll forward'!H922 -> 0 | I160: ='RAB roll forward'!I922 -> 0 | J160: ='RAB roll forward'!J922 -> 0 | K160: ='RAB roll forward'!K922 -> 0 | L160: ='RAB roll forward'!L922 -> 0 | M160: ='RAB roll forward'!M922 -> 0 | N160: ='RAB roll forward'!N922 -> 0 | O160: ='RAB roll forward'!O922 -> 0 | P160: ='RAB roll forward'!P922 -> 0 | Q160: ='RAB roll forward'!Q922 -> 0
D161: =Asset50 -> Equity raising costs | G161: ='RAB roll forward'!G923 -> 0 | H161: ='RAB roll forward'!H923 -> 0 | I161: ='RAB roll forward'!I923 -> 0 | J161: ='RAB roll forward'!J923 -> 0 | K161: ='RAB roll forward'!K923 -> 0 | L161: ='RAB roll forward'!L923 -> 0 | M161: ='RAB roll forward'!M923 -> 0 | N161: ='RAB roll forward'!N923 -> 0 | O161: ='RAB roll forward'!O923 -> 0 | P161: ='RAB roll forward'!P923 -> 0 | Q161: ='RAB roll forward'!Q923 -> 0
C163: Nominal Difference in Final Year Capex | G163: =SUM(G164:G213) -> 0
D164: =Asset1 -> Transmission lines | G164: ='RAB roll forward'!G926 -> 0
D165: =Asset2 -> Substations | G165: ='RAB roll forward'!G927 -> 0
D166: =Asset3 -> Easements | G166: ='RAB roll forward'!G928 -> 0
D167: =Asset4 -> 0 | G167: ='RAB roll forward'!G929 -> 0
D168: =Asset5 -> 0 | G168: ='RAB roll forward'!G930 -> 0
D169: =Asset6 -> 0 | G169: ='RAB roll forward'!G931 -> 0
D170: =Asset7 -> 0 | G170: ='RAB roll forward'!G932 -> 0
D171: =Asset8 -> 0 | G171: ='RAB roll forward'!G933 -> 0
D172: =Asset9 -> 0 | G172: ='RAB roll forward'!G934 -> 0
D173: =Asset10 -> 0 | G173: ='RAB roll forward'!G935 -> 0
D174: =Asset11 -> 0 | G174: ='RAB roll forward'!G936 -> 0
D175: =Asset12 -> 0 | G175: ='RAB roll forward'!G937 -> 0
D176: =Asset13 -> 0 | G176: ='RAB roll forward'!G938 -> 0
D177: =Asset14 -> 0 | G177: ='RAB roll forward'!G939 -> 0
D178: =Asset15 -> 0 | G178: ='RAB roll forward'!G940 -> 0
D179: =Asset16 -> 0 | G179: ='RAB roll forward'!G941 -> 0
D180: =Asset17 -> 0 | G180: ='RAB roll forward'!G942 -> 0
D181: =Asset18 -> 0 | G181: ='RAB roll forward'!G943 -> 0
D182: =Asset19 -> 0 | G182: ='RAB roll forward'!G944 -> 0
D183: =Asset20 -> 0 | G183: ='RAB roll forward'!G945 -> 0
D184: =Asset21 -> 0 | G184: ='RAB roll forward'!G946 -> 0
D185: =Asset22 -> 0 | G185: ='RAB roll forward'!G947 -> 0
D186: =Asset23 -> 0 | G186: ='RAB roll forward'!G948 -> 0
D187: =Asset24 -> 0 | G187: ='RAB roll forward'!G949 -> 0
D188: =Asset25 -> 0 | G188: ='RAB roll forward'!G950 -> 0
D189: =Asset26 -> 0 | G189: ='RAB roll forward'!G951 -> 0
D190: =Asset27 -> 0 | G190: ='RAB roll forward'!G952 -> 0
D191: =Asset28 -> 0 | G191: ='RAB roll forward'!G953 -> 0
D192: =Asset29 -> 0 | G192: ='RAB roll forward'!G954 -> 0
D193: =Asset30 -> 0 | G193: ='RAB roll forward'!G955 -> 0
D194: =Asset31 -> 0 | G194: ='RAB roll forward'!G956 -> 0
D195: =Asset32 -> 0 | G195: ='RAB roll forward'!G957 -> 0
D196: =Asset33 -> 0 | G196: ='RAB roll forward'!G958 -> 0
D197: =Asset34 -> 0 | G197: ='RAB roll forward'!G959 -> 0
D198: =Asset35 -> 0 | G198: ='RAB roll forward'!G960 -> 0
D199: =Asset36 -> 0 | G199: ='RAB roll forward'!G961 -> 0
D200: =Asset37 -> 0 | G200: ='RAB roll forward'!G962 -> 0
D201: =Asset38 -> 0 | G201: ='RAB roll forward'!G963 -> 0
D202: =Asset39 -> 0 | G202: ='RAB roll forward'!G964 -> 0
D203: =Asset40 -> 0 | G203: ='RAB roll forward'!G965 -> 0
D204: =Asset41 -> 0 | G204: ='RAB roll forward'!G966 -> 0
D205: =Asset42 -> 0 | G205: ='RAB roll forward'!G967 -> 0
... 931 more rows

Sheet TAB roll forward
B2: ='DMS input'!$C$16&" - Tax Asset Roll Forward"&" - TNSP RFM - version "&Intro!$M$4 -> Aus Elec - Tax Asset Roll Forward - TNSP RFM - version 3 | I2: 1 | J2: 2 | K2: 3 | L2: 4 | M2: 5 | N2: 6 | O2: 7 | P2: 8 | Q2: 9 | R2: 10
G3: 0 | H3: =G3+1 -> 1 | I3: 2 | J3: 3 | K3: 4 | L3: 5 | M3: 6 | N3: 7 | O3: 8 | P3: 9 | Q3: 10 | R3: 11
B4: Year | H4: ='RFM input'!H60 -> 2012-13 | I4: ='RFM input'!I60 -> 2013-14 | J4: ='RFM input'!J60 -> 2014-15 | K4: ='RFM input'!K60 -> 2015-16 | L4: ='RFM input'!L60 -> 2016-17 | M4: ='RFM input'!M60 -> 2017-18 | N4: ='RFM input'!N60 -> 2018-19 | O4: ='RFM input'!O60 -> 2019-20 | P4: ='RFM input'!P60 -> 2020-21 | Q4: ='RFM input'!Q60 -> 2021-22 | R4: =IF(LEN(Q4)>4,CONCATENATE(LEFT(Q4, 4)+1 &"-" &IF(Q4>"2007-08",,"0") &RIGHT(Q4,2)+1),Q4+1) -> 2022-23
B5: Tax Values ($m Nominal)
B7: Opening Tax Asset Values | H7: =SUM(H8:H57) -> 2088.3264 | I7: =SUM(I8:I57) -> 2055.696608 | J7: 2022.587451 | K7: 1988.998929 | L7: 1954.931042 | M7: 1925.383789 | N7: 0 | O7: 0 | P7: 0 | Q7: 0 | R7: 0
C8: =Asset1 -> Transmission lines | H8: ='RFM input'!W7-'RFM input'!N7/(1+previous_vanilla)^0.5+('RFM input'!G223-'RFM input'!G277) -> 796.4421334 | I8: =H8+H60+H124 -> 774.584448 | J8: =I8+I60+I124 -> 752.5045405 | K8: =IF(COUNT($H8:J8)>'RFM input'!$AA$7,0, J8+J60+J124+IF(K$111=0,'RFM input'!$I$455,0)) -> 730.2024107 | L8: =IF(COUNT($H8:K8)>'RFM input'!$AA$7,0, K8+K60+K124+IF(L$111=0,'RFM input'!$I$455,0)) -> 707.6780587 | M8: =IF(COUNT($H8:L8)>'RFM input'!$AA$7,0, L8+L60+L124+IF(M$111=0,'RFM input'!$I$455,0)) -> 684.9314845 | N8: =IF(COUNT($H8:M8)>'RFM input'!$AA$7,0, M8+M60+M124+IF(N$111=0,'RFM input'!$I$455,0)) -> 0 | O8: =IF(COUNT($H8:N8)>'RFM input'!$AA$7,0, N8+N60+N124+IF(O$111=0,'RFM input'!$I$455,0)) -> 0 | P8: =IF(COUNT($H8:O8)>'RFM input'!$AA$7,0, O8+O60+O124+IF(P$111=0,'RFM input'!$I$455,0)) -> 0 | Q8: =IF(COUNT($H8:P8)>'RFM input'!$AA$7,0, P8+P60+P124+IF(Q$111=0,'RFM input'!$I$455,0)) -> 0 | R8: =IF(COUNT($H8:Q8)>'RFM input'!$AA$7,0, Q8+Q60+Q124+IF(R$111=0,'RFM input'!$I$455,0)) -> 0
C9: =Asset2 -> Substations | H9: ='RFM input'!W8-'RFM input'!N8/(1+previous_vanilla)^0.5+('RFM input'!G224-'RFM input'!G278) -> 695.4421334 | I9: =H9+H61+H137 -> 669.6700267 | J9: =I9+I61+I137 -> 643.6407772 | K9: =IF(COUNT($H9:J9)>'RFM input'!$AA$7,0, J9+J61+J137+IF(K$111=0,'RFM input'!$I$456,0)) -> 617.3543848 | L9: =IF(COUNT($H9:K9)>'RFM input'!$AA$7,0, K9+K61+K137+IF(L$111=0,'RFM input'!$I$456,0)) -> 590.8108496 | M9: =IF(COUNT($H9:L9)>'RFM input'!$AA$7,0, L9+L61+L137+IF(M$111=0,'RFM input'!$I$456,0)) -> 564.0101715 | N9: =IF(COUNT($H9:M9)>'RFM input'!$AA$7,0, M9+M61+M137+IF(N$111=0,'RFM input'!$I$456,0)) -> 0 | O9: =IF(COUNT($H9:N9)>'RFM input'!$AA$7,0, N9+N61+N137+IF(O$111=0,'RFM input'!$I$456,0)) -> 0 | P9: =IF(COUNT($H9:O9)>'RFM input'!$AA$7,0, O9+O61+O137+IF(P$111=0,'RFM input'!$I$456,0)) -> 0 | Q9: =IF(COUNT($H9:P9)>'RFM input'!$AA$7,0, P9+P61+P137+IF(Q$111=0,'RFM input'!$I$456,0)) -> 0 | R9: =IF(COUNT($H9:Q9)>'RFM input'!$AA$7,0, Q9+Q61+Q137+IF(R$111=0,'RFM input'!$I$456,0)) -> 0
C10: =Asset3 -> Easements | H10: ='RFM input'!W9-'RFM input'!N9/(1+previous_vanilla)^0.5+('RFM input'!G225-'RFM input'!G279) -> 596.4421334 | I10: =H10+H62+H150 -> 611.4421334 | J10: =I10+I62+I150 -> 626.4421334 | K10: =IF(COUNT($H10:J10)>'RFM input'!$AA$7,0, J10+J62+J150+IF(K$111=0,'RFM input'!$I$457,0)) -> 641.4421334 | L10: =IF(COUNT($H10:K10)>'RFM input'!$AA$7,0, K10+K62+K150+IF(L$111=0,'RFM input'!$I$457,0)) -> 656.4421334 | M10: =IF(COUNT($H10:L10)>'RFM input'!$AA$7,0, L10+L62+L150+IF(M$111=0,'RFM input'!$I$457,0)) -> 676.4421334 | N10: =IF(COUNT($H10:M10)>'RFM input'!$AA$7,0, M10+M62+M150+IF(N$111=0,'RFM input'!$I$457,0)) -> 0 | O10: =IF(COUNT($H10:N10)>'RFM input'!$AA$7,0, N10+N62+N150+IF(O$111=0,'RFM input'!$I$457,0)) -> 0 | P10: =IF(COUNT($H10:O10)>'RFM input'!$AA$7,0, O10+O62+O150+IF(P$111=0,'RFM input'!$I$457,0)) -> 0 | Q10: =IF(COUNT($H10:P10)>'RFM input'!$AA$7,0, P10+P62+P150+IF(Q$111=0,'RFM input'!$I$457,0)) -> 0 | R10: =IF(COUNT($H10:Q10)>'RFM input'!$AA$7,0, Q10+Q62+Q150+IF(R$111=0,'RFM input'!$I$457,0)) -> 0
C11: =Asset4 -> 0 | H11: ='RFM input'!W10-'RFM input'!N10/(1+previous_vanilla)^0.5+('RFM input'!G226-'RFM input'!G280) -> 0 | I11: =H11+H63+H163 -> 0 | J11: =I11+I63+I163 -> 0 | K11: =IF(COUNT($H11:J11)>'RFM input'!$AA$7,0, J11+J63+J163+IF(K$111=0,'RFM input'!$I$458,0)) -> 0 | L11: =IF(COUNT($H11:K11)>'RFM input'!$AA$7,0, K11+K63+K163+IF(L$111=0,'RFM input'!$I$458,0)) -> 0 | M11: =IF(COUNT($H11:L11)>'RFM input'!$AA$7,0, L11+L63+L163+IF(M$111=0,'RFM input'!$I$458,0)) -> 0 | N11: =IF(COUNT($H11:M11)>'RFM input'!$AA$7,0, M11+M63+M163+IF(N$111=0,'RFM input'!$I$458,0)) -> 0 | O11: =IF(COUNT($H11:N11)>'RFM input'!$AA$7,0, N11+N63+N163+IF(O$111=0,'RFM input'!$I$458,0)) -> 0 | P11: =IF(COUNT($H11:O11)>'RFM input'!$AA$7,0, O11+O63+O163+IF(P$111=0,'RFM input'!$I$458,0)) -> 0 | Q11: =IF(COUNT($H11:P11)>'RFM input'!$AA$7,0, P11+P63+P163+IF(Q$111=0,'RFM input'!$I$458,0)) -> 0 | R11: =IF(COUNT($H11:Q11)>'RFM input'!$AA$7,0, Q11+Q63+Q163+IF(R$111=0,'RFM input'!$I$458,0)) -> 0
C12: =Asset5 -> 0 | H12: ='RFM input'!W11-'RFM input'!N11/(1+previous_vanilla)^0.5+('RFM input'!G227-'RFM input'!G281) -> 0 | I12: =H12+H64+H176 -> 0 | J12: =I12+I64+I176 -> 0 | K12: =IF(COUNT($H12:J12)>'RFM input'!$AA$7,0, J12+J64+J176+IF(K$111=0,'RFM input'!$I$459,0)) -> 0 | L12: =IF(COUNT($H12:K12)>'RFM input'!$AA$7,0, K12+K64+K176+IF(L$111=0,'RFM input'!$I$459,0)) -> 0 | M12: =IF(COUNT($H12:L12)>'RFM input'!$AA$7,0, L12+L64+L176+IF(M$111=0,'RFM input'!$I$459,0)) -> 0 | N12: =IF(COUNT($H12:M12)>'RFM input'!$AA$7,0, M12+M64+M176+IF(N$111=0,'RFM input'!$I$459,0)) -> 0 | O12: =IF(COUNT($H12:N12)>'RFM input'!$AA$7,0, N12+N64+N176+IF(O$111=0,'RFM input'!$I$459,0)) -> 0 | P12: =IF(COUNT($H12:O12)>'RFM input'!$AA$7,0, O12+O64+O176+IF(P$111=0,'RFM input'!$I$459,0)) -> 0 | Q12: =IF(COUNT($H12:P12)>'RFM input'!$AA$7,0, P12+P64+P176+IF(Q$111=0,'RFM input'!$I$459,0)) -> 0 | R12: =IF(COUNT($H12:Q12)>'RFM input'!$AA$7,0, Q12+Q64+Q176+IF(R$111=0,'RFM input'!$I$459,0)) -> 0
C13: =Asset6 -> 0 | H13: ='RFM input'!W12-'RFM input'!N12/(1+previous_vanilla)^0.5+('RFM input'!G228-'RFM input'!G282) -> 0 | I13: =H13+H65+H189 -> 0 | J13: =I13+I65+I189 -> 0 | K13: =IF(COUNT($H13:J13)>'RFM input'!$AA$7,0, J13+J65+J189+IF(K$111=0,'RFM input'!$I$460,0)) -> 0 | L13: =IF(COUNT($H13:K13)>'RFM input'!$AA$7,0, K13+K65+K189+IF(L$111=0,'RFM input'!$I$460,0)) -> 0 | M13: =IF(COUNT($H13:L13)>'RFM input'!$AA$7,0, L13+L65+L189+IF(M$111=0,'RFM input'!$I$460,0)) -> 0 | N13: =IF(COUNT($H13:M13)>'RFM input'!$AA$7,0, M13+M65+M189+IF(N$111=0,'RFM input'!$I$460,0)) -> 0 | O13: =IF(COUNT($H13:N13)>'RFM input'!$AA$7,0, N13+N65+N189+IF(O$111=0,'RFM input'!$I$460,0)) -> 0 | P13: =IF(COUNT($H13:O13)>'RFM input'!$AA$7,0, O13+O65+O189+IF(P$111=0,'RFM input'!$I$460,0)) -> 0 | Q13: =IF(COUNT($H13:P13)>'RFM input'!$AA$7,0, P13+P65+P189+IF(Q$111=0,'RFM input'!$I$460,0)) -> 0 | R13: =IF(COUNT($H13:Q13)>'RFM input'!$AA$7,0, Q13+Q65+Q189+IF(R$111=0,'RFM input'!$I$460,0)) -> 0
C14: =Asset7 -> 0 | H14: ='RFM input'!W13-'RFM input'!N13/(1+previous_vanilla)^0.5+('RFM input'!G229-'RFM input'!G283) -> 0 | I14: =H14+H66+H202 -> 0 | J14: =I14+I66+I202 -> 0 | K14: =IF(COUNT($H14:J14)>'RFM input'!$AA$7,0, J14+J66+J202+IF(K$111=0,'RFM input'!$I$461,0)) -> 0 | L14: =IF(COUNT($H14:K14)>'RFM input'!$AA$7,0, K14+K66+K202+IF(L$111=0,'RFM input'!$I$461,0)) -> 0 | M14: =IF(COUNT($H14:L14)>'RFM input'!$AA$7,0, L14+L66+L202+IF(M$111=0,'RFM input'!$I$461,0)) -> 0 | N14: =IF(COUNT($H14:M14)>'RFM input'!$AA$7,0, M14+M66+M202+IF(N$111=0,'RFM input'!$I$461,0)) -> 0 | O14: =IF(COUNT($H14:N14)>'RFM input'!$AA$7,0, N14+N66+N202+IF(O$111=0,'RFM input'!$I$461,0)) -> 0 | P14: =IF(COUNT($H14:O14)>'RFM input'!$AA$7,0, O14+O66+O202+IF(P$111=0,'RFM input'!$I$461,0)) -> 0 | Q14: =IF(COUNT($H14:P14)>'RFM input'!$AA$7,0, P14+P66+P202+IF(Q$111=0,'RFM input'!$I$461,0)) -> 0 | R14: =IF(COUNT($H14:Q14)>'RFM input'!$AA$7,0, Q14+Q66+Q202+IF(R$111=0,'RFM input'!$I$461,0)) -> 0
C15: =Asset8 -> 0 | H15: ='RFM input'!W14-'RFM input'!N14/(1+previous_vanilla)^0.5+('RFM input'!G230-'RFM input'!G284) -> 0 | I15: =H15+H67+H215 -> 0 | J15: =I15+I67+I215 -> 0 | K15: =IF(COUNT($H15:J15)>'RFM input'!$AA$7,0, J15+J67+J215+IF(K$111=0,'RFM input'!$I$462,0)) -> 0 | L15: =IF(COUNT($H15:K15)>'RFM input'!$AA$7,0, K15+K67+K215+IF(L$111=0,'RFM input'!$I$462,0)) -> 0 | M15: =IF(COUNT($H15:L15)>'RFM input'!$AA$7,0, L15+L67+L215+IF(M$111=0,'RFM input'!$I$462,0)) -> 0 | N15: =IF(COUNT($H15:M15)>'RFM input'!$AA$7,0, M15+M67+M215+IF(N$111=0,'RFM input'!$I$462,0)) -> 0 | O15: =IF(COUNT($H15:N15)>'RFM input'!$AA$7,0, N15+N67+N215+IF(O$111=0,'RFM input'!$I$462,0)) -> 0 | P15: =IF(COUNT($H15:O15)>'RFM input'!$AA$7,0, O15+O67+O215+IF(P$111=0,'RFM input'!$I$462,0)) -> 0 | Q15: =IF(COUNT($H15:P15)>'RFM input'!$AA$7,0, P15+P67+P215+IF(Q$111=0,'RFM input'!$I$462,0)) -> 0 | R15: =IF(COUNT($H15:Q15)>'RFM input'!$AA$7,0, Q15+Q67+Q215+IF(R$111=0,'RFM input'!$I$462,0)) -> 0
C16: =Asset9 -> 0 | H16: ='RFM input'!W15-'RFM input'!N15/(1+previous_vanilla)^0.5+('RFM input'!G231-'RFM input'!G285) -> 0 | I16: =H16+H68+H228 -> 0 | J16: =I16+I68+I228 -> 0 | K16: =IF(COUNT($H16:J16)>'RFM input'!$AA$7,0, J16+J68+J228+IF(K$111=0,'RFM input'!$I$463,0)) -> 0 | L16: =IF(COUNT($H16:K16)>'RFM input'!$AA$7,0, K16+K68+K228+IF(L$111=0,'RFM input'!$I$463,0)) -> 0 | M16: =IF(COUNT($H16:L16)>'RFM input'!$AA$7,0, L16+L68+L228+IF(M$111=0,'RFM input'!$I$463,0)) -> 0 | N16: =IF(COUNT($H16:M16)>'RFM input'!$AA$7,0, M16+M68+M228+IF(N$111=0,'RFM input'!$I$463,0)) -> 0 | O16: =IF(COUNT($H16:N16)>'RFM input'!$AA$7,0, N16+N68+N228+IF(O$111=0,'RFM input'!$I$463,0)) -> 0 | P16: =IF(COUNT($H16:O16)>'RFM input'!$AA$7,0, O16+O68+O228+IF(P$111=0,'RFM input'!$I$463,0)) -> 0 | Q16: =IF(COUNT($H16:P16)>'RFM input'!$AA$7,0, P16+P68+P228+IF(Q$111=0,'RFM input'!$I$463,0)) -> 0 | R16: =IF(COUNT($H16:Q16)>'RFM input'!$AA$7,0, Q16+Q68+Q228+IF(R$111=0,'RFM input'!$I$463,0)) -> 0
C17: =Asset10 -> 0 | H17: ='RFM input'!W16-'RFM input'!N16/(1+previous_vanilla)^0.5+('RFM input'!G232-'RFM input'!G286) -> 0 | I17: =H17+H69+H241 -> 0 | J17: =I17+I69+I241 -> 0 | K17: =IF(COUNT($H17:J17)>'RFM input'!$AA$7,0, J17+J69+J241+IF(K$111=0,'RFM input'!$I$464,0)) -> 0 | L17: =IF(COUNT($H17:K17)>'RFM input'!$AA$7,0, K17+K69+K241+IF(L$111=0,'RFM input'!$I$464,0)) -> 0 | M17: =IF(COUNT($H17:L17)>'RFM input'!$AA$7,0, L17+L69+L241+IF(M$111=0,'RFM input'!$I$464,0)) -> 0 | N17: =IF(COUNT($H17:M17)>'RFM input'!$AA$7,0, M17+M69+M241+IF(N$111=0,'RFM input'!$I$464,0)) -> 0 | O17: =IF(COUNT($H17:N17)>'RFM input'!$AA$7,0, N17+N69+N241+IF(O$111=0,'RFM input'!$I$464,0)) -> 0 | P17: =IF(COUNT($H17:O17)>'RFM input'!$AA$7,0, O17+O69+O241+IF(P$111=0,'RFM input'!$I$464,0)) -> 0 | Q17: =IF(COUNT($H17:P17)>'RFM input'!$AA$7,0, P17+P69+P241+IF(Q$111=0,'RFM input'!$I$464,0)) -> 0 | R17: =IF(COUNT($H17:Q17)>'RFM input'!$AA$7,0, Q17+Q69+Q241+IF(R$111=0,'RFM input'!$I$464,0)) -> 0
C18: =Asset11 -> 0 | H18: ='RFM input'!W17-'RFM input'!N17/(1+previous_vanilla)^0.5+('RFM input'!G233-'RFM input'!G287) -> 0 | I18: =H18+H70+H254 -> 0 | J18: =I18+I70+I254 -> 0 | K18: =IF(COUNT($H18:J18)>'RFM input'!$AA$7,0, J18+J70+J254+IF(K$111=0,'RFM input'!$I$465,0)) -> 0 | L18: =IF(COUNT($H18:K18)>'RFM input'!$AA$7,0, K18+K70+K254+IF(L$111=0,'RFM input'!$I$465,0)) -> 0 | M18: =IF(COUNT($H18:L18)>'RFM input'!$AA$7,0, L18+L70+L254+IF(M$111=0,'RFM input'!$I$465,0)) -> 0 | N18: =IF(COUNT($H18:M18)>'RFM input'!$AA$7,0, M18+M70+M254+IF(N$111=0,'RFM input'!$I$465,0)) -> 0 | O18: =IF(COUNT($H18:N18)>'RFM input'!$AA$7,0, N18+N70+N254+IF(O$111=0,'RFM input'!$I$465,0)) -> 0 | P18: =IF(COUNT($H18:O18)>'RFM input'!$AA$7,0, O18+O70+O254+IF(P$111=0,'RFM input'!$I$465,0)) -> 0 | Q18: =IF(COUNT($H18:P18)>'RFM input'!$AA$7,0, P18+P70+P254+IF(Q$111=0,'RFM input'!$I$465,0)) -> 0 | R18: =IF(COUNT($H18:Q18)>'RFM input'!$AA$7,0, Q18+Q70+Q254+IF(R$111=0,'RFM input'!$I$465,0)) -> 0
C19: =Asset12 -> 0 | H19: ='RFM input'!W18-'RFM input'!N18/(1+previous_vanilla)^0.5+('RFM input'!G234-'RFM input'!G288) -> 0 | I19: =H19+H71+H267 -> 0 | J19: =I19+I71+I267 -> 0 | K19: =IF(COUNT($H19:J19)>'RFM input'!$AA$7,0, J19+J71+J267+IF(K$111=0,'RFM input'!$I$466,0)) -> 0 | L19: =IF(COUNT($H19:K19)>'RFM input'!$AA$7,0, K19+K71+K267+IF(L$111=0,'RFM input'!$I$466,0)) -> 0 | M19: =IF(COUNT($H19:L19)>'RFM input'!$AA$7,0, L19+L71+L267+IF(M$111=0,'RFM input'!$I$466,0)) -> 0 | N19: =IF(COUNT($H19:M19)>'RFM input'!$AA$7,0, M19+M71+M267+IF(N$111=0,'RFM input'!$I$466,0)) -> 0 | O19: =IF(COUNT($H19:N19)>'RFM input'!$AA$7,0, N19+N71+N267+IF(O$111=0,'RFM input'!$I$466,0)) -> 0 | P19: =IF(COUNT($H19:O19)>'RFM input'!$AA$7,0, O19+O71+O267+IF(P$111=0,'RFM input'!$I$466,0)) -> 0 | Q19: =IF(COUNT($H19:P19)>'RFM input'!$AA$7,0, P19+P71+P267+IF(Q$111=0,'RFM input'!$I$466,0)) -> 0 | R19: =IF(COUNT($H19:Q19)>'RFM input'!$AA$7,0, Q19+Q71+Q267+IF(R$111=0,'RFM input'!$I$466,0)) -> 0
C20: =Asset13 -> 0 | H20: ='RFM input'!W19-'RFM input'!N19/(1+previous_vanilla)^0.5+('RFM input'!G235-'RFM input'!G289) -> 0 | I20: =H20+H72+H280 -> 0 | J20: =I20+I72+I280 -> 0 | K20: =IF(COUNT($H20:J20)>'RFM input'!$AA$7,0, J20+J72+J280+IF(K$111=0,'RFM input'!$I$467,0)) -> 0 | L20: =IF(COUNT($H20:K20)>'RFM input'!$AA$7,0, K20+K72+K280+IF(L$111=0,'RFM input'!$I$467,0)) -> 0 | M20: =IF(COUNT($H20:L20)>'RFM input'!$AA$7,0, L20+L72+L280+IF(M$111=0,'RFM input'!$I$467,0)) -> 0 | N20: =IF(COUNT($H20:M20)>'RFM input'!$AA$7,0, M20+M72+M280+IF(N$111=0,'RFM input'!$I$467,0)) -> 0 | O20: =IF(COUNT($H20:N20)>'RFM input'!$AA$7,0, N20+N72+N280+IF(O$111=0,'RFM input'!$I$467,0)) -> 0 | P20: =IF(COUNT($H20:O20)>'RFM input'!$AA$7,0, O20+O72+O280+IF(P$111=0,'RFM input'!$I$467,0)) -> 0 | Q20: =IF(COUNT($H20:P20)>'RFM input'!$AA$7,0, P20+P72+P280+IF(Q$111=0,'RFM input'!$I$467,0)) -> 0 | R20: =IF(COUNT($H20:Q20)>'RFM input'!$AA$7,0, Q20+Q72+Q280+IF(R$111=0,'RFM input'!$I$467,0)) -> 0
C21: =Asset14 -> 0 | H21: ='RFM input'!W20-'RFM input'!N20/(1+previous_vanilla)^0.5+('RFM input'!G236-'RFM input'!G290) -> 0 | I21: =H21+H73+H293 -> 0 | J21: =I21+I73+I293 -> 0 | K21: =IF(COUNT($H21:J21)>'RFM input'!$AA$7,0, J21+J73+J293+IF(K$111=0,'RFM input'!$I$468,0)) -> 0 | L21: =IF(COUNT($H21:K21)>'RFM input'!$AA$7,0, K21+K73+K293+IF(L$111=0,'RFM input'!$I$468,0)) -> 0 | M21: =IF(COUNT($H21:L21)>'RFM input'!$AA$7,0, L21+L73+L293+IF(M$111=0,'RFM input'!$I$468,0)) -> 0 | N21: =IF(COUNT($H21:M21)>'RFM input'!$AA$7,0, M21+M73+M293+IF(N$111=0,'RFM input'!$I$468,0)) -> 0 | O21: =IF(COUNT($H21:N21)>'RFM input'!$AA$7,0, N21+N73+N293+IF(O$111=0,'RFM input'!$I$468,0)) -> 0 | P21: =IF(COUNT($H21:O21)>'RFM input'!$AA$7,0, O21+O73+O293+IF(P$111=0,'RFM input'!$I$468,0)) -> 0 | Q21: =IF(COUNT($H21:P21)>'RFM input'!$AA$7,0, P21+P73+P293+IF(Q$111=0,'RFM input'!$I$468,0)) -> 0 | R21: =IF(COUNT($H21:Q21)>'RFM input'!$AA$7,0, Q21+Q73+Q293+IF(R$111=0,'RFM input'!$I$468,0)) -> 0
C22: =Asset15 -> 0 | H22: ='RFM input'!W21-'RFM input'!N21/(1+previous_vanilla)^0.5+('RFM input'!G237-'RFM input'!G291) -> 0 | I22: =H22+H74+H306 -> 0 | J22: =I22+I74+I306 -> 0 | K22: =IF(COUNT($H22:J22)>'RFM input'!$AA$7,0, J22+J74+J306+IF(K$111=0,'RFM input'!$I$469,0)) -> 0 | L22: =IF(COUNT($H22:K22)>'RFM input'!$AA$7,0, K22+K74+K306+IF(L$111=0,'RFM input'!$I$469,0)) -> 0 | M22: =IF(COUNT($H22:L22)>'RFM input'!$AA$7,0, L22+L74+L306+IF(M$111=0,'RFM input'!$I$469,0)) -> 0 | N22: =IF(COUNT($H22:M22)>'RFM input'!$AA$7,0, M22+M74+M306+IF(N$111=0,'RFM input'!$I$469,0)) -> 0 | O22: =IF(COUNT($H22:N22)>'RFM input'!$AA$7,0, N22+N74+N306+IF(O$111=0,'RFM input'!$I$469,0)) -> 0 | P22: =IF(COUNT($H22:O22)>'RFM input'!$AA$7,0, O22+O74+O306+IF(P$111=0,'RFM input'!$I$469,0)) -> 0 | Q22: =IF(COUNT($H22:P22)>'RFM input'!$AA$7,0, P22+P74+P306+IF(Q$111=0,'RFM input'!$I$469,0)) -> 0 | R22: =IF(COUNT($H22:Q22)>'RFM input'!$AA$7,0, Q22+Q74+Q306+IF(R$111=0,'RFM input'!$I$469,0)) -> 0
C23: =Asset16 -> 0 | H23: ='RFM input'!W22-'RFM input'!N22/(1+previous_vanilla)^0.5+('RFM input'!G238-'RFM input'!G292) -> 0 | I23: =H23+H75+H319 -> 0 | J23: =I23+I75+I319 -> 0 | K23: =IF(COUNT($H23:J23)>'RFM input'!$AA$7,0, J23+J75+J319+IF(K$111=0,'RFM input'!$I$470,0)) -> 0 | L23: =IF(COUNT($H23:K23)>'RFM input'!$AA$7,0, K23+K75+K319+IF(L$111=0,'RFM input'!$I$470,0)) -> 0 | M23: =IF(COUNT($H23:L23)>'RFM input'!$AA$7,0, L23+L75+L319+IF(M$111=0,'RFM input'!$I$470,0)) -> 0 | N23: =IF(COUNT($H23:M23)>'RFM input'!$AA$7,0, M23+M75+M319+IF(N$111=0,'RFM input'!$I$470,0)) -> 0 | O23: =IF(COUNT($H23:N23)>'RFM input'!$AA$7,0, N23+N75+N319+IF(O$111=0,'RFM input'!$I$470,0)) -> 0 | P23: =IF(COUNT($H23:O23)>'RFM input'!$AA$7,0, O23+O75+O319+IF(P$111=0,'RFM input'!$I$470,0)) -> 0 | Q23: =IF(COUNT($H23:P23)>'RFM input'!$AA$7,0, P23+P75+P319+IF(Q$111=0,'RFM input'!$I$470,0)) -> 0 | R23: =IF(COUNT($H23:Q23)>'RFM input'!$AA$7,0, Q23+Q75+Q319+IF(R$111=0,'RFM input'!$I$470,0)) -> 0
